Workbook

Sheet Main
B2: VCap | C2: Fund By Manager
F4: * Please sheet(s) to print
B5: * Step 1 : Connect to Server | F5: Sheet | G5: YES/NO
F6: 1. ByFundManager | G6: NO
B11: * Step 2 : Change Only If Necessary
B13: Company : | C13: VCAP ASSET MANAGERS SDN. BHD.
B14: Start Date : | C14: 2017-01-01
B15: Value Date : | C15: 2017-09-30
B17: * Step 3 : Refresh Data
B23: * Step 4 : Print Report

Sheet 1. ByFundManager
C2: ="SUMMARY OF TRADES BY PORTFOLIO MANAGERS From " & TEXT(StartDate,"dd-mm-yyyy") & " To " & TEXT(ValueDate,"dd-mm-yyyy") -> SUMMARY OF TRADES BY PORTFOLIO MANAGERS From 01-01-2017 To 30-09-2017
C4: ALEX.LEE | D4: YH-AUR-VCAM | H4: KWAP | L4: MEQESG | P4: YAMIR-VCAM | T4: VCAM-TABA | X4: ASEAN5ESG | AB4: Total
C5: Brokers | D5: Trade Value (RM) | E5: Brokerage Fees (RM) | F5: Capital Gains (RM) | G5: % | H5: Trade Value (RM) | I5: Brokerage Fees (RM) | J5: Capital Gains (RM) | K5: % | L5: Trade Value (RM) | M5: Brokerage Fees (RM) | N5: Capital Gains (RM) | O5: % | P5: Trade Value (RM) | Q5: Brokerage Fees (RM) | R5: Capital Gains (RM) | S5: % | T5: Trade Value (RM) | U5: Brokerage Fees (RM) | V5: Capital Gains (RM) | W5: % | X5: Trade Value (RM) | Y5: Brokerage Fees (RM) | Z5: Capital Gains (RM) | AA5: % | AB5: Trade Value (RM) | AC5: Brokerage Fees (RM) | AD5: Capital Gains (RM) | AE5: % | AF5: Trade Value Ranking
C6: CLSA LIMITED | D6: =+SUMIFS(InTran!$R:$R,InTran!$G:$G,C6,InTran!$O:$O,$C$4,InTran!$C:$C,$D$4) -> 162493504.6 | E6: =+SUMIFS(InTran!$S:$S,InTran!$G:$G,C6,InTran!$O:$O,$C$4,InTran!$C:$C,$D$4) -> 218385.22 | F6: =+SUMIFS(InTran!$M:$M,InTran!$G:$G,C6,InTran!$O:$O,$C$4,InTran!$C:$C,$D$4) -> 7477066.08 | G6: =+IFERROR(D6/SUM($D$6:$D$27),0) -> 0.323949163 | H6: =+SUMIFS(InTran!$R:$R,InTran!$G:$G,C6,InTran!$O:$O,$C$4,InTran!$C:$C,$H$4) -> 0 | I6: =+SUMIFS(InTran!$S:$S,InTran!$G:$G,C6,InTran!$O:$O,$C$4,InTran!$C:$C,$H$4) -> 0 | J6: =+SUMIFS(InTran!$M:$M,InTran!$G:$G,C6,InTran!$O:$O,$C$4,InTran!$C:$C,$H$4) -> 0 | K6: =+IFERROR(H6/SUM($H$6:$H$27),0) -> 0 | L6: =+SUMIFS(InTran!$R:$R,InTran!$G:$G,C6,InTran!$O:$O,$C$4,InTran!$C:$C,$L$4) -> 1958923.76 | M6: =+SUMIFS(InTran!$S:$S,InTran!$G:$G,C6,InTran!$O:$O,$C$4,InTran!$C:$C,$L$4) -> 3907.92 | N6: =+SUMIFS(InTran!$M:$M,InTran!$G:$G,C6,InTran!$O:$O,$C$4,InTran!$C:$C,$L$4) -> 0 | O6: =+IFERROR(L6/SUM($L$6:$L$27),0) -> 0.05006365479 | P6: =+SUMIFS(InTran!$R:$R,InTran!$G:$G,C6,InTran!$O:$O,$C$4,InTran!$C:$C,$P$4) -> 0 | Q6: =+SUMIFS(InTran!$S:$S,InTran!$G:$G,C6,InTran!$O:$O,$C$4,InTran!$C:$C,$P$4) -> 0 | R6: =+SUMIFS(InTran!$M:$M,InTran!$G:$G,C6,InTran!$O:$O,$C$4,InTran!$C:$C,$P$4) -> 0 | S6: =+IFERROR(P6/SUM($P$6:$P$27),0) -> 0 | T6: =+SUMIFS(InTran!$R:$R,InTran!$G:$G,C6,InTran!$O:$O,$C$4,InTran!$C:$C,$T$4) -> 0 | U6: =+SUMIFS(InTran!$S:$S,InTran!$G:$G,C6,InTran!$O:$O,$C$4,InTran!$C:$C,$T$4) -> 0 | V6: =+SUMIFS(InTran!$M:$M,InTran!$G:$G,C6,InTran!$O:$O,$C$4,InTran!$C:$C,$T$4) -> 0 | W6: =+IFERROR(T6/SUM($T$6:$T$27),0) -> 0 | X6: =+SUMIFS(InTran!$R:$R,InTran!$G:$G,C6,InTran!$O:$O,$C$4,InTran!$C:$C,$X$4) -> 2154792.86 | Y6: =+SUMIFS(InTran!$S:$S,InTran!$G:$G,C6,InTran!$O:$O,$C$4,InTran!$C:$C,$X$4) -> 5103.933806 | Z6: =+SUMIFS(InTran!$M:$M,InTran!$G:$G,C6,InTran!$O:$O,$C$4,InTran!$C:$C,$X$4) -> -319.36 | AA6: =+IFERROR(X6/SUM($X$6:$X$27),0) -> 0.1880700894 | AB6: =+SUMIFS(InTran!$R:$R,InTran!$G:$G,C6,InTran!$O:$O,$C$4) -> 166607221.2 | AC6: =+SUMIFS(InTran!$S:$S,InTran!$G:$G,C6,InTran!$O:$O,$C$4) -> 227397.0738 | AD6: =+SUMIFS(InTran!$M:$M,InTran!$G:$G,C6,InTran!$O:$O,$C$4) -> 7476746.72 | AE6: =+IFERROR(AB6/SUM($AB$6:$AB$27),0) -> 0.3011583855 | AF6: =+RANK(AB6,$AB$6:$AB$27) -> 1
C7: CREDIT SUISSE SECURITIES (M) SDN BHD | D7: =+SUMIFS(InTran!$R:$R,InTran!$G:$G,C7,InTran!$O:$O,$C$4,InTran!$C:$C,$D$4) -> 110559241.2 | E7: =+SUMIFS(InTran!$S:$S,InTran!$G:$G,C7,InTran!$O:$O,$C$4,InTran!$C:$C,$D$4) -> 173520.94 | F7: =+SUMIFS(InTran!$M:$M,InTran!$G:$G,C7,InTran!$O:$O,$C$4,InTran!$C:$C,$D$4) -> 6438731 | G7: =+IFERROR(D7/SUM($D$6:$D$27),0) -> 0.2204123404 | H7: =+SUMIFS(InTran!$R:$R,InTran!$G:$G,C7,InTran!$O:$O,$C$4,InTran!$C:$C,$H$4) -> 0 | I7: =+SUMIFS(InTran!$S:$S,InTran!$G:$G,C7,InTran!$O:$O,$C$4,InTran!$C:$C,$H$4) -> 0 | J7: =+SUMIFS(InTran!$M:$M,InTran!$G:$G,C7,InTran!$O:$O,$C$4,InTran!$C:$C,$H$4) -> 0 | K7: =+IFERROR(H7/SUM($H$6:$H$27),0) -> 0 | L7: =+SUMIFS(InTran!$R:$R,InTran!$G:$G,C7,InTran!$O:$O,$C$4,InTran!$C:$C,$L$4) -> 12862319.31 | M7: =+SUMIFS(InTran!$S:$S,InTran!$G:$G,C7,InTran!$O:$O,$C$4,InTran!$C:$C,$L$4) -> 26274.33 | N7: =+SUMIFS(InTran!$M:$M,InTran!$G:$G,C7,InTran!$O:$O,$C$4,InTran!$C:$C,$L$4) -> 1669030.41 | O7: =+IFERROR(L7/SUM($L$6:$L$27),0) -> 0.3287186193 | P7: =+SUMIFS(InTran!$R:$R,InTran!$G:$G,C7,InTran!$O:$O,$C$4,InTran!$C:$C,$P$4) -> 0 | Q7: =+SUMIFS(InTran!$S:$S,InTran!$G:$G,C7,InTran!$O:$O,$C$4,InTran!$C:$C,$P$4) -> 0 | R7: =+SUMIFS(InTran!$M:$M,InTran!$G:$G,C7,InTran!$O:$O,$C$4,InTran!$C:$C,$P$4) -> 0 | S7: =+IFERROR(P7/SUM($P$6:$P$27),0) -> 0 | T7: =+SUMIFS(InTran!$R:$R,InTran!$G:$G,C7,InTran!$O:$O,$C$4,InTran!$C:$C,$T$4) -> 410114.4 | U7: =+SUMIFS(InTran!$S:$S,InTran!$G:$G,C7,InTran!$O:$O,$C$4,InTran!$C:$C,$T$4) -> 924.4 | V7: =+SUMIFS(InTran!$M:$M,InTran!$G:$G,C7,InTran!$O:$O,$C$4,InTran!$C:$C,$T$4) -> 32166.15 | W7: =+IFERROR(T7/SUM($T$6:$T$27),0) -> 0.3968823542 | X7: =+SUMIFS(InTran!$R:$R,InTran!$G:$G,C7,InTran!$O:$O,$C$4,InTran!$C:$C,$X$4) -> 905871.9 | Y7: =+SUMIFS(InTran!$S:$S,InTran!$G:$G,C7,InTran!$O:$O,$C$4,InTran!$C:$C,$X$4) -> 2032.61 | Z7: =+SUMIFS(InTran!$M:$M,InTran!$G:$G,C7,InTran!$O:$O,$C$4,InTran!$C:$C,$X$4) -> -230.22 | AA7: =+IFERROR(X7/SUM($X$6:$X$27),0) -> 0.07906440214 | AB7: =+SUMIFS(InTran!$R:$R,InTran!$G:$G,C7,InTran!$O:$O,$C$4) -> 124737546.8 | AC7: =+SUMIFS(InTran!$S:$S,InTran!$G:$G,C7,InTran!$O:$O,$C$4) -> 202752.28 | AD7: =+SUMIFS(InTran!$M:$M,InTran!$G:$G,C7,InTran!$O:$O,$C$4) -> 8139697.34 | AE7: =+IFERROR(AB7/SUM($AB$6:$AB$27),0) -> 0.22547497 | AF7: =+RANK(AB7,$AB$6:$AB$27) -> 2
C8: MACQUARIE CAPITAL SECURITIES (MALAYSIA) SDN BHD | D8: =+SUMIFS(InTran!$R:$R,InTran!$G:$G,C8,InTran!$O:$O,$C$4,InTran!$C:$C,$D$4) -> 81315521.54 | E8: =+SUMIFS(InTran!$S:$S,InTran!$G:$G,C8,InTran!$O:$O,$C$4,InTran!$C:$C,$D$4) -> 136565.44 | F8: =+SUMIFS(InTran!$M:$M,InTran!$G:$G,C8,InTran!$O:$O,$C$4,InTran!$C:$C,$D$4) -> 5967255.32 | G8: =+IFERROR(D8/SUM($D$6:$D$27),0) -> 0.1621116807 | H8: =+SUMIFS(InTran!$R:$R,InTran!$G:$G,C8,InTran!$O:$O,$C$4,InTran!$C:$C,$H$4) -> 0 | I8: =+SUMIFS(InTran!$S:$S,InTran!$G:$G,C8,InTran!$O:$O,$C$4,InTran!$C:$C,$H$4) -> 0 | J8: =+SUMIFS(InTran!$M:$M,InTran!$G:$G,C8,InTran!$O:$O,$C$4,InTran!$C:$C,$H$4) -> 0 | K8: =+IFERROR(H8/SUM($H$6:$H$27),0) -> 0 | L8: =+SUMIFS(InTran!$R:$R,InTran!$G:$G,C8,InTran!$O:$O,$C$4,InTran!$C:$C,$L$4) -> 8867287.28 | M8: =+SUMIFS(InTran!$S:$S,InTran!$G:$G,C8,InTran!$O:$O,$C$4,InTran!$C:$C,$L$4) -> 17976.18 | N8: =+SUMIFS(InTran!$M:$M,InTran!$G:$G,C8,InTran!$O:$O,$C$4,InTran!$C:$C,$L$4) -> 940232.88 | O8: =+IFERROR(L8/SUM($L$6:$L$27),0) -> 0.2266187272 | P8: =+SUMIFS(InTran!$R:$R,InTran!$G:$G,C8,InTran!$O:$O,$C$4,InTran!$C:$C,$P$4) -> 0 | Q8: =+SUMIFS(InTran!$S:$S,InTran!$G:$G,C8,InTran!$O:$O,$C$4,InTran!$C:$C,$P$4) -> 0 | R8: =+SUMIFS(InTran!$M:$M,InTran!$G:$G,C8,InTran!$O:$O,$C$4,InTran!$C:$C,$P$4) -> 0 | S8: =+IFERROR(P8/SUM($P$6:$P$27),0) -> 0 | T8: =+SUMIFS(InTran!$R:$R,InTran!$G:$G,C8,InTran!$O:$O,$C$4,InTran!$C:$C,$T$4) -> 132127.42 | U8: =+SUMIFS(InTran!$S:$S,InTran!$G:$G,C8,InTran!$O:$O,$C$4,InTran!$C:$C,$T$4) -> 298.06 | V8: =+SUMIFS(InTran!$M:$M,InTran!$G:$G,C8,InTran!$O:$O,$C$4,InTran!$C:$C,$T$4) -> 10918.72 | W8: =+IFERROR(T8/SUM($T$6:$T$27),0) -> 0.1278644239 | X8: =+SUMIFS(InTran!$R:$R,InTran!$G:$G,C8,InTran!$O:$O,$C$4,InTran!$C:$C,$X$4) -> 1453268.488 | Y8: =+SUMIFS(InTran!$S:$S,InTran!$G:$G,C8,InTran!$O:$O,$C$4,InTran!$C:$C,$X$4) -> 3385.574745 | Z8: =+SUMIFS(InTran!$M:$M,InTran!$G:$G,C8,InTran!$O:$O,$C$4,InTran!$C:$C,$X$4) -> 4611.69 | AA8: =+IFERROR(X8/SUM($X$6:$X$27),0) -> 0.1268411176 | AB8: =+SUMIFS(InTran!$R:$R,InTran!$G:$G,C8,InTran!$O:$O,$C$4) -> 91768204.73 | AC8: =+SUMIFS(InTran!$S:$S,InTran!$G:$G,C8,InTran!$O:$O,$C$4) -> 158225.2547 | AD8: =+SUMIFS(InTran!$M:$M,InTran!$G:$G,C8,InTran!$O:$O,$C$4) -> 6923018.61 | AE8: =+IFERROR(AB8/SUM($AB$6:$AB$27),0) -> 0.165879751 | AF8: =+RANK(AB8,$AB$6:$AB$27) -> 3
C9: UBS SECURITIES MALAYSIA SDN BHD | D9: =+SUMIFS(InTran!$R:$R,InTran!$G:$G,C9,InTran!$O:$O,$C$4,InTran!$C:$C,$D$4) -> 78435514.68 | E9: =+SUMIFS(InTran!$S:$S,InTran!$G:$G,C9,InTran!$O:$O,$C$4,InTran!$C:$C,$D$4) -> 88520.91 | F9: =+SUMIFS(InTran!$M:$M,InTran!$G:$G,C9,InTran!$O:$O,$C$4,InTran!$C:$C,$D$4) -> 3773464.66 | G9: =+IFERROR(D9/SUM($D$6:$D$27),0) -> 0.1563700616 | H9: =+SUMIFS(InTran!$R:$R,InTran!$G:$G,C9,InTran!$O:$O,$C$4,InTran!$C:$C,$H$4) -> 0 | I9: =+SUMIFS(InTran!$S:$S,InTran!$G:$G,C9,InTran!$O:$O,$C$4,InTran!$C:$C,$H$4) -> 0 | J9: =+SUMIFS(InTran!$M:$M,InTran!$G:$G,C9,InTran!$O:$O,$C$4,InTran!$C:$C,$H$4) -> 0 | K9: =+IFERROR(H9/SUM($H$6:$H$27),0) -> 0 | L9: =+SUMIFS(InTran!$R:$R,InTran!$G:$G,C9,InTran!$O:$O,$C$4,InTran!$C:$C,$L$4) -> 9421434.81 | M9: =+SUMIFS(InTran!$S:$S,InTran!$G:$G,C9,InTran!$O:$O,$C$4,InTran!$C:$C,$L$4) -> 9410.2 | N9: =+SUMIFS(InTran!$M:$M,InTran!$G:$G,C9,InTran!$O:$O,$C$4,InTran!$C:$C,$L$4) -> 0 | O9: =+IFERROR(L9/SUM($L$6:$L$27),0) -> 0.2407809173 | P9: =+SUMIFS(InTran!$R:$R,InTran!$G:$G,C9,InTran!$O:$O,$C$4,InTran!$C:$C,$P$4) -> 0 | Q9: =+SUMIFS(InTran!$S:$S,InTran!$G:$G,C9,InTran!$O:$O,$C$4,InTran!$C:$C,$P$4) -> 0 | R9: =+SUMIFS(InTran!$M:$M,InTran!$G:$G,C9,InTran!$O:$O,$C$4,InTran!$C:$C,$P$4) -> 0 | S9: =+IFERROR(P9/SUM($P$6:$P$27),0) -> 0 | T9: =+SUMIFS(InTran!$R:$R,InTran!$G:$G,C9,InTran!$O:$O,$C$4,InTran!$C:$C,$T$4) -> 0 | U9: =+SUMIFS(InTran!$S:$S,InTran!$G:$G,C9,InTran!$O:$O,$C$4,InTran!$C:$C,$T$4) -> 0 | V9: =+SUMIFS(InTran!$M:$M,InTran!$G:$G,C9,InTran!$O:$O,$C$4,InTran!$C:$C,$T$4) -> 0 | W9: =+IFERROR(T9/SUM($T$6:$T$27),0) -> 0 | X9: =+SUMIFS(InTran!$R:$R,InTran!$G:$G,C9,InTran!$O:$O,$C$4,InTran!$C:$C,$X$4) -> 238257.48 | Y9: =+SUMIFS(InTran!$S:$S,InTran!$G:$G,C9,InTran!$O:$O,$C$4,InTran!$C:$C,$X$4) -> 534.46 | Z9: =+SUMIFS(InTran!$M:$M,InTran!$G:$G,C9,InTran!$O:$O,$C$4,InTran!$C:$C,$X$4) -> -181.76 | AA9: =+IFERROR(X9/SUM($X$6:$X$27),0) -> 0.02079508726 | AB9: =+SUMIFS(InTran!$R:$R,InTran!$G:$G,C9,InTran!$O:$O,$C$4) -> 88095206.97 | AC9: =+SUMIFS(InTran!$S:$S,InTran!$G:$G,C9,InTran!$O:$O,$C$4) -> 98465.57 | AD9: =+SUMIFS(InTran!$M:$M,InTran!$G:$G,C9,InTran!$O:$O,$C$4) -> 3773282.9 | AE9: =+IFERROR(AB9/SUM($AB$6:$AB$27),0) -> 0.1592404585 | AF9: =+RANK(AB9,$AB$6:$AB$27) -> 4
C10: CIMB INVESTMENT BANK BHD | D10: =+SUMIFS(InTran!$R:$R,InTran!$G:$G,C10,InTran!$O:$O,$C$4,InTran!$C:$C,$D$4) -> 25301142.57 | E10: =+SUMIFS(InTran!$S:$S,InTran!$G:$G,C10,InTran!$O:$O,$C$4,InTran!$C:$C,$D$4) -> 42018.46 | F10: =+SUMIFS(InTran!$M:$M,InTran!$G:$G,C10,InTran!$O:$O,$C$4,InTran!$C:$C,$D$4) -> 1608793.58 | G10: =+IFERROR(D10/SUM($D$6:$D$27),0) -> 0.05044068671 | H10: =+SUMIFS(InTran!$R:$R,InTran!$G:$G,C10,InTran!$O:$O,$C$4,InTran!$C:$C,$H$4) -> 0 | I10: =+SUMIFS(InTran!$S:$S,InTran!$G:$G,C10,InTran!$O:$O,$C$4,InTran!$C:$C,$H$4) -> 0 | J10: =+SUMIFS(InTran!$M:$M,InTran!$G:$G,C10,InTran!$O:$O,$C$4,InTran!$C:$C,$H$4) -> 0 | K10: =+IFERROR(H10/SUM($H$6:$H$27),0) -> 0 | L10: =+SUMIFS(InTran!$R:$R,InTran!$G:$G,C10,InTran!$O:$O,$C$4,InTran!$C:$C,$L$4) -> 5053376.4 | M10: =+SUMIFS(InTran!$S:$S,InTran!$G:$G,C10,InTran!$O:$O,$C$4,InTran!$C:$C,$L$4) -> 5060 | N10: =+SUMIFS(InTran!$M:$M,InTran!$G:$G,C10,InTran!$O:$O,$C$4,InTran!$C:$C,$L$4) -> -78968.31 | O10: =+IFERROR(L10/SUM($L$6:$L$27),0) -> 0.1291476967 | P10: =+SUMIFS(InTran!$R:$R,InTran!$G:$G,C10,InTran!$O:$O,$C$4,InTran!$C:$C,$P$4) -> 0 | Q10: =+SUMIFS(InTran!$S:$S,InTran!$G:$G,C10,InTran!$O:$O,$C$4,InTran!$C:$C,$P$4) -> 0 | R10: =+SUMIFS(InTran!$M:$M,InTran!$G:$G,C10,InTran!$O:$O,$C$4,InTran!$C:$C,$P$4) -> 0 | S10: =+IFERROR(P10/SUM($P$6:$P$27),0) -> 0 | T10: =+SUMIFS(InTran!$R:$R,InTran!$G:$G,C10,InTran!$O:$O,$C$4,InTran!$C:$C,$T$4) -> 78791.19 | U10: =+SUMIFS(InTran!$S:$S,InTran!$G:$G,C10,InTran!$O:$O,$C$4,InTran!$C:$C,$T$4) -> 176.63 | V10: =+SUMIFS(InTran!$M:$M,InTran!$G:$G,C10,InTran!$O:$O,$C$4,InTran!$C:$C,$T$4) -> 0 | W10: =+IFERROR(T10/SUM($T$6:$T$27),0) -> 0.07624904899 | X10: =+SUMIFS(InTran!$R:$R,InTran!$G:$G,C10,InTran!$O:$O,$C$4,InTran!$C:$C,$X$4) -> 624476.3844 | Y10: =+SUMIFS(InTran!$S:$S,InTran!$G:$G,C10,InTran!$O:$O,$C$4,InTran!$C:$C,$X$4) -> 1470.050866 | Z10: =+SUMIFS(InTran!$M:$M,InTran!$G:$G,C10,InTran!$O:$O,$C$4,InTran!$C:$C,$X$4) -> 0 | AA10: =+IFERROR(X10/SUM($X$6:$X$27),0) -> 0.05450423176 | AB10: =+SUMIFS(InTran!$R:$R,InTran!$G:$G,C10,InTran!$O:$O,$C$4) -> 31057786.54 | AC10: =+SUMIFS(InTran!$S:$S,InTran!$G:$G,C10,InTran!$O:$O,$C$4) -> 48725.14087 | AD10: =+SUMIFS(InTran!$M:$M,InTran!$G:$G,C10,InTran!$O:$O,$C$4) -> 1529825.27 | AE10: =+IFERROR(AB10/SUM($AB$6:$AB$27),0) -> 0.05613990068 | AF10: =+RANK(AB10,$AB$6:$AB$27) -> 5
C11: NOMURA SECURITIES MALAYSIA SDN BHD | D11: =+SUMIFS(InTran!$R:$R,InTran!$G:$G,C11,InTran!$O:$O,$C$4,InTran!$C:$C,$D$4) -> 27961806.36 | E11: =+SUMIFS(InTran!$S:$S,InTran!$G:$G,C11,InTran!$O:$O,$C$4,InTran!$C:$C,$D$4) -> 27994 | F11: =+SUMIFS(InTran!$M:$M,InTran!$G:$G,C11,InTran!$O:$O,$C$4,InTran!$C:$C,$D$4) -> 1522319.91 | G11: =+IFERROR(D11/SUM($D$6:$D$27),0) -> 0.05574502063 | H11: =+SUMIFS(InTran!$R:$R,InTran!$G:$G,C11,InTran!$O:$O,$C$4,InTran!$C:$C,$H$4) -> 0 | I11: =+SUMIFS(InTran!$S:$S,InTran!$G:$G,C11,InTran!$O:$O,$C$4,InTran!$C:$C,$H$4) -> 0 | J11: =+SUMIFS(InTran!$M:$M,InTran!$G:$G,C11,InTran!$O:$O,$C$4,InTran!$C:$C,$H$4) -> 0 | K11: =+IFERROR(H11/SUM($H$6:$H$27),0) -> 0 | L11: =+SUMIFS(InTran!$R:$R,InTran!$G:$G,C11,InTran!$O:$O,$C$4,InTran!$C:$C,$L$4) -> 0 | M11: =+SUMIFS(InTran!$S:$S,InTran!$G:$G,C11,InTran!$O:$O,$C$4,InTran!$C:$C,$L$4) -> 0 | N11: =+SUMIFS(InTran!$M:$M,InTran!$G:$G,C11,InTran!$O:$O,$C$4,InTran!$C:$C,$L$4) -> 0 | O11: =+IFERROR(L11/SUM($L$6:$L$27),0) -> 0 | P11: =+SUMIFS(InTran!$R:$R,InTran!$G:$G,C11,InTran!$O:$O,$C$4,InTran!$C:$C,$P$4) -> 0 | Q11: =+SUMIFS(InTran!$S:$S,InTran!$G:$G,C11,InTran!$O:$O,$C$4,InTran!$C:$C,$P$4) -> 0 | R11: =+SUMIFS(InTran!$M:$M,InTran!$G:$G,C11,InTran!$O:$O,$C$4,InTran!$C:$C,$P$4) -> 0 | S11: =+IFERROR(P11/SUM($P$6:$P$27),0) -> 0 | T11: =+SUMIFS(InTran!$R:$R,InTran!$G:$G,C11,InTran!$O:$O,$C$4,InTran!$C:$C,$T$4) -> 0 | U11: =+SUMIFS(InTran!$S:$S,InTran!$G:$G,C11,InTran!$O:$O,$C$4,InTran!$C:$C,$T$4) -> 0 | V11: =+SUMIFS(InTran!$M:$M,InTran!$G:$G,C11,InTran!$O:$O,$C$4,InTran!$C:$C,$T$4) -> 0 | W11: =+IFERROR(T11/SUM($T$6:$T$27),0) -> 0 | X11: =+SUMIFS(InTran!$R:$R,InTran!$G:$G,C11,InTran!$O:$O,$C$4,InTran!$C:$C,$X$4) -> 239453.86 | Y11: =+SUMIFS(InTran!$S:$S,InTran!$G:$G,C11,InTran!$O:$O,$C$4,InTran!$C:$C,$X$4) -> 536.78 | Z11: =+SUMIFS(InTran!$M:$M,InTran!$G:$G,C11,InTran!$O:$O,$C$4,InTran!$C:$C,$X$4) -> 0 | AA11: =+IFERROR(X11/SUM($X$6:$X$27),0) -> 0.02089950718 | AB11: =+SUMIFS(InTran!$R:$R,InTran!$G:$G,C11,InTran!$O:$O,$C$4) -> 28201260.22 | AC11: =+SUMIFS(InTran!$S:$S,InTran!$G:$G,C11,InTran!$O:$O,$C$4) -> 28530.78 | AD11: =+SUMIFS(InTran!$M:$M,InTran!$G:$G,C11,InTran!$O:$O,$C$4) -> 1522319.91 | AE11: =+IFERROR(AB11/SUM($AB$6:$AB$27),0) -> 0.05097645789 | AF11: =+RANK(AB11,$AB$6:$AB$27) -> 6
C12: MAYBANK INVESTMENT BANK BHD | D12: =+SUMIFS(InTran!$R:$R,InTran!$G:$G,C12,InTran!$O:$O,$C$4,InTran!$C:$C,$D$4) -> 12117114.94 | E12: =+SUMIFS(InTran!$S:$S,InTran!$G:$G,C12,InTran!$O:$O,$C$4,InTran!$C:$C,$D$4) -> 14616.2 | F12: =+SUMIFS(InTran!$M:$M,InTran!$G:$G,C12,InTran!$O:$O,$C$4,InTran!$C:$C,$D$4) -> 837539.73 | G12: =+IFERROR(D12/SUM($D$6:$D$27),0) -> 0.02415683785 | H12: =+SUMIFS(InTran!$R:$R,InTran!$G:$G,C12,InTran!$O:$O,$C$4,InTran!$C:$C,$H$4) -> 0 | I12: =+SUMIFS(InTran!$S:$S,InTran!$G:$G,C12,InTran!$O:$O,$C$4,InTran!$C:$C,$H$4) -> 0 | J12: =+SUMIFS(InTran!$M:$M,InTran!$G:$G,C12,InTran!$O:$O,$C$4,InTran!$C:$C,$H$4) -> 0 | K12: =+IFERROR(H12/SUM($H$6:$H$27),0) -> 0 | L12: =+SUMIFS(InTran!$R:$R,InTran!$G:$G,C12,InTran!$O:$O,$C$4,InTran!$C:$C,$L$4) -> 0 | M12: =+SUMIFS(InTran!$S:$S,InTran!$G:$G,C12,InTran!$O:$O,$C$4,InTran!$C:$C,$L$4) -> 0 | N12: =+SUMIFS(InTran!$M:$M,InTran!$G:$G,C12,InTran!$O:$O,$C$4,InTran!$C:$C,$L$4) -> 0 | O12: =+IFERROR(L12/SUM($L$6:$L$27),0) -> 0 | P12: =+SUMIFS(InTran!$R:$R,InTran!$G:$G,C12,InTran!$O:$O,$C$4,InTran!$C:$C,$P$4) -> 0 | Q12: =+SUMIFS(InTran!$S:$S,InTran!$G:$G,C12,InTran!$O:$O,$C$4,InTran!$C:$C,$P$4) -> 0 | R12: =+SUMIFS(InTran!$M:$M,InTran!$G:$G,C12,InTran!$O:$O,$C$4,InTran!$C:$C,$P$4) -> 0 | S12: =+IFERROR(P12/SUM($P$6:$P$27),0) -> 0 | T12: =+SUMIFS(InTran!$R:$R,InTran!$G:$G,C12,InTran!$O:$O,$C$4,InTran!$C:$C,$T$4) -> 0 | U12: =+SUMIFS(InTran!$S:$S,InTran!$G:$G,C12,InTran!$O:$O,$C$4,InTran!$C:$C,$T$4) -> 0 | V12: =+SUMIFS(InTran!$M:$M,InTran!$G:$G,C12,InTran!$O:$O,$C$4,InTran!$C:$C,$T$4) -> 0 | W12: =+IFERROR(T12/SUM($T$6:$T$27),0) -> 0 | X12: =+SUMIFS(InTran!$R:$R,InTran!$G:$G,C12,InTran!$O:$O,$C$4,InTran!$C:$C,$X$4) -> 788590.14 | Y12: =+SUMIFS(InTran!$S:$S,InTran!$G:$G,C12,InTran!$O:$O,$C$4,InTran!$C:$C,$X$4) -> 1772.92 | Z12: =+SUMIFS(InTran!$M:$M,InTran!$G:$G,C12,InTran!$O:$O,$C$4,InTran!$C:$C,$X$4) -> 2119.78 | AA12: =+IFERROR(X12/SUM($X$6:$X$27),0) -> 0.06882806272 | AB12: =+SUMIFS(InTran!$R:$R,InTran!$G:$G,C12,InTran!$O:$O,$C$4) -> 12905705.08 | AC12: =+SUMIFS(InTran!$S:$S,InTran!$G:$G,C12,InTran!$O:$O,$C$4) -> 16389.12 | AD12: =+SUMIFS(InTran!$M:$M,InTran!$G:$G,C12,InTran!$O:$O,$C$4) -> 839659.51 | AE12: =+IFERROR(AB12/SUM($AB$6:$AB$27),0) -> 0.0233282884 | AF12: =+RANK(AB12,$AB$6:$AB$27) -> 7
C13: KENANGA INVESTMENT BANK BHD | D13: =+SUMIFS(InTran!$R:$R,InTran!$G:$G,C13,InTran!$O:$O,$C$4,InTran!$C:$C,$D$4) -> 3418020 | E13: =+SUMIFS(InTran!$S:$S,InTran!$G:$G,C13,InTran!$O:$O,$C$4,InTran!$C:$C,$D$4) -> 17000 | F13: =+SUMIFS(InTran!$M:$M,InTran!$G:$G,C13,InTran!$O:$O,$C$4,InTran!$C:$C,$D$4) -> 0 | G13: =+IFERROR(D13/SUM($D$6:$D$27),0) -> 0.006814209102 | H13: =+SUMIFS(InTran!$R:$R,InTran!$G:$G,C13,InTran!$O:$O,$C$4,InTran!$C:$C,$H$4) -> 0 | I13: =+SUMIFS(InTran!$S:$S,InTran!$G:$G,C13,InTran!$O:$O,$C$4,InTran!$C:$C,$H$4) -> 0 | J13: =+SUMIFS(InTran!$M:$M,InTran!$G:$G,C13,InTran!$O:$O,$C$4,InTran!$C:$C,$H$4) -> 0 | K13: =+IFERROR(H13/SUM($H$6:$H$27),0) -> 0 | L13: =+SUMIFS(InTran!$R:$R,InTran!$G:$G,C13,InTran!$O:$O,$C$4,InTran!$C:$C,$L$4) -> 965319.11 | M13: =+SUMIFS(InTran!$S:$S,InTran!$G:$G,C13,InTran!$O:$O,$C$4,InTran!$C:$C,$L$4) -> 2178.31 | N13: =+SUMIFS(InTran!$M:$M,InTran!$G:$G,C13,InTran!$O:$O,$C$4,InTran!$C:$C,$L$4) -> 53738.61 | O13: =+IFERROR(L13/SUM($L$6:$L$27),0) -> 0.02467038466 | P13: =+SUMIFS(InTran!$R:$R,InTran!$G:$G,C13,InTran!$O:$O,$C$4,InTran!$C:$C,$P$4) -> 0 | Q13: =+SUMIFS(InTran!$S:$S,InTran!$G:$G,C13,InTran!$O:$O,$C$4,InTran!$C:$C,$P$4) -> 0 | R13: =+SUMIFS(InTran!$M:$M,InTran!$G:$G,C13,InTran!$O:$O,$C$4,InTran!$C:$C,$P$4) -> 0 | S13: =+IFERROR(P13/SUM($P$6:$P$27),0) -> 0 | T13: =+SUMIFS(InTran!$R:$R,InTran!$G:$G,C13,InTran!$O:$O,$C$4,InTran!$C:$C,$T$4) -> 0 | U13: =+SUMIFS(InTran!$S:$S,InTran!$G:$G,C13,InTran!$O:$O,$C$4,InTran!$C:$C,$T$4) -> 0 | V13: =+SUMIFS(InTran!$M:$M,InTran!$G:$G,C13,InTran!$O:$O,$C$4,InTran!$C:$C,$T$4) -> 0 | W13: =+IFERROR(T13/SUM($T$6:$T$27),0) -> 0 | X13: =+SUMIFS(InTran!$R:$R,InTran!$G:$G,C13,InTran!$O:$O,$C$4,InTran!$C:$C,$X$4) -> 0 | Y13: =+SUMIFS(InTran!$S:$S,InTran!$G:$G,C13,InTran!$O:$O,$C$4,InTran!$C:$C,$X$4) -> 0 | Z13: =+SUMIFS(InTran!$M:$M,InTran!$G:$G,C13,InTran!$O:$O,$C$4,InTran!$C:$C,$X$4) -> 0 | AA13: =+IFERROR(X13/SUM($X$6:$X$27),0) -> 0 | AB13: =+SUMIFS(InTran!$R:$R,InTran!$G:$G,C13,InTran!$O:$O,$C$4) -> 4383339.11 | AC13: =+SUMIFS(InTran!$S:$S,InTran!$G:$G,C13,InTran!$O:$O,$C$4) -> 19178.31 | AD13: =+SUMIFS(InTran!$M:$M,InTran!$G:$G,C13,InTran!$O:$O,$C$4) -> 53738.61 | AE13: =+IFERROR(AB13/SUM($AB$6:$AB$27),0) -> 0.007923302002 | AF13: =+RANK(AB13,$AB$6:$AB$27) -> 8
C14: MACQUARIE CAPITAL SECURITIES (MALAYSIA) SDN BHD (FOREIGN) | D14: =+SUMIFS(InTran!$R:$R,InTran!$G:$G,C14,InTran!$O:$O,$C$4,InTran!$C:$C,$D$4) -> 0 | E14: =+SUMIFS(InTran!$S:$S,InTran!$G:$G,C14,InTran!$O:$O,$C$4,InTran!$C:$C,$D$4) -> 0 | F14: =+SUMIFS(InTran!$M:$M,InTran!$G:$G,C14,InTran!$O:$O,$C$4,InTran!$C:$C,$D$4) -> 0 | G14: =+IFERROR(D14/SUM($D$6:$D$27),0) -> 0 | H14: =+SUMIFS(InTran!$R:$R,InTran!$G:$G,C14,InTran!$O:$O,$C$4,InTran!$C:$C,$H$4) -> 0 | I14: =+SUMIFS(InTran!$S:$S,InTran!$G:$G,C14,InTran!$O:$O,$C$4,InTran!$C:$C,$H$4) -> 0 | J14: =+SUMIFS(InTran!$M:$M,InTran!$G:$G,C14,InTran!$O:$O,$C$4,InTran!$C:$C,$H$4) -> 0 | K14: =+IFERROR(H14/SUM($H$6:$H$27),0) -> 0 | L14: =+SUMIFS(InTran!$R:$R,InTran!$G:$G,C14,InTran!$O:$O,$C$4,InTran!$C:$C,$L$4) -> 0 | M14: =+SUMIFS(InTran!$S:$S,InTran!$G:$G,C14,InTran!$O:$O,$C$4,InTran!$C:$C,$L$4) -> 0 | N14: =+SUMIFS(InTran!$M:$M,InTran!$G:$G,C14,InTran!$O:$O,$C$4,InTran!$C:$C,$L$4) -> 0 | O14: =+IFERROR(L14/SUM($L$6:$L$27),0) -> 0 | P14: =+SUMIFS(InTran!$R:$R,InTran!$G:$G,C14,InTran!$O:$O,$C$4,InTran!$C:$C,$P$4) -> 0 | Q14: =+SUMIFS(InTran!$S:$S,InTran!$G:$G,C14,InTran!$O:$O,$C$4,InTran!$C:$C,$P$4) -> 0 | R14: =+SUMIFS(InTran!$M:$M,InTran!$G:$G,C14,InTran!$O:$O,$C$4,InTran!$C:$C,$P$4) -> 0 | S14: =+IFERROR(P14/SUM($P$6:$P$27),0) -> 0 | T14: =+SUMIFS(InTran!$R:$R,InTran!$G:$G,C14,InTran!$O:$O,$C$4,InTran!$C:$C,$T$4) -> 0 | U14: =+SUMIFS(InTran!$S:$S,InTran!$G:$G,C14,InTran!$O:$O,$C$4,InTran!$C:$C,$T$4) -> 0 | V14: =+SUMIFS(InTran!$M:$M,InTran!$G:$G,C14,InTran!$O:$O,$C$4,InTran!$C:$C,$T$4) -> 0 | W14: =+IFERROR(T14/SUM($T$6:$T$27),0) -> 0 | X14: =+SUMIFS(InTran!$R:$R,InTran!$G:$G,C14,InTran!$O:$O,$C$4,InTran!$C:$C,$X$4) -> 3401259.206 | Y14: =+SUMIFS(InTran!$S:$S,InTran!$G:$G,C14,InTran!$O:$O,$C$4,InTran!$C:$C,$X$4) -> 8482.12593 | Z14: =+SUMIFS(InTran!$M:$M,InTran!$G:$G,C14,InTran!$O:$O,$C$4,InTran!$C:$C,$X$4) -> 1755.54 | AA14: =+IFERROR(X14/SUM($X$6:$X$27),0) -> 0.2968615382 | AB14: =+SUMIFS(InTran!$R:$R,InTran!$G:$G,C14,InTran!$O:$O,$C$4) -> 3401259.206 | AC14: =+SUMIFS(InTran!$S:$S,InTran!$G:$G,C14,InTran!$O:$O,$C$4) -> 8482.12593 | AD14: =+SUMIFS(InTran!$M:$M,InTran!$G:$G,C14,InTran!$O:$O,$C$4) -> 1755.54 | AE14: =+IFERROR(AB14/SUM($AB$6:$AB$27),0) -> 0.006148099245 | AF14: =+RANK(AB14,$AB$6:$AB$27) -> 9
C15: CLSA LIMITED FOREIGN | D15: =+SUMIFS(InTran!$R:$R,InTran!$G:$G,C15,InTran!$O:$O,$C$4,InTran!$C:$C,$D$4) -> 0 | E15: =+SUMIFS(InTran!$S:$S,InTran!$G:$G,C15,InTran!$O:$O,$C$4,InTran!$C:$C,$D$4) -> 0 | F15: =+SUMIFS(InTran!$M:$M,InTran!$G:$G,C15,InTran!$O:$O,$C$4,InTran!$C:$C,$D$4) -> 0 | G15: =+IFERROR(D15/SUM($D$6:$D$27),0) -> 0 | H15: =+SUMIFS(InTran!$R:$R,InTran!$G:$G,C15,InTran!$O:$O,$C$4,InTran!$C:$C,$H$4) -> 0 | I15: =+SUMIFS(InTran!$S:$S,InTran!$G:$G,C15,InTran!$O:$O,$C$4,InTran!$C:$C,$H$4) -> 0 | J15: =+SUMIFS(InTran!$M:$M,InTran!$G:$G,C15,InTran!$O:$O,$C$4,InTran!$C:$C,$H$4) -> 0 | K15: =+IFERROR(H15/SUM($H$6:$H$27),0) -> 0 | L15: =+SUMIFS(InTran!$R:$R,InTran!$G:$G,C15,InTran!$O:$O,$C$4,InTran!$C:$C,$L$4) -> 0 | M15: =+SUMIFS(InTran!$S:$S,InTran!$G:$G,C15,InTran!$O:$O,$C$4,InTran!$C:$C,$L$4) -> 0 | N15: =+SUMIFS(InTran!$M:$M,InTran!$G:$G,C15,InTran!$O:$O,$C$4,InTran!$C:$C,$L$4) -> 0 | O15: =+IFERROR(L15/SUM($L$6:$L$27),0) -> 0 | P15: =+SUMIFS(InTran!$R:$R,InTran!$G:$G,C15,InTran!$O:$O,$C$4,InTran!$C:$C,$P$4) -> 0 | Q15: =+SUMIFS(InTran!$S:$S,InTran!$G:$G,C15,InTran!$O:$O,$C$4,InTran!$C:$C,$P$4) -> 0 | R15: =+SUMIFS(InTran!$M:$M,InTran!$G:$G,C15,InTran!$O:$O,$C$4,InTran!$C:$C,$P$4) -> 0 | S15: =+IFERROR(P15/SUM($P$6:$P$27),0) -> 0 | T15: =+SUMIFS(InTran!$R:$R,InTran!$G:$G,C15,InTran!$O:$O,$C$4,InTran!$C:$C,$T$4) -> 0 | U15: =+SUMIFS(InTran!$S:$S,InTran!$G:$G,C15,InTran!$O:$O,$C$4,InTran!$C:$C,$T$4) -> 0 | V15: =+SUMIFS(InTran!$M:$M,InTran!$G:$G,C15,InTran!$O:$O,$C$4,InTran!$C:$C,$T$4) -> 0 | W15: =+IFERROR(T15/SUM($T$6:$T$27),0) -> 0 | X15: =+SUMIFS(InTran!$R:$R,InTran!$G:$G,C15,InTran!$O:$O,$C$4,InTran!$C:$C,$X$4) -> 1180070.939 | Y15: =+SUMIFS(InTran!$S:$S,InTran!$G:$G,C15,InTran!$O:$O,$C$4,InTran!$C:$C,$X$4) -> 3159.525529 | Z15: =+SUMIFS(InTran!$M:$M,InTran!$G:$G,C15,InTran!$O:$O,$C$4,InTran!$C:$C,$X$4) -> 0 | AA15: =+IFERROR(X15/SUM($X$6:$X$27),0) -> 0.1029964648 | AB15: =+SUMIFS(InTran!$R:$R,InTran!$G:$G,C15,InTran!$O:$O,$C$4) -> 1180070.939 | AC15: =+SUMIFS(InTran!$S:$S,InTran!$G:$G,C15,InTran!$O:$O,$C$4) -> 3159.525529 | AD15: =+SUMIFS(InTran!$M:$M,InTran!$G:$G,C15,InTran!$O:$O,$C$4) -> 0 | AE15: =+IFERROR(AB15/SUM($AB$6:$AB$27),0) -> 0.002133090368 | AF15: =+RANK(AB15,$AB$6:$AB$27) -> 10
C16: TA SECURITIES HOLDINGS BHD | D16: =+SUMIFS(InTran!$R:$R,InTran!$G:$G,C16,InTran!$O:$O,$C$4,InTran!$C:$C,$D$4) -> 0 | E16: =+SUMIFS(InTran!$S:$S,InTran!$G:$G,C16,InTran!$O:$O,$C$4,InTran!$C:$C,$D$4) -> 0 | F16: =+SUMIFS(InTran!$M:$M,InTran!$G:$G,C16,InTran!$O:$O,$C$4,InTran!$C:$C,$D$4) -> 0 | G16: =+IFERROR(D16/SUM($D$6:$D$27),0) -> 0 | H16: =+SUMIFS(InTran!$R:$R,InTran!$G:$G,C16,InTran!$O:$O,$C$4,InTran!$C:$C,$H$4) -> 0 | I16: =+SUMIFS(InTran!$S:$S,InTran!$G:$G,C16,InTran!$O:$O,$C$4,InTran!$C:$C,$H$4) -> 0 | J16: =+SUMIFS(InTran!$M:$M,InTran!$G:$G,C16,InTran!$O:$O,$C$4,InTran!$C:$C,$H$4) -> 0 | K16: =+IFERROR(H16/SUM($H$6:$H$27),0) -> 0 | L16: =+SUMIFS(InTran!$R:$R,InTran!$G:$G,C16,InTran!$O:$O,$C$4,InTran!$C:$C,$L$4) -> 0 | M16: =+SUMIFS(InTran!$S:$S,InTran!$G:$G,C16,InTran!$O:$O,$C$4,InTran!$C:$C,$L$4) -> 0 | N16: =+SUMIFS(InTran!$M:$M,InTran!$G:$G,C16,InTran!$O:$O,$C$4,InTran!$C:$C,$L$4) -> 0 | O16: =+IFERROR(L16/SUM($L$6:$L$27),0) -> 0 | P16: =+SUMIFS(InTran!$R:$R,InTran!$G:$G,C16,InTran!$O:$O,$C$4,InTran!$C:$C,$P$4) -> 0 | Q16: =+SUMIFS(InTran!$S:$S,InTran!$G:$G,C16,InTran!$O:$O,$C$4,InTran!$C:$C,$P$4) -> 0 | R16: =+SUMIFS(InTran!$M:$M,InTran!$G:$G,C16,InTran!$O:$O,$C$4,InTran!$C:$C,$P$4) -> 0 | S16: =+IFERROR(P16/SUM($P$6:$P$27),0) -> 0 | T16: =+SUMIFS(InTran!$R:$R,InTran!$G:$G,C16,InTran!$O:$O,$C$4,InTran!$C:$C,$T$4) -> 412306.96 | U16: =+SUMIFS(InTran!$S:$S,InTran!$G:$G,C16,InTran!$O:$O,$C$4,InTran!$C:$C,$T$4) -> 930.66 | V16: =+SUMIFS(InTran!$M:$M,InTran!$G:$G,C16,InTran!$O:$O,$C$4,InTran!$C:$C,$T$4) -> -148750.88 | W16: =+IFERROR(T16/SUM($T$6:$T$27),0) -> 0.3990041728 | X16: =+SUMIFS(InTran!$R:$R,InTran!$G:$G,C16,InTran!$O:$O,$C$4,InTran!$C:$C,$X$4) -> 0 | Y16: =+SUMIFS(InTran!$S:$S,InTran!$G:$G,C16,InTran!$O:$O,$C$4,InTran!$C:$C,$X$4) -> 0 | Z16: =+SUMIFS(InTran!$M:$M,InTran!$G:$G,C16,InTran!$O:$O,$C$4,InTran!$C:$C,$X$4) -> 0 | AA16: =+IFERROR(X16/SUM($X$6:$X$27),0) -> 0 | AB16: =+SUMIFS(InTran!$R:$R,InTran!$G:$G,C16,InTran!$O:$O,$C$4) -> 412306.96 | AC16: =+SUMIFS(InTran!$S:$S,InTran!$G:$G,C16,InTran!$O:$O,$C$4) -> 930.66 | AD16: =+SUMIFS(InTran!$M:$M,InTran!$G:$G,C16,InTran!$O:$O,$C$4) -> -148750.88 | AE16: =+IFERROR(AB16/SUM($AB$6:$AB$27),0) -> 0.0007452840128 | AF16: =+RANK(AB16,$AB$6:$AB$27) -> 11
C17: MAYBANK INVESTMENT BANK BHD (FOREIGN) | D17: =+SUMIFS(InTran!$R:$R,InTran!$G:$G,C17,InTran!$O:$O,$C$4,InTran!$C:$C,$D$4) -> 0 | E17: =+SUMIFS(InTran!$S:$S,InTran!$G:$G,C17,InTran!$O:$O,$C$4,InTran!$C:$C,$D$4) -> 0 | F17: =+SUMIFS(InTran!$M:$M,InTran!$G:$G,C17,InTran!$O:$O,$C$4,InTran!$C:$C,$D$4) -> 0 | G17: =+IFERROR(D17/SUM($D$6:$D$27),0) -> 0 | H17: =+SUMIFS(InTran!$R:$R,InTran!$G:$G,C17,InTran!$O:$O,$C$4,InTran!$C:$C,$H$4) -> 0 | I17: =+SUMIFS(InTran!$S:$S,InTran!$G:$G,C17,InTran!$O:$O,$C$4,InTran!$C:$C,$H$4) -> 0 | J17: =+SUMIFS(InTran!$M:$M,InTran!$G:$G,C17,InTran!$O:$O,$C$4,InTran!$C:$C,$H$4) -> 0 | K17: =+IFERROR(H17/SUM($H$6:$H$27),0) -> 0 | L17: =+SUMIFS(InTran!$R:$R,InTran!$G:$G,C17,InTran!$O:$O,$C$4,InTran!$C:$C,$L$4) -> 0 | M17: =+SUMIFS(InTran!$S:$S,InTran!$G:$G,C17,InTran!$O:$O,$C$4,InTran!$C:$C,$L$4) -> 0 | N17: =+SUMIFS(InTran!$M:$M,InTran!$G:$G,C17,InTran!$O:$O,$C$4,InTran!$C:$C,$L$4) -> 0 | O17: =+IFERROR(L17/SUM($L$6:$L$27),0) -> 0 | P17: =+SUMIFS(InTran!$R:$R,InTran!$G:$G,C17,InTran!$O:$O,$C$4,InTran!$C:$C,$P$4) -> 0 | Q17: =+SUMIFS(InTran!$S:$S,InTran!$G:$G,C17,InTran!$O:$O,$C$4,InTran!$C:$C,$P$4) -> 0 | R17: =+SUMIFS(InTran!$M:$M,InTran!$G:$G,C17,InTran!$O:$O,$C$4,InTran!$C:$C,$P$4) -> 0 | S17: =+IFERROR(P17/SUM($P$6:$P$27),0) -> 0 | T17: =+SUMIFS(InTran!$R:$R,InTran!$G:$G,C17,InTran!$O:$O,$C$4,InTran!$C:$C,$T$4) -> 0 | U17: =+SUMIFS(InTran!$S:$S,InTran!$G:$G,C17,InTran!$O:$O,$C$4,InTran!$C:$C,$T$4) -> 0 | V17: =+SUMIFS(InTran!$M:$M,InTran!$G:$G,C17,InTran!$O:$O,$C$4,InTran!$C:$C,$T$4) -> 0 | W17: =+IFERROR(T17/SUM($T$6:$T$27),0) -> 0 | X17: =+SUMIFS(InTran!$R:$R,InTran!$G:$G,C17,InTran!$O:$O,$C$4,InTran!$C:$C,$X$4) -> 372790.7975 | Y17: =+SUMIFS(InTran!$S:$S,InTran!$G:$G,C17,InTran!$O:$O,$C$4,InTran!$C:$C,$X$4) -> 743.9712545 | Z17: =+SUMIFS(InTran!$M:$M,InTran!$G:$G,C17,InTran!$O:$O,$C$4,InTran!$C:$C,$X$4) -> 0 | AA17: =+IFERROR(X17/SUM($X$6:$X$27),0) -> 0.03253714077 | AB17: =+SUMIFS(InTran!$R:$R,InTran!$G:$G,C17,InTran!$O:$O,$C$4) -> 372790.7975 | AC17: =+SUMIFS(InTran!$S:$S,InTran!$G:$G,C17,InTran!$O:$O,$C$4) -> 743.9712545 | AD17: =+SUMIFS(InTran!$M:$M,InTran!$G:$G,C17,InTran!$O:$O,$C$4) -> 0 | AE17: =+IFERROR(AB17/SUM($AB$6:$AB$27),0) -> 0.0006738547939 | AF17: =+RANK(AB17,$AB$6:$AB$27) -> 12
C18: CIMB INVESTMENT BANK BHD (FOREIGN) | D18: =+SUMIFS(InTran!$R:$R,InTran!$G:$G,C18,InTran!$O:$O,$C$4,InTran!$C:$C,$D$4) -> 0 | E18: =+SUMIFS(InTran!$S:$S,InTran!$G:$G,C18,InTran!$O:$O,$C$4,InTran!$C:$C,$D$4) -> 0 | F18: =+SUMIFS(InTran!$M:$M,InTran!$G:$G,C18,InTran!$O:$O,$C$4,InTran!$C:$C,$D$4) -> 0 | G18: =+IFERROR(D18/SUM($D$6:$D$27),0) -> 0 | H18: =+SUMIFS(InTran!$R:$R,InTran!$G:$G,C18,InTran!$O:$O,$C$4,InTran!$C:$C,$H$4) -> 0 | I18: =+SUMIFS(InTran!$S:$S,InTran!$G:$G,C18,InTran!$O:$O,$C$4,InTran!$C:$C,$H$4) -> 0 | J18: =+SUMIFS(InTran!$M:$M,InTran!$G:$G,C18,InTran!$O:$O,$C$4,InTran!$C:$C,$H$4) -> 0 | K18: =+IFERROR(H18/SUM($H$6:$H$27),0) -> 0 | L18: =+SUMIFS(InTran!$R:$R,InTran!$G:$G,C18,InTran!$O:$O,$C$4,InTran!$C:$C,$L$4) -> 0 | M18: =+SUMIFS(InTran!$S:$S,InTran!$G:$G,C18,InTran!$O:$O,$C$4,InTran!$C:$C,$L$4) -> 0 | N18: =+SUMIFS(InTran!$M:$M,InTran!$G:$G,C18,InTran!$O:$O,$C$4,InTran!$C:$C,$L$4) -> 0 | O18: =+IFERROR(L18/SUM($L$6:$L$27),0) -> 0 | P18: =+SUMIFS(InTran!$R:$R,InTran!$G:$G,C18,InTran!$O:$O,$C$4,InTran!$C:$C,$P$4) -> 0 | Q18: =+SUMIFS(InTran!$S:$S,InTran!$G:$G,C18,InTran!$O:$O,$C$4,InTran!$C:$C,$P$4) -> 0 | R18: =+SUMIFS(InTran!$M:$M,InTran!$G:$G,C18,InTran!$O:$O,$C$4,InTran!$C:$C,$P$4) -> 0 | S18: =+IFERROR(P18/SUM($P$6:$P$27),0) -> 0 | T18: =+SUMIFS(InTran!$R:$R,InTran!$G:$G,C18,InTran!$O:$O,$C$4,InTran!$C:$C,$T$4) -> 0 | U18: =+SUMIFS(InTran!$S:$S,InTran!$G:$G,C18,InTran!$O:$O,$C$4,InTran!$C:$C,$T$4) -> 0 | V18: =+SUMIFS(InTran!$M:$M,InTran!$G:$G,C18,InTran!$O:$O,$C$4,InTran!$C:$C,$T$4) -> 0 | W18: =+IFERROR(T18/SUM($T$6:$T$27),0) -> 0 | X18: =+SUMIFS(InTran!$R:$R,InTran!$G:$G,C18,InTran!$O:$O,$C$4,InTran!$C:$C,$X$4) -> 98560.59554 | Y18: =+SUMIFS(InTran!$S:$S,InTran!$G:$G,C18,InTran!$O:$O,$C$4,InTran!$C:$C,$X$4) -> 245.4988375 | Z18: =+SUMIFS(InTran!$M:$M,InTran!$G:$G,C18,InTran!$O:$O,$C$4,InTran!$C:$C,$X$4) -> 0 | AA18: =+IFERROR(X18/SUM($X$6:$X$27),0) -> 0.008602358193 | AB18: =+SUMIFS(InTran!$R:$R,InTran!$G:$G,C18,InTran!$O:$O,$C$4) -> 98560.59554 | AC18: =+SUMIFS(InTran!$S:$S,InTran!$G:$G,C18,InTran!$O:$O,$C$4) -> 245.4988375 | AD18: =+SUMIFS(InTran!$M:$M,InTran!$G:$G,C18,InTran!$O:$O,$C$4) -> 0 | AE18: =+IFERROR(AB18/SUM($AB$6:$AB$27),0) -> 0.0001781576429 | AF18: =+RANK(AB18,$AB$6:$AB$27) -> 13
C19: AFFIN INVESTMENT BANK BERHAD | D19: =+SUMIFS(InTran!$R:$R,InTran!$G:$G,C19,InTran!$O:$O,$C$4,InTran!$C:$C,$D$4) -> 0 | E19: =+SUMIFS(InTran!$S:$S,InTran!$G:$G,C19,InTran!$O:$O,$C$4,InTran!$C:$C,$D$4) -> 0 | F19: =+SUMIFS(InTran!$M:$M,InTran!$G:$G,C19,InTran!$O:$O,$C$4,InTran!$C:$C,$D$4) -> 0 | G19: =+IFERROR(D19/SUM($D$6:$D$27),0) -> 0 | H19: =+SUMIFS(InTran!$R:$R,InTran!$G:$G,C19,InTran!$O:$O,$C$4,InTran!$C:$C,$H$4) -> 0 | I19: =+SUMIFS(InTran!$S:$S,InTran!$G:$G,C19,InTran!$O:$O,$C$4,InTran!$C:$C,$H$4) -> 0 | J19: =+SUMIFS(InTran!$M:$M,InTran!$G:$G,C19,InTran!$O:$O,$C$4,InTran!$C:$C,$H$4) -> 0 | K19: =+IFERROR(H19/SUM($H$6:$H$27),0) -> 0 | L19: =+SUMIFS(InTran!$R:$R,InTran!$G:$G,C19,InTran!$O:$O,$C$4,InTran!$C:$C,$L$4) -> 0 | M19: =+SUMIFS(InTran!$S:$S,InTran!$G:$G,C19,InTran!$O:$O,$C$4,InTran!$C:$C,$L$4) -> 0 | N19: =+SUMIFS(InTran!$M:$M,InTran!$G:$G,C19,InTran!$O:$O,$C$4,InTran!$C:$C,$L$4) -> 0 | O19: =+IFERROR(L19/SUM($L$6:$L$27),0) -> 0 | P19: =+SUMIFS(InTran!$R:$R,InTran!$G:$G,C19,InTran!$O:$O,$C$4,InTran!$C:$C,$P$4) -> 0 | Q19: =+SUMIFS(InTran!$S:$S,InTran!$G:$G,C19,InTran!$O:$O,$C$4,InTran!$C:$C,$P$4) -> 0 | R19: =+SUMIFS(InTran!$M:$M,InTran!$G:$G,C19,InTran!$O:$O,$C$4,InTran!$C:$C,$P$4) -> 0 | S19: =+IFERROR(P19/SUM($P$6:$P$27),0) -> 0 | T19: =+SUMIFS(InTran!$R:$R,InTran!$G:$G,C19,InTran!$O:$O,$C$4,InTran!$C:$C,$T$4) -> 0 | U19: =+SUMIFS(InTran!$S:$S,InTran!$G:$G,C19,InTran!$O:$O,$C$4,InTran!$C:$C,$T$4) -> 0 | V19: =+SUMIFS(InTran!$M:$M,InTran!$G:$G,C19,InTran!$O:$O,$C$4,InTran!$C:$C,$T$4) -> 0 | W19: =+IFERROR(T19/SUM($T$6:$T$27),0) -> 0 | X19: =+SUMIFS(InTran!$R:$R,InTran!$G:$G,C19,InTran!$O:$O,$C$4,InTran!$C:$C,$X$4) -> 0 | Y19: =+SUMIFS(InTran!$S:$S,InTran!$G:$G,C19,InTran!$O:$O,$C$4,InTran!$C:$C,$X$4) -> 0 | Z19: =+SUMIFS(InTran!$M:$M,InTran!$G:$G,C19,InTran!$O:$O,$C$4,InTran!$C:$C,$X$4) -> 0 | AA19: =+IFERROR(X19/SUM($X$6:$X$27),0) -> 0 | AB19: =+SUMIFS(InTran!$R:$R,InTran!$G:$G,C19,InTran!$O:$O,$C$4) -> 0 | AC19: =+SUMIFS(InTran!$S:$S,InTran!$G:$G,C19,InTran!$O:$O,$C$4) -> 0 | AD19: =+SUMIFS(InTran!$M:$M,InTran!$G:$G,C19,InTran!$O:$O,$C$4) -> 0 | AE19: =+IFERROR(AB19/SUM($AB$6:$AB$27),0) -> 0 | AF19: =+RANK(AB19,$AB$6:$AB$27) -> 14
C20: ALLIANCE INVESTMENT BANK BERHAD | D20: =+SUMIFS(InTran!$R:$R,InTran!$G:$G,C20,InTran!$O:$O,$C$4,InTran!$C:$C,$D$4) -> 0 | E20: =+SUMIFS(InTran!$S:$S,InTran!$G:$G,C20,InTran!$O:$O,$C$4,InTran!$C:$C,$D$4) -> 0 | F20: =+SUMIFS(InTran!$M:$M,InTran!$G:$G,C20,InTran!$O:$O,$C$4,InTran!$C:$C,$D$4) -> 0 | G20: =+IFERROR(D20/SUM($D$6:$D$27),0) -> 0 | H20: =+SUMIFS(InTran!$R:$R,InTran!$G:$G,C20,InTran!$O:$O,$C$4,InTran!$C:$C,$H$4) -> 0 | I20: =+SUMIFS(InTran!$S:$S,InTran!$G:$G,C20,InTran!$O:$O,$C$4,InTran!$C:$C,$H$4) -> 0 | J20: =+SUMIFS(InTran!$M:$M,InTran!$G:$G,C20,InTran!$O:$O,$C$4,InTran!$C:$C,$H$4) -> 0 | K20: =+IFERROR(H20/SUM($H$6:$H$27),0) -> 0 | L20: =+SUMIFS(InTran!$R:$R,InTran!$G:$G,C20,InTran!$O:$O,$C$4,InTran!$C:$C,$L$4) -> 0 | M20: =+SUMIFS(InTran!$S:$S,InTran!$G:$G,C20,InTran!$O:$O,$C$4,InTran!$C:$C,$L$4) -> 0 | N20: =+SUMIFS(InTran!$M:$M,InTran!$G:$G,C20,InTran!$O:$O,$C$4,InTran!$C:$C,$L$4) -> 0 | O20: =+IFERROR(L20/SUM($L$6:$L$27),0) -> 0 | P20: =+SUMIFS(InTran!$R:$R,InTran!$G:$G,C20,InTran!$O:$O,$C$4,InTran!$C:$C,$P$4) -> 0 | Q20: =+SUMIFS(InTran!$S:$S,InTran!$G:$G,C20,InTran!$O:$O,$C$4,InTran!$C:$C,$P$4) -> 0 | R20: =+SUMIFS(InTran!$M:$M,InTran!$G:$G,C20,InTran!$O:$O,$C$4,InTran!$C:$C,$P$4) -> 0 | S20: =+IFERROR(P20/SUM($P$6:$P$27),0) -> 0 | T20: =+SUMIFS(InTran!$R:$R,InTran!$G:$G,C20,InTran!$O:$O,$C$4,InTran!$C:$C,$T$4) -> 0 | U20: =+SUMIFS(InTran!$S:$S,InTran!$G:$G,C20,InTran!$O:$O,$C$4,InTran!$C:$C,$T$4) -> 0 | V20: =+SUMIFS(InTran!$M:$M,InTran!$G:$G,C20,InTran!$O:$O,$C$4,InTran!$C:$C,$T$4) -> 0 | W20: =+IFERROR(T20/SUM($T$6:$T$27),0) -> 0 | X20: =+SUMIFS(InTran!$R:$R,InTran!$G:$G,C20,InTran!$O:$O,$C$4,InTran!$C:$C,$X$4) -> 0 | Y20: =+SUMIFS(InTran!$S:$S,InTran!$G:$G,C20,InTran!$O:$O,$C$4,InTran!$C:$C,$X$4) -> 0 | Z20: =+SUMIFS(InTran!$M:$M,InTran!$G:$G,C20,InTran!$O:$O,$C$4,InTran!$C:$C,$X$4) -> 0 | AA20: =+IFERROR(X20/SUM($X$6:$X$27),0) -> 0 | AB20: =+SUMIFS(InTran!$R:$R,InTran!$G:$G,C20,InTran!$O:$O,$C$4) -> 0 | AC20: =+SUMIFS(InTran!$S:$S,InTran!$G:$G,C20,InTran!$O:$O,$C$4) -> 0 | AD20: =+SUMIFS(InTran!$M:$M,InTran!$G:$G,C20,InTran!$O:$O,$C$4) -> 0 | AE20: =+IFERROR(AB20/SUM($AB$6:$AB$27),0) -> 0 | AF20: =+RANK(AB20,$AB$6:$AB$27) -> 14
C21: AMINVESTMENT BANK BHD | D21: =+SUMIFS(InTran!$R:$R,InTran!$G:$G,C21,InTran!$O:$O,$C$4,InTran!$C:$C,$D$4) -> 0 | E21: =+SUMIFS(InTran!$S:$S,InTran!$G:$G,C21,InTran!$O:$O,$C$4,InTran!$C:$C,$D$4) -> 0 | F21: =+SUMIFS(InTran!$M:$M,InTran!$G:$G,C21,InTran!$O:$O,$C$4,InTran!$C:$C,$D$4) -> 0 | G21: =+IFERROR(D21/SUM($D$6:$D$27),0) -> 0 | H21: =+SUMIFS(InTran!$R:$R,InTran!$G:$G,C21,InTran!$O:$O,$C$4,InTran!$C:$C,$H$4) -> 0 | I21: =+SUMIFS(InTran!$S:$S,InTran!$G:$G,C21,InTran!$O:$O,$C$4,InTran!$C:$C,$H$4) -> 0 | J21: =+SUMIFS(InTran!$M:$M,InTran!$G:$G,C21,InTran!$O:$O,$C$4,InTran!$C:$C,$H$4) -> 0 | K21: =+IFERROR(H21/SUM($H$6:$H$27),0) -> 0 | L21: =+SUMIFS(InTran!$R:$R,InTran!$G:$G,C21,InTran!$O:$O,$C$4,InTran!$C:$C,$L$4) -> 0 | M21: =+SUMIFS(InTran!$S:$S,InTran!$G:$G,C21,InTran!$O:$O,$C$4,InTran!$C:$C,$L$4) -> 0 | N21: =+SUMIFS(InTran!$M:$M,InTran!$G:$G,C21,InTran!$O:$O,$C$4,InTran!$C:$C,$L$4) -> 0 | O21: =+IFERROR(L21/SUM($L$6:$L$27),0) -> 0 | P21: =+SUMIFS(InTran!$R:$R,InTran!$G:$G,C21,InTran!$O:$O,$C$4,InTran!$C:$C,$P$4) -> 0 | Q21: =+SUMIFS(InTran!$S:$S,InTran!$G:$G,C21,InTran!$O:$O,$C$4,InTran!$C:$C,$P$4) -> 0 | R21: =+SUMIFS(InTran!$M:$M,InTran!$G:$G,C21,InTran!$O:$O,$C$4,InTran!$C:$C,$P$4) -> 0 | S21: =+IFERROR(P21/SUM($P$6:$P$27),0) -> 0 | T21: =+SUMIFS(InTran!$R:$R,InTran!$G:$G,C21,InTran!$O:$O,$C$4,InTran!$C:$C,$T$4) -> 0 | U21: =+SUMIFS(InTran!$S:$S,InTran!$G:$G,C21,InTran!$O:$O,$C$4,InTran!$C:$C,$T$4) -> 0 | V21: =+SUMIFS(InTran!$M:$M,InTran!$G:$G,C21,InTran!$O:$O,$C$4,InTran!$C:$C,$T$4) -> 0 | W21: =+IFERROR(T21/SUM($T$6:$T$27),0) -> 0 | X21: =+SUMIFS(InTran!$R:$R,InTran!$G:$G,C21,InTran!$O:$O,$C$4,InTran!$C:$C,$X$4) -> 0 | Y21: =+SUMIFS(InTran!$S:$S,InTran!$G:$G,C21,InTran!$O:$O,$C$4,InTran!$C:$C,$X$4) -> 0 | Z21: =+SUMIFS(InTran!$M:$M,InTran!$G:$G,C21,InTran!$O:$O,$C$4,InTran!$C:$C,$X$4) -> 0 | AA21: =+IFERROR(X21/SUM($X$6:$X$27),0) -> 0 | AB21: =+SUMIFS(InTran!$R:$R,InTran!$G:$G,C21,InTran!$O:$O,$C$4) -> 0 | AC21: =+SUMIFS(InTran!$S:$S,InTran!$G:$G,C21,InTran!$O:$O,$C$4) -> 0 | AD21: =+SUMIFS(InTran!$M:$M,InTran!$G:$G,C21,InTran!$O:$O,$C$4) -> 0 | AE21: =+IFERROR(AB21/SUM($AB$6:$AB$27),0) -> 0 | AF21: =+RANK(AB21,$AB$6:$AB$27) -> 14
C22: BIMB SECURITIES SDN BHD | D22: =+SUMIFS(InTran!$R:$R,InTran!$G:$G,C22,InTran!$O:$O,$C$4,InTran!$C:$C,$D$4) -> 0 | E22: =+SUMIFS(InTran!$S:$S,InTran!$G:$G,C22,InTran!$O:$O,$C$4,InTran!$C:$C,$D$4) -> 0 | F22: =+SUMIFS(InTran!$M:$M,InTran!$G:$G,C22,InTran!$O:$O,$C$4,InTran!$C:$C,$D$4) -> 0 | G22: =+IFERROR(D22/SUM($D$6:$D$27),0) -> 0 | H22: =+SUMIFS(InTran!$R:$R,InTran!$G:$G,C22,InTran!$O:$O,$C$4,InTran!$C:$C,$H$4) -> 0 | I22: =+SUMIFS(InTran!$S:$S,InTran!$G:$G,C22,InTran!$O:$O,$C$4,InTran!$C:$C,$H$4) -> 0 | J22: =+SUMIFS(InTran!$M:$M,InTran!$G:$G,C22,InTran!$O:$O,$C$4,InTran!$C:$C,$H$4) -> 0 | K22: =+IFERROR(H22/SUM($H$6:$H$27),0) -> 0 | L22: =+SUMIFS(InTran!$R:$R,InTran!$G:$G,C22,InTran!$O:$O,$C$4,InTran!$C:$C,$L$4) -> 0 | M22: =+SUMIFS(InTran!$S:$S,InTran!$G:$G,C22,InTran!$O:$O,$C$4,InTran!$C:$C,$L$4) -> 0 | N22: =+SUMIFS(InTran!$M:$M,InTran!$G:$G,C22,InTran!$O:$O,$C$4,InTran!$C:$C,$L$4) -> 0 | O22: =+IFERROR(L22/SUM($L$6:$L$27),0) -> 0 | P22: =+SUMIFS(InTran!$R:$R,InTran!$G:$G,C22,InTran!$O:$O,$C$4,InTran!$C:$C,$P$4) -> 0 | Q22: =+SUMIFS(InTran!$S:$S,InTran!$G:$G,C22,InTran!$O:$O,$C$4,InTran!$C:$C,$P$4) -> 0 | R22: =+SUMIFS(InTran!$M:$M,InTran!$G:$G,C22,InTran!$O:$O,$C$4,InTran!$C:$C,$P$4) -> 0 | S22: =+IFERROR(P22/SUM($P$6:$P$27),0) -> 0 | T22: =+SUMIFS(InTran!$R:$R,InTran!$G:$G,C22,InTran!$O:$O,$C$4,InTran!$C:$C,$T$4) -> 0 | U22: =+SUMIFS(InTran!$S:$S,InTran!$G:$G,C22,InTran!$O:$O,$C$4,InTran!$C:$C,$T$4) -> 0 | V22: =+SUMIFS(InTran!$M:$M,InTran!$G:$G,C22,InTran!$O:$O,$C$4,InTran!$C:$C,$T$4) -> 0 | W22: =+IFERROR(T22/SUM($T$6:$T$27),0) -> 0 | X22: =+SUMIFS(InTran!$R:$R,InTran!$G:$G,C22,InTran!$O:$O,$C$4,InTran!$C:$C,$X$4) -> 0 | Y22: =+SUMIFS(InTran!$S:$S,InTran!$G:$G,C22,InTran!$O:$O,$C$4,InTran!$C:$C,$X$4) -> 0 | Z22: =+SUMIFS(InTran!$M:$M,InTran!$G:$G,C22,InTran!$O:$O,$C$4,InTran!$C:$C,$X$4) -> 0 | AA22: =+IFERROR(X22/SUM($X$6:$X$27),0) -> 0 | AB22: =+SUMIFS(InTran!$R:$R,InTran!$G:$G,C22,InTran!$O:$O,$C$4) -> 0 | AC22: =+SUMIFS(InTran!$S:$S,InTran!$G:$G,C22,InTran!$O:$O,$C$4) -> 0 | AD22: =+SUMIFS(InTran!$M:$M,InTran!$G:$G,C22,InTran!$O:$O,$C$4) -> 0 | AE22: =+IFERROR(AB22/SUM($AB$6:$AB$27),0) -> 0 | AF22: =+RANK(AB22,$AB$6:$AB$27) -> 14
C23: HONG LEONG INVESTMENT BANK BHD | D23: =+SUMIFS(InTran!$R:$R,InTran!$G:$G,C23,InTran!$O:$O,$C$4,InTran!$C:$C,$D$4) -> 0 | E23: =+SUMIFS(InTran!$S:$S,InTran!$G:$G,C23,InTran!$O:$O,$C$4,InTran!$C:$C,$D$4) -> 0 | F23: =+SUMIFS(InTran!$M:$M,InTran!$G:$G,C23,InTran!$O:$O,$C$4,InTran!$C:$C,$D$4) -> 0 | G23: =+IFERROR(D23/SUM($D$6:$D$27),0) -> 0 | H23: =+SUMIFS(InTran!$R:$R,InTran!$G:$G,C23,InTran!$O:$O,$C$4,InTran!$C:$C,$H$4) -> 0 | I23: =+SUMIFS(InTran!$S:$S,InTran!$G:$G,C23,InTran!$O:$O,$C$4,InTran!$C:$C,$H$4) -> 0 | J23: =+SUMIFS(InTran!$M:$M,InTran!$G:$G,C23,InTran!$O:$O,$C$4,InTran!$C:$C,$H$4) -> 0 | K23: =+IFERROR(H23/SUM($H$6:$H$27),0) -> 0 | L23: =+SUMIFS(InTran!$R:$R,InTran!$G:$G,C23,InTran!$O:$O,$C$4,InTran!$C:$C,$L$4) -> 0 | M23: =+SUMIFS(InTran!$S:$S,InTran!$G:$G,C23,InTran!$O:$O,$C$4,InTran!$C:$C,$L$4) -> 0 | N23: =+SUMIFS(InTran!$M:$M,InTran!$G:$G,C23,InTran!$O:$O,$C$4,InTran!$C:$C,$L$4) -> 0 | O23: =+IFERROR(L23/SUM($L$6:$L$27),0) -> 0 | P23: =+SUMIFS(InTran!$R:$R,InTran!$G:$G,C23,InTran!$O:$O,$C$4,InTran!$C:$C,$P$4) -> 0 | Q23: =+SUMIFS(InTran!$S:$S,InTran!$G:$G,C23,InTran!$O:$O,$C$4,InTran!$C:$C,$P$4) -> 0 | R23: =+SUMIFS(InTran!$M:$M,InTran!$G:$G,C23,InTran!$O:$O,$C$4,InTran!$C:$C,$P$4) -> 0 | S23: =+IFERROR(P23/SUM($P$6:$P$27),0) -> 0 | T23: =+SUMIFS(InTran!$R:$R,InTran!$G:$G,C23,InTran!$O:$O,$C$4,InTran!$C:$C,$T$4) -> 0 | U23: =+SUMIFS(InTran!$S:$S,InTran!$G:$G,C23,InTran!$O:$O,$C$4,InTran!$C:$C,$T$4) -> 0 | V23: =+SUMIFS(InTran!$M:$M,InTran!$G:$G,C23,InTran!$O:$O,$C$4,InTran!$C:$C,$T$4) -> 0 | W23: =+IFERROR(T23/SUM($T$6:$T$27),0) -> 0 | X23: =+SUMIFS(InTran!$R:$R,InTran!$G:$G,C23,InTran!$O:$O,$C$4,InTran!$C:$C,$X$4) -> 0 | Y23: =+SUMIFS(InTran!$S:$S,InTran!$G:$G,C23,InTran!$O:$O,$C$4,InTran!$C:$C,$X$4) -> 0 | Z23: =+SUMIFS(InTran!$M:$M,InTran!$G:$G,C23,InTran!$O:$O,$C$4,InTran!$C:$C,$X$4) -> 0 | AA23: =+IFERROR(X23/SUM($X$6:$X$27),0) -> 0 | AB23: =+SUMIFS(InTran!$R:$R,InTran!$G:$G,C23,InTran!$O:$O,$C$4) -> 0 | AC23: =+SUMIFS(InTran!$S:$S,InTran!$G:$G,C23,InTran!$O:$O,$C$4) -> 0 | AD23: =+SUMIFS(InTran!$M:$M,InTran!$G:$G,C23,InTran!$O:$O,$C$4) -> 0 | AE23: =+IFERROR(AB23/SUM($AB$6:$AB$27),0) -> 0 | AF23: =+RANK(AB23,$AB$6:$AB$27) -> 14
C24: KAF-SEAGROATT & CAMPBELL SECURITIES SDN BHD | D24: =+SUMIFS(InTran!$R:$R,InTran!$G:$G,C24,InTran!$O:$O,$C$4,InTran!$C:$C,$D$4) -> 0 | E24: =+SUMIFS(InTran!$S:$S,InTran!$G:$G,C24,InTran!$O:$O,$C$4,InTran!$C:$C,$D$4) -> 0 | F24: =+SUMIFS(InTran!$M:$M,InTran!$G:$G,C24,InTran!$O:$O,$C$4,InTran!$C:$C,$D$4) -> 0 | G24: =+IFERROR(D24/SUM($D$6:$D$27),0) -> 0 | H24: =+SUMIFS(InTran!$R:$R,InTran!$G:$G,C24,InTran!$O:$O,$C$4,InTran!$C:$C,$H$4) -> 0 | I24: =+SUMIFS(InTran!$S:$S,InTran!$G:$G,C24,InTran!$O:$O,$C$4,InTran!$C:$C,$H$4) -> 0 | J24: =+SUMIFS(InTran!$M:$M,InTran!$G:$G,C24,InTran!$O:$O,$C$4,InTran!$C:$C,$H$4) -> 0 | K24: =+IFERROR(H24/SUM($H$6:$H$27),0) -> 0 | L24: =+SUMIFS(InTran!$R:$R,InTran!$G:$G,C24,InTran!$O:$O,$C$4,InTran!$C:$C,$L$4) -> 0 | M24: =+SUMIFS(InTran!$S:$S,InTran!$G:$G,C24,InTran!$O:$O,$C$4,InTran!$C:$C,$L$4) -> 0 | N24: =+SUMIFS(InTran!$M:$M,InTran!$G:$G,C24,InTran!$O:$O,$C$4,InTran!$C:$C,$L$4) -> 0 | O24: =+IFERROR(L24/SUM($L$6:$L$27),0) -> 0 | P24: =+SUMIFS(InTran!$R:$R,InTran!$G:$G,C24,InTran!$O:$O,$C$4,InTran!$C:$C,$P$4) -> 0 | Q24: =+SUMIFS(InTran!$S:$S,InTran!$G:$G,C24,InTran!$O:$O,$C$4,InTran!$C:$C,$P$4) -> 0 | R24: =+SUMIFS(InTran!$M:$M,InTran!$G:$G,C24,InTran!$O:$O,$C$4,InTran!$C:$C,$P$4) -> 0 | S24: =+IFERROR(P24/SUM($P$6:$P$27),0) -> 0 | T24: =+SUMIFS(InTran!$R:$R,InTran!$G:$G,C24,InTran!$O:$O,$C$4,InTran!$C:$C,$T$4) -> 0 | U24: =+SUMIFS(InTran!$S:$S,InTran!$G:$G,C24,InTran!$O:$O,$C$4,InTran!$C:$C,$T$4) -> 0 | V24: =+SUMIFS(InTran!$M:$M,InTran!$G:$G,C24,InTran!$O:$O,$C$4,InTran!$C:$C,$T$4) -> 0 | W24: =+IFERROR(T24/SUM($T$6:$T$27),0) -> 0 | X24: =+SUMIFS(InTran!$R:$R,InTran!$G:$G,C24,InTran!$O:$O,$C$4,InTran!$C:$C,$X$4) -> 0 | Y24: =+SUMIFS(InTran!$S:$S,InTran!$G:$G,C24,InTran!$O:$O,$C$4,InTran!$C:$C,$X$4) -> 0 | Z24: =+SUMIFS(InTran!$M:$M,InTran!$G:$G,C24,InTran!$O:$O,$C$4,InTran!$C:$C,$X$4) -> 0 | AA24: =+IFERROR(X24/SUM($X$6:$X$27),0) -> 0 | AB24: =+SUMIFS(InTran!$R:$R,InTran!$G:$G,C24,InTran!$O:$O,$C$4) -> 0 | AC24: =+SUMIFS(InTran!$S:$S,InTran!$G:$G,C24,InTran!$O:$O,$C$4) -> 0 | AD24: =+SUMIFS(InTran!$M:$M,InTran!$G:$G,C24,InTran!$O:$O,$C$4) -> 0 | AE24: =+IFERROR(AB24/SUM($AB$6:$AB$27),0) -> 0 | AF24: =+RANK(AB24,$AB$6:$AB$27) -> 14
C25: MIDF AMANAH INVESTMENT BANK BHD | D25: =+SUMIFS(InTran!$R:$R,InTran!$G:$G,C25,InTran!$O:$O,$C$4,InTran!$C:$C,$D$4) -> 0 | E25: =+SUMIFS(InTran!$S:$S,InTran!$G:$G,C25,InTran!$O:$O,$C$4,InTran!$C:$C,$D$4) -> 0 | F25: =+SUMIFS(InTran!$M:$M,InTran!$G:$G,C25,InTran!$O:$O,$C$4,InTran!$C:$C,$D$4) -> 0 | G25: =+IFERROR(D25/SUM($D$6:$D$27),0) -> 0 | H25: =+SUMIFS(InTran!$R:$R,InTran!$G:$G,C25,InTran!$O:$O,$C$4,InTran!$C:$C,$H$4) -> 0 | I25: =+SUMIFS(InTran!$S:$S,InTran!$G:$G,C25,InTran!$O:$O,$C$4,InTran!$C:$C,$H$4) -> 0 | J25: =+SUMIFS(InTran!$M:$M,InTran!$G:$G,C25,InTran!$O:$O,$C$4,InTran!$C:$C,$H$4) -> 0 | K25: =+IFERROR(H25/SUM($H$6:$H$27),0) -> 0 | L25: =+SUMIFS(InTran!$R:$R,InTran!$G:$G,C25,InTran!$O:$O,$C$4,InTran!$C:$C,$L$4) -> 0 | M25: =+SUMIFS(InTran!$S:$S,InTran!$G:$G,C25,InTran!$O:$O,$C$4,InTran!$C:$C,$L$4) -> 0 | N25: =+SUMIFS(InTran!$M:$M,InTran!$G:$G,C25,InTran!$O:$O,$C$4,InTran!$C:$C,$L$4) -> 0 | O25: =+IFERROR(L25/SUM($L$6:$L$27),0) -> 0 | P25: =+SUMIFS(InTran!$R:$R,InTran!$G:$G,C25,InTran!$O:$O,$C$4,InTran!$C:$C,$P$4) -> 0 | Q25: =+SUMIFS(InTran!$S:$S,InTran!$G:$G,C25,InTran!$O:$O,$C$4,InTran!$C:$C,$P$4) -> 0 | R25: =+SUMIFS(InTran!$M:$M,InTran!$G:$G,C25,InTran!$O:$O,$C$4,InTran!$C:$C,$P$4) -> 0 | S25: =+IFERROR(P25/SUM($P$6:$P$27),0) -> 0 | T25: =+SUMIFS(InTran!$R:$R,InTran!$G:$G,C25,InTran!$O:$O,$C$4,InTran!$C:$C,$T$4) -> 0 | U25: =+SUMIFS(InTran!$S:$S,InTran!$G:$G,C25,InTran!$O:$O,$C$4,InTran!$C:$C,$T$4) -> 0 | V25: =+SUMIFS(InTran!$M:$M,InTran!$G:$G,C25,InTran!$O:$O,$C$4,InTran!$C:$C,$T$4) -> 0 | W25: =+IFERROR(T25/SUM($T$6:$T$27),0) -> 0 | X25: =+SUMIFS(InTran!$R:$R,InTran!$G:$G,C25,InTran!$O:$O,$C$4,InTran!$C:$C,$X$4) -> 0 | Y25: =+SUMIFS(InTran!$S:$S,InTran!$G:$G,C25,InTran!$O:$O,$C$4,InTran!$C:$C,$X$4) -> 0 | Z25: =+SUMIFS(InTran!$M:$M,InTran!$G:$G,C25,InTran!$O:$O,$C$4,InTran!$C:$C,$X$4) -> 0 | AA25: =+IFERROR(X25/SUM($X$6:$X$27),0) -> 0 | AB25: =+SUMIFS(InTran!$R:$R,InTran!$G:$G,C25,InTran!$O:$O,$C$4) -> 0 | AC25: =+SUMIFS(InTran!$S:$S,InTran!$G:$G,C25,InTran!$O:$O,$C$4) -> 0 | AD25: =+SUMIFS(InTran!$M:$M,InTran!$G:$G,C25,InTran!$O:$O,$C$4) -> 0 | AE25: =+IFERROR(AB25/SUM($AB$6:$AB$27),0) -> 0 | AF25: =+RANK(AB25,$AB$6:$AB$27) -> 14
C26: NOT APPLICABLE | D26: =+SUMIFS(InTran!$R:$R,InTran!$G:$G,C26,InTran!$O:$O,$C$4,InTran!$C:$C,$D$4) -> 0 | E26: =+SUMIFS(InTran!$S:$S,InTran!$G:$G,C26,InTran!$O:$O,$C$4,InTran!$C:$C,$D$4) -> 0 | F26: =+SUMIFS(InTran!$M:$M,InTran!$G:$G,C26,InTran!$O:$O,$C$4,InTran!$C:$C,$D$4) -> 0 | G26: =+IFERROR(D26/SUM($D$6:$D$27),0) -> 0 | H26: =+SUMIFS(InTran!$R:$R,InTran!$G:$G,C26,InTran!$O:$O,$C$4,InTran!$C:$C,$H$4) -> 0 | I26: =+SUMIFS(InTran!$S:$S,InTran!$G:$G,C26,InTran!$O:$O,$C$4,InTran!$C:$C,$H$4) -> 0 | J26: =+SUMIFS(InTran!$M:$M,InTran!$G:$G,C26,InTran!$O:$O,$C$4,InTran!$C:$C,$H$4) -> 0 | K26: =+IFERROR(H26/SUM($H$6:$H$27),0) -> 0 | L26: =+SUMIFS(InTran!$R:$R,InTran!$G:$G,C26,InTran!$O:$O,$C$4,InTran!$C:$C,$L$4) -> 0 | M26: =+SUMIFS(InTran!$S:$S,InTran!$G:$G,C26,InTran!$O:$O,$C$4,InTran!$C:$C,$L$4) -> 0 | N26: =+SUMIFS(InTran!$M:$M,InTran!$G:$G,C26,InTran!$O:$O,$C$4,InTran!$C:$C,$L$4) -> 0 | O26: =+IFERROR(L26/SUM($L$6:$L$27),0) -> 0 | P26: =+SUMIFS(InTran!$R:$R,InTran!$G:$G,C26,InTran!$O:$O,$C$4,InTran!$C:$C,$P$4) -> 0 | Q26: =+SUMIFS(InTran!$S:$S,InTran!$G:$G,C26,InTran!$O:$O,$C$4,InTran!$C:$C,$P$4) -> 0 | R26: =+SUMIFS(InTran!$M:$M,InTran!$G:$G,C26,InTran!$O:$O,$C$4,InTran!$C:$C,$P$4) -> 0 | S26: =+IFERROR(P26/SUM($P$6:$P$27),0) -> 0 | T26: =+SUMIFS(InTran!$R:$R,InTran!$G:$G,C26,InTran!$O:$O,$C$4,InTran!$C:$C,$T$4) -> 0 | U26: =+SUMIFS(InTran!$S:$S,InTran!$G:$G,C26,InTran!$O:$O,$C$4,InTran!$C:$C,$T$4) -> 0 | V26: =+SUMIFS(InTran!$M:$M,InTran!$G:$G,C26,InTran!$O:$O,$C$4,InTran!$C:$C,$T$4) -> 0 | W26: =+IFERROR(T26/SUM($T$6:$T$27),0) -> 0 | X26: =+SUMIFS(InTran!$R:$R,InTran!$G:$G,C26,InTran!$O:$O,$C$4,InTran!$C:$C,$X$4) -> 0 | Y26: =+SUMIFS(InTran!$S:$S,InTran!$G:$G,C26,InTran!$O:$O,$C$4,InTran!$C:$C,$X$4) -> 0 | Z26: =+SUMIFS(InTran!$M:$M,InTran!$G:$G,C26,InTran!$O:$O,$C$4,InTran!$C:$C,$X$4) -> 0 | AA26: =+IFERROR(X26/SUM($X$6:$X$27),0) -> 0 | AB26: =+SUMIFS(InTran!$R:$R,InTran!$G:$G,C26,InTran!$O:$O,$C$4) -> 0 | AC26: =+SUMIFS(InTran!$S:$S,InTran!$G:$G,C26,InTran!$O:$O,$C$4) -> 0 | AD26: =+SUMIFS(InTran!$M:$M,InTran!$G:$G,C26,InTran!$O:$O,$C$4) -> 0 | AE26: =+IFERROR(AB26/SUM($AB$6:$AB$27),0) -> 0 | AF26: =+RANK(AB26,$AB$6:$AB$27) -> 14
C27: RHB INVESTMENT BANK BERHAD | D27: =+SUMIFS(InTran!$R:$R,InTran!$G:$G,C27,InTran!$O:$O,$C$4,InTran!$C:$C,$D$4) -> 0 | E27: =+SUMIFS(InTran!$S:$S,InTran!$G:$G,C27,InTran!$O:$O,$C$4,InTran!$C:$C,$D$4) -> 0 | F27: =+SUMIFS(InTran!$M:$M,InTran!$G:$G,C27,InTran!$O:$O,$C$4,InTran!$C:$C,$D$4) -> 0 | G27: =+IFERROR(D27/SUM($D$6:$D$27),0) -> 0 | H27: =+SUMIFS(InTran!$R:$R,InTran!$G:$G,C27,InTran!$O:$O,$C$4,InTran!$C:$C,$H$4) -> 0 | I27: =+SUMIFS(InTran!$S:$S,InTran!$G:$G,C27,InTran!$O:$O,$C$4,InTran!$C:$C,$H$4) -> 0 | J27: =+SUMIFS(InTran!$M:$M,InTran!$G:$G,C27,InTran!$O:$O,$C$4,InTran!$C:$C,$H$4) -> 0 | K27: =+IFERROR(H27/SUM($H$6:$H$27),0) -> 0 | L27: =+SUMIFS(InTran!$R:$R,InTran!$G:$G,C27,InTran!$O:$O,$C$4,InTran!$C:$C,$L$4) -> 0 | M27: =+SUMIFS(InTran!$S:$S,InTran!$G:$G,C27,InTran!$O:$O,$C$4,InTran!$C:$C,$L$4) -> 0 | N27: =+SUMIFS(InTran!$M:$M,InTran!$G:$G,C27,InTran!$O:$O,$C$4,InTran!$C:$C,$L$4) -> 0 | O27: =+IFERROR(L27/SUM($L$6:$L$27),0) -> 0 | P27: =+SUMIFS(InTran!$R:$R,InTran!$G:$G,C27,InTran!$O:$O,$C$4,InTran!$C:$C,$P$4) -> 0 | Q27: =+SUMIFS(InTran!$S:$S,InTran!$G:$G,C27,InTran!$O:$O,$C$4,InTran!$C:$C,$P$4) -> 0 | R27: =+SUMIFS(InTran!$M:$M,InTran!$G:$G,C27,InTran!$O:$O,$C$4,InTran!$C:$C,$P$4) -> 0 | S27: =+IFERROR(P27/SUM($P$6:$P$27),0) -> 0 | T27: =+SUMIFS(InTran!$R:$R,InTran!$G:$G,C27,InTran!$O:$O,$C$4,InTran!$C:$C,$T$4) -> 0 | U27: =+SUMIFS(InTran!$S:$S,InTran!$G:$G,C27,InTran!$O:$O,$C$4,InTran!$C:$C,$T$4) -> 0 | V27: =+SUMIFS(InTran!$M:$M,InTran!$G:$G,C27,InTran!$O:$O,$C$4,InTran!$C:$C,$T$4) -> 0 | W27: =+IFERROR(T27/SUM($T$6:$T$27),0) -> 0 | X27: =+SUMIFS(InTran!$R:$R,InTran!$G:$G,C27,InTran!$O:$O,$C$4,InTran!$C:$C,$X$4) -> 0 | Y27: =+SUMIFS(InTran!$S:$S,InTran!$G:$G,C27,InTran!$O:$O,$C$4,InTran!$C:$C,$X$4) -> 0 | Z27: =+SUMIFS(InTran!$M:$M,InTran!$G:$G,C27,InTran!$O:$O,$C$4,InTran!$C:$C,$X$4) -> 0 | AA27: =+IFERROR(X27/SUM($X$6:$X$27),0) -> 0 | AB27: =+SUMIFS(InTran!$R:$R,InTran!$G:$G,C27,InTran!$O:$O,$C$4) -> 0 | AC27: =+SUMIFS(InTran!$S:$S,InTran!$G:$G,C27,InTran!$O:$O,$C$4) -> 0 | AD27: =+SUMIFS(InTran!$M:$M,InTran!$G:$G,C27,InTran!$O:$O,$C$4) -> 0 | AE27: =+IFERROR(AB27/SUM($AB$6:$AB$27),0) -> 0 | AF27: =+RANK(AB27,$AB$6:$AB$27) -> 14
C28: Total | D28: =SUM(D6:D27) -> 501601865.8 | E28: =SUM(E6:E27) -> 718621.17 | F28: =SUM(F6:F27) -> 27625170.28 | G28: =SUM(G6:G27) -> 1 | H28: =SUM(H6:H27) -> 0 | I28: =SUM(I6:I27) -> 0 | J28: =SUM(J6:J27) -> 0 | K28: =SUM(K6:K27) -> 0 | L28: =SUM(L6:L27) -> 39128660.67 | M28: =SUM(M6:M27) -> 64806.94 | N28: =SUM(N6:N27) -> 2584033.59 | O28: =SUM(O6:O27) -> 1 | P28: =SUM(P6:P27) -> 0 | Q28: =SUM(Q6:Q27) -> 0 | R28: =SUM(R6:R27) -> 0 | S28: =SUM(S6:S27) -> 0 | T28: =SUM(T6:T27) -> 1033339.97 | U28: =SUM(U6:U27) -> 2329.75 | V28: =SUM(V6:V27) -> -105666.01 | W28: =SUM(W6:W27) -> 1 | X28: =SUM(X6:X27) -> 11457392.65 | Y28: =SUM(Y6:Y27) -> 27467.45097 | Z28: =SUM(Z6:Z27) -> 7755.67 | AA28: =SUM(AA6:AA27) -> 1 | AB28: =SUM(AB6:AB27) -> 553221259.1 | AC28: =SUM(AC6:AC27) -> 813225.311 | AD28: =SUM(AD6:AD27) -> 30111293.53 | AE28: =SUM(AE6:AE27) -> 1
C30: ANGIE | D30: YH-AUR-VCAM | H30: KWAP | L30: MEQESG | P30: YAMIR-VCAM | T30: VCAM-TABA | X30: ASEAN5ESG | AB30: Total
C31: Brokers | D31: Trade Value (RM) | E31: Brokerage Fees (RM) | F31: Capital Gains (RM) | G31: % | H31: Trade Value (RM) | I31: Brokerage Fees (RM) | J31: Capital Gains (RM) | K31: % | L31: Trade Value (RM) | M31: Brokerage Fees (RM) | N31: Capital Gains (RM) | O31: % | P31: Trade Value (RM) | Q31: Brokerage Fees (RM) | R31: Capital Gains (RM) | S31: % | T31: Trade Value (RM) | U31: Brokerage Fees (RM) | V31: Capital Gains (RM) | W31: % | X31: Trade Value (RM) | Y31: Brokerage Fees (RM) | Z31: Capital Gains (RM) | AA31: % | AB31: Trade Value (RM) | AC31: Brokerage Fees (RM) | AD31: Capital Gains (RM) | AE31: % | AF31: Trade Value Ranking
C32: KENANGA INVESTMENT BANK BHD | D32: =+SUMIFS(InTran!$R:$R,InTran!$G:$G,C32,InTran!$O:$O,$C$30,InTran!$C:$C,$D$30) -> 3418020 | E32: =+SUMIFS(InTran!$S:$S,InTran!$G:$G,C32,InTran!$O:$O,$C$30,InTran!$C:$C,$D$30) -> 17000 | F32: =+SUMIFS(InTran!$M:$M,InTran!$G:$G,C32,InTran!$O:$O,$C$30,InTran!$C:$C,$D$30) -> 0 | G32: =+IFERROR(D32/SUM($D$32:$D$53),0) -> 0.04187705059 | H32: =+SUMIFS(InTran!$R:$R,InTran!$G:$G,C32,InTran!$O:$O,$C$30,InTran!$C:$C,$H$30) -> 5656828.93 | I32: =+SUMIFS(InTran!$S:$S,InTran!$G:$G,C32,InTran!$O:$O,$C$30,InTran!$C:$C,$H$30) -> 11286 | J32: =+SUMIFS(InTran!$M:$M,InTran!$G:$G,C32,InTran!$O:$O,$C$30,InTran!$C:$C,$H$30) -> 0 | K32: =+IFERROR(H32/SUM($H$32:$H$53),0) -> 0.6933021984 | L32: =+SUMIFS(InTran!$R:$R,InTran!$G:$G,C32,InTran!$O:$O,$C$30,InTran!$C:$C,$L$30) -> 54474145.93 | M32: =+SUMIFS(InTran!$S:$S,InTran!$G:$G,C32,InTran!$O:$O,$C$30,InTran!$C:$C,$L$30) -> 113157.41 | N32: =+SUMIFS(InTran!$M:$M,InTran!$G:$G,C32,InTran!$O:$O,$C$30,InTran!$C:$C,$L$30) -> 1707979.11 | O32: =+IFERROR(L32/SUM($L$32:$L$53),0) -> 0.2703501102 | P32: =+SUMIFS(InTran!$R:$R,InTran!$G:$G,C32,InTran!$O:$O,$C$30,InTran!$C:$C,$P$30) -> 0 | Q32: =+SUMIFS(InTran!$S:$S,InTran!$G:$G,C32,InTran!$O:$O,$C$30,InTran!$C:$C,$P$30) -> 0 | R32: =+SUMIFS(InTran!$M:$M,InTran!$G:$G,C32,InTran!$O:$O,$C$30,InTran!$C:$C,$P$30) -> 0 | S32: =+IFERROR(P32/SUM($P$32:$P$53),0) -> 0 | T32: =+SUMIFS(InTran!$R:$R,InTran!$G:$G,C32,InTran!$O:$O,$C$30,InTran!$C:$C,$T$30) -> 12684855.21 | U32: =+SUMIFS(InTran!$S:$S,InTran!$G:$G,C32,InTran!$O:$O,$C$30,InTran!$C:$C,$T$30) -> 28579.33 | V32: =+SUMIFS(InTran!$M:$M,InTran!$G:$G,C32,InTran!$O:$O,$C$30,InTran!$C:$C,$T$30) -> 544236.96 | W32: =+IFERROR(T32/SUM($T$32:$T$53),0) -> 0.4578369049 | X32: =+SUMIFS(InTran!$R:$R,InTran!$G:$G,C32,InTran!$O:$O,$C$30,InTran!$C:$C,$X$30) -> 98116.54 | Y32: =+SUMIFS(InTran!$S:$S,InTran!$G:$G,C32,InTran!$O:$O,$C$30,InTran!$C:$C,$X$30) -> 219.95 | Z32: =+SUMIFS(InTran!$M:$M,InTran!$G:$G,C32,InTran!$O:$O,$C$30,InTran!$C:$C,$X$30) -> 0 | AA32: =+IFERROR(X32/SUM($X$32:$X$53),0) -> 0.3074165062 | AB32: =+SUMIFS(InTran!$R:$R,InTran!$G:$G,C32,InTran!$O:$O,$C$30) -> 76331966.61 | AC32: =+SUMIFS(InTran!$S:$S,InTran!$G:$G,C32,InTran!$O:$O,$C$30) -> 170242.69 | AD32: =+SUMIFS(InTran!$M:$M,InTran!$G:$G,C32,InTran!$O:$O,$C$30) -> 2252216.07 | AE32: =+IFERROR(AB32/SUM($AB$32:$AB$53),0) -> 0.2390605993 | AF32: =+RANK(AB32,$AB$32:$AB$53) -> 1
C33: UBS SECURITIES MALAYSIA SDN BHD | D33: =+SUMIFS(InTran!$R:$R,InTran!$G:$G,C33,InTran!$O:$O,$C$30,InTran!$C:$C,$D$30) -> 3656265.77 | E33: =+SUMIFS(InTran!$S:$S,InTran!$G:$G,C33,InTran!$O:$O,$C$30,InTran!$C:$C,$D$30) -> 7330.59 | F33: =+SUMIFS(InTran!$M:$M,InTran!$G:$G,C33,InTran!$O:$O,$C$30,InTran!$C:$C,$D$30) -> 66521.81 | G33: =+IFERROR(D33/SUM($D$32:$D$53),0) -> 0.04479600079 | H33: =+SUMIFS(InTran!$R:$R,InTran!$G:$G,C33,InTran!$O:$O,$C$30,InTran!$C:$C,$H$30) -> 0 | I33: =+SUMIFS(InTran!$S:$S,InTran!$G:$G,C33,InTran!$O:$O,$C$30,InTran!$C:$C,$H$30) -> 0 | J33: =+SUMIFS(InTran!$M:$M,InTran!$G:$G,C33,InTran!$O:$O,$C$30,InTran!$C:$C,$H$30) -> 0 | K33: =+IFERROR(H33/SUM($H$32:$H$53),0) -> 0 | L33: =+SUMIFS(InTran!$R:$R,InTran!$G:$G,C33,InTran!$O:$O,$C$30,InTran!$C:$C,$L$30) -> 52694274.36 | M33: =+SUMIFS(InTran!$S:$S,InTran!$G:$G,C33,InTran!$O:$O,$C$30,InTran!$C:$C,$L$30) -> 107766.5 | N33: =+SUMIFS(InTran!$M:$M,InTran!$G:$G,C33,InTran!$O:$O,$C$30,InTran!$C:$C,$L$30) -> 3435603.29 | O33: =+IFERROR(L33/SUM($L$32:$L$53),0) -> 0.2615167735 | P33: =+SUMIFS(InTran!$R:$R,InTran!$G:$G,C33,InTran!$O:$O,$C$30,InTran!$C:$C,$P$30) -> 0 | Q33: =+SUMIFS(InTran!$S:$S,InTran!$G:$G,C33,InTran!$O:$O,$C$30,InTran!$C:$C,$P$30) -> 0 | R33: =+SUMIFS(InTran!$M:$M,InTran!$G:$G,C33,InTran!$O:$O,$C$30,InTran!$C:$C,$P$30) -> 0 | S33: =+IFERROR(P33/SUM($P$32:$P$53),0) -> 0 | T33: =+SUMIFS(InTran!$R:$R,InTran!$G:$G,C33,InTran!$O:$O,$C$30,InTran!$C:$C,$T$30) -> 5584974.75 | U33: =+SUMIFS(InTran!$S:$S,InTran!$G:$G,C33,InTran!$O:$O,$C$30,InTran!$C:$C,$T$30) -> 12539.37 | V33: =+SUMIFS(InTran!$M:$M,InTran!$G:$G,C33,InTran!$O:$O,$C$30,InTran!$C:$C,$T$30) -> 44250.98 | W33: =+IFERROR(T33/SUM($T$32:$T$53),0) -> 0.2015795617 | X33: =+SUMIFS(InTran!$R:$R,InTran!$G:$G,C33,InTran!$O:$O,$C$30,InTran!$C:$C,$X$30) -> 0 | Y33: =+SUMIFS(InTran!$S:$S,InTran!$G:$G,C33,InTran!$O:$O,$C$30,InTran!$C:$C,$X$30) -> 0 | Z33: =+SUMIFS(InTran!$M:$M,InTran!$G:$G,C33,InTran!$O:$O,$C$30,InTran!$C:$C,$X$30) -> 0 | AA33: =+IFERROR(X33/SUM($X$32:$X$53),0) -> 0 | AB33: =+SUMIFS(InTran!$R:$R,InTran!$G:$G,C33,InTran!$O:$O,$C$30) -> 61935514.88 | AC33: =+SUMIFS(InTran!$S:$S,InTran!$G:$G,C33,InTran!$O:$O,$C$30) -> 127636.46 | AD33: =+SUMIFS(InTran!$M:$M,InTran!$G:$G,C33,InTran!$O:$O,$C$30) -> 3546376.08 | AE33: =+IFERROR(AB33/SUM($AB$32:$AB$53),0) -> 0.1939730098 | AF33: =+RANK(AB33,$AB$32:$AB$53) -> 2
C34: MACQUARIE CAPITAL SECURITIES (MALAYSIA) SDN BHD | D34: =+SUMIFS(InTran!$R:$R,InTran!$G:$G,C34,InTran!$O:$O,$C$30,InTran!$C:$C,$D$30) -> 30895596.07 | E34: =+SUMIFS(InTran!$S:$S,InTran!$G:$G,C34,InTran!$O:$O,$C$30,InTran!$C:$C,$D$30) -> 32413.2 | F34: =+SUMIFS(InTran!$M:$M,InTran!$G:$G,C34,InTran!$O:$O,$C$30,InTran!$C:$C,$D$30) -> 1040346.47 | G34: =+IFERROR(D34/SUM($D$32:$D$53),0) -> 0.3785280483 | H34: =+SUMIFS(InTran!$R:$R,InTran!$G:$G,C34,InTran!$O:$O,$C$30,InTran!$C:$C,$H$30) -> 0 | I34: =+SUMIFS(InTran!$S:$S,InTran!$G:$G,C34,InTran!$O:$O,$C$30,InTran!$C:$C,$H$30) -> 0 | J34: =+SUMIFS(InTran!$M:$M,InTran!$G:$G,C34,InTran!$O:$O,$C$30,InTran!$C:$C,$H$30) -> 0 | K34: =+IFERROR(H34/SUM($H$32:$H$53),0) -> 0 | L34: =+SUMIFS(InTran!$R:$R,InTran!$G:$G,C34,InTran!$O:$O,$C$30,InTran!$C:$C,$L$30) -> 8208044.8 | M34: =+SUMIFS(InTran!$S:$S,InTran!$G:$G,C34,InTran!$O:$O,$C$30,InTran!$C:$C,$L$30) -> 17535.8 | N34: =+SUMIFS(InTran!$M:$M,InTran!$G:$G,C34,InTran!$O:$O,$C$30,InTran!$C:$C,$L$30) -> 139529.44 | O34: =+IFERROR(L34/SUM($L$32:$L$53),0) -> 0.0407357615 | P34: =+SUMIFS(InTran!$R:$R,InTran!$G:$G,C34,InTran!$O:$O,$C$30,InTran!$C:$C,$P$30) -> 0 | Q34: =+SUMIFS(InTran!$S:$S,InTran!$G:$G,C34,InTran!$O:$O,$C$30,InTran!$C:$C,$P$30) -> 0 | R34: =+SUMIFS(InTran!$M:$M,InTran!$G:$G,C34,InTran!$O:$O,$C$30,InTran!$C:$C,$P$30) -> 0 | S34: =+IFERROR(P34/SUM($P$32:$P$53),0) -> 0 | T34: =+SUMIFS(InTran!$R:$R,InTran!$G:$G,C34,InTran!$O:$O,$C$30,InTran!$C:$C,$T$30) -> 417643.78 | U34: =+SUMIFS(InTran!$S:$S,InTran!$G:$G,C34,InTran!$O:$O,$C$30,InTran!$C:$C,$T$30) -> 942.7 | V34: =+SUMIFS(InTran!$M:$M,InTran!$G:$G,C34,InTran!$O:$O,$C$30,InTran!$C:$C,$T$30) -> 38666.23 | W34: =+IFERROR(T34/SUM($T$32:$T$53),0) -> 0.01507409682 | X34: =+SUMIFS(InTran!$R:$R,InTran!$G:$G,C34,InTran!$O:$O,$C$30,InTran!$C:$C,$X$30) -> 0 | Y34: =+SUMIFS(InTran!$S:$S,InTran!$G:$G,C34,InTran!$O:$O,$C$30,InTran!$C:$C,$X$30) -> 0 | Z34: =+SUMIFS(InTran!$M:$M,InTran!$G:$G,C34,InTran!$O:$O,$C$30,InTran!$C:$C,$X$30) -> 0 | AA34: =+IFERROR(X34/SUM($X$32:$X$53),0) -> 0 | AB34: =+SUMIFS(InTran!$R:$R,InTran!$G:$G,C34,InTran!$O:$O,$C$30) -> 39521284.65 | AC34: =+SUMIFS(InTran!$S:$S,InTran!$G:$G,C34,InTran!$O:$O,$C$30) -> 50891.7 | AD34: =+SUMIFS(InTran!$M:$M,InTran!$G:$G,C34,InTran!$O:$O,$C$30) -> 1218542.14 | AE34: =+IFERROR(AB34/SUM($AB$32:$AB$53),0) -> 0.123774906 | AF34: =+RANK(AB34,$AB$32:$AB$53) -> 3
C35: CLSA LIMITED | D35: =+SUMIFS(InTran!$R:$R,InTran!$G:$G,C35,InTran!$O:$O,$C$30,InTran!$C:$C,$D$30) -> 32562112.83 | E35: =+SUMIFS(InTran!$S:$S,InTran!$G:$G,C35,InTran!$O:$O,$C$30,InTran!$C:$C,$D$30) -> 38947.71 | F35: =+SUMIFS(InTran!$M:$M,InTran!$G:$G,C35,InTran!$O:$O,$C$30,InTran!$C:$C,$D$30) -> 1495526.3 | G35: =+IFERROR(D35/SUM($D$32:$D$53),0) -> 0.398945953 | H35: =+SUMIFS(InTran!$R:$R,InTran!$G:$G,C35,InTran!$O:$O,$C$30,InTran!$C:$C,$H$30) -> 0 | I35: =+SUMIFS(InTran!$S:$S,InTran!$G:$G,C35,InTran!$O:$O,$C$30,InTran!$C:$C,$H$30) -> 0 | J35: =+SUMIFS(InTran!$M:$M,InTran!$G:$G,C35,InTran!$O:$O,$C$30,InTran!$C:$C,$H$30) -> 0 | K35: =+IFERROR(H35/SUM($H$32:$H$53),0) -> 0 | L35: =+SUMIFS(InTran!$R:$R,InTran!$G:$G,C35,InTran!$O:$O,$C$30,InTran!$C:$C,$L$30) -> 101217.38 | M35: =+SUMIFS(InTran!$S:$S,InTran!$G:$G,C35,InTran!$O:$O,$C$30,InTran!$C:$C,$L$30) -> 228.59 | N35: =+SUMIFS(InTran!$M:$M,InTran!$G:$G,C35,InTran!$O:$O,$C$30,InTran!$C:$C,$L$30) -> -4911.17 | O35: =+IFERROR(L35/SUM($L$32:$L$53),0) -> 0.0005023324253 | P35: =+SUMIFS(InTran!$R:$R,InTran!$G:$G,C35,InTran!$O:$O,$C$30,InTran!$C:$C,$P$30) -> 0 | Q35: =+SUMIFS(InTran!$S:$S,InTran!$G:$G,C35,InTran!$O:$O,$C$30,InTran!$C:$C,$P$30) -> 0 | R35: =+SUMIFS(InTran!$M:$M,InTran!$G:$G,C35,InTran!$O:$O,$C$30,InTran!$C:$C,$P$30) -> 0 | S35: =+IFERROR(P35/SUM($P$32:$P$53),0) -> 0 | T35: =+SUMIFS(InTran!$R:$R,InTran!$G:$G,C35,InTran!$O:$O,$C$30,InTran!$C:$C,$T$30) -> 0 | U35: =+SUMIFS(InTran!$S:$S,InTran!$G:$G,C35,InTran!$O:$O,$C$30,InTran!$C:$C,$T$30) -> 0 | V35: =+SUMIFS(InTran!$M:$M,InTran!$G:$G,C35,InTran!$O:$O,$C$30,InTran!$C:$C,$T$30) -> 0 | W35: =+IFERROR(T35/SUM($T$32:$T$53),0) -> 0 | X35: =+SUMIFS(InTran!$R:$R,InTran!$G:$G,C35,InTran!$O:$O,$C$30,InTran!$C:$C,$X$30) -> 0 | Y35: =+SUMIFS(InTran!$S:$S,InTran!$G:$G,C35,InTran!$O:$O,$C$30,InTran!$C:$C,$X$30) -> 0 | Z35: =+SUMIFS(InTran!$M:$M,InTran!$G:$G,C35,InTran!$O:$O,$C$30,InTran!$C:$C,$X$30) -> 0 | AA35: =+IFERROR(X35/SUM($X$32:$X$53),0) -> 0 | AB35: =+SUMIFS(InTran!$R:$R,InTran!$G:$G,C35,InTran!$O:$O,$C$30) -> 32663330.21 | AC35: =+SUMIFS(InTran!$S:$S,InTran!$G:$G,C35,InTran!$O:$O,$C$30) -> 39176.3 | AD35: =+SUMIFS(InTran!$M:$M,InTran!$G:$G,C35,InTran!$O:$O,$C$30) -> 1490615.13 | AE35: =+IFERROR(AB35/SUM($AB$32:$AB$53),0) -> 0.1022967918 | AF35: =+RANK(AB35,$AB$32:$AB$53) -> 4
C36: NOMURA SECURITIES MALAYSIA SDN BHD | D36: =+SUMIFS(InTran!$R:$R,InTran!$G:$G,C36,InTran!$O:$O,$C$30,InTran!$C:$C,$D$30) -> 5361674.1 | E36: =+SUMIFS(InTran!$S:$S,InTran!$G:$G,C36,InTran!$O:$O,$C$30,InTran!$C:$C,$D$30) -> 10974.17 | F36: =+SUMIFS(InTran!$M:$M,InTran!$G:$G,C36,InTran!$O:$O,$C$30,InTran!$C:$C,$D$30) -> 130082.83 | G36: =+IFERROR(D36/SUM($D$32:$D$53),0) -> 0.06569039899 | H36: =+SUMIFS(InTran!$R:$R,InTran!$G:$G,C36,InTran!$O:$O,$C$30,InTran!$C:$C,$H$30) -> 0 | I36: =+SUMIFS(InTran!$S:$S,InTran!$G:$G,C36,InTran!$O:$O,$C$30,InTran!$C:$C,$H$30) -> 0 | J36: =+SUMIFS(InTran!$M:$M,InTran!$G:$G,C36,InTran!$O:$O,$C$30,InTran!$C:$C,$H$30) -> 0 | K36: =+IFERROR(H36/SUM($H$32:$H$53),0) -> 0 | L36: =+SUMIFS(InTran!$R:$R,InTran!$G:$G,C36,InTran!$O:$O,$C$30,InTran!$C:$C,$L$30) -> 25482484.56 | M36: =+SUMIFS(InTran!$S:$S,InTran!$G:$G,C36,InTran!$O:$O,$C$30,InTran!$C:$C,$L$30) -> 53611.64 | N36: =+SUMIFS(InTran!$M:$M,InTran!$G:$G,C36,InTran!$O:$O,$C$30,InTran!$C:$C,$L$30) -> 1340091.95 | O36: =+IFERROR(L36/SUM($L$32:$L$53),0) -> 0.1264671964 | P36: =+SUMIFS(InTran!$R:$R,InTran!$G:$G,C36,InTran!$O:$O,$C$30,InTran!$C:$C,$P$30) -> 0 | Q36: =+SUMIFS(InTran!$S:$S,InTran!$G:$G,C36,InTran!$O:$O,$C$30,InTran!$C:$C,$P$30) -> 0 | R36: =+SUMIFS(InTran!$M:$M,InTran!$G:$G,C36,InTran!$O:$O,$C$30,InTran!$C:$C,$P$30) -> 0 | S36: =+IFERROR(P36/SUM($P$32:$P$53),0) -> 0 | T36: =+SUMIFS(InTran!$R:$R,InTran!$G:$G,C36,InTran!$O:$O,$C$30,InTran!$C:$C,$T$30) -> 911612.85 | U36: =+SUMIFS(InTran!$S:$S,InTran!$G:$G,C36,InTran!$O:$O,$C$30,InTran!$C:$C,$T$30) -> 2045.77 | V36: =+SUMIFS(InTran!$M:$M,InTran!$G:$G,C36,InTran!$O:$O,$C$30,InTran!$C:$C,$T$30) -> 5597.33 | W36: =+IFERROR(T36/SUM($T$32:$T$53),0) -> 0.03290301693 | X36: =+SUMIFS(InTran!$R:$R,InTran!$G:$G,C36,InTran!$O:$O,$C$30,InTran!$C:$C,$X$30) -> 187297.4 | Y36: =+SUMIFS(InTran!$S:$S,InTran!$G:$G,C36,InTran!$O:$O,$C$30,InTran!$C:$C,$X$30) -> 419.86 | Z36: =+SUMIFS(InTran!$M:$M,InTran!$G:$G,C36,InTran!$O:$O,$C$30,InTran!$C:$C,$X$30) -> 0 | AA36: =+IFERROR(X36/SUM($X$32:$X$53),0) -> 0.5868359435 | AB36: =+SUMIFS(InTran!$R:$R,InTran!$G:$G,C36,InTran!$O:$O,$C$30) -> 31943068.91 | AC36: =+SUMIFS(InTran!$S:$S,InTran!$G:$G,C36,InTran!$O:$O,$C$30) -> 67051.44 | AD36: =+SUMIFS(InTran!$M:$M,InTran!$G:$G,C36,InTran!$O:$O,$C$30) -> 1475772.11 | AE36: =+IFERROR(AB36/SUM($AB$32:$AB$53),0) -> 0.1000410383 | AF36: =+RANK(AB36,$AB$32:$AB$53) -> 5
C37: CIMB INVESTMENT BANK BHD | D37: =+SUMIFS(InTran!$R:$R,InTran!$G:$G,C37,InTran!$O:$O,$C$30,InTran!$C:$C,$D$30) -> 0 | E37: =+SUMIFS(InTran!$S:$S,InTran!$G:$G,C37,InTran!$O:$O,$C$30,InTran!$C:$C,$D$30) -> 0 | F37: =+SUMIFS(InTran!$M:$M,InTran!$G:$G,C37,InTran!$O:$O,$C$30,InTran!$C:$C,$D$30) -> 0 | G37: =+IFERROR(D37/SUM($D$32:$D$53),0) -> 0 | H37: =+SUMIFS(InTran!$R:$R,InTran!$G:$G,C37,InTran!$O:$O,$C$30,InTran!$C:$C,$H$30) -> 0 | I37: =+SUMIFS(InTran!$S:$S,InTran!$G:$G,C37,InTran!$O:$O,$C$30,InTran!$C:$C,$H$30) -> 0 | J37: =+SUMIFS(InTran!$M:$M,InTran!$G:$G,C37,InTran!$O:$O,$C$30,InTran!$C:$C,$H$30) -> 0 | K37: =+IFERROR(H37/SUM($H$32:$H$53),0) -> 0 | L37: =+SUMIFS(InTran!$R:$R,InTran!$G:$G,C37,InTran!$O:$O,$C$30,InTran!$C:$C,$L$30) -> 24891252.61 | M37: =+SUMIFS(InTran!$S:$S,InTran!$G:$G,C37,InTran!$O:$O,$C$30,InTran!$C:$C,$L$30) -> 52358.47 | N37: =+SUMIFS(InTran!$M:$M,InTran!$G:$G,C37,InTran!$O:$O,$C$30,InTran!$C:$C,$L$30) -> 2263103.61 | O37: =+IFERROR(L37/SUM($L$32:$L$53),0) -> 0.1235329673 | P37: =+SUMIFS(InTran!$R:$R,InTran!$G:$G,C37,InTran!$O:$O,$C$30,InTran!$C:$C,$P$30) -> 0 | Q37: =+SUMIFS(InTran!$S:$S,InTran!$G:$G,C37,InTran!$O:$O,$C$30,InTran!$C:$C,$P$30) -> 0 | R37: =+SUMIFS(InTran!$M:$M,InTran!$G:$G,C37,InTran!$O:$O,$C$30,InTran!$C:$C,$P$30) -> 0 | S37: =+IFERROR(P37/SUM($P$32:$P$53),0) -> 0 | T37: =+SUMIFS(InTran!$R:$R,InTran!$G:$G,C37,InTran!$O:$O,$C$30,InTran!$C:$C,$T$30) -> 410308.12 | U37: =+SUMIFS(InTran!$S:$S,InTran!$G:$G,C37,InTran!$O:$O,$C$30,InTran!$C:$C,$T$30) -> 925.25 | V37: =+SUMIFS(InTran!$M:$M,InTran!$G:$G,C37,InTran!$O:$O,$C$30,InTran!$C:$C,$T$30) -> -29.46 | W37: =+IFERROR(T37/SUM($T$32:$T$53),0) -> 0.01480932944 | X37: =+SUMIFS(InTran!$R:$R,InTran!$G:$G,C37,InTran!$O:$O,$C$30,InTran!$C:$C,$X$30) -> 0 | Y37: =+SUMIFS(InTran!$S:$S,InTran!$G:$G,C37,InTran!$O:$O,$C$30,InTran!$C:$C,$X$30) -> 0 | Z37: =+SUMIFS(InTran!$M:$M,InTran!$G:$G,C37,InTran!$O:$O,$C$30,InTran!$C:$C,$X$30) -> 0 | AA37: =+IFERROR(X37/SUM($X$32:$X$53),0) -> 0 | AB37: =+SUMIFS(InTran!$R:$R,InTran!$G:$G,C37,InTran!$O:$O,$C$30) -> 25301560.73 | AC37: =+SUMIFS(InTran!$S:$S,InTran!$G:$G,C37,InTran!$O:$O,$C$30) -> 53283.72 | AD37: =+SUMIFS(InTran!$M:$M,InTran!$G:$G,C37,InTran!$O:$O,$C$30) -> 2263074.15 | AE37: =+IFERROR(AB37/SUM($AB$32:$AB$53),0) -> 0.07924080225 | AF37: =+RANK(AB37,$AB$32:$AB$53) -> 6
C38: CREDIT SUISSE SECURITIES (M) SDN BHD | D38: =+SUMIFS(InTran!$R:$R,InTran!$G:$G,C38,InTran!$O:$O,$C$30,InTran!$C:$C,$D$30) -> 2130636.8 | E38: =+SUMIFS(InTran!$S:$S,InTran!$G:$G,C38,InTran!$O:$O,$C$30,InTran!$C:$C,$D$30) -> 4496.42 | F38: =+SUMIFS(InTran!$M:$M,InTran!$G:$G,C38,InTran!$O:$O,$C$30,InTran!$C:$C,$D$30) -> 50891.19 | G38: =+IFERROR(D38/SUM($D$32:$D$53),0) -> 0.02610423142 | H38: =+SUMIFS(InTran!$R:$R,InTran!$G:$G,C38,InTran!$O:$O,$C$30,InTran!$C:$C,$H$30) -> 0 | I38: =+SUMIFS(InTran!$S:$S,InTran!$G:$G,C38,InTran!$O:$O,$C$30,InTran!$C:$C,$H$30) -> 0 | J38: =+SUMIFS(InTran!$M:$M,InTran!$G:$G,C38,InTran!$O:$O,$C$30,InTran!$C:$C,$H$30) -> 0 | K38: =+IFERROR(H38/SUM($H$32:$H$53),0) -> 0 | L38: =+SUMIFS(InTran!$R:$R,InTran!$G:$G,C38,InTran!$O:$O,$C$30,InTran!$C:$C,$L$30) -> 20960425.19 | M38: =+SUMIFS(InTran!$S:$S,InTran!$G:$G,C38,InTran!$O:$O,$C$30,InTran!$C:$C,$L$30) -> 43342.67 | N38: =+SUMIFS(InTran!$M:$M,InTran!$G:$G,C38,InTran!$O:$O,$C$30,InTran!$C:$C,$L$30) -> 833998.37 | O38: =+IFERROR(L38/SUM($L$32:$L$53),0) -> 0.1040246371 | P38: =+SUMIFS(InTran!$R:$R,InTran!$G:$G,C38,InTran!$O:$O,$C$30,InTran!$C:$C,$P$30) -> 0 | Q38: =+SUMIFS(InTran!$S:$S,InTran!$G:$G,C38,InTran!$O:$O,$C$30,InTran!$C:$C,$P$30) -> 0 | R38: =+SUMIFS(InTran!$M:$M,InTran!$G:$G,C38,InTran!$O:$O,$C$30,InTran!$C:$C,$P$30) -> 0 | S38: =+IFERROR(P38/SUM($P$32:$P$53),0) -> 0 | T38: =+SUMIFS(InTran!$R:$R,InTran!$G:$G,C38,InTran!$O:$O,$C$30,InTran!$C:$C,$T$30) -> 747027.97 | U38: =+SUMIFS(InTran!$S:$S,InTran!$G:$G,C38,InTran!$O:$O,$C$30,InTran!$C:$C,$T$30) -> 1682.81 | V38: =+SUMIFS(InTran!$M:$M,InTran!$G:$G,C38,InTran!$O:$O,$C$30,InTran!$C:$C,$T$30) -> 9381.72 | W38: =+IFERROR(T38/SUM($T$32:$T$53),0) -> 0.02696262338 | X38: =+SUMIFS(InTran!$R:$R,InTran!$G:$G,C38,InTran!$O:$O,$C$30,InTran!$C:$C,$X$30) -> 0 | Y38: =+SUMIFS(InTran!$S:$S,InTran!$G:$G,C38,InTran!$O:$O,$C$30,InTran!$C:$C,$X$30) -> 0 | Z38: =+SUMIFS(InTran!$M:$M,InTran!$G:$G,C38,InTran!$O:$O,$C$30,InTran!$C:$C,$X$30) -> 0 | AA38: =+IFERROR(X38/SUM($X$32:$X$53),0) -> 0 | AB38: =+SUMIFS(InTran!$R:$R,InTran!$G:$G,C38,InTran!$O:$O,$C$30) -> 23838089.96 | AC38: =+SUMIFS(InTran!$S:$S,InTran!$G:$G,C38,InTran!$O:$O,$C$30) -> 49521.9 | AD38: =+SUMIFS(InTran!$M:$M,InTran!$G:$G,C38,InTran!$O:$O,$C$30) -> 894271.28 | AE38: =+IFERROR(AB38/SUM($AB$32:$AB$53),0) -> 0.074657425 | AF38: =+RANK(AB38,$AB$32:$AB$53) -> 7
C39: TA SECURITIES HOLDINGS BHD | D39: =+SUMIFS(InTran!$R:$R,InTran!$G:$G,C39,InTran!$O:$O,$C$30,InTran!$C:$C,$D$30) -> 0 | E39: =+SUMIFS(InTran!$S:$S,InTran!$G:$G,C39,InTran!$O:$O,$C$30,InTran!$C:$C,$D$30) -> 0 | F39: =+SUMIFS(InTran!$M:$M,InTran!$G:$G,C39,InTran!$O:$O,$C$30,InTran!$C:$C,$D$30) -> 0 | G39: =+IFERROR(D39/SUM($D$32:$D$53),0) -> 0 | H39: =+SUMIFS(InTran!$R:$R,InTran!$G:$G,C39,InTran!$O:$O,$C$30,InTran!$C:$C,$H$30) -> 0 | I39: =+SUMIFS(InTran!$S:$S,InTran!$G:$G,C39,InTran!$O:$O,$C$30,InTran!$C:$C,$H$30) -> 0 | J39: =+SUMIFS(InTran!$M:$M,InTran!$G:$G,C39,InTran!$O:$O,$C$30,InTran!$C:$C,$H$30) -> 0 | K39: =+IFERROR(H39/SUM($H$32:$H$53),0) -> 0 | L39: =+SUMIFS(InTran!$R:$R,InTran!$G:$G,C39,InTran!$O:$O,$C$30,InTran!$C:$C,$L$30) -> 14656072.25 | M39: =+SUMIFS(InTran!$S:$S,InTran!$G:$G,C39,InTran!$O:$O,$C$30,InTran!$C:$C,$L$30) -> 31938.79 | N39: =+SUMIFS(InTran!$M:$M,InTran!$G:$G,C39,InTran!$O:$O,$C$30,InTran!$C:$C,$L$30) -> 271010.47 | O39: =+IFERROR(L39/SUM($L$32:$L$53),0) -> 0.07273672089 | P39: =+SUMIFS(InTran!$R:$R,InTran!$G:$G,C39,InTran!$O:$O,$C$30,InTran!$C:$C,$P$30) -> 0 | Q39: =+SUMIFS(InTran!$S:$S,InTran!$G:$G,C39,InTran!$O:$O,$C$30,InTran!$C:$C,$P$30) -> 0 | R39: =+SUMIFS(InTran!$M:$M,InTran!$G:$G,C39,InTran!$O:$O,$C$30,InTran!$C:$C,$P$30) -> 0 | S39: =+IFERROR(P39/SUM($P$32:$P$53),0) -> 0 | T39: =+SUMIFS(InTran!$R:$R,InTran!$G:$G,C39,InTran!$O:$O,$C$30,InTran!$C:$C,$T$30) -> 6535397.82 | U39: =+SUMIFS(InTran!$S:$S,InTran!$G:$G,C39,InTran!$O:$O,$C$30,InTran!$C:$C,$T$30) -> 14744.81 | V39: =+SUMIFS(InTran!$M:$M,InTran!$G:$G,C39,InTran!$O:$O,$C$30,InTran!$C:$C,$T$30) -> -350750.84 | W39: =+IFERROR(T39/SUM($T$32:$T$53),0) -> 0.2358833633 | X39: =+SUMIFS(InTran!$R:$R,InTran!$G:$G,C39,InTran!$O:$O,$C$30,InTran!$C:$C,$X$30) -> 33750.9 | Y39: =+SUMIFS(InTran!$S:$S,InTran!$G:$G,C39,InTran!$O:$O,$C$30,InTran!$C:$C,$X$30) -> 75.66 | Z39: =+SUMIFS(InTran!$M:$M,InTran!$G:$G,C39,InTran!$O:$O,$C$30,InTran!$C:$C,$X$30) -> 0 | AA39: =+IFERROR(X39/SUM($X$32:$X$53),0) -> 0.1057475504 | AB39: =+SUMIFS(InTran!$R:$R,InTran!$G:$G,C39,InTran!$O:$O,$C$30) -> 21225220.97 | AC39: =+SUMIFS(InTran!$S:$S,InTran!$G:$G,C39,InTran!$O:$O,$C$30) -> 46759.26 | AD39: =+SUMIFS(InTran!$M:$M,InTran!$G:$G,C39,InTran!$O:$O,$C$30) -> -79740.37 | AE39: =+IFERROR(AB39/SUM($AB$32:$AB$53),0) -> 0.06647429997 | AF39: =+RANK(AB39,$AB$32:$AB$53) -> 8
C40: MAYBANK INVESTMENT BANK BHD | D40: =+SUMIFS(InTran!$R:$R,InTran!$G:$G,C40,InTran!$O:$O,$C$30,InTran!$C:$C,$D$30) -> 942740.82 | E40: =+SUMIFS(InTran!$S:$S,InTran!$G:$G,C40,InTran!$O:$O,$C$30,InTran!$C:$C,$D$30) -> 2115 | F40: =+SUMIFS(InTran!$M:$M,InTran!$G:$G,C40,InTran!$O:$O,$C$30,InTran!$C:$C,$D$30) -> 0 | G40: =+IFERROR(D40/SUM($D$32:$D$53),0) -> 0.01155031422 | H40: =+SUMIFS(InTran!$R:$R,InTran!$G:$G,C40,InTran!$O:$O,$C$30,InTran!$C:$C,$H$30) -> 1430807.98 | I40: =+SUMIFS(InTran!$S:$S,InTran!$G:$G,C40,InTran!$O:$O,$C$30,InTran!$C:$C,$H$30) -> 3209.74 | J40: =+SUMIFS(InTran!$M:$M,InTran!$G:$G,C40,InTran!$O:$O,$C$30,InTran!$C:$C,$H$30) -> 0 | K40: =+IFERROR(H40/SUM($H$32:$H$53),0) -> 0.1753601409 | L40: =+SUMIFS(InTran!$R:$R,InTran!$G:$G,C40,InTran!$O:$O,$C$30,InTran!$C:$C,$L$30) -> 26899.72 | M40: =+SUMIFS(InTran!$S:$S,InTran!$G:$G,C40,InTran!$O:$O,$C$30,InTran!$C:$C,$L$30) -> 60.75 | N40: =+SUMIFS(InTran!$M:$M,InTran!$G:$G,C40,InTran!$O:$O,$C$30,InTran!$C:$C,$L$30) -> 710.95 | O40: =+IFERROR(L40/SUM($L$32:$L$53),0) -> 0.0001335008038 | P40: =+SUMIFS(InTran!$R:$R,InTran!$G:$G,C40,InTran!$O:$O,$C$30,InTran!$C:$C,$P$30) -> 0 | Q40: =+SUMIFS(InTran!$S:$S,InTran!$G:$G,C40,InTran!$O:$O,$C$30,InTran!$C:$C,$P$30) -> 0 | R40: =+SUMIFS(InTran!$M:$M,InTran!$G:$G,C40,InTran!$O:$O,$C$30,InTran!$C:$C,$P$30) -> 0 | S40: =+IFERROR(P40/SUM($P$32:$P$53),0) -> 0 | T40: =+SUMIFS(InTran!$R:$R,InTran!$G:$G,C40,InTran!$O:$O,$C$30,InTran!$C:$C,$T$30) -> 414236.12 | U40: =+SUMIFS(InTran!$S:$S,InTran!$G:$G,C40,InTran!$O:$O,$C$30,InTran!$C:$C,$T$30) -> 929.07 | V40: =+SUMIFS(InTran!$M:$M,InTran!$G:$G,C40,InTran!$O:$O,$C$30,InTran!$C:$C,$T$30) -> 0 | W40: =+IFERROR(T40/SUM($T$32:$T$53),0) -> 0.0149511035 | X40: =+SUMIFS(InTran!$R:$R,InTran!$G:$G,C40,InTran!$O:$O,$C$30,InTran!$C:$C,$X$30) -> 0 | Y40: =+SUMIFS(InTran!$S:$S,InTran!$G:$G,C40,InTran!$O:$O,$C$30,InTran!$C:$C,$X$30) -> 0 | Z40: =+SUMIFS(InTran!$M:$M,InTran!$G:$G,C40,InTran!$O:$O,$C$30,InTran!$C:$C,$X$30) -> 0 | AA40: =+IFERROR(X40/SUM($X$32:$X$53),0) -> 0 | AB40: =+SUMIFS(InTran!$R:$R,InTran!$G:$G,C40,InTran!$O:$O,$C$30) -> 2814684.64 | AC40: =+SUMIFS(InTran!$S:$S,InTran!$G:$G,C40,InTran!$O:$O,$C$30) -> 6314.56 | AD40: =+SUMIFS(InTran!$M:$M,InTran!$G:$G,C40,InTran!$O:$O,$C$30) -> 710.95 | AE40: =+IFERROR(AB40/SUM($AB$32:$AB$53),0) -> 0.008815182247 | AF40: =+RANK(AB40,$AB$32:$AB$53) -> 9
C41: HONG LEONG INVESTMENT BANK BHD | D41: =+SUMIFS(InTran!$R:$R,InTran!$G:$G,C41,InTran!$O:$O,$C$30,InTran!$C:$C,$D$30) -> 2653314.92 | E41: =+SUMIFS(InTran!$S:$S,InTran!$G:$G,C41,InTran!$O:$O,$C$30,InTran!$C:$C,$D$30) -> 5320 | F41: =+SUMIFS(InTran!$M:$M,InTran!$G:$G,C41,InTran!$O:$O,$C$30,InTran!$C:$C,$D$30) -> 132772.35 | G41: =+IFERROR(D41/SUM($D$32:$D$53),0) -> 0.03250800263 | H41: =+SUMIFS(InTran!$R:$R,InTran!$G:$G,C41,InTran!$O:$O,$C$30,InTran!$C:$C,$H$30) -> 0 | I41: =+SUMIFS(InTran!$S:$S,InTran!$G:$G,C41,InTran!$O:$O,$C$30,InTran!$C:$C,$H$30) -> 0 | J41: =+SUMIFS(InTran!$M:$M,InTran!$G:$G,C41,InTran!$O:$O,$C$30,InTran!$C:$C,$H$30) -> 0 | K41: =+IFERROR(H41/SUM($H$32:$H$53),0) -> 0 | L41: =+SUMIFS(InTran!$R:$R,InTran!$G:$G,C41,InTran!$O:$O,$C$30,InTran!$C:$C,$L$30) -> 0 | M41: =+SUMIFS(InTran!$S:$S,InTran!$G:$G,C41,InTran!$O:$O,$C$30,InTran!$C:$C,$L$30) -> 0 | N41: =+SUMIFS(InTran!$M:$M,InTran!$G:$G,C41,InTran!$O:$O,$C$30,InTran!$C:$C,$L$30) -> 0 | O41: =+IFERROR(L41/SUM($L$32:$L$53),0) -> 0 | P41: =+SUMIFS(InTran!$R:$R,InTran!$G:$G,C41,InTran!$O:$O,$C$30,InTran!$C:$C,$P$30) -> 0 | Q41: =+SUMIFS(InTran!$S:$S,InTran!$G:$G,C41,InTran!$O:$O,$C$30,InTran!$C:$C,$P$30) -> 0 | R41: =+SUMIFS(InTran!$M:$M,InTran!$G:$G,C41,InTran!$O:$O,$C$30,InTran!$C:$C,$P$30) -> 0 | S41: =+IFERROR(P41/SUM($P$32:$P$53),0) -> 0 | T41: =+SUMIFS(InTran!$R:$R,InTran!$G:$G,C41,InTran!$O:$O,$C$30,InTran!$C:$C,$T$30) -> 0 | U41: =+SUMIFS(InTran!$S:$S,InTran!$G:$G,C41,InTran!$O:$O,$C$30,InTran!$C:$C,$T$30) -> 0 | V41: =+SUMIFS(InTran!$M:$M,InTran!$G:$G,C41,InTran!$O:$O,$C$30,InTran!$C:$C,$T$30) -> 0 | W41: =+IFERROR(T41/SUM($T$32:$T$53),0) -> 0 | X41: =+SUMIFS(InTran!$R:$R,InTran!$G:$G,C41,InTran!$O:$O,$C$30,InTran!$C:$C,$X$30) -> 0 | Y41: =+SUMIFS(InTran!$S:$S,InTran!$G:$G,C41,InTran!$O:$O,$C$30,InTran!$C:$C,$X$30) -> 0 | Z41: =+SUMIFS(InTran!$M:$M,InTran!$G:$G,C41,InTran!$O:$O,$C$30,InTran!$C:$C,$X$30) -> 0 | AA41: =+IFERROR(X41/SUM($X$32:$X$53),0) -> 0 | AB41: =+SUMIFS(InTran!$R:$R,InTran!$G:$G,C41,InTran!$O:$O,$C$30) -> 2653314.92 | AC41: =+SUMIFS(InTran!$S:$S,InTran!$G:$G,C41,InTran!$O:$O,$C$30) -> 5320 | AD41: =+SUMIFS(InTran!$M:$M,InTran!$G:$G,C41,InTran!$O:$O,$C$30) -> 132772.35 | AE41: =+IFERROR(AB41/SUM($AB$32:$AB$53),0) -> 0.008309795792 | AF41: =+RANK(AB41,$AB$32:$AB$53) -> 10
C42: KAF-SEAGROATT & CAMPBELL SECURITIES SDN BHD | D42: =+SUMIFS(InTran!$R:$R,InTran!$G:$G,C42,InTran!$O:$O,$C$30,InTran!$C:$C,$D$30) -> 0 | E42: =+SUMIFS(InTran!$S:$S,InTran!$G:$G,C42,InTran!$O:$O,$C$30,InTran!$C:$C,$D$30) -> 0 | F42: =+SUMIFS(InTran!$M:$M,InTran!$G:$G,C42,InTran!$O:$O,$C$30,InTran!$C:$C,$D$30) -> 0 | G42: =+IFERROR(D42/SUM($D$32:$D$53),0) -> 0 | H42: =+SUMIFS(InTran!$R:$R,InTran!$G:$G,C42,InTran!$O:$O,$C$30,InTran!$C:$C,$H$30) -> 1071617.37 | I42: =+SUMIFS(InTran!$S:$S,InTran!$G:$G,C42,InTran!$O:$O,$C$30,InTran!$C:$C,$H$30) -> 2137.62 | J42: =+SUMIFS(InTran!$M:$M,InTran!$G:$G,C42,InTran!$O:$O,$C$30,InTran!$C:$C,$H$30) -> 0 | K42: =+IFERROR(H42/SUM($H$32:$H$53),0) -> 0.1313376607 | L42: =+SUMIFS(InTran!$R:$R,InTran!$G:$G,C42,InTran!$O:$O,$C$30,InTran!$C:$C,$L$30) -> 0 | M42: =+SUMIFS(InTran!$S:$S,InTran!$G:$G,C42,InTran!$O:$O,$C$30,InTran!$C:$C,$L$30) -> 0 | N42: =+SUMIFS(InTran!$M:$M,InTran!$G:$G,C42,InTran!$O:$O,$C$30,InTran!$C:$C,$L$30) -> 0 | O42: =+IFERROR(L42/SUM($L$32:$L$53),0) -> 0 | P42: =+SUMIFS(InTran!$R:$R,InTran!$G:$G,C42,InTran!$O:$O,$C$30,InTran!$C:$C,$P$30) -> 0 | Q42: =+SUMIFS(InTran!$S:$S,InTran!$G:$G,C42,InTran!$O:$O,$C$30,InTran!$C:$C,$P$30) -> 0 | R42: =+SUMIFS(InTran!$M:$M,InTran!$G:$G,C42,InTran!$O:$O,$C$30,InTran!$C:$C,$P$30) -> 0 | S42: =+IFERROR(P42/SUM($P$32:$P$53),0) -> 0 | T42: =+SUMIFS(InTran!$R:$R,InTran!$G:$G,C42,InTran!$O:$O,$C$30,InTran!$C:$C,$T$30) -> 0 | U42: =+SUMIFS(InTran!$S:$S,InTran!$G:$G,C42,InTran!$O:$O,$C$30,InTran!$C:$C,$T$30) -> 0 | V42: =+SUMIFS(InTran!$M:$M,InTran!$G:$G,C42,InTran!$O:$O,$C$30,InTran!$C:$C,$T$30) -> 0 | W42: =+IFERROR(T42/SUM($T$32:$T$53),0) -> 0 | X42: =+SUMIFS(InTran!$R:$R,InTran!$G:$G,C42,InTran!$O:$O,$C$30,InTran!$C:$C,$X$30) -> 0 | Y42: =+SUMIFS(InTran!$S:$S,InTran!$G:$G,C42,InTran!$O:$O,$C$30,InTran!$C:$C,$X$30) -> 0 | Z42: =+SUMIFS(InTran!$M:$M,InTran!$G:$G,C42,InTran!$O:$O,$C$30,InTran!$C:$C,$X$30) -> 0 | AA42: =+IFERROR(X42/SUM($X$32:$X$53),0) -> 0 | AB42: =+SUMIFS(InTran!$R:$R,InTran!$G:$G,C42,InTran!$O:$O,$C$30) -> 1071617.37 | AC42: =+SUMIFS(InTran!$S:$S,InTran!$G:$G,C42,InTran!$O:$O,$C$30) -> 2137.62 | AD42: =+SUMIFS(InTran!$M:$M,InTran!$G:$G,C42,InTran!$O:$O,$C$30) -> 0 | AE42: =+IFERROR(AB42/SUM($AB$32:$AB$53),0) -> 0.003356149489 | AF42: =+RANK(AB42,$AB$32:$AB$53) -> 11
C43: AFFIN INVESTMENT BANK BERHAD | D43: =+SUMIFS(InTran!$R:$R,InTran!$G:$G,C43,InTran!$O:$O,$C$30,InTran!$C:$C,$D$30) -> 0 | E43: =+SUMIFS(InTran!$S:$S,InTran!$G:$G,C43,InTran!$O:$O,$C$30,InTran!$C:$C,$D$30) -> 0 | F43: =+SUMIFS(InTran!$M:$M,InTran!$G:$G,C43,InTran!$O:$O,$C$30,InTran!$C:$C,$D$30) -> 0 | G43: =+IFERROR(D43/SUM($D$32:$D$53),0) -> 0 | H43: =+SUMIFS(InTran!$R:$R,InTran!$G:$G,C43,InTran!$O:$O,$C$30,InTran!$C:$C,$H$30) -> 0 | I43: =+SUMIFS(InTran!$S:$S,InTran!$G:$G,C43,InTran!$O:$O,$C$30,InTran!$C:$C,$H$30) -> 0 | J43: =+SUMIFS(InTran!$M:$M,InTran!$G:$G,C43,InTran!$O:$O,$C$30,InTran!$C:$C,$H$30) -> 0 | K43: =+IFERROR(H43/SUM($H$32:$H$53),0) -> 0 | L43: =+SUMIFS(InTran!$R:$R,InTran!$G:$G,C43,InTran!$O:$O,$C$30,InTran!$C:$C,$L$30) -> 0 | M43: =+SUMIFS(InTran!$S:$S,InTran!$G:$G,C43,InTran!$O:$O,$C$30,InTran!$C:$C,$L$30) -> 0 | N43: =+SUMIFS(InTran!$M:$M,InTran!$G:$G,C43,InTran!$O:$O,$C$30,InTran!$C:$C,$L$30) -> 0 | O43: =+IFERROR(L43/SUM($L$32:$L$53),0) -> 0 | P43: =+SUMIFS(InTran!$R:$R,InTran!$G:$G,C43,InTran!$O:$O,$C$30,InTran!$C:$C,$P$30) -> 0 | Q43: =+SUMIFS(InTran!$S:$S,InTran!$G:$G,C43,InTran!$O:$O,$C$30,InTran!$C:$C,$P$30) -> 0 | R43: =+SUMIFS(InTran!$M:$M,InTran!$G:$G,C43,InTran!$O:$O,$C$30,InTran!$C:$C,$P$30) -> 0 | S43: =+IFERROR(P43/SUM($P$32:$P$53),0) -> 0 | T43: =+SUMIFS(InTran!$R:$R,InTran!$G:$G,C43,InTran!$O:$O,$C$30,InTran!$C:$C,$T$30) -> 0 | U43: =+SUMIFS(InTran!$S:$S,InTran!$G:$G,C43,InTran!$O:$O,$C$30,InTran!$C:$C,$T$30) -> 0 | V43: =+SUMIFS(InTran!$M:$M,InTran!$G:$G,C43,InTran!$O:$O,$C$30,InTran!$C:$C,$T$30) -> 0 | W43: =+IFERROR(T43/SUM($T$32:$T$53),0) -> 0 | X43: =+SUMIFS(InTran!$R:$R,InTran!$G:$G,C43,InTran!$O:$O,$C$30,InTran!$C:$C,$X$30) -> 0 | Y43: =+SUMIFS(InTran!$S:$S,InTran!$G:$G,C43,InTran!$O:$O,$C$30,InTran!$C:$C,$X$30) -> 0 | Z43: =+SUMIFS(InTran!$M:$M,InTran!$G:$G,C43,InTran!$O:$O,$C$30,InTran!$C:$C,$X$30) -> 0 | AA43: =+IFERROR(X43/SUM($X$32:$X$53),0) -> 0 | AB43: =+SUMIFS(InTran!$R:$R,InTran!$G:$G,C43,InTran!$O:$O,$C$30) -> 0 | AC43: =+SUMIFS(InTran!$S:$S,InTran!$G:$G,C43,InTran!$O:$O,$C$30) -> 0 | AD43: =+SUMIFS(InTran!$M:$M,InTran!$G:$G,C43,InTran!$O:$O,$C$30) -> 0 | AE43: =+IFERROR(AB43/SUM($AB$32:$AB$53),0) -> 0 | AF43: =+RANK(AB43,$AB$32:$AB$53) -> 12
C44: ALLIANCE INVESTMENT BANK BERHAD | D44: =+SUMIFS(InTran!$R:$R,InTran!$G:$G,C44,InTran!$O:$O,$C$30,InTran!$C:$C,$D$30) -> 0 | E44: =+SUMIFS(InTran!$S:$S,InTran!$G:$G,C44,InTran!$O:$O,$C$30,InTran!$C:$C,$D$30) -> 0 | F44: =+SUMIFS(InTran!$M:$M,InTran!$G:$G,C44,InTran!$O:$O,$C$30,InTran!$C:$C,$D$30) -> 0 | G44: =+IFERROR(D44/SUM($D$32:$D$53),0) -> 0 | H44: =+SUMIFS(InTran!$R:$R,InTran!$G:$G,C44,InTran!$O:$O,$C$30,InTran!$C:$C,$H$30) -> 0 | I44: =+SUMIFS(InTran!$S:$S,InTran!$G:$G,C44,InTran!$O:$O,$C$30,InTran!$C:$C,$H$30) -> 0 | J44: =+SUMIFS(InTran!$M:$M,InTran!$G:$G,C44,InTran!$O:$O,$C$30,InTran!$C:$C,$H$30) -> 0 | K44: =+IFERROR(H44/SUM($H$32:$H$53),0) -> 0 | L44: =+SUMIFS(InTran!$R:$R,InTran!$G:$G,C44,InTran!$O:$O,$C$30,InTran!$C:$C,$L$30) -> 0 | M44: =+SUMIFS(InTran!$S:$S,InTran!$G:$G,C44,InTran!$O:$O,$C$30,InTran!$C:$C,$L$30) -> 0 | N44: =+SUMIFS(InTran!$M:$M,InTran!$G:$G,C44,InTran!$O:$O,$C$30,InTran!$C:$C,$L$30) -> 0 | O44: =+IFERROR(L44/SUM($L$32:$L$53),0) -> 0 | P44: =+SUMIFS(InTran!$R:$R,InTran!$G:$G,C44,InTran!$O:$O,$C$30,InTran!$C:$C,$P$30) -> 0 | Q44: =+SUMIFS(InTran!$S:$S,InTran!$G:$G,C44,InTran!$O:$O,$C$30,InTran!$C:$C,$P$30) -> 0 | R44: =+SUMIFS(InTran!$M:$M,InTran!$G:$G,C44,InTran!$O:$O,$C$30,InTran!$C:$C,$P$30) -> 0 | S44: =+IFERROR(P44/SUM($P$32:$P$53),0) -> 0 | T44: =+SUMIFS(InTran!$R:$R,InTran!$G:$G,C44,InTran!$O:$O,$C$30,InTran!$C:$C,$T$30) -> 0 | U44: =+SUMIFS(InTran!$S:$S,InTran!$G:$G,C44,InTran!$O:$O,$C$30,InTran!$C:$C,$T$30) -> 0 | V44: =+SUMIFS(InTran!$M:$M,InTran!$G:$G,C44,InTran!$O:$O,$C$30,InTran!$C:$C,$T$30) -> 0 | W44: =+IFERROR(T44/SUM($T$32:$T$53),0) -> 0 | X44: =+SUMIFS(InTran!$R:$R,InTran!$G:$G,C44,InTran!$O:$O,$C$30,InTran!$C:$C,$X$30) -> 0 | Y44: =+SUMIFS(InTran!$S:$S,InTran!$G:$G,C44,InTran!$O:$O,$C$30,InTran!$C:$C,$X$30) -> 0 | Z44: =+SUMIFS(InTran!$M:$M,InTran!$G:$G,C44,InTran!$O:$O,$C$30,InTran!$C:$C,$X$30) -> 0 | AA44: =+IFERROR(X44/SUM($X$32:$X$53),0) -> 0 | AB44: =+SUMIFS(InTran!$R:$R,InTran!$G:$G,C44,InTran!$O:$O,$C$30) -> 0 | AC44: =+SUMIFS(InTran!$S:$S,InTran!$G:$G,C44,InTran!$O:$O,$C$30) -> 0 | AD44: =+SUMIFS(InTran!$M:$M,InTran!$G:$G,C44,InTran!$O:$O,$C$30) -> 0 | AE44: =+IFERROR(AB44/SUM($AB$32:$AB$53),0) -> 0 | AF44: =+RANK(AB44,$AB$32:$AB$53) -> 12
C45: AMINVESTMENT BANK BHD | D45: =+SUMIFS(InTran!$R:$R,InTran!$G:$G,C45,InTran!$O:$O,$C$30,InTran!$C:$C,$D$30) -> 0 | E45: =+SUMIFS(InTran!$S:$S,InTran!$G:$G,C45,InTran!$O:$O,$C$30,InTran!$C:$C,$D$30) -> 0 | F45: =+SUMIFS(InTran!$M:$M,InTran!$G:$G,C45,InTran!$O:$O,$C$30,InTran!$C:$C,$D$30) -> 0 | G45: =+IFERROR(D45/SUM($D$32:$D$53),0) -> 0 | H45: =+SUMIFS(InTran!$R:$R,InTran!$G:$G,C45,InTran!$O:$O,$C$30,InTran!$C:$C,$H$30) -> 0 | I45: =+SUMIFS(InTran!$S:$S,InTran!$G:$G,C45,InTran!$O:$O,$C$30,InTran!$C:$C,$H$30) -> 0 | J45: =+SUMIFS(InTran!$M:$M,InTran!$G:$G,C45,InTran!$O:$O,$C$30,InTran!$C:$C,$H$30) -> 0 | K45: =+IFERROR(H45/SUM($H$32:$H$53),0) -> 0 | L45: =+SUMIFS(InTran!$R:$R,InTran!$G:$G,C45,InTran!$O:$O,$C$30,InTran!$C:$C,$L$30) -> 0 | M45: =+SUMIFS(InTran!$S:$S,InTran!$G:$G,C45,InTran!$O:$O,$C$30,InTran!$C:$C,$L$30) -> 0 | N45: =+SUMIFS(InTran!$M:$M,InTran!$G:$G,C45,InTran!$O:$O,$C$30,InTran!$C:$C,$L$30) -> 0 | O45: =+IFERROR(L45/SUM($L$32:$L$53),0) -> 0 | P45: =+SUMIFS(InTran!$R:$R,InTran!$G:$G,C45,InTran!$O:$O,$C$30,InTran!$C:$C,$P$30) -> 0 | Q45: =+SUMIFS(InTran!$S:$S,InTran!$G:$G,C45,InTran!$O:$O,$C$30,InTran!$C:$C,$P$30) -> 0 | R45: =+SUMIFS(InTran!$M:$M,InTran!$G:$G,C45,InTran!$O:$O,$C$30,InTran!$C:$C,$P$30) -> 0 | S45: =+IFERROR(P45/SUM($P$32:$P$53),0) -> 0 | T45: =+SUMIFS(InTran!$R:$R,InTran!$G:$G,C45,InTran!$O:$O,$C$30,InTran!$C:$C,$T$30) -> 0 | U45: =+SUMIFS(InTran!$S:$S,InTran!$G:$G,C45,InTran!$O:$O,$C$30,InTran!$C:$C,$T$30) -> 0 | V45: =+SUMIFS(InTran!$M:$M,InTran!$G:$G,C45,InTran!$O:$O,$C$30,InTran!$C:$C,$T$30) -> 0 | W45: =+IFERROR(T45/SUM($T$32:$T$53),0) -> 0 | X45: =+SUMIFS(InTran!$R:$R,InTran!$G:$G,C45,InTran!$O:$O,$C$30,InTran!$C:$C,$X$30) -> 0 | Y45: =+SUMIFS(InTran!$S:$S,InTran!$G:$G,C45,InTran!$O:$O,$C$30,InTran!$C:$C,$X$30) -> 0 | Z45: =+SUMIFS(InTran!$M:$M,InTran!$G:$G,C45,InTran!$O:$O,$C$30,InTran!$C:$C,$X$30) -> 0 | AA45: =+IFERROR(X45/SUM($X$32:$X$53),0) -> 0 | AB45: =+SUMIFS(InTran!$R:$R,InTran!$G:$G,C45,InTran!$O:$O,$C$30) -> 0 | AC45: =+SUMIFS(InTran!$S:$S,InTran!$G:$G,C45,InTran!$O:$O,$C$30) -> 0 | AD45: =+SUMIFS(InTran!$M:$M,InTran!$G:$G,C45,InTran!$O:$O,$C$30) -> 0 | AE45: =+IFERROR(AB45/SUM($AB$32:$AB$53),0) -> 0 | AF45: =+RANK(AB45,$AB$32:$AB$53) -> 12
C46: BIMB SECURITIES SDN BHD | D46: =+SUMIFS(InTran!$R:$R,InTran!$G:$G,C46,InTran!$O:$O,$C$30,InTran!$C:$C,$D$30) -> 0 | E46: =+SUMIFS(InTran!$S:$S,InTran!$G:$G,C46,InTran!$O:$O,$C$30,InTran!$C:$C,$D$30) -> 0 | F46: =+SUMIFS(InTran!$M:$M,InTran!$G:$G,C46,InTran!$O:$O,$C$30,InTran!$C:$C,$D$30) -> 0 | G46: =+IFERROR(D46/SUM($D$32:$D$53),0) -> 0 | H46: =+SUMIFS(InTran!$R:$R,InTran!$G:$G,C46,InTran!$O:$O,$C$30,InTran!$C:$C,$H$30) -> 0 | I46: =+SUMIFS(InTran!$S:$S,InTran!$G:$G,C46,InTran!$O:$O,$C$30,InTran!$C:$C,$H$30) -> 0 | J46: =+SUMIFS(InTran!$M:$M,InTran!$G:$G,C46,InTran!$O:$O,$C$30,InTran!$C:$C,$H$30) -> 0 | K46: =+IFERROR(H46/SUM($H$32:$H$53),0) -> 0 | L46: =+SUMIFS(InTran!$R:$R,InTran!$G:$G,C46,InTran!$O:$O,$C$30,InTran!$C:$C,$L$30) -> 0 | M46: =+SUMIFS(InTran!$S:$S,InTran!$G:$G,C46,InTran!$O:$O,$C$30,InTran!$C:$C,$L$30) -> 0 | N46: =+SUMIFS(InTran!$M:$M,InTran!$G:$G,C46,InTran!$O:$O,$C$30,InTran!$C:$C,$L$30) -> 0 | O46: =+IFERROR(L46/SUM($L$32:$L$53),0) -> 0 | P46: =+SUMIFS(InTran!$R:$R,InTran!$G:$G,C46,InTran!$O:$O,$C$30,InTran!$C:$C,$P$30) -> 0 | Q46: =+SUMIFS(InTran!$S:$S,InTran!$G:$G,C46,InTran!$O:$O,$C$30,InTran!$C:$C,$P$30) -> 0 | R46: =+SUMIFS(InTran!$M:$M,InTran!$G:$G,C46,InTran!$O:$O,$C$30,InTran!$C:$C,$P$30) -> 0 | S46: =+IFERROR(P46/SUM($P$32:$P$53),0) -> 0 | T46: =+SUMIFS(InTran!$R:$R,InTran!$G:$G,C46,InTran!$O:$O,$C$30,InTran!$C:$C,$T$30) -> 0 | U46: =+SUMIFS(InTran!$S:$S,InTran!$G:$G,C46,InTran!$O:$O,$C$30,InTran!$C:$C,$T$30) -> 0 | V46: =+SUMIFS(InTran!$M:$M,InTran!$G:$G,C46,InTran!$O:$O,$C$30,InTran!$C:$C,$T$30) -> 0 | W46: =+IFERROR(T46/SUM($T$32:$T$53),0) -> 0 | X46: =+SUMIFS(InTran!$R:$R,InTran!$G:$G,C46,InTran!$O:$O,$C$30,InTran!$C:$C,$X$30) -> 0 | Y46: =+SUMIFS(InTran!$S:$S,InTran!$G:$G,C46,InTran!$O:$O,$C$30,InTran!$C:$C,$X$30) -> 0 | Z46: =+SUMIFS(InTran!$M:$M,InTran!$G:$G,C46,InTran!$O:$O,$C$30,InTran!$C:$C,$X$30) -> 0 | AA46: =+IFERROR(X46/SUM($X$32:$X$53),0) -> 0 | AB46: =+SUMIFS(InTran!$R:$R,InTran!$G:$G,C46,InTran!$O:$O,$C$30) -> 0 | AC46: =+SUMIFS(InTran!$S:$S,InTran!$G:$G,C46,InTran!$O:$O,$C$30) -> 0 | AD46: =+SUMIFS(InTran!$M:$M,InTran!$G:$G,C46,InTran!$O:$O,$C$30) -> 0 | AE46: =+IFERROR(AB46/SUM($AB$32:$AB$53),0) -> 0 | AF46: =+RANK(AB46,$AB$32:$AB$53) -> 12
C47: CIMB INVESTMENT BANK BHD (FOREIGN) | D47: =+SUMIFS(InTran!$R:$R,InTran!$G:$G,C47,InTran!$O:$O,$C$30,InTran!$C:$C,$D$30) -> 0 | E47: =+SUMIFS(InTran!$S:$S,InTran!$G:$G,C47,InTran!$O:$O,$C$30,InTran!$C:$C,$D$30) -> 0 | F47: =+SUMIFS(InTran!$M:$M,InTran!$G:$G,C47,InTran!$O:$O,$C$30,InTran!$C:$C,$D$30) -> 0 | G47: =+IFERROR(D47/SUM($D$32:$D$53),0) -> 0 | H47: =+SUMIFS(InTran!$R:$R,InTran!$G:$G,C47,InTran!$O:$O,$C$30,InTran!$C:$C,$H$30) -> 0 | I47: =+SUMIFS(InTran!$S:$S,InTran!$G:$G,C47,InTran!$O:$O,$C$30,InTran!$C:$C,$H$30) -> 0 | J47: =+SUMIFS(InTran!$M:$M,InTran!$G:$G,C47,InTran!$O:$O,$C$30,InTran!$C:$C,$H$30) -> 0 | K47: =+IFERROR(H47/SUM($H$32:$H$53),0) -> 0 | L47: =+SUMIFS(InTran!$R:$R,InTran!$G:$G,C47,InTran!$O:$O,$C$30,InTran!$C:$C,$L$30) -> 0 | M47: =+SUMIFS(InTran!$S:$S,InTran!$G:$G,C47,InTran!$O:$O,$C$30,InTran!$C:$C,$L$30) -> 0 | N47: =+SUMIFS(InTran!$M:$M,InTran!$G:$G,C47,InTran!$O:$O,$C$30,InTran!$C:$C,$L$30) -> 0 | O47: =+IFERROR(L47/SUM($L$32:$L$53),0) -> 0 | P47: =+SUMIFS(InTran!$R:$R,InTran!$G:$G,C47,InTran!$O:$O,$C$30,InTran!$C:$C,$P$30) -> 0 | Q47: =+SUMIFS(InTran!$S:$S,InTran!$G:$G,C47,InTran!$O:$O,$C$30,InTran!$C:$C,$P$30) -> 0 | R47: =+SUMIFS(InTran!$M:$M,InTran!$G:$G,C47,InTran!$O:$O,$C$30,InTran!$C:$C,$P$30) -> 0 | S47: =+IFERROR(P47/SUM($P$32:$P$53),0) -> 0 | T47: =+SUMIFS(InTran!$R:$R,InTran!$G:$G,C47,InTran!$O:$O,$C$30,InTran!$C:$C,$T$30) -> 0 | U47: =+SUMIFS(InTran!$S:$S,InTran!$G:$G,C47,InTran!$O:$O,$C$30,InTran!$C:$C,$T$30) -> 0 | V47: =+SUMIFS(InTran!$M:$M,InTran!$G:$G,C47,InTran!$O:$O,$C$30,InTran!$C:$C,$T$30) -> 0 | W47: =+IFERROR(T47/SUM($T$32:$T$53),0) -> 0 | X47: =+SUMIFS(InTran!$R:$R,InTran!$G:$G,C47,InTran!$O:$O,$C$30,InTran!$C:$C,$X$30) -> 0 | Y47: =+SUMIFS(InTran!$S:$S,InTran!$G:$G,C47,InTran!$O:$O,$C$30,InTran!$C:$C,$X$30) -> 0 | Z47: =+SUMIFS(InTran!$M:$M,InTran!$G:$G,C47,InTran!$O:$O,$C$30,InTran!$C:$C,$X$30) -> 0 | AA47: =+IFERROR(X47/SUM($X$32:$X$53),0) -> 0 | AB47: =+SUMIFS(InTran!$R:$R,InTran!$G:$G,C47,InTran!$O:$O,$C$30) -> 0 | AC47: =+SUMIFS(InTran!$S:$S,InTran!$G:$G,C47,InTran!$O:$O,$C$30) -> 0 | AD47: =+SUMIFS(InTran!$M:$M,InTran!$G:$G,C47,InTran!$O:$O,$C$30) -> 0 | AE47: =+IFERROR(AB47/SUM($AB$32:$AB$53),0) -> 0 | AF47: =+RANK(AB47,$AB$32:$AB$53) -> 12
C48: CLSA LIMITED FOREIGN | D48: =+SUMIFS(InTran!$R:$R,InTran!$G:$G,C48,InTran!$O:$O,$C$30,InTran!$C:$C,$D$30) -> 0 | E48: =+SUMIFS(InTran!$S:$S,InTran!$G:$G,C48,InTran!$O:$O,$C$30,InTran!$C:$C,$D$30) -> 0 | F48: =+SUMIFS(InTran!$M:$M,InTran!$G:$G,C48,InTran!$O:$O,$C$30,InTran!$C:$C,$D$30) -> 0 | G48: =+IFERROR(D48/SUM($D$32:$D$53),0) -> 0 | H48: =+SUMIFS(InTran!$R:$R,InTran!$G:$G,C48,InTran!$O:$O,$C$30,InTran!$C:$C,$H$30) -> 0 | I48: =+SUMIFS(InTran!$S:$S,InTran!$G:$G,C48,InTran!$O:$O,$C$30,InTran!$C:$C,$H$30) -> 0 | J48: =+SUMIFS(InTran!$M:$M,InTran!$G:$G,C48,InTran!$O:$O,$C$30,InTran!$C:$C,$H$30) -> 0 | K48: =+IFERROR(H48/SUM($H$32:$H$53),0) -> 0 | L48: =+SUMIFS(InTran!$R:$R,InTran!$G:$G,C48,InTran!$O:$O,$C$30,InTran!$C:$C,$L$30) -> 0 | M48: =+SUMIFS(InTran!$S:$S,InTran!$G:$G,C48,InTran!$O:$O,$C$30,InTran!$C:$C,$L$30) -> 0 | N48: =+SUMIFS(InTran!$M:$M,InTran!$G:$G,C48,InTran!$O:$O,$C$30,InTran!$C:$C,$L$30) -> 0 | O48: =+IFERROR(L48/SUM($L$32:$L$53),0) -> 0 | P48: =+SUMIFS(InTran!$R:$R,InTran!$G:$G,C48,InTran!$O:$O,$C$30,InTran!$C:$C,$P$30) -> 0 | Q48: =+SUMIFS(InTran!$S:$S,InTran!$G:$G,C48,InTran!$O:$O,$C$30,InTran!$C:$C,$P$30) -> 0 | R48: =+SUMIFS(InTran!$M:$M,InTran!$G:$G,C48,InTran!$O:$O,$C$30,InTran!$C:$C,$P$30) -> 0 | S48: =+IFERROR(P48/SUM($P$32:$P$53),0) -> 0 | T48: =+SUMIFS(InTran!$R:$R,InTran!$G:$G,C48,InTran!$O:$O,$C$30,InTran!$C:$C,$T$30) -> 0 | U48: =+SUMIFS(InTran!$S:$S,InTran!$G:$G,C48,InTran!$O:$O,$C$30,InTran!$C:$C,$T$30) -> 0 | V48: =+SUMIFS(InTran!$M:$M,InTran!$G:$G,C48,InTran!$O:$O,$C$30,InTran!$C:$C,$T$30) -> 0 | W48: =+IFERROR(T48/SUM($T$32:$T$53),0) -> 0 | X48: =+SUMIFS(InTran!$R:$R,InTran!$G:$G,C48,InTran!$O:$O,$C$30,InTran!$C:$C,$X$30) -> 0 | Y48: =+SUMIFS(InTran!$S:$S,InTran!$G:$G,C48,InTran!$O:$O,$C$30,InTran!$C:$C,$X$30) -> 0 | Z48: =+SUMIFS(InTran!$M:$M,InTran!$G:$G,C48,InTran!$O:$O,$C$30,InTran!$C:$C,$X$30) -> 0 | AA48: =+IFERROR(X48/SUM($X$32:$X$53),0) -> 0 | AB48: =+SUMIFS(InTran!$R:$R,InTran!$G:$G,C48,InTran!$O:$O,$C$30) -> 0 | AC48: =+SUMIFS(InTran!$S:$S,InTran!$G:$G,C48,InTran!$O:$O,$C$30) -> 0 | AD48: =+SUMIFS(InTran!$M:$M,InTran!$G:$G,C48,InTran!$O:$O,$C$30) -> 0 | AE48: =+IFERROR(AB48/SUM($AB$32:$AB$53),0) -> 0 | AF48: =+RANK(AB48,$AB$32:$AB$53) -> 12
C49: MACQUARIE CAPITAL SECURITIES (MALAYSIA) SDN BHD (FOREIGN) | D49: =+SUMIFS(InTran!$R:$R,InTran!$G:$G,C49,InTran!$O:$O,$C$30,InTran!$C:$C,$D$30) -> 0 | E49: =+SUMIFS(InTran!$S:$S,InTran!$G:$G,C49,InTran!$O:$O,$C$30,InTran!$C:$C,$D$30) -> 0 | F49: =+SUMIFS(InTran!$M:$M,InTran!$G:$G,C49,InTran!$O:$O,$C$30,InTran!$C:$C,$D$30) -> 0 | G49: =+IFERROR(D49/SUM($D$32:$D$53),0) -> 0 | H49: =+SUMIFS(InTran!$R:$R,InTran!$G:$G,C49,InTran!$O:$O,$C$30,InTran!$C:$C,$H$30) -> 0 | I49: =+SUMIFS(InTran!$S:$S,InTran!$G:$G,C49,InTran!$O:$O,$C$30,InTran!$C:$C,$H$30) -> 0 | J49: =+SUMIFS(InTran!$M:$M,InTran!$G:$G,C49,InTran!$O:$O,$C$30,InTran!$C:$C,$H$30) -> 0 | K49: =+IFERROR(H49/SUM($H$32:$H$53),0) -> 0 | L49: =+SUMIFS(InTran!$R:$R,InTran!$G:$G,C49,InTran!$O:$O,$C$30,InTran!$C:$C,$L$30) -> 0 | M49: =+SUMIFS(InTran!$S:$S,InTran!$G:$G,C49,InTran!$O:$O,$C$30,InTran!$C:$C,$L$30) -> 0 | N49: =+SUMIFS(InTran!$M:$M,InTran!$G:$G,C49,InTran!$O:$O,$C$30,InTran!$C:$C,$L$30) -> 0 | O49: =+IFERROR(L49/SUM($L$32:$L$53),0) -> 0 | P49: =+SUMIFS(InTran!$R:$R,InTran!$G:$G,C49,InTran!$O:$O,$C$30,InTran!$C:$C,$P$30) -> 0 | Q49: =+SUMIFS(InTran!$S:$S,InTran!$G:$G,C49,InTran!$O:$O,$C$30,InTran!$C:$C,$P$30) -> 0 | R49: =+SUMIFS(InTran!$M:$M,InTran!$G:$G,C49,InTran!$O:$O,$C$30,InTran!$C:$C,$P$30) -> 0 | S49: =+IFERROR(P49/SUM($P$32:$P$53),0) -> 0 | T49: =+SUMIFS(InTran!$R:$R,InTran!$G:$G,C49,InTran!$O:$O,$C$30,InTran!$C:$C,$T$30) -> 0 | U49: =+SUMIFS(InTran!$S:$S,InTran!$G:$G,C49,InTran!$O:$O,$C$30,InTran!$C:$C,$T$30) -> 0 | V49: =+SUMIFS(InTran!$M:$M,InTran!$G:$G,C49,InTran!$O:$O,$C$30,InTran!$C:$C,$T$30) -> 0 | W49: =+IFERROR(T49/SUM($T$32:$T$53),0) -> 0 | X49: =+SUMIFS(InTran!$R:$R,InTran!$G:$G,C49,InTran!$O:$O,$C$30,InTran!$C:$C,$X$30) -> 0 | Y49: =+SUMIFS(InTran!$S:$S,InTran!$G:$G,C49,InTran!$O:$O,$C$30,InTran!$C:$C,$X$30) -> 0 | Z49: =+SUMIFS(InTran!$M:$M,InTran!$G:$G,C49,InTran!$O:$O,$C$30,InTran!$C:$C,$X$30) -> 0 | AA49: =+IFERROR(X49/SUM($X$32:$X$53),0) -> 0 | AB49: =+SUMIFS(InTran!$R:$R,InTran!$G:$G,C49,InTran!$O:$O,$C$30) -> 0 | AC49: =+SUMIFS(InTran!$S:$S,InTran!$G:$G,C49,InTran!$O:$O,$C$30) -> 0 | AD49: =+SUMIFS(InTran!$M:$M,InTran!$G:$G,C49,InTran!$O:$O,$C$30) -> 0 | AE49: =+IFERROR(AB49/SUM($AB$32:$AB$53),0) -> 0 | AF49: =+RANK(AB49,$AB$32:$AB$53) -> 12
C50: MAYBANK INVESTMENT BANK BHD (FOREIGN) | D50: =+SUMIFS(InTran!$R:$R,InTran!$G:$G,C50,InTran!$O:$O,$C$30,InTran!$C:$C,$D$30) -> 0 | E50: =+SUMIFS(InTran!$S:$S,InTran!$G:$G,C50,InTran!$O:$O,$C$30,InTran!$C:$C,$D$30) -> 0 | F50: =+SUMIFS(InTran!$M:$M,InTran!$G:$G,C50,InTran!$O:$O,$C$30,InTran!$C:$C,$D$30) -> 0 | G50: =+IFERROR(D50/SUM($D$32:$D$53),0) -> 0 | H50: =+SUMIFS(InTran!$R:$R,InTran!$G:$G,C50,InTran!$O:$O,$C$30,InTran!$C:$C,$H$30) -> 0 | I50: =+SUMIFS(InTran!$S:$S,InTran!$G:$G,C50,InTran!$O:$O,$C$30,InTran!$C:$C,$H$30) -> 0 | J50: =+SUMIFS(InTran!$M:$M,InTran!$G:$G,C50,InTran!$O:$O,$C$30,InTran!$C:$C,$H$30) -> 0 | K50: =+IFERROR(H50/SUM($H$32:$H$53),0) -> 0 | L50: =+SUMIFS(InTran!$R:$R,InTran!$G:$G,C50,InTran!$O:$O,$C$30,InTran!$C:$C,$L$30) -> 0 | M50: =+SUMIFS(InTran!$S:$S,InTran!$G:$G,C50,InTran!$O:$O,$C$30,InTran!$C:$C,$L$30) -> 0 | N50: =+SUMIFS(InTran!$M:$M,InTran!$G:$G,C50,InTran!$O:$O,$C$30,InTran!$C:$C,$L$30) -> 0 | O50: =+IFERROR(L50/SUM($L$32:$L$53),0) -> 0 | P50: =+SUMIFS(InTran!$R:$R,InTran!$G:$G,C50,InTran!$O:$O,$C$30,InTran!$C:$C,$P$30) -> 0 | Q50: =+SUMIFS(InTran!$S:$S,InTran!$G:$G,C50,InTran!$O:$O,$C$30,InTran!$C:$C,$P$30) -> 0 | R50: =+SUMIFS(InTran!$M:$M,InTran!$G:$G,C50,InTran!$O:$O,$C$30,InTran!$C:$C,$P$30) -> 0 | S50: =+IFERROR(P50/SUM($P$32:$P$53),0) -> 0 | T50: =+SUMIFS(InTran!$R:$R,InTran!$G:$G,C50,InTran!$O:$O,$C$30,InTran!$C:$C,$T$30) -> 0 | U50: =+SUMIFS(InTran!$S:$S,InTran!$G:$G,C50,InTran!$O:$O,$C$30,InTran!$C:$C,$T$30) -> 0 | V50: =+SUMIFS(InTran!$M:$M,InTran!$G:$G,C50,InTran!$O:$O,$C$30,InTran!$C:$C,$T$30) -> 0 | W50: =+IFERROR(T50/SUM($T$32:$T$53),0) -> 0 | X50: =+SUMIFS(InTran!$R:$R,InTran!$G:$G,C50,InTran!$O:$O,$C$30,InTran!$C:$C,$X$30) -> 0 | Y50: =+SUMIFS(InTran!$S:$S,InTran!$G:$G,C50,InTran!$O:$O,$C$30,InTran!$C:$C,$X$30) -> 0 | Z50: =+SUMIFS(InTran!$M:$M,InTran!$G:$G,C50,InTran!$O:$O,$C$30,InTran!$C:$C,$X$30) -> 0 | AA50: =+IFERROR(X50/SUM($X$32:$X$53),0) -> 0 | AB50: =+SUMIFS(InTran!$R:$R,InTran!$G:$G,C50,InTran!$O:$O,$C$30) -> 0 | AC50: =+SUMIFS(InTran!$S:$S,InTran!$G:$G,C50,InTran!$O:$O,$C$30) -> 0 | AD50: =+SUMIFS(InTran!$M:$M,InTran!$G:$G,C50,InTran!$O:$O,$C$30) -> 0 | AE50: =+IFERROR(AB50/SUM($AB$32:$AB$53),0) -> 0 | AF50: =+RANK(AB50,$AB$32:$AB$53) -> 12
C51: MIDF AMANAH INVESTMENT BANK BHD | D51: =+SUMIFS(InTran!$R:$R,InTran!$G:$G,C51,InTran!$O:$O,$C$30,InTran!$C:$C,$D$30) -> 0 | E51: =+SUMIFS(InTran!$S:$S,InTran!$G:$G,C51,InTran!$O:$O,$C$30,InTran!$C:$C,$D$30) -> 0 | F51: =+SUMIFS(InTran!$M:$M,InTran!$G:$G,C51,InTran!$O:$O,$C$30,InTran!$C:$C,$D$30) -> 0 | G51: =+IFERROR(D51/SUM($D$32:$D$53),0) -> 0 | H51: =+SUMIFS(InTran!$R:$R,InTran!$G:$G,C51,InTran!$O:$O,$C$30,InTran!$C:$C,$H$30) -> 0 | I51: =+SUMIFS(InTran!$S:$S,InTran!$G:$G,C51,InTran!$O:$O,$C$30,InTran!$C:$C,$H$30) -> 0 | J51: =+SUMIFS(InTran!$M:$M,InTran!$G:$G,C51,InTran!$O:$O,$C$30,InTran!$C:$C,$H$30) -> 0 | K51: =+IFERROR(H51/SUM($H$32:$H$53),0) -> 0 | L51: =+SUMIFS(InTran!$R:$R,InTran!$G:$G,C51,InTran!$O:$O,$C$30,InTran!$C:$C,$L$30) -> 0 | M51: =+SUMIFS(InTran!$S:$S,InTran!$G:$G,C51,InTran!$O:$O,$C$30,InTran!$C:$C,$L$30) -> 0 | N51: =+SUMIFS(InTran!$M:$M,InTran!$G:$G,C51,InTran!$O:$O,$C$30,InTran!$C:$C,$L$30) -> 0 | O51: =+IFERROR(L51/SUM($L$32:$L$53),0) -> 0 | P51: =+SUMIFS(InTran!$R:$R,InTran!$G:$G,C51,InTran!$O:$O,$C$30,InTran!$C:$C,$P$30) -> 0 | Q51: =+SUMIFS(InTran!$S:$S,InTran!$G:$G,C51,InTran!$O:$O,$C$30,InTran!$C:$C,$P$30) -> 0 | R51: =+SUMIFS(InTran!$M:$M,InTran!$G:$G,C51,InTran!$O:$O,$C$30,InTran!$C:$C,$P$30) -> 0 | S51: =+IFERROR(P51/SUM($P$32:$P$53),0) -> 0 | T51: =+SUMIFS(InTran!$R:$R,InTran!$G:$G,C51,InTran!$O:$O,$C$30,InTran!$C:$C,$T$30) -> 0 | U51: =+SUMIFS(InTran!$S:$S,InTran!$G:$G,C51,InTran!$O:$O,$C$30,InTran!$C:$C,$T$30) -> 0 | V51: =+SUMIFS(InTran!$M:$M,InTran!$G:$G,C51,InTran!$O:$O,$C$30,InTran!$C:$C,$T$30) -> 0 | W51: =+IFERROR(T51/SUM($T$32:$T$53),0) -> 0 | X51: =+SUMIFS(InTran!$R:$R,InTran!$G:$G,C51,InTran!$O:$O,$C$30,InTran!$C:$C,$X$30) -> 0 | Y51: =+SUMIFS(InTran!$S:$S,InTran!$G:$G,C51,InTran!$O:$O,$C$30,InTran!$C:$C,$X$30) -> 0 | Z51: =+SUMIFS(InTran!$M:$M,InTran!$G:$G,C51,InTran!$O:$O,$C$30,InTran!$C:$C,$X$30) -> 0 | AA51: =+IFERROR(X51/SUM($X$32:$X$53),0) -> 0 | AB51: =+SUMIFS(InTran!$R:$R,InTran!$G:$G,C51,InTran!$O:$O,$C$30) -> 0 | AC51: =+SUMIFS(InTran!$S:$S,InTran!$G:$G,C51,InTran!$O:$O,$C$30) -> 0 | AD51: =+SUMIFS(InTran!$M:$M,InTran!$G:$G,C51,InTran!$O:$O,$C$30) -> 0 | AE51: =+IFERROR(AB51/SUM($AB$32:$AB$53),0) -> 0 | AF51: =+RANK(AB51,$AB$32:$AB$53) -> 12
C52: NOT APPLICABLE | D52: =+SUMIFS(InTran!$R:$R,InTran!$G:$G,C52,InTran!$O:$O,$C$30,InTran!$C:$C,$D$30) -> 0 | E52: =+SUMIFS(InTran!$S:$S,InTran!$G:$G,C52,InTran!$O:$O,$C$30,InTran!$C:$C,$D$30) -> 0 | F52: =+SUMIFS(InTran!$M:$M,InTran!$G:$G,C52,InTran!$O:$O,$C$30,InTran!$C:$C,$D$30) -> 0 | G52: =+IFERROR(D52/SUM($D$32:$D$53),0) -> 0 | H52: =+SUMIFS(InTran!$R:$R,InTran!$G:$G,C52,InTran!$O:$O,$C$30,InTran!$C:$C,$H$30) -> 0 | I52: =+SUMIFS(InTran!$S:$S,InTran!$G:$G,C52,InTran!$O:$O,$C$30,InTran!$C:$C,$H$30) -> 0 | J52: =+SUMIFS(InTran!$M:$M,InTran!$G:$G,C52,InTran!$O:$O,$C$30,InTran!$C:$C,$H$30) -> 0 | K52: =+IFERROR(H52/SUM($H$32:$H$53),0) -> 0 | L52: =+SUMIFS(InTran!$R:$R,InTran!$G:$G,C52,InTran!$O:$O,$C$30,InTran!$C:$C,$L$30) -> 0 | M52: =+SUMIFS(InTran!$S:$S,InTran!$G:$G,C52,InTran!$O:$O,$C$30,InTran!$C:$C,$L$30) -> 0 | N52: =+SUMIFS(InTran!$M:$M,InTran!$G:$G,C52,InTran!$O:$O,$C$30,InTran!$C:$C,$L$30) -> 0 | O52: =+IFERROR(L52/SUM($L$32:$L$53),0) -> 0 | P52: =+SUMIFS(InTran!$R:$R,InTran!$G:$G,C52,InTran!$O:$O,$C$30,InTran!$C:$C,$P$30) -> 0 | Q52: =+SUMIFS(InTran!$S:$S,InTran!$G:$G,C52,InTran!$O:$O,$C$30,InTran!$C:$C,$P$30) -> 0 | R52: =+SUMIFS(InTran!$M:$M,InTran!$G:$G,C52,InTran!$O:$O,$C$30,InTran!$C:$C,$P$30) -> 0 | S52: =+IFERROR(P52/SUM($P$32:$P$53),0) -> 0 | T52: =+SUMIFS(InTran!$R:$R,InTran!$G:$G,C52,InTran!$O:$O,$C$30,InTran!$C:$C,$T$30) -> 0 | U52: =+SUMIFS(InTran!$S:$S,InTran!$G:$G,C52,InTran!$O:$O,$C$30,InTran!$C:$C,$T$30) -> 0 | V52: =+SUMIFS(InTran!$M:$M,InTran!$G:$G,C52,InTran!$O:$O,$C$30,InTran!$C:$C,$T$30) -> 0 | W52: =+IFERROR(T52/SUM($T$32:$T$53),0) -> 0 | X52: =+SUMIFS(InTran!$R:$R,InTran!$G:$G,C52,InTran!$O:$O,$C$30,InTran!$C:$C,$X$30) -> 0 | Y52: =+SUMIFS(InTran!$S:$S,InTran!$G:$G,C52,InTran!$O:$O,$C$30,InTran!$C:$C,$X$30) -> 0 | Z52: =+SUMIFS(InTran!$M:$M,InTran!$G:$G,C52,InTran!$O:$O,$C$30,InTran!$C:$C,$X$30) -> 0 | AA52: =+IFERROR(X52/SUM($X$32:$X$53),0) -> 0 | AB52: =+SUMIFS(InTran!$R:$R,InTran!$G:$G,C52,InTran!$O:$O,$C$30) -> 0 | AC52: =+SUMIFS(InTran!$S:$S,InTran!$G:$G,C52,InTran!$O:$O,$C$30) -> 0 | AD52: =+SUMIFS(InTran!$M:$M,InTran!$G:$G,C52,InTran!$O:$O,$C$30) -> 0 | AE52: =+IFERROR(AB52/SUM($AB$32:$AB$53),0) -> 0 | AF52: =+RANK(AB52,$AB$32:$AB$53) -> 12
C53: RHB INVESTMENT BANK BERHAD | D53: =+SUMIFS(InTran!$R:$R,InTran!$G:$G,C53,InTran!$O:$O,$C$30,InTran!$C:$C,$D$30) -> 0 | E53: =+SUMIFS(InTran!$S:$S,InTran!$G:$G,C53,InTran!$O:$O,$C$30,InTran!$C:$C,$D$30) -> 0 | F53: =+SUMIFS(InTran!$M:$M,InTran!$G:$G,C53,InTran!$O:$O,$C$30,InTran!$C:$C,$D$30) -> 0 | G53: =+IFERROR(D53/SUM($D$32:$D$53),0) -> 0 | H53: =+SUMIFS(InTran!$R:$R,InTran!$G:$G,C53,InTran!$O:$O,$C$30,InTran!$C:$C,$H$30) -> 0 | I53: =+SUMIFS(InTran!$S:$S,InTran!$G:$G,C53,InTran!$O:$O,$C$30,InTran!$C:$C,$H$30) -> 0 | J53: =+SUMIFS(InTran!$M:$M,InTran!$G:$G,C53,InTran!$O:$O,$C$30,InTran!$C:$C,$H$30) -> 0 | K53: =+IFERROR(H53/SUM($H$32:$H$53),0) -> 0 | L53: =+SUMIFS(InTran!$R:$R,InTran!$G:$G,C53,InTran!$O:$O,$C$30,InTran!$C:$C,$L$30) -> 0 | M53: =+SUMIFS(InTran!$S:$S,InTran!$G:$G,C53,InTran!$O:$O,$C$30,InTran!$C:$C,$L$30) -> 0 | N53: =+SUMIFS(InTran!$M:$M,InTran!$G:$G,C53,InTran!$O:$O,$C$30,InTran!$C:$C,$L$30) -> 0 | O53: =+IFERROR(L53/SUM($L$32:$L$53),0) -> 0 | P53: =+SUMIFS(InTran!$R:$R,InTran!$G:$G,C53,InTran!$O:$O,$C$30,InTran!$C:$C,$P$30) -> 0 | Q53: =+SUMIFS(InTran!$S:$S,InTran!$G:$G,C53,InTran!$O:$O,$C$30,InTran!$C:$C,$P$30) -> 0 | R53: =+SUMIFS(InTran!$M:$M,InTran!$G:$G,C53,InTran!$O:$O,$C$30,InTran!$C:$C,$P$30) -> 0 | S53: =+IFERROR(P53/SUM($P$32:$P$53),0) -> 0 | T53: =+SUMIFS(InTran!$R:$R,InTran!$G:$G,C53,InTran!$O:$O,$C$30,InTran!$C:$C,$T$30) -> 0 | U53: =+SUMIFS(InTran!$S:$S,InTran!$G:$G,C53,InTran!$O:$O,$C$30,InTran!$C:$C,$T$30) -> 0 | V53: =+SUMIFS(InTran!$M:$M,InTran!$G:$G,C53,InTran!$O:$O,$C$30,InTran!$C:$C,$T$30) -> 0 | W53: =+IFERROR(T53/SUM($T$32:$T$53),0) -> 0 | X53: =+SUMIFS(InTran!$R:$R,InTran!$G:$G,C53,InTran!$O:$O,$C$30,InTran!$C:$C,$X$30) -> 0 | Y53: =+SUMIFS(InTran!$S:$S,InTran!$G:$G,C53,InTran!$O:$O,$C$30,InTran!$C:$C,$X$30) -> 0 | Z53: =+SUMIFS(InTran!$M:$M,InTran!$G:$G,C53,InTran!$O:$O,$C$30,InTran!$C:$C,$X$30) -> 0 | AA53: =+IFERROR(X53/SUM($X$32:$X$53),0) -> 0 | AB53: =+SUMIFS(InTran!$R:$R,InTran!$G:$G,C53,InTran!$O:$O,$C$30) -> 0 | AC53: =+SUMIFS(InTran!$S:$S,InTran!$G:$G,C53,InTran!$O:$O,$C$30) -> 0 | AD53: =+SUMIFS(InTran!$M:$M,InTran!$G:$G,C53,InTran!$O:$O,$C$30) -> 0 | AE53: =+IFERROR(AB53/SUM($AB$32:$AB$53),0) -> 0 | AF53: =+RANK(AB53,$AB$32:$AB$53) -> 12
C54: Total | D54: =SUM(D32:D53) -> 81620361.31 | E54: =SUM(E32:E53) -> 118597.09 | F54: =SUM(F32:F53) -> 2916140.95 | G54: =SUM(G32:G53) -> 1 | H54: =SUM(H32:H53) -> 8159254.28 | I54: =SUM(I32:I53) -> 16633.36 | J54: =SUM(J32:J53) -> 0 | K54: =SUM(K32:K53) -> 1 | L54: =SUM(L32:L53) -> 201494816.8 | M54: =SUM(M32:M53) -> 420000.62 | N54: =SUM(N32:N53) -> 9987116.02 | O54: =SUM(O32:O53) -> 1 | P54: =SUM(P32:P53) -> 0 | Q54: =SUM(Q32:Q53) -> 0 | R54: =SUM(R32:R53) -> 0 | S54: =SUM(S32:S53) -> 0 | T54: =SUM(T32:T53) -> 27706056.62 | U54: =SUM(U32:U53) -> 62389.11 | V54: =SUM(V32:V53) -> 291352.92 | W54: =SUM(W32:W53) -> 1 | X54: =SUM(X32:X53) -> 319164.84 | Y54: =SUM(Y32:Y53) -> 715.47 | Z54: =SUM(Z32:Z53) -> 0 | AA54: =SUM(AA32:AA53) -> 1 | AB54: =SUM(AB32:AB53) -> 319299653.9 | AC54: =SUM(AC32:AC53) -> 618335.65 | AD54: =SUM(AD32:AD53) -> 13194609.89 | AE54: =SUM(AE32:AE53) -> 1
C56: ANOUK | D56: YH-AUR-VCAM | H56: KWAP | L56: MEQESG | P56: YAMIR-VCAM | T56: VCAM-TABA | X56: ASEAN5ESG | AB56: Total
C57: Brokers | D57: Trade Value (RM) | E57: Brokerage Fees (RM) | F57: Capital Gains (RM) | G57: % | H57: Trade Value (RM) | I57: Brokerage Fees (RM) | J57: Capital Gains (RM) | K57: % | L57: Trade Value (RM) | M57: Brokerage Fees (RM) | N57: Capital Gains (RM) | O57: % | P57: Trade Value (RM) | Q57: Brokerage Fees (RM) | R57: Capital Gains (RM) | S57: % | T57: Trade Value (RM) | U57: Brokerage Fees (RM) | V57: Capital Gains (RM) | W57: % | X57: Trade Value (RM) | Y57: Brokerage Fees (RM) | Z57: Capital Gains (RM) | AA57: % | AB57: Trade Value (RM) | AC57: Brokerage Fees (RM) | AD57: Capital Gains (RM) | AE57: % | AF57: Trade Value Ranking
C58: RHB INVESTMENT BANK BERHAD | D58: =+SUMIFS(InTran!$R:$R,InTran!$G:$G,C58,InTran!$O:$O,$C$56,InTran!$C:$C,$D$56) -> 75369290.94 | E58: =+SUMIFS(InTran!$S:$S,InTran!$G:$G,C58,InTran!$O:$O,$C$56,InTran!$C:$C,$D$56) -> 75455.58 | F58: =+SUMIFS(InTran!$M:$M,InTran!$G:$G,C58,InTran!$O:$O,$C$56,InTran!$C:$C,$D$56) -> 4797560.74 | G58: =+IFERROR(D58/SUM($D$58:$D$79),0) -> 0.4037559584 | H58: =+SUMIFS(InTran!$R:$R,InTran!$G:$G,C58,InTran!$O:$O,$C$56,InTran!$C:$C,$H$56) -> 15529651.17 | I58: =+SUMIFS(InTran!$S:$S,InTran!$G:$G,C58,InTran!$O:$O,$C$56,InTran!$C:$C,$H$56) -> 32148.56 | J58: =+SUMIFS(InTran!$M:$M,InTran!$G:$G,C58,InTran!$O:$O,$C$56,InTran!$C:$C,$H$56) -> 132495.4 | K58: =+IFERROR(H58/SUM($H$58:$H$79),0) -> 0.07968523973 | L58: =+SUMIFS(InTran!$R:$R,InTran!$G:$G,C58,InTran!$O:$O,$C$56,InTran!$C:$C,$L$56) -> 0 | M58: =+SUMIFS(InTran!$S:$S,InTran!$G:$G,C58,InTran!$O:$O,$C$56,InTran!$C:$C,$L$56) -> 0 | N58: =+SUMIFS(InTran!$M:$M,InTran!$G:$G,C58,InTran!$O:$O,$C$56,InTran!$C:$C,$L$56) -> 0 | O58: =+IFERROR(L58/SUM($L$58:$L$79),0) -> 0 | P58: =+SUMIFS(InTran!$R:$R,InTran!$G:$G,C58,InTran!$O:$O,$C$56,InTran!$C:$C,$P$56) -> 0 | Q58: =+SUMIFS(InTran!$S:$S,InTran!$G:$G,C58,InTran!$O:$O,$C$56,InTran!$C:$C,$P$56) -> 0 | R58: =+SUMIFS(InTran!$M:$M,InTran!$G:$G,C58,InTran!$O:$O,$C$56,InTran!$C:$C,$P$56) -> 0 | S58: =+IFERROR(P58/SUM($P$58:$P$79),0) -> 0 | T58: =+SUMIFS(InTran!$R:$R,InTran!$G:$G,C58,InTran!$O:$O,$C$56,InTran!$C:$C,$T$56) -> 0 | U58: =+SUMIFS(InTran!$S:$S,InTran!$G:$G,C58,InTran!$O:$O,$C$56,InTran!$C:$C,$T$56) -> 0 | V58: =+SUMIFS(InTran!$M:$M,InTran!$G:$G,C58,InTran!$O:$O,$C$56,InTran!$C:$C,$T$56) -> 0 | W58: =+IFERROR(T58/SUM($T$58:$T$79),0) -> 0 | X58: =+SUMIFS(InTran!$R:$R,InTran!$G:$G,C58,InTran!$O:$O,$C$56,InTran!$C:$C,$X$56) -> 0 | Y58: =+SUMIFS(InTran!$S:$S,InTran!$G:$G,C58,InTran!$O:$O,$C$56,InTran!$C:$C,$X$56) -> 0 | Z58: =+SUMIFS(InTran!$M:$M,InTran!$G:$G,C58,InTran!$O:$O,$C$56,InTran!$C:$C,$X$56) -> 0 | AA58: =+IFERROR(X58/SUM($X$58:$X$79),0) -> 0 | AB58: =+SUMIFS(InTran!$R:$R,InTran!$G:$G,C58,InTran!$O:$O,$C$56) -> 90898942.11 | AC58: =+SUMIFS(InTran!$S:$S,InTran!$G:$G,C58,InTran!$O:$O,$C$56) -> 107604.14 | AD58: =+SUMIFS(InTran!$M:$M,InTran!$G:$G,C58,InTran!$O:$O,$C$56) -> 4930056.14 | AE58: =+IFERROR(AB58/SUM($AB$58:$AB$79),0) -> 0.2382310974 | AF58: =+RANK(AB58,$AB$58:$AB$79) -> 1
C59: MAYBANK INVESTMENT BANK BHD | D59: =+SUMIFS(InTran!$R:$R,InTran!$G:$G,C59,InTran!$O:$O,$C$56,InTran!$C:$C,$D$56) -> 28166875.67 | E59: =+SUMIFS(InTran!$S:$S,InTran!$G:$G,C59,InTran!$O:$O,$C$56,InTran!$C:$C,$D$56) -> 29471.11 | F59: =+SUMIFS(InTran!$M:$M,InTran!$G:$G,C59,InTran!$O:$O,$C$56,InTran!$C:$C,$D$56) -> 1144470.26 | G59: =+IFERROR(D59/SUM($D$58:$D$79),0) -> 0.1508909496 | H59: =+SUMIFS(InTran!$R:$R,InTran!$G:$G,C59,InTran!$O:$O,$C$56,InTran!$C:$C,$H$56) -> 42418455.15 | I59: =+SUMIFS(InTran!$S:$S,InTran!$G:$G,C59,InTran!$O:$O,$C$56,InTran!$C:$C,$H$56) -> 57801.23 | J59: =+SUMIFS(InTran!$M:$M,InTran!$G:$G,C59,InTran!$O:$O,$C$56,InTran!$C:$C,$H$56) -> 1879638.01 | K59: =+IFERROR(H59/SUM($H$58:$H$79),0) -> 0.217656194 | L59: =+SUMIFS(InTran!$R:$R,InTran!$G:$G,C59,InTran!$O:$O,$C$56,InTran!$C:$C,$L$56) -> 0 | M59: =+SUMIFS(InTran!$S:$S,InTran!$G:$G,C59,InTran!$O:$O,$C$56,InTran!$C:$C,$L$56) -> 0 | N59: =+SUMIFS(InTran!$M:$M,InTran!$G:$G,C59,InTran!$O:$O,$C$56,InTran!$C:$C,$L$56) -> 0 | O59: =+IFERROR(L59/SUM($L$58:$L$79),0) -> 0 | P59: =+SUMIFS(InTran!$R:$R,InTran!$G:$G,C59,InTran!$O:$O,$C$56,InTran!$C:$C,$P$56) -> 0 | Q59: =+SUMIFS(InTran!$S:$S,InTran!$G:$G,C59,InTran!$O:$O,$C$56,InTran!$C:$C,$P$56) -> 0 | R59: =+SUMIFS(InTran!$M:$M,InTran!$G:$G,C59,InTran!$O:$O,$C$56,InTran!$C:$C,$P$56) -> 0 | S59: =+IFERROR(P59/SUM($P$58:$P$79),0) -> 0 | T59: =+SUMIFS(InTran!$R:$R,InTran!$G:$G,C59,InTran!$O:$O,$C$56,InTran!$C:$C,$T$56) -> 0 | U59: =+SUMIFS(InTran!$S:$S,InTran!$G:$G,C59,InTran!$O:$O,$C$56,InTran!$C:$C,$T$56) -> 0 | V59: =+SUMIFS(InTran!$M:$M,InTran!$G:$G,C59,InTran!$O:$O,$C$56,InTran!$C:$C,$T$56) -> 0 | W59: =+IFERROR(T59/SUM($T$58:$T$79),0) -> 0 | X59: =+SUMIFS(InTran!$R:$R,InTran!$G:$G,C59,InTran!$O:$O,$C$56,InTran!$C:$C,$X$56) -> 0 | Y59: =+SUMIFS(InTran!$S:$S,InTran!$G:$G,C59,InTran!$O:$O,$C$56,InTran!$C:$C,$X$56) -> 0 | Z59: =+SUMIFS(InTran!$M:$M,InTran!$G:$G,C59,InTran!$O:$O,$C$56,InTran!$C:$C,$X$56) -> 0 | AA59: =+IFERROR(X59/SUM($X$58:$X$79),0) -> 0 | AB59: =+SUMIFS(InTran!$R:$R,InTran!$G:$G,C59,InTran!$O:$O,$C$56) -> 70585330.82 | AC59: =+SUMIFS(InTran!$S:$S,InTran!$G:$G,C59,InTran!$O:$O,$C$56) -> 87272.34 | AD59: =+SUMIFS(InTran!$M:$M,InTran!$G:$G,C59,InTran!$O:$O,$C$56) -> 3024108.27 | AE59: =+IFERROR(AB59/SUM($AB$58:$AB$79),0) -> 0.184992481 | AF59: =+RANK(AB59,$AB$58:$AB$79) -> 2
C60: AFFIN INVESTMENT BANK BERHAD | D60: =+SUMIFS(InTran!$R:$R,InTran!$G:$G,C60,InTran!$O:$O,$C$56,InTran!$C:$C,$D$56) -> 9351215.86 | E60: =+SUMIFS(InTran!$S:$S,InTran!$G:$G,C60,InTran!$O:$O,$C$56,InTran!$C:$C,$D$56) -> 9362.4 | F60: =+SUMIFS(InTran!$M:$M,InTran!$G:$G,C60,InTran!$O:$O,$C$56,InTran!$C:$C,$D$56) -> 520969.93 | G60: =+IFERROR(D60/SUM($D$58:$D$79),0) -> 0.05009479425 | H60: =+SUMIFS(InTran!$R:$R,InTran!$G:$G,C60,InTran!$O:$O,$C$56,InTran!$C:$C,$H$56) -> 49820186.99 | I60: =+SUMIFS(InTran!$S:$S,InTran!$G:$G,C60,InTran!$O:$O,$C$56,InTran!$C:$C,$H$56) -> 69728.85 | J60: =+SUMIFS(InTran!$M:$M,InTran!$G:$G,C60,InTran!$O:$O,$C$56,InTran!$C:$C,$H$56) -> 3306918.53 | K60: =+IFERROR(H60/SUM($H$58:$H$79),0) -> 0.2556357191 | L60: =+SUMIFS(InTran!$R:$R,InTran!$G:$G,C60,InTran!$O:$O,$C$56,InTran!$C:$C,$L$56) -> 0 | M60: =+SUMIFS(InTran!$S:$S,InTran!$G:$G,C60,InTran!$O:$O,$C$56,InTran!$C:$C,$L$56) -> 0 | N60: =+SUMIFS(InTran!$M:$M,InTran!$G:$G,C60,InTran!$O:$O,$C$56,InTran!$C:$C,$L$56) -> 0 | O60: =+IFERROR(L60/SUM($L$58:$L$79),0) -> 0 | P60: =+SUMIFS(InTran!$R:$R,InTran!$G:$G,C60,InTran!$O:$O,$C$56,InTran!$C:$C,$P$56) -> 0 | Q60: =+SUMIFS(InTran!$S:$S,InTran!$G:$G,C60,InTran!$O:$O,$C$56,InTran!$C:$C,$P$56) -> 0 | R60: =+SUMIFS(InTran!$M:$M,InTran!$G:$G,C60,InTran!$O:$O,$C$56,InTran!$C:$C,$P$56) -> 0 | S60: =+IFERROR(P60/SUM($P$58:$P$79),0) -> 0 | T60: =+SUMIFS(InTran!$R:$R,InTran!$G:$G,C60,InTran!$O:$O,$C$56,InTran!$C:$C,$T$56) -> 0 | U60: =+SUMIFS(InTran!$S:$S,InTran!$G:$G,C60,InTran!$O:$O,$C$56,InTran!$C:$C,$T$56) -> 0 | V60: =+SUMIFS(InTran!$M:$M,InTran!$G:$G,C60,InTran!$O:$O,$C$56,InTran!$C:$C,$T$56) -> 0 | W60: =+IFERROR(T60/SUM($T$58:$T$79),0) -> 0 | X60: =+SUMIFS(InTran!$R:$R,InTran!$G:$G,C60,InTran!$O:$O,$C$56,InTran!$C:$C,$X$56) -> 0 | Y60: =+SUMIFS(InTran!$S:$S,InTran!$G:$G,C60,InTran!$O:$O,$C$56,InTran!$C:$C,$X$56) -> 0 | Z60: =+SUMIFS(InTran!$M:$M,InTran!$G:$G,C60,InTran!$O:$O,$C$56,InTran!$C:$C,$X$56) -> 0 | AA60: =+IFERROR(X60/SUM($X$58:$X$79),0) -> 0 | AB60: =+SUMIFS(InTran!$R:$R,InTran!$G:$G,C60,InTran!$O:$O,$C$56) -> 59171402.85 | AC60: =+SUMIFS(InTran!$S:$S,InTran!$G:$G,C60,InTran!$O:$O,$C$56) -> 79091.25 | AD60: =+SUMIFS(InTran!$M:$M,InTran!$G:$G,C60,InTran!$O:$O,$C$56) -> 3827888.46 | AE60: =+IFERROR(AB60/SUM($AB$58:$AB$79),0) -> 0.1550784631 | AF60: =+RANK(AB60,$AB$58:$AB$79) -> 3
C61: KAF-SEAGROATT & CAMPBELL SECURITIES SDN BHD | D61: =+SUMIFS(InTran!$R:$R,InTran!$G:$G,C61,InTran!$O:$O,$C$56,InTran!$C:$C,$D$56) -> 19037276.4 | E61: =+SUMIFS(InTran!$S:$S,InTran!$G:$G,C61,InTran!$O:$O,$C$56,InTran!$C:$C,$D$56) -> 19060 | F61: =+SUMIFS(InTran!$M:$M,InTran!$G:$G,C61,InTran!$O:$O,$C$56,InTran!$C:$C,$D$56) -> 732460.24 | G61: =+IFERROR(D61/SUM($D$58:$D$79),0) -> 0.1019833633 | H61: =+SUMIFS(InTran!$R:$R,InTran!$G:$G,C61,InTran!$O:$O,$C$56,InTran!$C:$C,$H$56) -> 28123796.49 | I61: =+SUMIFS(InTran!$S:$S,InTran!$G:$G,C61,InTran!$O:$O,$C$56,InTran!$C:$C,$H$56) -> 31330.02 | J61: =+SUMIFS(InTran!$M:$M,InTran!$G:$G,C61,InTran!$O:$O,$C$56,InTran!$C:$C,$H$56) -> 1491049.08 | K61: =+IFERROR(H61/SUM($H$58:$H$79),0) -> 0.1443079076 | L61: =+SUMIFS(InTran!$R:$R,InTran!$G:$G,C61,InTran!$O:$O,$C$56,InTran!$C:$C,$L$56) -> 0 | M61: =+SUMIFS(InTran!$S:$S,InTran!$G:$G,C61,InTran!$O:$O,$C$56,InTran!$C:$C,$L$56) -> 0 | N61: =+SUMIFS(InTran!$M:$M,InTran!$G:$G,C61,InTran!$O:$O,$C$56,InTran!$C:$C,$L$56) -> 0 | O61: =+IFERROR(L61/SUM($L$58:$L$79),0) -> 0 | P61: =+SUMIFS(InTran!$R:$R,InTran!$G:$G,C61,InTran!$O:$O,$C$56,InTran!$C:$C,$P$56) -> 0 | Q61: =+SUMIFS(InTran!$S:$S,InTran!$G:$G,C61,InTran!$O:$O,$C$56,InTran!$C:$C,$P$56) -> 0 | R61: =+SUMIFS(InTran!$M:$M,InTran!$G:$G,C61,InTran!$O:$O,$C$56,InTran!$C:$C,$P$56) -> 0 | S61: =+IFERROR(P61/SUM($P$58:$P$79),0) -> 0 | T61: =+SUMIFS(InTran!$R:$R,InTran!$G:$G,C61,InTran!$O:$O,$C$56,InTran!$C:$C,$T$56) -> 0 | U61: =+SUMIFS(InTran!$S:$S,InTran!$G:$G,C61,InTran!$O:$O,$C$56,InTran!$C:$C,$T$56) -> 0 | V61: =+SUMIFS(InTran!$M:$M,InTran!$G:$G,C61,InTran!$O:$O,$C$56,InTran!$C:$C,$T$56) -> 0 | W61: =+IFERROR(T61/SUM($T$58:$T$79),0) -> 0 | X61: =+SUMIFS(InTran!$R:$R,InTran!$G:$G,C61,InTran!$O:$O,$C$56,InTran!$C:$C,$X$56) -> 0 | Y61: =+SUMIFS(InTran!$S:$S,InTran!$G:$G,C61,InTran!$O:$O,$C$56,InTran!$C:$C,$X$56) -> 0 | Z61: =+SUMIFS(InTran!$M:$M,InTran!$G:$G,C61,InTran!$O:$O,$C$56,InTran!$C:$C,$X$56) -> 0 | AA61: =+IFERROR(X61/SUM($X$58:$X$79),0) -> 0 | AB61: =+SUMIFS(InTran!$R:$R,InTran!$G:$G,C61,InTran!$O:$O,$C$56) -> 47161072.89 | AC61: =+SUMIFS(InTran!$S:$S,InTran!$G:$G,C61,InTran!$O:$O,$C$56) -> 50390.02 | AD61: =+SUMIFS(InTran!$M:$M,InTran!$G:$G,C61,InTran!$O:$O,$C$56) -> 2223509.32 | AE61: =+IFERROR(AB61/SUM($AB$58:$AB$79),0) -> 0.1236013741 | AF61: =+RANK(AB61,$AB$58:$AB$79) -> 4
C62: CIMB INVESTMENT BANK BHD | D62: =+SUMIFS(InTran!$R:$R,InTran!$G:$G,C62,InTran!$O:$O,$C$56,InTran!$C:$C,$D$56) -> 0 | E62: =+SUMIFS(InTran!$S:$S,InTran!$G:$G,C62,InTran!$O:$O,$C$56,InTran!$C:$C,$D$56) -> 0 | F62: =+SUMIFS(InTran!$M:$M,InTran!$G:$G,C62,InTran!$O:$O,$C$56,InTran!$C:$C,$D$56) -> 0 | G62: =+IFERROR(D62/SUM($D$58:$D$79),0) -> 0 | H62: =+SUMIFS(InTran!$R:$R,InTran!$G:$G,C62,InTran!$O:$O,$C$56,InTran!$C:$C,$H$56) -> 36676650.01 | I62: =+SUMIFS(InTran!$S:$S,InTran!$G:$G,C62,InTran!$O:$O,$C$56,InTran!$C:$C,$H$56) -> 47683.62 | J62: =+SUMIFS(InTran!$M:$M,InTran!$G:$G,C62,InTran!$O:$O,$C$56,InTran!$C:$C,$H$56) -> 449197.53 | K62: =+IFERROR(H62/SUM($H$58:$H$79),0) -> 0.1881940307 | L62: =+SUMIFS(InTran!$R:$R,InTran!$G:$G,C62,InTran!$O:$O,$C$56,InTran!$C:$C,$L$56) -> 0 | M62: =+SUMIFS(InTran!$S:$S,InTran!$G:$G,C62,InTran!$O:$O,$C$56,InTran!$C:$C,$L$56) -> 0 | N62: =+SUMIFS(InTran!$M:$M,InTran!$G:$G,C62,InTran!$O:$O,$C$56,InTran!$C:$C,$L$56) -> 0 | O62: =+IFERROR(L62/SUM($L$58:$L$79),0) -> 0 | P62: =+SUMIFS(InTran!$R:$R,InTran!$G:$G,C62,InTran!$O:$O,$C$56,InTran!$C:$C,$P$56) -> 0 | Q62: =+SUMIFS(InTran!$S:$S,InTran!$G:$G,C62,InTran!$O:$O,$C$56,InTran!$C:$C,$P$56) -> 0 | R62: =+SUMIFS(InTran!$M:$M,InTran!$G:$G,C62,InTran!$O:$O,$C$56,InTran!$C:$C,$P$56) -> 0 | S62: =+IFERROR(P62/SUM($P$58:$P$79),0) -> 0 | T62: =+SUMIFS(InTran!$R:$R,InTran!$G:$G,C62,InTran!$O:$O,$C$56,InTran!$C:$C,$T$56) -> 0 | U62: =+SUMIFS(InTran!$S:$S,InTran!$G:$G,C62,InTran!$O:$O,$C$56,InTran!$C:$C,$T$56) -> 0 | V62: =+SUMIFS(InTran!$M:$M,InTran!$G:$G,C62,InTran!$O:$O,$C$56,InTran!$C:$C,$T$56) -> 0 | W62: =+IFERROR(T62/SUM($T$58:$T$79),0) -> 0 | X62: =+SUMIFS(InTran!$R:$R,InTran!$G:$G,C62,InTran!$O:$O,$C$56,InTran!$C:$C,$X$56) -> 0 | Y62: =+SUMIFS(InTran!$S:$S,InTran!$G:$G,C62,InTran!$O:$O,$C$56,InTran!$C:$C,$X$56) -> 0 | Z62: =+SUMIFS(InTran!$M:$M,InTran!$G:$G,C62,InTran!$O:$O,$C$56,InTran!$C:$C,$X$56) -> 0 | AA62: =+IFERROR(X62/SUM($X$58:$X$79),0) -> 0 | AB62: =+SUMIFS(InTran!$R:$R,InTran!$G:$G,C62,InTran!$O:$O,$C$56) -> 36676650.01 | AC62: =+SUMIFS(InTran!$S:$S,InTran!$G:$G,C62,InTran!$O:$O,$C$56) -> 47683.62 | AD62: =+SUMIFS(InTran!$M:$M,InTran!$G:$G,C62,InTran!$O:$O,$C$56) -> 449197.53 | AE62: =+IFERROR(AB62/SUM($AB$58:$AB$79),0) -> 0.09612343532 | AF62: =+RANK(AB62,$AB$58:$AB$79) -> 5
C63: HONG LEONG INVESTMENT BANK BHD | D63: =+SUMIFS(InTran!$R:$R,InTran!$G:$G,C63,InTran!$O:$O,$C$56,InTran!$C:$C,$D$56) -> 17674115.58 | E63: =+SUMIFS(InTran!$S:$S,InTran!$G:$G,C63,InTran!$O:$O,$C$56,InTran!$C:$C,$D$56) -> 21506.43 | F63: =+SUMIFS(InTran!$M:$M,InTran!$G:$G,C63,InTran!$O:$O,$C$56,InTran!$C:$C,$D$56) -> 1397559.06 | G63: =+IFERROR(D63/SUM($D$58:$D$79),0) -> 0.09468086254 | H63: =+SUMIFS(InTran!$R:$R,InTran!$G:$G,C63,InTran!$O:$O,$C$56,InTran!$C:$C,$H$56) -> 1711167.43 | I63: =+SUMIFS(InTran!$S:$S,InTran!$G:$G,C63,InTran!$O:$O,$C$56,InTran!$C:$C,$H$56) -> 3564.44 | J63: =+SUMIFS(InTran!$M:$M,InTran!$G:$G,C63,InTran!$O:$O,$C$56,InTran!$C:$C,$H$56) -> 89982.76 | K63: =+IFERROR(H63/SUM($H$58:$H$79),0) -> 0.008780286523 | L63: =+SUMIFS(InTran!$R:$R,InTran!$G:$G,C63,InTran!$O:$O,$C$56,InTran!$C:$C,$L$56) -> 0 | M63: =+SUMIFS(InTran!$S:$S,InTran!$G:$G,C63,InTran!$O:$O,$C$56,InTran!$C:$C,$L$56) -> 0 | N63: =+SUMIFS(InTran!$M:$M,InTran!$G:$G,C63,InTran!$O:$O,$C$56,InTran!$C:$C,$L$56) -> 0 | O63: =+IFERROR(L63/SUM($L$58:$L$79),0) -> 0 | P63: =+SUMIFS(InTran!$R:$R,InTran!$G:$G,C63,InTran!$O:$O,$C$56,InTran!$C:$C,$P$56) -> 0 | Q63: =+SUMIFS(InTran!$S:$S,InTran!$G:$G,C63,InTran!$O:$O,$C$56,InTran!$C:$C,$P$56) -> 0 | R63: =+SUMIFS(InTran!$M:$M,InTran!$G:$G,C63,InTran!$O:$O,$C$56,InTran!$C:$C,$P$56) -> 0 | S63: =+IFERROR(P63/SUM($P$58:$P$79),0) -> 0 | T63: =+SUMIFS(InTran!$R:$R,InTran!$G:$G,C63,InTran!$O:$O,$C$56,InTran!$C:$C,$T$56) -> 0 | U63: =+SUMIFS(InTran!$S:$S,InTran!$G:$G,C63,InTran!$O:$O,$C$56,InTran!$C:$C,$T$56) -> 0 | V63: =+SUMIFS(InTran!$M:$M,InTran!$G:$G,C63,InTran!$O:$O,$C$56,InTran!$C:$C,$T$56) -> 0 | W63: =+IFERROR(T63/SUM($T$58:$T$79),0) -> 0 | X63: =+SUMIFS(InTran!$R:$R,InTran!$G:$G,C63,InTran!$O:$O,$C$56,InTran!$C:$C,$X$56) -> 0 | Y63: =+SUMIFS(InTran!$S:$S,InTran!$G:$G,C63,InTran!$O:$O,$C$56,InTran!$C:$C,$X$56) -> 0 | Z63: =+SUMIFS(InTran!$M:$M,InTran!$G:$G,C63,InTran!$O:$O,$C$56,InTran!$C:$C,$X$56) -> 0 | AA63: =+IFERROR(X63/SUM($X$58:$X$79),0) -> 0 | AB63: =+SUMIFS(InTran!$R:$R,InTran!$G:$G,C63,InTran!$O:$O,$C$56) -> 19385283.01 | AC63: =+SUMIFS(InTran!$S:$S,InTran!$G:$G,C63,InTran!$O:$O,$C$56) -> 25070.87 | AD63: =+SUMIFS(InTran!$M:$M,InTran!$G:$G,C63,InTran!$O:$O,$C$56) -> 1487541.82 | AE63: =+IFERROR(AB63/SUM($AB$58:$AB$79),0) -> 0.05080562148 | AF63: =+RANK(AB63,$AB$58:$AB$79) -> 6
C64: KENANGA INVESTMENT BANK BHD | D64: =+SUMIFS(InTran!$R:$R,InTran!$G:$G,C64,InTran!$O:$O,$C$56,InTran!$C:$C,$D$56) -> 9594457.75 | E64: =+SUMIFS(InTran!$S:$S,InTran!$G:$G,C64,InTran!$O:$O,$C$56,InTran!$C:$C,$D$56) -> 9605.9 | F64: =+SUMIFS(InTran!$M:$M,InTran!$G:$G,C64,InTran!$O:$O,$C$56,InTran!$C:$C,$D$56) -> 800426.34 | G64: =+IFERROR(D64/SUM($D$58:$D$79),0) -> 0.05139784966 | H64: =+SUMIFS(InTran!$R:$R,InTran!$G:$G,C64,InTran!$O:$O,$C$56,InTran!$C:$C,$H$56) -> 9164280.14 | I64: =+SUMIFS(InTran!$S:$S,InTran!$G:$G,C64,InTran!$O:$O,$C$56,InTran!$C:$C,$H$56) -> 25993.06 | J64: =+SUMIFS(InTran!$M:$M,InTran!$G:$G,C64,InTran!$O:$O,$C$56,InTran!$C:$C,$H$56) -> 103357.57 | K64: =+IFERROR(H64/SUM($H$58:$H$79),0) -> 0.04702345545 | L64: =+SUMIFS(InTran!$R:$R,InTran!$G:$G,C64,InTran!$O:$O,$C$56,InTran!$C:$C,$L$56) -> 0 | M64: =+SUMIFS(InTran!$S:$S,InTran!$G:$G,C64,InTran!$O:$O,$C$56,InTran!$C:$C,$L$56) -> 0 | N64: =+SUMIFS(InTran!$M:$M,InTran!$G:$G,C64,InTran!$O:$O,$C$56,InTran!$C:$C,$L$56) -> 0 | O64: =+IFERROR(L64/SUM($L$58:$L$79),0) -> 0 | P64: =+SUMIFS(InTran!$R:$R,InTran!$G:$G,C64,InTran!$O:$O,$C$56,InTran!$C:$C,$P$56) -> 0 | Q64: =+SUMIFS(InTran!$S:$S,InTran!$G:$G,C64,InTran!$O:$O,$C$56,InTran!$C:$C,$P$56) -> 0 | R64: =+SUMIFS(InTran!$M:$M,InTran!$G:$G,C64,InTran!$O:$O,$C$56,InTran!$C:$C,$P$56) -> 0 | S64: =+IFERROR(P64/SUM($P$58:$P$79),0) -> 0 | T64: =+SUMIFS(InTran!$R:$R,InTran!$G:$G,C64,InTran!$O:$O,$C$56,InTran!$C:$C,$T$56) -> 0 | U64: =+SUMIFS(InTran!$S:$S,InTran!$G:$G,C64,InTran!$O:$O,$C$56,InTran!$C:$C,$T$56) -> 0 | V64: =+SUMIFS(InTran!$M:$M,InTran!$G:$G,C64,InTran!$O:$O,$C$56,InTran!$C:$C,$T$56) -> 0 | W64: =+IFERROR(T64/SUM($T$58:$T$79),0) -> 0 | X64: =+SUMIFS(InTran!$R:$R,InTran!$G:$G,C64,InTran!$O:$O,$C$56,InTran!$C:$C,$X$56) -> 0 | Y64: =+SUMIFS(InTran!$S:$S,InTran!$G:$G,C64,InTran!$O:$O,$C$56,InTran!$C:$C,$X$56) -> 0 | Z64: =+SUMIFS(InTran!$M:$M,InTran!$G:$G,C64,InTran!$O:$O,$C$56,InTran!$C:$C,$X$56) -> 0 | AA64: =+IFERROR(X64/SUM($X$58:$X$79),0) -> 0 | AB64: =+SUMIFS(InTran!$R:$R,InTran!$G:$G,C64,InTran!$O:$O,$C$56) -> 18758737.89 | AC64: =+SUMIFS(InTran!$S:$S,InTran!$G:$G,C64,InTran!$O:$O,$C$56) -> 35598.96 | AD64: =+SUMIFS(InTran!$M:$M,InTran!$G:$G,C64,InTran!$O:$O,$C$56) -> 903783.91 | AE64: =+IFERROR(AB64/SUM($AB$58:$AB$79),0) -> 0.04916355032 | AF64: =+RANK(AB64,$AB$58:$AB$79) -> 7
C65: NOMURA SECURITIES MALAYSIA SDN BHD | D65: =+SUMIFS(InTran!$R:$R,InTran!$G:$G,C65,InTran!$O:$O,$C$56,InTran!$C:$C,$D$56) -> 13832316.36 | E65: =+SUMIFS(InTran!$S:$S,InTran!$G:$G,C65,InTran!$O:$O,$C$56,InTran!$C:$C,$D$56) -> 13833.47 | F65: =+SUMIFS(InTran!$M:$M,InTran!$G:$G,C65,InTran!$O:$O,$C$56,InTran!$C:$C,$D$56) -> 385676.68 | G65: =+IFERROR(D65/SUM($D$58:$D$79),0) -> 0.07410020818 | H65: =+SUMIFS(InTran!$R:$R,InTran!$G:$G,C65,InTran!$O:$O,$C$56,InTran!$C:$C,$H$56) -> 2593298.94 | I65: =+SUMIFS(InTran!$S:$S,InTran!$G:$G,C65,InTran!$O:$O,$C$56,InTran!$C:$C,$H$56) -> 5241.28 | J65: =+SUMIFS(InTran!$M:$M,InTran!$G:$G,C65,InTran!$O:$O,$C$56,InTran!$C:$C,$H$56) -> 138347.8 | K65: =+IFERROR(H65/SUM($H$58:$H$79),0) -> 0.01330665096 | L65: =+SUMIFS(InTran!$R:$R,InTran!$G:$G,C65,InTran!$O:$O,$C$56,InTran!$C:$C,$L$56) -> 0 | M65: =+SUMIFS(InTran!$S:$S,InTran!$G:$G,C65,InTran!$O:$O,$C$56,InTran!$C:$C,$L$56) -> 0 | N65: =+SUMIFS(InTran!$M:$M,InTran!$G:$G,C65,InTran!$O:$O,$C$56,InTran!$C:$C,$L$56) -> 0 | O65: =+IFERROR(L65/SUM($L$58:$L$79),0) -> 0 | P65: =+SUMIFS(InTran!$R:$R,InTran!$G:$G,C65,InTran!$O:$O,$C$56,InTran!$C:$C,$P$56) -> 0 | Q65: =+SUMIFS(InTran!$S:$S,InTran!$G:$G,C65,InTran!$O:$O,$C$56,InTran!$C:$C,$P$56) -> 0 | R65: =+SUMIFS(InTran!$M:$M,InTran!$G:$G,C65,InTran!$O:$O,$C$56,InTran!$C:$C,$P$56) -> 0 | S65: =+IFERROR(P65/SUM($P$58:$P$79),0) -> 0 | T65: =+SUMIFS(InTran!$R:$R,InTran!$G:$G,C65,InTran!$O:$O,$C$56,InTran!$C:$C,$T$56) -> 0 | U65: =+SUMIFS(InTran!$S:$S,InTran!$G:$G,C65,InTran!$O:$O,$C$56,InTran!$C:$C,$T$56) -> 0 | V65: =+SUMIFS(InTran!$M:$M,InTran!$G:$G,C65,InTran!$O:$O,$C$56,InTran!$C:$C,$T$56) -> 0 | W65: =+IFERROR(T65/SUM($T$58:$T$79),0) -> 0 | X65: =+SUMIFS(InTran!$R:$R,InTran!$G:$G,C65,InTran!$O:$O,$C$56,InTran!$C:$C,$X$56) -> 0 | Y65: =+SUMIFS(InTran!$S:$S,InTran!$G:$G,C65,InTran!$O:$O,$C$56,InTran!$C:$C,$X$56) -> 0 | Z65: =+SUMIFS(InTran!$M:$M,InTran!$G:$G,C65,InTran!$O:$O,$C$56,InTran!$C:$C,$X$56) -> 0 | AA65: =+IFERROR(X65/SUM($X$58:$X$79),0) -> 0 | AB65: =+SUMIFS(InTran!$R:$R,InTran!$G:$G,C65,InTran!$O:$O,$C$56) -> 16425615.3 | AC65: =+SUMIFS(InTran!$S:$S,InTran!$G:$G,C65,InTran!$O:$O,$C$56) -> 19074.75 | AD65: =+SUMIFS(InTran!$M:$M,InTran!$G:$G,C65,InTran!$O:$O,$C$56) -> 524024.48 | AE65: =+IFERROR(AB65/SUM($AB$58:$AB$79),0) -> 0.04304882178 | AF65: =+RANK(AB65,$AB$58:$AB$79) -> 8
C66: CREDIT SUISSE SECURITIES (M) SDN BHD | D66: =+SUMIFS(InTran!$R:$R,InTran!$G:$G,C66,InTran!$O:$O,$C$56,InTran!$C:$C,$D$56) -> 7864493.45 | E66: =+SUMIFS(InTran!$S:$S,InTran!$G:$G,C66,InTran!$O:$O,$C$56,InTran!$C:$C,$D$56) -> 7874.1 | F66: =+SUMIFS(InTran!$M:$M,InTran!$G:$G,C66,InTran!$O:$O,$C$56,InTran!$C:$C,$D$56) -> 796483.46 | G66: =+IFERROR(D66/SUM($D$58:$D$79),0) -> 0.04213036969 | H66: =+SUMIFS(InTran!$R:$R,InTran!$G:$G,C66,InTran!$O:$O,$C$56,InTran!$C:$C,$H$56) -> 4939243.88 | I66: =+SUMIFS(InTran!$S:$S,InTran!$G:$G,C66,InTran!$O:$O,$C$56,InTran!$C:$C,$H$56) -> 9902 | J66: =+SUMIFS(InTran!$M:$M,InTran!$G:$G,C66,InTran!$O:$O,$C$56,InTran!$C:$C,$H$56) -> 263180.34 | K66: =+IFERROR(H66/SUM($H$58:$H$79),0) -> 0.02534408715 | L66: =+SUMIFS(InTran!$R:$R,InTran!$G:$G,C66,InTran!$O:$O,$C$56,InTran!$C:$C,$L$56) -> 0 | M66: =+SUMIFS(InTran!$S:$S,InTran!$G:$G,C66,InTran!$O:$O,$C$56,InTran!$C:$C,$L$56) -> 0 | N66: =+SUMIFS(InTran!$M:$M,InTran!$G:$G,C66,InTran!$O:$O,$C$56,InTran!$C:$C,$L$56) -> 0 | O66: =+IFERROR(L66/SUM($L$58:$L$79),0) -> 0 | P66: =+SUMIFS(InTran!$R:$R,InTran!$G:$G,C66,InTran!$O:$O,$C$56,InTran!$C:$C,$P$56) -> 0 | Q66: =+SUMIFS(InTran!$S:$S,InTran!$G:$G,C66,InTran!$O:$O,$C$56,InTran!$C:$C,$P$56) -> 0 | R66: =+SUMIFS(InTran!$M:$M,InTran!$G:$G,C66,InTran!$O:$O,$C$56,InTran!$C:$C,$P$56) -> 0 | S66: =+IFERROR(P66/SUM($P$58:$P$79),0) -> 0 | T66: =+SUMIFS(InTran!$R:$R,InTran!$G:$G,C66,InTran!$O:$O,$C$56,InTran!$C:$C,$T$56) -> 0 | U66: =+SUMIFS(InTran!$S:$S,InTran!$G:$G,C66,InTran!$O:$O,$C$56,InTran!$C:$C,$T$56) -> 0 | V66: =+SUMIFS(InTran!$M:$M,InTran!$G:$G,C66,InTran!$O:$O,$C$56,InTran!$C:$C,$T$56) -> 0 | W66: =+IFERROR(T66/SUM($T$58:$T$79),0) -> 0 | X66: =+SUMIFS(InTran!$R:$R,InTran!$G:$G,C66,InTran!$O:$O,$C$56,InTran!$C:$C,$X$56) -> 0 | Y66: =+SUMIFS(InTran!$S:$S,InTran!$G:$G,C66,InTran!$O:$O,$C$56,InTran!$C:$C,$X$56) -> 0 | Z66: =+SUMIFS(InTran!$M:$M,InTran!$G:$G,C66,InTran!$O:$O,$C$56,InTran!$C:$C,$X$56) -> 0 | AA66: =+IFERROR(X66/SUM($X$58:$X$79),0) -> 0 | AB66: =+SUMIFS(InTran!$R:$R,InTran!$G:$G,C66,InTran!$O:$O,$C$56) -> 12803737.33 | AC66: =+SUMIFS(InTran!$S:$S,InTran!$G:$G,C66,InTran!$O:$O,$C$56) -> 17776.1 | AD66: =+SUMIFS(InTran!$M:$M,InTran!$G:$G,C66,InTran!$O:$O,$C$56) -> 1059663.8 | AE66: =+IFERROR(AB66/SUM($AB$58:$AB$79),0) -> 0.03355647849 | AF66: =+RANK(AB66,$AB$58:$AB$79) -> 9
C67: CLSA LIMITED | D67: =+SUMIFS(InTran!$R:$R,InTran!$G:$G,C67,InTran!$O:$O,$C$56,InTran!$C:$C,$D$56) -> 5742537.22 | E67: =+SUMIFS(InTran!$S:$S,InTran!$G:$G,C67,InTran!$O:$O,$C$56,InTran!$C:$C,$D$56) -> 11497.39 | F67: =+SUMIFS(InTran!$M:$M,InTran!$G:$G,C67,InTran!$O:$O,$C$56,InTran!$C:$C,$D$56) -> 134959.45 | G67: =+IFERROR(D67/SUM($D$58:$D$79),0) -> 0.03076297508 | H67: =+SUMIFS(InTran!$R:$R,InTran!$G:$G,C67,InTran!$O:$O,$C$56,InTran!$C:$C,$H$56) -> 0 | I67: =+SUMIFS(InTran!$S:$S,InTran!$G:$G,C67,InTran!$O:$O,$C$56,InTran!$C:$C,$H$56) -> 0 | J67: =+SUMIFS(InTran!$M:$M,InTran!$G:$G,C67,InTran!$O:$O,$C$56,InTran!$C:$C,$H$56) -> 0 | K67: =+IFERROR(H67/SUM($H$58:$H$79),0) -> 0 | L67: =+SUMIFS(InTran!$R:$R,InTran!$G:$G,C67,InTran!$O:$O,$C$56,InTran!$C:$C,$L$56) -> 0 | M67: =+SUMIFS(InTran!$S:$S,InTran!$G:$G,C67,InTran!$O:$O,$C$56,InTran!$C:$C,$L$56) -> 0 | N67: =+SUMIFS(InTran!$M:$M,InTran!$G:$G,C67,InTran!$O:$O,$C$56,InTran!$C:$C,$L$56) -> 0 | O67: =+IFERROR(L67/SUM($L$58:$L$79),0) -> 0 | P67: =+SUMIFS(InTran!$R:$R,InTran!$G:$G,C67,InTran!$O:$O,$C$56,InTran!$C:$C,$P$56) -> 0 | Q67: =+SUMIFS(InTran!$S:$S,InTran!$G:$G,C67,InTran!$O:$O,$C$56,InTran!$C:$C,$P$56) -> 0 | R67: =+SUMIFS(InTran!$M:$M,InTran!$G:$G,C67,InTran!$O:$O,$C$56,InTran!$C:$C,$P$56) -> 0 | S67: =+IFERROR(P67/SUM($P$58:$P$79),0) -> 0 | T67: =+SUMIFS(InTran!$R:$R,InTran!$G:$G,C67,InTran!$O:$O,$C$56,InTran!$C:$C,$T$56) -> 0 | U67: =+SUMIFS(InTran!$S:$S,InTran!$G:$G,C67,InTran!$O:$O,$C$56,InTran!$C:$C,$T$56) -> 0 | V67: =+SUMIFS(InTran!$M:$M,InTran!$G:$G,C67,InTran!$O:$O,$C$56,InTran!$C:$C,$T$56) -> 0 | W67: =+IFERROR(T67/SUM($T$58:$T$79),0) -> 0 | X67: =+SUMIFS(InTran!$R:$R,InTran!$G:$G,C67,InTran!$O:$O,$C$56,InTran!$C:$C,$X$56) -> 0 | Y67: =+SUMIFS(InTran!$S:$S,InTran!$G:$G,C67,InTran!$O:$O,$C$56,InTran!$C:$C,$X$56) -> 0 | Z67: =+SUMIFS(InTran!$M:$M,InTran!$G:$G,C67,InTran!$O:$O,$C$56,InTran!$C:$C,$X$56) -> 0 | AA67: =+IFERROR(X67/SUM($X$58:$X$79),0) -> 0 | AB67: =+SUMIFS(InTran!$R:$R,InTran!$G:$G,C67,InTran!$O:$O,$C$56) -> 5742537.22 | AC67: =+SUMIFS(InTran!$S:$S,InTran!$G:$G,C67,InTran!$O:$O,$C$56) -> 11497.39 | AD67: =+SUMIFS(InTran!$M:$M,InTran!$G:$G,C67,InTran!$O:$O,$C$56) -> 134959.45 | AE67: =+IFERROR(AB67/SUM($AB$58:$AB$79),0) -> 0.01505024054 | AF67: =+RANK(AB67,$AB$58:$AB$79) -> 10
C68: MACQUARIE CAPITAL SECURITIES (MALAYSIA) SDN BHD | D68: =+SUMIFS(InTran!$R:$R,InTran!$G:$G,C68,InTran!$O:$O,$C$56,InTran!$C:$C,$D$56) -> 37832.35 | E68: =+SUMIFS(InTran!$S:$S,InTran!$G:$G,C68,InTran!$O:$O,$C$56,InTran!$C:$C,$D$56) -> 85.44 | F68: =+SUMIFS(InTran!$M:$M,InTran!$G:$G,C68,InTran!$O:$O,$C$56,InTran!$C:$C,$D$56) -> 5254.75 | G68: =+IFERROR(D68/SUM($D$58:$D$79),0) -> 0.0002026692376 | H68: =+SUMIFS(InTran!$R:$R,InTran!$G:$G,C68,InTran!$O:$O,$C$56,InTran!$C:$C,$H$56) -> 3910694.66 | I68: =+SUMIFS(InTran!$S:$S,InTran!$G:$G,C68,InTran!$O:$O,$C$56,InTran!$C:$C,$H$56) -> 8181.08 | J68: =+SUMIFS(InTran!$M:$M,InTran!$G:$G,C68,InTran!$O:$O,$C$56,InTran!$C:$C,$H$56) -> 0 | K68: =+IFERROR(H68/SUM($H$58:$H$79),0) -> 0.02006642893 | L68: =+SUMIFS(InTran!$R:$R,InTran!$G:$G,C68,InTran!$O:$O,$C$56,InTran!$C:$C,$L$56) -> 0 | M68: =+SUMIFS(InTran!$S:$S,InTran!$G:$G,C68,InTran!$O:$O,$C$56,InTran!$C:$C,$L$56) -> 0 | N68: =+SUMIFS(InTran!$M:$M,InTran!$G:$G,C68,InTran!$O:$O,$C$56,InTran!$C:$C,$L$56) -> 0 | O68: =+IFERROR(L68/SUM($L$58:$L$79),0) -> 0 | P68: =+SUMIFS(InTran!$R:$R,InTran!$G:$G,C68,InTran!$O:$O,$C$56,InTran!$C:$C,$P$56) -> 0 | Q68: =+SUMIFS(InTran!$S:$S,InTran!$G:$G,C68,InTran!$O:$O,$C$56,InTran!$C:$C,$P$56) -> 0 | R68: =+SUMIFS(InTran!$M:$M,InTran!$G:$G,C68,InTran!$O:$O,$C$56,InTran!$C:$C,$P$56) -> 0 | S68: =+IFERROR(P68/SUM($P$58:$P$79),0) -> 0 | T68: =+SUMIFS(InTran!$R:$R,InTran!$G:$G,C68,InTran!$O:$O,$C$56,InTran!$C:$C,$T$56) -> 0 | U68: =+SUMIFS(InTran!$S:$S,InTran!$G:$G,C68,InTran!$O:$O,$C$56,InTran!$C:$C,$T$56) -> 0 | V68: =+SUMIFS(InTran!$M:$M,InTran!$G:$G,C68,InTran!$O:$O,$C$56,InTran!$C:$C,$T$56) -> 0 | W68: =+IFERROR(T68/SUM($T$58:$T$79),0) -> 0 | X68: =+SUMIFS(InTran!$R:$R,InTran!$G:$G,C68,InTran!$O:$O,$C$56,InTran!$C:$C,$X$56) -> 0 | Y68: =+SUMIFS(InTran!$S:$S,InTran!$G:$G,C68,InTran!$O:$O,$C$56,InTran!$C:$C,$X$56) -> 0 | Z68: =+SUMIFS(InTran!$M:$M,InTran!$G:$G,C68,InTran!$O:$O,$C$56,InTran!$C:$C,$X$56) -> 0 | AA68: =+IFERROR(X68/SUM($X$58:$X$79),0) -> 0 | AB68: =+SUMIFS(InTran!$R:$R,InTran!$G:$G,C68,InTran!$O:$O,$C$56) -> 3948527.01 | AC68: =+SUMIFS(InTran!$S:$S,InTran!$G:$G,C68,InTran!$O:$O,$C$56) -> 8266.52 | AD68: =+SUMIFS(InTran!$M:$M,InTran!$G:$G,C68,InTran!$O:$O,$C$56) -> 5254.75 | AE68: =+IFERROR(AB68/SUM($AB$58:$AB$79),0) -> 0.01034843642 | AF68: =+RANK(AB68,$AB$58:$AB$79) -> 11
C69: ALLIANCE INVESTMENT BANK BERHAD | D69: =+SUMIFS(InTran!$R:$R,InTran!$G:$G,C69,InTran!$O:$O,$C$56,InTran!$C:$C,$D$56) -> 0 | E69: =+SUMIFS(InTran!$S:$S,InTran!$G:$G,C69,InTran!$O:$O,$C$56,InTran!$C:$C,$D$56) -> 0 | F69: =+SUMIFS(InTran!$M:$M,InTran!$G:$G,C69,InTran!$O:$O,$C$56,InTran!$C:$C,$D$56) -> 0 | G69: =+IFERROR(D69/SUM($D$58:$D$79),0) -> 0 | H69: =+SUMIFS(InTran!$R:$R,InTran!$G:$G,C69,InTran!$O:$O,$C$56,InTran!$C:$C,$H$56) -> 0 | I69: =+SUMIFS(InTran!$S:$S,InTran!$G:$G,C69,InTran!$O:$O,$C$56,InTran!$C:$C,$H$56) -> 0 | J69: =+SUMIFS(InTran!$M:$M,InTran!$G:$G,C69,InTran!$O:$O,$C$56,InTran!$C:$C,$H$56) -> 0 | K69: =+IFERROR(H69/SUM($H$58:$H$79),0) -> 0 | L69: =+SUMIFS(InTran!$R:$R,InTran!$G:$G,C69,InTran!$O:$O,$C$56,InTran!$C:$C,$L$56) -> 0 | M69: =+SUMIFS(InTran!$S:$S,InTran!$G:$G,C69,InTran!$O:$O,$C$56,InTran!$C:$C,$L$56) -> 0 | N69: =+SUMIFS(InTran!$M:$M,InTran!$G:$G,C69,InTran!$O:$O,$C$56,InTran!$C:$C,$L$56) -> 0 | O69: =+IFERROR(L69/SUM($L$58:$L$79),0) -> 0 | P69: =+SUMIFS(InTran!$R:$R,InTran!$G:$G,C69,InTran!$O:$O,$C$56,InTran!$C:$C,$P$56) -> 0 | Q69: =+SUMIFS(InTran!$S:$S,InTran!$G:$G,C69,InTran!$O:$O,$C$56,InTran!$C:$C,$P$56) -> 0 | R69: =+SUMIFS(InTran!$M:$M,InTran!$G:$G,C69,InTran!$O:$O,$C$56,InTran!$C:$C,$P$56) -> 0 | S69: =+IFERROR(P69/SUM($P$58:$P$79),0) -> 0 | T69: =+SUMIFS(InTran!$R:$R,InTran!$G:$G,C69,InTran!$O:$O,$C$56,InTran!$C:$C,$T$56) -> 0 | U69: =+SUMIFS(InTran!$S:$S,InTran!$G:$G,C69,InTran!$O:$O,$C$56,InTran!$C:$C,$T$56) -> 0 | V69: =+SUMIFS(InTran!$M:$M,InTran!$G:$G,C69,InTran!$O:$O,$C$56,InTran!$C:$C,$T$56) -> 0 | W69: =+IFERROR(T69/SUM($T$58:$T$79),0) -> 0 | X69: =+SUMIFS(InTran!$R:$R,InTran!$G:$G,C69,InTran!$O:$O,$C$56,InTran!$C:$C,$X$56) -> 0 | Y69: =+SUMIFS(InTran!$S:$S,InTran!$G:$G,C69,InTran!$O:$O,$C$56,InTran!$C:$C,$X$56) -> 0 | Z69: =+SUMIFS(InTran!$M:$M,InTran!$G:$G,C69,InTran!$O:$O,$C$56,InTran!$C:$C,$X$56) -> 0 | AA69: =+IFERROR(X69/SUM($X$58:$X$79),0) -> 0 | AB69: =+SUMIFS(InTran!$R:$R,InTran!$G:$G,C69,InTran!$O:$O,$C$56) -> 0 | AC69: =+SUMIFS(InTran!$S:$S,InTran!$G:$G,C69,InTran!$O:$O,$C$56) -> 0 | AD69: =+SUMIFS(InTran!$M:$M,InTran!$G:$G,C69,InTran!$O:$O,$C$56) -> 0 | AE69: =+IFERROR(AB69/SUM($AB$58:$AB$79),0) -> 0 | AF69: =+RANK(AB69,$AB$58:$AB$79) -> 12
C70: AMINVESTMENT BANK BHD | D70: =+SUMIFS(InTran!$R:$R,InTran!$G:$G,C70,InTran!$O:$O,$C$56,InTran!$C:$C,$D$56) -> 0 | E70: =+SUMIFS(InTran!$S:$S,InTran!$G:$G,C70,InTran!$O:$O,$C$56,InTran!$C:$C,$D$56) -> 0 | F70: =+SUMIFS(InTran!$M:$M,InTran!$G:$G,C70,InTran!$O:$O,$C$56,InTran!$C:$C,$D$56) -> 0 | G70: =+IFERROR(D70/SUM($D$58:$D$79),0) -> 0 | H70: =+SUMIFS(InTran!$R:$R,InTran!$G:$G,C70,InTran!$O:$O,$C$56,InTran!$C:$C,$H$56) -> 0 | I70: =+SUMIFS(InTran!$S:$S,InTran!$G:$G,C70,InTran!$O:$O,$C$56,InTran!$C:$C,$H$56) -> 0 | J70: =+SUMIFS(InTran!$M:$M,InTran!$G:$G,C70,InTran!$O:$O,$C$56,InTran!$C:$C,$H$56) -> 0 | K70: =+IFERROR(H70/SUM($H$58:$H$79),0) -> 0 | L70: =+SUMIFS(InTran!$R:$R,InTran!$G:$G,C70,InTran!$O:$O,$C$56,InTran!$C:$C,$L$56) -> 0 | M70: =+SUMIFS(InTran!$S:$S,InTran!$G:$G,C70,InTran!$O:$O,$C$56,InTran!$C:$C,$L$56) -> 0 | N70: =+SUMIFS(InTran!$M:$M,InTran!$G:$G,C70,InTran!$O:$O,$C$56,InTran!$C:$C,$L$56) -> 0 | O70: =+IFERROR(L70/SUM($L$58:$L$79),0) -> 0 | P70: =+SUMIFS(InTran!$R:$R,InTran!$G:$G,C70,InTran!$O:$O,$C$56,InTran!$C:$C,$P$56) -> 0 | Q70: =+SUMIFS(InTran!$S:$S,InTran!$G:$G,C70,InTran!$O:$O,$C$56,InTran!$C:$C,$P$56) -> 0 | R70: =+SUMIFS(InTran!$M:$M,InTran!$G:$G,C70,InTran!$O:$O,$C$56,InTran!$C:$C,$P$56) -> 0 | S70: =+IFERROR(P70/SUM($P$58:$P$79),0) -> 0 | T70: =+SUMIFS(InTran!$R:$R,InTran!$G:$G,C70,InTran!$O:$O,$C$56,InTran!$C:$C,$T$56) -> 0 | U70: =+SUMIFS(InTran!$S:$S,InTran!$G:$G,C70,InTran!$O:$O,$C$56,InTran!$C:$C,$T$56) -> 0 | V70: =+SUMIFS(InTran!$M:$M,InTran!$G:$G,C70,InTran!$O:$O,$C$56,InTran!$C:$C,$T$56) -> 0 | W70: =+IFERROR(T70/SUM($T$58:$T$79),0) -> 0 | X70: =+SUMIFS(InTran!$R:$R,InTran!$G:$G,C70,InTran!$O:$O,$C$56,InTran!$C:$C,$X$56) -> 0 | Y70: =+SUMIFS(InTran!$S:$S,InTran!$G:$G,C70,InTran!$O:$O,$C$56,InTran!$C:$C,$X$56) -> 0 | Z70: =+SUMIFS(InTran!$M:$M,InTran!$G:$G,C70,InTran!$O:$O,$C$56,InTran!$C:$C,$X$56) -> 0 | AA70: =+IFERROR(X70/SUM($X$58:$X$79),0) -> 0 | AB70: =+SUMIFS(InTran!$R:$R,InTran!$G:$G,C70,InTran!$O:$O,$C$56) -> 0 | AC70: =+SUMIFS(InTran!$S:$S,InTran!$G:$G,C70,InTran!$O:$O,$C$56) -> 0 | AD70: =+SUMIFS(InTran!$M:$M,InTran!$G:$G,C70,InTran!$O:$O,$C$56) -> 0 | AE70: =+IFERROR(AB70/SUM($AB$58:$AB$79),0) -> 0 | AF70: =+RANK(AB70,$AB$58:$AB$79) -> 12
C71: BIMB SECURITIES SDN BHD | D71: =+SUMIFS(InTran!$R:$R,InTran!$G:$G,C71,InTran!$O:$O,$C$56,InTran!$C:$C,$D$56) -> 0 | E71: =+SUMIFS(InTran!$S:$S,InTran!$G:$G,C71,InTran!$O:$O,$C$56,InTran!$C:$C,$D$56) -> 0 | F71: =+SUMIFS(InTran!$M:$M,InTran!$G:$G,C71,InTran!$O:$O,$C$56,InTran!$C:$C,$D$56) -> 0 | G71: =+IFERROR(D71/SUM($D$58:$D$79),0) -> 0 | H71: =+SUMIFS(InTran!$R:$R,InTran!$G:$G,C71,InTran!$O:$O,$C$56,InTran!$C:$C,$H$56) -> 0 | I71: =+SUMIFS(InTran!$S:$S,InTran!$G:$G,C71,InTran!$O:$O,$C$56,InTran!$C:$C,$H$56) -> 0 | J71: =+SUMIFS(InTran!$M:$M,InTran!$G:$G,C71,InTran!$O:$O,$C$56,InTran!$C:$C,$H$56) -> 0 | K71: =+IFERROR(H71/SUM($H$58:$H$79),0) -> 0 | L71: =+SUMIFS(InTran!$R:$R,InTran!$G:$G,C71,InTran!$O:$O,$C$56,InTran!$C:$C,$L$56) -> 0 | M71: =+SUMIFS(InTran!$S:$S,InTran!$G:$G,C71,InTran!$O:$O,$C$56,InTran!$C:$C,$L$56) -> 0 | N71: =+SUMIFS(InTran!$M:$M,InTran!$G:$G,C71,InTran!$O:$O,$C$56,InTran!$C:$C,$L$56) -> 0 | O71: =+IFERROR(L71/SUM($L$58:$L$79),0) -> 0 | P71: =+SUMIFS(InTran!$R:$R,InTran!$G:$G,C71,InTran!$O:$O,$C$56,InTran!$C:$C,$P$56) -> 0 | Q71: =+SUMIFS(InTran!$S:$S,InTran!$G:$G,C71,InTran!$O:$O,$C$56,InTran!$C:$C,$P$56) -> 0 | R71: =+SUMIFS(InTran!$M:$M,InTran!$G:$G,C71,InTran!$O:$O,$C$56,InTran!$C:$C,$P$56) -> 0 | S71: =+IFERROR(P71/SUM($P$58:$P$79),0) -> 0 | T71: =+SUMIFS(InTran!$R:$R,InTran!$G:$G,C71,InTran!$O:$O,$C$56,InTran!$C:$C,$T$56) -> 0 | U71: =+SUMIFS(InTran!$S:$S,InTran!$G:$G,C71,InTran!$O:$O,$C$56,InTran!$C:$C,$T$56) -> 0 | V71: =+SUMIFS(InTran!$M:$M,InTran!$G:$G,C71,InTran!$O:$O,$C$56,InTran!$C:$C,$T$56) -> 0 | W71: =+IFERROR(T71/SUM($T$58:$T$79),0) -> 0 | X71: =+SUMIFS(InTran!$R:$R,InTran!$G:$G,C71,InTran!$O:$O,$C$56,InTran!$C:$C,$X$56) -> 0 | Y71: =+SUMIFS(InTran!$S:$S,InTran!$G:$G,C71,InTran!$O:$O,$C$56,InTran!$C:$C,$X$56) -> 0 | Z71: =+SUMIFS(InTran!$M:$M,InTran!$G:$G,C71,InTran!$O:$O,$C$56,InTran!$C:$C,$X$56) -> 0 | AA71: =+IFERROR(X71/SUM($X$58:$X$79),0) -> 0 | AB71: =+SUMIFS(InTran!$R:$R,InTran!$G:$G,C71,InTran!$O:$O,$C$56) -> 0 | AC71: =+SUMIFS(InTran!$S:$S,InTran!$G:$G,C71,InTran!$O:$O,$C$56) -> 0 | AD71: =+SUMIFS(InTran!$M:$M,InTran!$G:$G,C71,InTran!$O:$O,$C$56) -> 0 | AE71: =+IFERROR(AB71/SUM($AB$58:$AB$79),0) -> 0 | AF71: =+RANK(AB71,$AB$58:$AB$79) -> 12
C72: CIMB INVESTMENT BANK BHD (FOREIGN) | D72: =+SUMIFS(InTran!$R:$R,InTran!$G:$G,C72,InTran!$O:$O,$C$56,InTran!$C:$C,$D$56) -> 0 | E72: =+SUMIFS(InTran!$S:$S,InTran!$G:$G,C72,InTran!$O:$O,$C$56,InTran!$C:$C,$D$56) -> 0 | F72: =+SUMIFS(InTran!$M:$M,InTran!$G:$G,C72,InTran!$O:$O,$C$56,InTran!$C:$C,$D$56) -> 0 | G72: =+IFERROR(D72/SUM($D$58:$D$79),0) -> 0 | H72: =+SUMIFS(InTran!$R:$R,InTran!$G:$G,C72,InTran!$O:$O,$C$56,InTran!$C:$C,$H$56) -> 0 | I72: =+SUMIFS(InTran!$S:$S,InTran!$G:$G,C72,InTran!$O:$O,$C$56,InTran!$C:$C,$H$56) -> 0 | J72: =+SUMIFS(InTran!$M:$M,InTran!$G:$G,C72,InTran!$O:$O,$C$56,InTran!$C:$C,$H$56) -> 0 | K72: =+IFERROR(H72/SUM($H$58:$H$79),0) -> 0 | L72: =+SUMIFS(InTran!$R:$R,InTran!$G:$G,C72,InTran!$O:$O,$C$56,InTran!$C:$C,$L$56) -> 0 | M72: =+SUMIFS(InTran!$S:$S,InTran!$G:$G,C72,InTran!$O:$O,$C$56,InTran!$C:$C,$L$56) -> 0 | N72: =+SUMIFS(InTran!$M:$M,InTran!$G:$G,C72,InTran!$O:$O,$C$56,InTran!$C:$C,$L$56) -> 0 | O72: =+IFERROR(L72/SUM($L$58:$L$79),0) -> 0 | P72: =+SUMIFS(InTran!$R:$R,InTran!$G:$G,C72,InTran!$O:$O,$C$56,InTran!$C:$C,$P$56) -> 0 | Q72: =+SUMIFS(InTran!$S:$S,InTran!$G:$G,C72,InTran!$O:$O,$C$56,InTran!$C:$C,$P$56) -> 0 | R72: =+SUMIFS(InTran!$M:$M,InTran!$G:$G,C72,InTran!$O:$O,$C$56,InTran!$C:$C,$P$56) -> 0 | S72: =+IFERROR(P72/SUM($P$58:$P$79),0) -> 0 | T72: =+SUMIFS(InTran!$R:$R,InTran!$G:$G,C72,InTran!$O:$O,$C$56,InTran!$C:$C,$T$56) -> 0 | U72: =+SUMIFS(InTran!$S:$S,InTran!$G:$G,C72,InTran!$O:$O,$C$56,InTran!$C:$C,$T$56) -> 0 | V72: =+SUMIFS(InTran!$M:$M,InTran!$G:$G,C72,InTran!$O:$O,$C$56,InTran!$C:$C,$T$56) -> 0 | W72: =+IFERROR(T72/SUM($T$58:$T$79),0) -> 0 | X72: =+SUMIFS(InTran!$R:$R,InTran!$G:$G,C72,InTran!$O:$O,$C$56,InTran!$C:$C,$X$56) -> 0 | Y72: =+SUMIFS(InTran!$S:$S,InTran!$G:$G,C72,InTran!$O:$O,$C$56,InTran!$C:$C,$X$56) -> 0 | Z72: =+SUMIFS(InTran!$M:$M,InTran!$G:$G,C72,InTran!$O:$O,$C$56,InTran!$C:$C,$X$56) -> 0 | AA72: =+IFERROR(X72/SUM($X$58:$X$79),0) -> 0 | AB72: =+SUMIFS(InTran!$R:$R,InTran!$G:$G,C72,InTran!$O:$O,$C$56) -> 0 | AC72: =+SUMIFS(InTran!$S:$S,InTran!$G:$G,C72,InTran!$O:$O,$C$56) -> 0 | AD72: =+SUMIFS(InTran!$M:$M,InTran!$G:$G,C72,InTran!$O:$O,$C$56) -> 0 | AE72: =+IFERROR(AB72/SUM($AB$58:$AB$79),0) -> 0 | AF72: =+RANK(AB72,$AB$58:$AB$79) -> 12
C73: CLSA LIMITED FOREIGN | D73: =+SUMIFS(InTran!$R:$R,InTran!$G:$G,C73,InTran!$O:$O,$C$56,InTran!$C:$C,$D$56) -> 0 | E73: =+SUMIFS(InTran!$S:$S,InTran!$G:$G,C73,InTran!$O:$O,$C$56,InTran!$C:$C,$D$56) -> 0 | F73: =+SUMIFS(InTran!$M:$M,InTran!$G:$G,C73,InTran!$O:$O,$C$56,InTran!$C:$C,$D$56) -> 0 | G73: =+IFERROR(D73/SUM($D$58:$D$79),0) -> 0 | H73: =+SUMIFS(InTran!$R:$R,InTran!$G:$G,C73,InTran!$O:$O,$C$56,InTran!$C:$C,$H$56) -> 0 | I73: =+SUMIFS(InTran!$S:$S,InTran!$G:$G,C73,InTran!$O:$O,$C$56,InTran!$C:$C,$H$56) -> 0 | J73: =+SUMIFS(InTran!$M:$M,InTran!$G:$G,C73,InTran!$O:$O,$C$56,InTran!$C:$C,$H$56) -> 0 | K73: =+IFERROR(H73/SUM($H$58:$H$79),0) -> 0 | L73: =+SUMIFS(InTran!$R:$R,InTran!$G:$G,C73,InTran!$O:$O,$C$56,InTran!$C:$C,$L$56) -> 0 | M73: =+SUMIFS(InTran!$S:$S,InTran!$G:$G,C73,InTran!$O:$O,$C$56,InTran!$C:$C,$L$56) -> 0 | N73: =+SUMIFS(InTran!$M:$M,InTran!$G:$G,C73,InTran!$O:$O,$C$56,InTran!$C:$C,$L$56) -> 0 | O73: =+IFERROR(L73/SUM($L$58:$L$79),0) -> 0 | P73: =+SUMIFS(InTran!$R:$R,InTran!$G:$G,C73,InTran!$O:$O,$C$56,InTran!$C:$C,$P$56) -> 0 | Q73: =+SUMIFS(InTran!$S:$S,InTran!$G:$G,C73,InTran!$O:$O,$C$56,InTran!$C:$C,$P$56) -> 0 | R73: =+SUMIFS(InTran!$M:$M,InTran!$G:$G,C73,InTran!$O:$O,$C$56,InTran!$C:$C,$P$56) -> 0 | S73: =+IFERROR(P73/SUM($P$58:$P$79),0) -> 0 | T73: =+SUMIFS(InTran!$R:$R,InTran!$G:$G,C73,InTran!$O:$O,$C$56,InTran!$C:$C,$T$56) -> 0 | U73: =+SUMIFS(InTran!$S:$S,InTran!$G:$G,C73,InTran!$O:$O,$C$56,InTran!$C:$C,$T$56) -> 0 | V73: =+SUMIFS(InTran!$M:$M,InTran!$G:$G,C73,InTran!$O:$O,$C$56,InTran!$C:$C,$T$56) -> 0 | W73: =+IFERROR(T73/SUM($T$58:$T$79),0) -> 0 | X73: =+SUMIFS(InTran!$R:$R,InTran!$G:$G,C73,InTran!$O:$O,$C$56,InTran!$C:$C,$X$56) -> 0 | Y73: =+SUMIFS(InTran!$S:$S,InTran!$G:$G,C73,InTran!$O:$O,$C$56,InTran!$C:$C,$X$56) -> 0 | Z73: =+SUMIFS(InTran!$M:$M,InTran!$G:$G,C73,InTran!$O:$O,$C$56,InTran!$C:$C,$X$56) -> 0 | AA73: =+IFERROR(X73/SUM($X$58:$X$79),0) -> 0 | AB73: =+SUMIFS(InTran!$R:$R,InTran!$G:$G,C73,InTran!$O:$O,$C$56) -> 0 | AC73: =+SUMIFS(InTran!$S:$S,InTran!$G:$G,C73,InTran!$O:$O,$C$56) -> 0 | AD73: =+SUMIFS(InTran!$M:$M,InTran!$G:$G,C73,InTran!$O:$O,$C$56) -> 0 | AE73: =+IFERROR(AB73/SUM($AB$58:$AB$79),0) -> 0 | AF73: =+RANK(AB73,$AB$58:$AB$79) -> 12
C74: MACQUARIE CAPITAL SECURITIES (MALAYSIA) SDN BHD (FOREIGN) | D74: =+SUMIFS(InTran!$R:$R,InTran!$G:$G,C74,InTran!$O:$O,$C$56,InTran!$C:$C,$D$56) -> 0 | E74: =+SUMIFS(InTran!$S:$S,InTran!$G:$G,C74,InTran!$O:$O,$C$56,InTran!$C:$C,$D$56) -> 0 | F74: =+SUMIFS(InTran!$M:$M,InTran!$G:$G,C74,InTran!$O:$O,$C$56,InTran!$C:$C,$D$56) -> 0 | G74: =+IFERROR(D74/SUM($D$58:$D$79),0) -> 0 | H74: =+SUMIFS(InTran!$R:$R,InTran!$G:$G,C74,InTran!$O:$O,$C$56,InTran!$C:$C,$H$56) -> 0 | I74: =+SUMIFS(InTran!$S:$S,InTran!$G:$G,C74,InTran!$O:$O,$C$56,InTran!$C:$C,$H$56) -> 0 | J74: =+SUMIFS(InTran!$M:$M,InTran!$G:$G,C74,InTran!$O:$O,$C$56,InTran!$C:$C,$H$56) -> 0 | K74: =+IFERROR(H74/SUM($H$58:$H$79),0) -> 0 | L74: =+SUMIFS(InTran!$R:$R,InTran!$G:$G,C74,InTran!$O:$O,$C$56,InTran!$C:$C,$L$56) -> 0 | M74: =+SUMIFS(InTran!$S:$S,InTran!$G:$G,C74,InTran!$O:$O,$C$56,InTran!$C:$C,$L$56) -> 0 | N74: =+SUMIFS(InTran!$M:$M,InTran!$G:$G,C74,InTran!$O:$O,$C$56,InTran!$C:$C,$L$56) -> 0 | O74: =+IFERROR(L74/SUM($L$58:$L$79),0) -> 0 | P74: =+SUMIFS(InTran!$R:$R,InTran!$G:$G,C74,InTran!$O:$O,$C$56,InTran!$C:$C,$P$56) -> 0 | Q74: =+SUMIFS(InTran!$S:$S,InTran!$G:$G,C74,InTran!$O:$O,$C$56,InTran!$C:$C,$P$56) -> 0 | R74: =+SUMIFS(InTran!$M:$M,InTran!$G:$G,C74,InTran!$O:$O,$C$56,InTran!$C:$C,$P$56) -> 0 | S74: =+IFERROR(P74/SUM($P$58:$P$79),0) -> 0 | T74: =+SUMIFS(InTran!$R:$R,InTran!$G:$G,C74,InTran!$O:$O,$C$56,InTran!$C:$C,$T$56) -> 0 | U74: =+SUMIFS(InTran!$S:$S,InTran!$G:$G,C74,InTran!$O:$O,$C$56,InTran!$C:$C,$T$56) -> 0 | V74: =+SUMIFS(InTran!$M:$M,InTran!$G:$G,C74,InTran!$O:$O,$C$56,InTran!$C:$C,$T$56) -> 0 | W74: =+IFERROR(T74/SUM($T$58:$T$79),0) -> 0 | X74: =+SUMIFS(InTran!$R:$R,InTran!$G:$G,C74,InTran!$O:$O,$C$56,InTran!$C:$C,$X$56) -> 0 | Y74: =+SUMIFS(InTran!$S:$S,InTran!$G:$G,C74,InTran!$O:$O,$C$56,InTran!$C:$C,$X$56) -> 0 | Z74: =+SUMIFS(InTran!$M:$M,InTran!$G:$G,C74,InTran!$O:$O,$C$56,InTran!$C:$C,$X$56) -> 0 | AA74: =+IFERROR(X74/SUM($X$58:$X$79),0) -> 0 | AB74: =+SUMIFS(InTran!$R:$R,InTran!$G:$G,C74,InTran!$O:$O,$C$56) -> 0 | AC74: =+SUMIFS(InTran!$S:$S,InTran!$G:$G,C74,InTran!$O:$O,$C$56) -> 0 | AD74: =+SUMIFS(InTran!$M:$M,InTran!$G:$G,C74,InTran!$O:$O,$C$56) -> 0 | AE74: =+IFERROR(AB74/SUM($AB$58:$AB$79),0) -> 0 | AF74: =+RANK(AB74,$AB$58:$AB$79) -> 12
C75: MAYBANK INVESTMENT BANK BHD (FOREIGN) | D75: =+SUMIFS(InTran!$R:$R,InTran!$G:$G,C75,InTran!$O:$O,$C$56,InTran!$C:$C,$D$56) -> 0 | E75: =+SUMIFS(InTran!$S:$S,InTran!$G:$G,C75,InTran!$O:$O,$C$56,InTran!$C:$C,$D$56) -> 0 | F75: =+SUMIFS(InTran!$M:$M,InTran!$G:$G,C75,InTran!$O:$O,$C$56,InTran!$C:$C,$D$56) -> 0 | G75: =+IFERROR(D75/SUM($D$58:$D$79),0) -> 0 | H75: =+SUMIFS(InTran!$R:$R,InTran!$G:$G,C75,InTran!$O:$O,$C$56,InTran!$C:$C,$H$56) -> 0 | I75: =+SUMIFS(InTran!$S:$S,InTran!$G:$G,C75,InTran!$O:$O,$C$56,InTran!$C:$C,$H$56) -> 0 | J75: =+SUMIFS(InTran!$M:$M,InTran!$G:$G,C75,InTran!$O:$O,$C$56,InTran!$C:$C,$H$56) -> 0 | K75: =+IFERROR(H75/SUM($H$58:$H$79),0) -> 0 | L75: =+SUMIFS(InTran!$R:$R,InTran!$G:$G,C75,InTran!$O:$O,$C$56,InTran!$C:$C,$L$56) -> 0 | M75: =+SUMIFS(InTran!$S:$S,InTran!$G:$G,C75,InTran!$O:$O,$C$56,InTran!$C:$C,$L$56) -> 0 | N75: =+SUMIFS(InTran!$M:$M,InTran!$G:$G,C75,InTran!$O:$O,$C$56,InTran!$C:$C,$L$56) -> 0 | O75: =+IFERROR(L75/SUM($L$58:$L$79),0) -> 0 | P75: =+SUMIFS(InTran!$R:$R,InTran!$G:$G,C75,InTran!$O:$O,$C$56,InTran!$C:$C,$P$56) -> 0 | Q75: =+SUMIFS(InTran!$S:$S,InTran!$G:$G,C75,InTran!$O:$O,$C$56,InTran!$C:$C,$P$56) -> 0 | R75: =+SUMIFS(InTran!$M:$M,InTran!$G:$G,C75,InTran!$O:$O,$C$56,InTran!$C:$C,$P$56) -> 0 | S75: =+IFERROR(P75/SUM($P$58:$P$79),0) -> 0 | T75: =+SUMIFS(InTran!$R:$R,InTran!$G:$G,C75,InTran!$O:$O,$C$56,InTran!$C:$C,$T$56) -> 0 | U75: =+SUMIFS(InTran!$S:$S,InTran!$G:$G,C75,InTran!$O:$O,$C$56,InTran!$C:$C,$T$56) -> 0 | V75: =+SUMIFS(InTran!$M:$M,InTran!$G:$G,C75,InTran!$O:$O,$C$56,InTran!$C:$C,$T$56) -> 0 | W75: =+IFERROR(T75/SUM($T$58:$T$79),0) -> 0 | X75: =+SUMIFS(InTran!$R:$R,InTran!$G:$G,C75,InTran!$O:$O,$C$56,InTran!$C:$C,$X$56) -> 0 | Y75: =+SUMIFS(InTran!$S:$S,InTran!$G:$G,C75,InTran!$O:$O,$C$56,InTran!$C:$C,$X$56) -> 0 | Z75: =+SUMIFS(InTran!$M:$M,InTran!$G:$G,C75,InTran!$O:$O,$C$56,InTran!$C:$C,$X$56) -> 0 | AA75: =+IFERROR(X75/SUM($X$58:$X$79),0) -> 0 | AB75: =+SUMIFS(InTran!$R:$R,InTran!$G:$G,C75,InTran!$O:$O,$C$56) -> 0 | AC75: =+SUMIFS(InTran!$S:$S,InTran!$G:$G,C75,InTran!$O:$O,$C$56) -> 0 | AD75: =+SUMIFS(InTran!$M:$M,InTran!$G:$G,C75,InTran!$O:$O,$C$56) -> 0 | AE75: =+IFERROR(AB75/SUM($AB$58:$AB$79),0) -> 0 | AF75: =+RANK(AB75,$AB$58:$AB$79) -> 12
C76: MIDF AMANAH INVESTMENT BANK BHD | D76: =+SUMIFS(InTran!$R:$R,InTran!$G:$G,C76,InTran!$O:$O,$C$56,InTran!$C:$C,$D$56) -> 0 | E76: =+SUMIFS(InTran!$S:$S,InTran!$G:$G,C76,InTran!$O:$O,$C$56,InTran!$C:$C,$D$56) -> 0 | F76: =+SUMIFS(InTran!$M:$M,InTran!$G:$G,C76,InTran!$O:$O,$C$56,InTran!$C:$C,$D$56) -> 0 | G76: =+IFERROR(D76/SUM($D$58:$D$79),0) -> 0 | H76: =+SUMIFS(InTran!$R:$R,InTran!$G:$G,C76,InTran!$O:$O,$C$56,InTran!$C:$C,$H$56) -> 0 | I76: =+SUMIFS(InTran!$S:$S,InTran!$G:$G,C76,InTran!$O:$O,$C$56,InTran!$C:$C,$H$56) -> 0 | J76: =+SUMIFS(InTran!$M:$M,InTran!$G:$G,C76,InTran!$O:$O,$C$56,InTran!$C:$C,$H$56) -> 0 | K76: =+IFERROR(H76/SUM($H$58:$H$79),0) -> 0 | L76: =+SUMIFS(InTran!$R:$R,InTran!$G:$G,C76,InTran!$O:$O,$C$56,InTran!$C:$C,$L$56) -> 0 | M76: =+SUMIFS(InTran!$S:$S,InTran!$G:$G,C76,InTran!$O:$O,$C$56,InTran!$C:$C,$L$56) -> 0 | N76: =+SUMIFS(InTran!$M:$M,InTran!$G:$G,C76,InTran!$O:$O,$C$56,InTran!$C:$C,$L$56) -> 0 | O76: =+IFERROR(L76/SUM($L$58:$L$79),0) -> 0 | P76: =+SUMIFS(InTran!$R:$R,InTran!$G:$G,C76,InTran!$O:$O,$C$56,InTran!$C:$C,$P$56) -> 0 | Q76: =+SUMIFS(InTran!$S:$S,InTran!$G:$G,C76,InTran!$O:$O,$C$56,InTran!$C:$C,$P$56) -> 0 | R76: =+SUMIFS(InTran!$M:$M,InTran!$G:$G,C76,InTran!$O:$O,$C$56,InTran!$C:$C,$P$56) -> 0 | S76: =+IFERROR(P76/SUM($P$58:$P$79),0) -> 0 | T76: =+SUMIFS(InTran!$R:$R,InTran!$G:$G,C76,InTran!$O:$O,$C$56,InTran!$C:$C,$T$56) -> 0 | U76: =+SUMIFS(InTran!$S:$S,InTran!$G:$G,C76,InTran!$O:$O,$C$56,InTran!$C:$C,$T$56) -> 0 | V76: =+SUMIFS(InTran!$M:$M,InTran!$G:$G,C76,InTran!$O:$O,$C$56,InTran!$C:$C,$T$56) -> 0 | W76: =+IFERROR(T76/SUM($T$58:$T$79),0) -> 0 | X76: =+SUMIFS(InTran!$R:$R,InTran!$G:$G,C76,InTran!$O:$O,$C$56,InTran!$C:$C,$X$56) -> 0 | Y76: =+SUMIFS(InTran!$S:$S,InTran!$G:$G,C76,InTran!$O:$O,$C$56,InTran!$C:$C,$X$56) -> 0 | Z76: =+SUMIFS(InTran!$M:$M,InTran!$G:$G,C76,InTran!$O:$O,$C$56,InTran!$C:$C,$X$56) -> 0 | AA76: =+IFERROR(X76/SUM($X$58:$X$79),0) -> 0 | AB76: =+SUMIFS(InTran!$R:$R,InTran!$G:$G,C76,InTran!$O:$O,$C$56) -> 0 | AC76: =+SUMIFS(InTran!$S:$S,InTran!$G:$G,C76,InTran!$O:$O,$C$56) -> 0 | AD76: =+SUMIFS(InTran!$M:$M,InTran!$G:$G,C76,InTran!$O:$O,$C$56) -> 0 | AE76: =+IFERROR(AB76/SUM($AB$58:$AB$79),0) -> 0 | AF76: =+RANK(AB76,$AB$58:$AB$79) -> 12
C77: NOT APPLICABLE | D77: =+SUMIFS(InTran!$R:$R,InTran!$G:$G,C77,InTran!$O:$O,$C$56,InTran!$C:$C,$D$56) -> 0 | E77: =+SUMIFS(InTran!$S:$S,InTran!$G:$G,C77,InTran!$O:$O,$C$56,InTran!$C:$C,$D$56) -> 0 | F77: =+SUMIFS(InTran!$M:$M,InTran!$G:$G,C77,InTran!$O:$O,$C$56,InTran!$C:$C,$D$56) -> 0 | G77: =+IFERROR(D77/SUM($D$58:$D$79),0) -> 0 | H77: =+SUMIFS(InTran!$R:$R,InTran!$G:$G,C77,InTran!$O:$O,$C$56,InTran!$C:$C,$H$56) -> 0 | I77: =+SUMIFS(InTran!$S:$S,InTran!$G:$G,C77,InTran!$O:$O,$C$56,InTran!$C:$C,$H$56) -> 0 | J77: =+SUMIFS(InTran!$M:$M,InTran!$G:$G,C77,InTran!$O:$O,$C$56,InTran!$C:$C,$H$56) -> 0 | K77: =+IFERROR(H77/SUM($H$58:$H$79),0) -> 0 | L77: =+SUMIFS(InTran!$R:$R,InTran!$G:$G,C77,InTran!$O:$O,$C$56,InTran!$C:$C,$L$56) -> 0 | M77: =+SUMIFS(InTran!$S:$S,InTran!$G:$G,C77,InTran!$O:$O,$C$56,InTran!$C:$C,$L$56) -> 0 | N77: =+SUMIFS(InTran!$M:$M,InTran!$G:$G,C77,InTran!$O:$O,$C$56,InTran!$C:$C,$L$56) -> 0 | O77: =+IFERROR(L77/SUM($L$58:$L$79),0) -> 0 | P77: =+SUMIFS(InTran!$R:$R,InTran!$G:$G,C77,InTran!$O:$O,$C$56,InTran!$C:$C,$P$56) -> 0 | Q77: =+SUMIFS(InTran!$S:$S,InTran!$G:$G,C77,InTran!$O:$O,$C$56,InTran!$C:$C,$P$56) -> 0 | R77: =+SUMIFS(InTran!$M:$M,InTran!$G:$G,C77,InTran!$O:$O,$C$56,InTran!$C:$C,$P$56) -> 0 | S77: =+IFERROR(P77/SUM($P$58:$P$79),0) -> 0 | T77: =+SUMIFS(InTran!$R:$R,InTran!$G:$G,C77,InTran!$O:$O,$C$56,InTran!$C:$C,$T$56) -> 0 | U77: =+SUMIFS(InTran!$S:$S,InTran!$G:$G,C77,InTran!$O:$O,$C$56,InTran!$C:$C,$T$56) -> 0 | V77: =+SUMIFS(InTran!$M:$M,InTran!$G:$G,C77,InTran!$O:$O,$C$56,InTran!$C:$C,$T$56) -> 0 | W77: =+IFERROR(T77/SUM($T$58:$T$79),0) -> 0 | X77: =+SUMIFS(InTran!$R:$R,InTran!$G:$G,C77,InTran!$O:$O,$C$56,InTran!$C:$C,$X$56) -> 0 | Y77: =+SUMIFS(InTran!$S:$S,InTran!$G:$G,C77,InTran!$O:$O,$C$56,InTran!$C:$C,$X$56) -> 0 | Z77: =+SUMIFS(InTran!$M:$M,InTran!$G:$G,C77,InTran!$O:$O,$C$56,InTran!$C:$C,$X$56) -> 0 | AA77: =+IFERROR(X77/SUM($X$58:$X$79),0) -> 0 | AB77: =+SUMIFS(InTran!$R:$R,InTran!$G:$G,C77,InTran!$O:$O,$C$56) -> 0 | AC77: =+SUMIFS(InTran!$S:$S,InTran!$G:$G,C77,InTran!$O:$O,$C$56) -> 0 | AD77: =+SUMIFS(InTran!$M:$M,InTran!$G:$G,C77,InTran!$O:$O,$C$56) -> 0 | AE77: =+IFERROR(AB77/SUM($AB$58:$AB$79),0) -> 0 | AF77: =+RANK(AB77,$AB$58:$AB$79) -> 12
C78: TA SECURITIES HOLDINGS BHD | D78: =+SUMIFS(InTran!$R:$R,InTran!$G:$G,C78,InTran!$O:$O,$C$56,InTran!$C:$C,$D$56) -> 0 | E78: =+SUMIFS(InTran!$S:$S,InTran!$G:$G,C78,InTran!$O:$O,$C$56,InTran!$C:$C,$D$56) -> 0 | F78: =+SUMIFS(InTran!$M:$M,InTran!$G:$G,C78,InTran!$O:$O,$C$56,InTran!$C:$C,$D$56) -> 0 | G78: =+IFERROR(D78/SUM($D$58:$D$79),0) -> 0 | H78: =+SUMIFS(InTran!$R:$R,InTran!$G:$G,C78,InTran!$O:$O,$C$56,InTran!$C:$C,$H$56) -> 0 | I78: =+SUMIFS(InTran!$S:$S,InTran!$G:$G,C78,InTran!$O:$O,$C$56,InTran!$C:$C,$H$56) -> 0 | J78: =+SUMIFS(InTran!$M:$M,InTran!$G:$G,C78,InTran!$O:$O,$C$56,InTran!$C:$C,$H$56) -> 0 | K78: =+IFERROR(H78/SUM($H$58:$H$79),0) -> 0 | L78: =+SUMIFS(InTran!$R:$R,InTran!$G:$G,C78,InTran!$O:$O,$C$56,InTran!$C:$C,$L$56) -> 0 | M78: =+SUMIFS(InTran!$S:$S,InTran!$G:$G,C78,InTran!$O:$O,$C$56,InTran!$C:$C,$L$56) -> 0 | N78: =+SUMIFS(InTran!$M:$M,InTran!$G:$G,C78,InTran!$O:$O,$C$56,InTran!$C:$C,$L$56) -> 0 | O78: =+IFERROR(L78/SUM($L$58:$L$79),0) -> 0 | P78: =+SUMIFS(InTran!$R:$R,InTran!$G:$G,C78,InTran!$O:$O,$C$56,InTran!$C:$C,$P$56) -> 0 | Q78: =+SUMIFS(InTran!$S:$S,InTran!$G:$G,C78,InTran!$O:$O,$C$56,InTran!$C:$C,$P$56) -> 0 | R78: =+SUMIFS(InTran!$M:$M,InTran!$G:$G,C78,InTran!$O:$O,$C$56,InTran!$C:$C,$P$56) -> 0 | S78: =+IFERROR(P78/SUM($P$58:$P$79),0) -> 0 | T78: =+SUMIFS(InTran!$R:$R,InTran!$G:$G,C78,InTran!$O:$O,$C$56,InTran!$C:$C,$T$56) -> 0 | U78: =+SUMIFS(InTran!$S:$S,InTran!$G:$G,C78,InTran!$O:$O,$C$56,InTran!$C:$C,$T$56) -> 0 | V78: =+SUMIFS(InTran!$M:$M,InTran!$G:$G,C78,InTran!$O:$O,$C$56,InTran!$C:$C,$T$56) -> 0 | W78: =+IFERROR(T78/SUM($T$58:$T$79),0) -> 0 | X78: =+SUMIFS(InTran!$R:$R,InTran!$G:$G,C78,InTran!$O:$O,$C$56,InTran!$C:$C,$X$56) -> 0 | Y78: =+SUMIFS(InTran!$S:$S,InTran!$G:$G,C78,InTran!$O:$O,$C$56,InTran!$C:$C,$X$56) -> 0 | Z78: =+SUMIFS(InTran!$M:$M,InTran!$G:$G,C78,InTran!$O:$O,$C$56,InTran!$C:$C,$X$56) -> 0 | AA78: =+IFERROR(X78/SUM($X$58:$X$79),0) -> 0 | AB78: =+SUMIFS(InTran!$R:$R,InTran!$G:$G,C78,InTran!$O:$O,$C$56) -> 0 | AC78: =+SUMIFS(InTran!$S:$S,InTran!$G:$G,C78,InTran!$O:$O,$C$56) -> 0 | AD78: =+SUMIFS(InTran!$M:$M,InTran!$G:$G,C78,InTran!$O:$O,$C$56) -> 0 | AE78: =+IFERROR(AB78/SUM($AB$58:$AB$79),0) -> 0 | AF78: =+RANK(AB78,$AB$58:$AB$79) -> 12
C79: UBS SECURITIES MALAYSIA SDN BHD | D79: =+SUMIFS(InTran!$R:$R,InTran!$G:$G,C79,InTran!$O:$O,$C$56,InTran!$C:$C,$D$56) -> 0 | E79: =+SUMIFS(InTran!$S:$S,InTran!$G:$G,C79,InTran!$O:$O,$C$56,InTran!$C:$C,$D$56) -> 0 | F79: =+SUMIFS(InTran!$M:$M,InTran!$G:$G,C79,InTran!$O:$O,$C$56,InTran!$C:$C,$D$56) -> 0 | G79: =+IFERROR(D79/SUM($D$58:$D$79),0) -> 0 | H79: =+SUMIFS(InTran!$R:$R,InTran!$G:$G,C79,InTran!$O:$O,$C$56,InTran!$C:$C,$H$56) -> 0 | I79: =+SUMIFS(InTran!$S:$S,InTran!$G:$G,C79,InTran!$O:$O,$C$56,InTran!$C:$C,$H$56) -> 0 | J79: =+SUMIFS(InTran!$M:$M,InTran!$G:$G,C79,InTran!$O:$O,$C$56,InTran!$C:$C,$H$56) -> 0 | K79: =+IFERROR(H79/SUM($H$58:$H$79),0) -> 0 | L79: =+SUMIFS(InTran!$R:$R,InTran!$G:$G,C79,InTran!$O:$O,$C$56,InTran!$C:$C,$L$56) -> 0 | M79: =+SUMIFS(InTran!$S:$S,InTran!$G:$G,C79,InTran!$O:$O,$C$56,InTran!$C:$C,$L$56) -> 0 | N79: =+SUMIFS(InTran!$M:$M,InTran!$G:$G,C79,InTran!$O:$O,$C$56,InTran!$C:$C,$L$56) -> 0 | O79: =+IFERROR(L79/SUM($L$58:$L$79),0) -> 0 | P79: =+SUMIFS(InTran!$R:$R,InTran!$G:$G,C79,InTran!$O:$O,$C$56,InTran!$C:$C,$P$56) -> 0 | Q79: =+SUMIFS(InTran!$S:$S,InTran!$G:$G,C79,InTran!$O:$O,$C$56,InTran!$C:$C,$P$56) -> 0 | R79: =+SUMIFS(InTran!$M:$M,InTran!$G:$G,C79,InTran!$O:$O,$C$56,InTran!$C:$C,$P$56) -> 0 | S79: =+IFERROR(P79/SUM($P$58:$P$79),0) -> 0 | T79: =+SUMIFS(InTran!$R:$R,InTran!$G:$G,C79,InTran!$O:$O,$C$56,InTran!$C:$C,$T$56) -> 0 | U79: =+SUMIFS(InTran!$S:$S,InTran!$G:$G,C79,InTran!$O:$O,$C$56,InTran!$C:$C,$T$56) -> 0 | V79: =+SUMIFS(InTran!$M:$M,InTran!$G:$G,C79,InTran!$O:$O,$C$56,InTran!$C:$C,$T$56) -> 0 | W79: =+IFERROR(T79/SUM($T$58:$T$79),0) -> 0 | X79: =+SUMIFS(InTran!$R:$R,InTran!$G:$G,C79,InTran!$O:$O,$C$56,InTran!$C:$C,$X$56) -> 0 | Y79: =+SUMIFS(InTran!$S:$S,InTran!$G:$G,C79,InTran!$O:$O,$C$56,InTran!$C:$C,$X$56) -> 0 | Z79: =+SUMIFS(InTran!$M:$M,InTran!$G:$G,C79,InTran!$O:$O,$C$56,InTran!$C:$C,$X$56) -> 0 | AA79: =+IFERROR(X79/SUM($X$58:$X$79),0) -> 0 | AB79: =+SUMIFS(InTran!$R:$R,InTran!$G:$G,C79,InTran!$O:$O,$C$56) -> 0 | AC79: =+SUMIFS(InTran!$S:$S,InTran!$G:$G,C79,InTran!$O:$O,$C$56) -> 0 | AD79: =+SUMIFS(InTran!$M:$M,InTran!$G:$G,C79,InTran!$O:$O,$C$56) -> 0 | AE79: =+IFERROR(AB79/SUM($AB$58:$AB$79),0) -> 0 | AF79: =+RANK(AB79,$AB$58:$AB$79) -> 12
C80: Total | D80: =SUM(D58:D79) -> 186670411.6 | E80: =SUM(E58:E79) -> 197751.82 | F80: =SUM(F58:F79) -> 10715820.91 | G80: =SUM(G58:G79) -> 1 | H80: =SUM(H58:H79) -> 194887424.9 | I80: =SUM(I58:I79) -> 291574.14 | J80: =SUM(J58:J79) -> 7854167.02 | K80: =SUM(K58:K79) -> 1 | L80: =SUM(L58:L79) -> 0 | M80: =SUM(M58:M79) -> 0 | N80: =SUM(N58:N79) -> 0 | O80: =SUM(O58:O79) -> 0 | P80: =SUM(P58:P79) -> 0 | Q80: =SUM(Q58:Q79) -> 0 | R80: =SUM(R58:R79) -> 0 | S80: =SUM(S58:S79) -> 0 | T80: =SUM(T58:T79) -> 0 | U80: =SUM(U58:U79) -> 0 | V80: =SUM(V58:V79) -> 0 | W80: =SUM(W58:W79) -> 0 | X80: =SUM(X58:X79) -> 0 | Y80: =SUM(Y58:Y79) -> 0 | Z80: =SUM(Z58:Z79) -> 0 | AA80: =SUM(AA58:AA79) -> 0 | AB80: =SUM(AB58:AB79) -> 381557836.4 | AC80: =SUM(AC58:AC79) -> 489325.96 | AD80: =SUM(AD58:AD79) -> 18569987.93 | AE80: =SUM(AE58:AE79) -> 1
C82: KHAIRUL.ANWAR | D82: YH-AUR-VCAM | H82: KWAP | L82: MEQESG | P82: YAMIR-VCAM | T82: VCAM-TABA | X82: ASEAN5ESG | AB82: Total
C83: Brokers | D83: Trade Value (RM) | E83: Brokerage Fees (RM) | F83: Capital Gains (RM) | G83: % | H83: Trade Value (RM) | I83: Brokerage Fees (RM) | J83: Capital Gains (RM) | K83: % | L83: Trade Value (RM) | M83: Brokerage Fees (RM) | N83: Capital Gains (RM) | O83: % | P83: Trade Value (RM) | Q83: Brokerage Fees (RM) | R83: Capital Gains (RM) | S83: % | T83: Trade Value (RM) | U83: Brokerage Fees (RM) | V83: Capital Gains (RM) | W83: % | X83: Trade Value (RM) | Y83: Brokerage Fees (RM) | Z83: Capital Gains (RM) | AA83: % | AB83: Trade Value (RM) | AC83: Brokerage Fees (RM) | AD83: Capital Gains (RM) | AE83: % | AF83: Trade Value Ranking
C84: MACQUARIE CAPITAL SECURITIES (MALAYSIA) SDN BHD | D84: =+SUMIFS(InTran!$R:$R,InTran!$G:$G,C84,InTran!$O:$O,$C$82,InTran!$C:$C,$D$82) -> 0 | E84: =+SUMIFS(InTran!$S:$S,InTran!$G:$G,C84,InTran!$O:$O,$C$82,InTran!$C:$C,$D$82) -> 0 | F84: =+SUMIFS(InTran!$M:$M,InTran!$G:$G,C84,InTran!$O:$O,$C$82,InTran!$C:$C,$D$82) -> 0 | G84: =+IFERROR(D84/SUM($D$84:$D$105),0) -> 0 | H84: =+SUMIFS(InTran!$R:$R,InTran!$G:$G,C84,InTran!$O:$O,$C$82,InTran!$C:$C,$H$82) -> 46533197.08 | I84: =+SUMIFS(InTran!$S:$S,InTran!$G:$G,C84,InTran!$O:$O,$C$82,InTran!$C:$C,$H$82) -> 84490.63 | J84: =+SUMIFS(InTran!$M:$M,InTran!$G:$G,C84,InTran!$O:$O,$C$82,InTran!$C:$C,$H$82) -> 885161.03 | K84: =+IFERROR(H84/SUM($H$84:$H$105),0) -> 0.1958743422 | L84: =+SUMIFS(InTran!$R:$R,InTran!$G:$G,C84,InTran!$O:$O,$C$82,InTran!$C:$C,$L$82) -> 0 | M84: =+SUMIFS(InTran!$S:$S,InTran!$G:$G,C84,InTran!$O:$O,$C$82,InTran!$C:$C,$L$82) -> 0 | N84: =+SUMIFS(InTran!$M:$M,InTran!$G:$G,C84,InTran!$O:$O,$C$82,InTran!$C:$C,$L$82) -> 0 | O84: =+IFERROR(L84/SUM($L$84:$L$105),0) -> 0 | P84: =+SUMIFS(InTran!$R:$R,InTran!$G:$G,C84,InTran!$O:$O,$C$82,InTran!$C:$C,$P$82) -> 0 | Q84: =+SUMIFS(InTran!$S:$S,InTran!$G:$G,C84,InTran!$O:$O,$C$82,InTran!$C:$C,$P$82) -> 0 | R84: =+SUMIFS(InTran!$M:$M,InTran!$G:$G,C84,InTran!$O:$O,$C$82,InTran!$C:$C,$P$82) -> 0 | S84: =+IFERROR(P84/SUM($P$84:$P$105),0) -> 0 | T84: =+SUMIFS(InTran!$R:$R,InTran!$G:$G,C84,InTran!$O:$O,$C$82,InTran!$C:$C,$T$82) -> 0 | U84: =+SUMIFS(InTran!$S:$S,InTran!$G:$G,C84,InTran!$O:$O,$C$82,InTran!$C:$C,$T$82) -> 0 | V84: =+SUMIFS(InTran!$M:$M,InTran!$G:$G,C84,InTran!$O:$O,$C$82,InTran!$C:$C,$T$82) -> 0 | W84: =+IFERROR(T84/SUM($T$84:$T$105),0) -> 0 | X84: =+SUMIFS(InTran!$R:$R,InTran!$G:$G,C84,InTran!$O:$O,$C$82,InTran!$C:$C,$X$82) -> 0 | Y84: =+SUMIFS(InTran!$S:$S,InTran!$G:$G,C84,InTran!$O:$O,$C$82,InTran!$C:$C,$X$82) -> 0 | Z84: =+SUMIFS(InTran!$M:$M,InTran!$G:$G,C84,InTran!$O:$O,$C$82,InTran!$C:$C,$X$82) -> 0 | AA84: =+IFERROR(X84/SUM($X$84:$X$105),0) -> 0 | AB84: =+SUMIFS(InTran!$R:$R,InTran!$G:$G,C84,InTran!$O:$O,$C$82) -> 46533197.08 | AC84: =+SUMIFS(InTran!$S:$S,InTran!$G:$G,C84,InTran!$O:$O,$C$82) -> 84490.63 | AD84: =+SUMIFS(InTran!$M:$M,InTran!$G:$G,C84,InTran!$O:$O,$C$82) -> 885161.03 | AE84: =+IFERROR(AB84/SUM($AB$84:$AB$105),0) -> 0.176415855 | AF84: =+RANK(AB84,$AB$84:$AB$105) -> 1
C85: KAF-SEAGROATT & CAMPBELL SECURITIES SDN BHD | D85: =+SUMIFS(InTran!$R:$R,InTran!$G:$G,C85,InTran!$O:$O,$C$82,InTran!$C:$C,$D$82) -> 1897474.16 | E85: =+SUMIFS(InTran!$S:$S,InTran!$G:$G,C85,InTran!$O:$O,$C$82,InTran!$C:$C,$D$82) -> 3804.62 | F85: =+SUMIFS(InTran!$M:$M,InTran!$G:$G,C85,InTran!$O:$O,$C$82,InTran!$C:$C,$D$82) -> 522274.16 | G85: =+IFERROR(D85/SUM($D$84:$D$105),0) -> 0.1979493545 | H85: =+SUMIFS(InTran!$R:$R,InTran!$G:$G,C85,InTran!$O:$O,$C$82,InTran!$C:$C,$H$82) -> 38693137.1 | I85: =+SUMIFS(InTran!$S:$S,InTran!$G:$G,C85,InTran!$O:$O,$C$82,InTran!$C:$C,$H$82) -> 57125.8 | J85: =+SUMIFS(InTran!$M:$M,InTran!$G:$G,C85,InTran!$O:$O,$C$82,InTran!$C:$C,$H$82) -> 1123969.21 | K85: =+IFERROR(H85/SUM($H$84:$H$105),0) -> 0.1628728145 | L85: =+SUMIFS(InTran!$R:$R,InTran!$G:$G,C85,InTran!$O:$O,$C$82,InTran!$C:$C,$L$82) -> 0 | M85: =+SUMIFS(InTran!$S:$S,InTran!$G:$G,C85,InTran!$O:$O,$C$82,InTran!$C:$C,$L$82) -> 0 | N85: =+SUMIFS(InTran!$M:$M,InTran!$G:$G,C85,InTran!$O:$O,$C$82,InTran!$C:$C,$L$82) -> 0 | O85: =+IFERROR(L85/SUM($L$84:$L$105),0) -> 0 | P85: =+SUMIFS(InTran!$R:$R,InTran!$G:$G,C85,InTran!$O:$O,$C$82,InTran!$C:$C,$P$82) -> 1946482.38 | Q85: =+SUMIFS(InTran!$S:$S,InTran!$G:$G,C85,InTran!$O:$O,$C$82,InTran!$C:$C,$P$82) -> 3902.88 | R85: =+SUMIFS(InTran!$M:$M,InTran!$G:$G,C85,InTran!$O:$O,$C$82,InTran!$C:$C,$P$82) -> 118495.86 | S85: =+IFERROR(P85/SUM($P$84:$P$105),0) -> 1 | T85: =+SUMIFS(InTran!$R:$R,InTran!$G:$G,C85,InTran!$O:$O,$C$82,InTran!$C:$C,$T$82) -> 0 | U85: =+SUMIFS(InTran!$S:$S,InTran!$G:$G,C85,InTran!$O:$O,$C$82,InTran!$C:$C,$T$82) -> 0 | V85: =+SUMIFS(InTran!$M:$M,InTran!$G:$G,C85,InTran!$O:$O,$C$82,InTran!$C:$C,$T$82) -> 0 | W85: =+IFERROR(T85/SUM($T$84:$T$105),0) -> 0 | X85: =+SUMIFS(InTran!$R:$R,InTran!$G:$G,C85,InTran!$O:$O,$C$82,InTran!$C:$C,$X$82) -> 0 | Y85: =+SUMIFS(InTran!$S:$S,InTran!$G:$G,C85,InTran!$O:$O,$C$82,InTran!$C:$C,$X$82) -> 0 | Z85: =+SUMIFS(InTran!$M:$M,InTran!$G:$G,C85,InTran!$O:$O,$C$82,InTran!$C:$C,$X$82) -> 0 | AA85: =+IFERROR(X85/SUM($X$84:$X$105),0) -> 0 | AB85: =+SUMIFS(InTran!$R:$R,InTran!$G:$G,C85,InTran!$O:$O,$C$82) -> 42537093.64 | AC85: =+SUMIFS(InTran!$S:$S,InTran!$G:$G,C85,InTran!$O:$O,$C$82) -> 64833.3 | AD85: =+SUMIFS(InTran!$M:$M,InTran!$G:$G,C85,InTran!$O:$O,$C$82) -> 1764739.23 | AE85: =+IFERROR(AB85/SUM($AB$84:$AB$105),0) -> 0.1612658965 | AF85: =+RANK(AB85,$AB$84:$AB$105) -> 2
C86: TA SECURITIES HOLDINGS BHD | D86: =+SUMIFS(InTran!$R:$R,InTran!$G:$G,C86,InTran!$O:$O,$C$82,InTran!$C:$C,$D$82) -> 0 | E86: =+SUMIFS(InTran!$S:$S,InTran!$G:$G,C86,InTran!$O:$O,$C$82,InTran!$C:$C,$D$82) -> 0 | F86: =+SUMIFS(InTran!$M:$M,InTran!$G:$G,C86,InTran!$O:$O,$C$82,InTran!$C:$C,$D$82) -> 0 | G86: =+IFERROR(D86/SUM($D$84:$D$105),0) -> 0 | H86: =+SUMIFS(InTran!$R:$R,InTran!$G:$G,C86,InTran!$O:$O,$C$82,InTran!$C:$C,$H$82) -> 40426520.92 | I86: =+SUMIFS(InTran!$S:$S,InTran!$G:$G,C86,InTran!$O:$O,$C$82,InTran!$C:$C,$H$82) -> 69133.49 | J86: =+SUMIFS(InTran!$M:$M,InTran!$G:$G,C86,InTran!$O:$O,$C$82,InTran!$C:$C,$H$82) -> 2346945.96 | K86: =+IFERROR(H86/SUM($H$84:$H$105),0) -> 0.1701692273 | L86: =+SUMIFS(InTran!$R:$R,InTran!$G:$G,C86,InTran!$O:$O,$C$82,InTran!$C:$C,$L$82) -> 0 | M86: =+SUMIFS(InTran!$S:$S,InTran!$G:$G,C86,InTran!$O:$O,$C$82,InTran!$C:$C,$L$82) -> 0 | N86: =+SUMIFS(InTran!$M:$M,InTran!$G:$G,C86,InTran!$O:$O,$C$82,InTran!$C:$C,$L$82) -> 0 | O86: =+IFERROR(L86/SUM($L$84:$L$105),0) -> 0 | P86: =+SUMIFS(InTran!$R:$R,InTran!$G:$G,C86,InTran!$O:$O,$C$82,InTran!$C:$C,$P$82) -> 0 | Q86: =+SUMIFS(InTran!$S:$S,InTran!$G:$G,C86,InTran!$O:$O,$C$82,InTran!$C:$C,$P$82) -> 0 | R86: =+SUMIFS(InTran!$M:$M,InTran!$G:$G,C86,InTran!$O:$O,$C$82,InTran!$C:$C,$P$82) -> 0 | S86: =+IFERROR(P86/SUM($P$84:$P$105),0) -> 0 | T86: =+SUMIFS(InTran!$R:$R,InTran!$G:$G,C86,InTran!$O:$O,$C$82,InTran!$C:$C,$T$82) -> 0 | U86: =+SUMIFS(InTran!$S:$S,InTran!$G:$G,C86,InTran!$O:$O,$C$82,InTran!$C:$C,$T$82) -> 0 | V86: =+SUMIFS(InTran!$M:$M,InTran!$G:$G,C86,InTran!$O:$O,$C$82,InTran!$C:$C,$T$82) -> 0 | W86: =+IFERROR(T86/SUM($T$84:$T$105),0) -> 0 | X86: =+SUMIFS(InTran!$R:$R,InTran!$G:$G,C86,InTran!$O:$O,$C$82,InTran!$C:$C,$X$82) -> 0 | Y86: =+SUMIFS(InTran!$S:$S,InTran!$G:$G,C86,InTran!$O:$O,$C$82,InTran!$C:$C,$X$82) -> 0 | Z86: =+SUMIFS(InTran!$M:$M,InTran!$G:$G,C86,InTran!$O:$O,$C$82,InTran!$C:$C,$X$82) -> 0 | AA86: =+IFERROR(X86/SUM($X$84:$X$105),0) -> 0 | AB86: =+SUMIFS(InTran!$R:$R,InTran!$G:$G,C86,InTran!$O:$O,$C$82) -> 40426520.92 | AC86: =+SUMIFS(InTran!$S:$S,InTran!$G:$G,C86,InTran!$O:$O,$C$82) -> 69133.49 | AD86: =+SUMIFS(InTran!$M:$M,InTran!$G:$G,C86,InTran!$O:$O,$C$82) -> 2346945.96 | AE86: =+IFERROR(AB86/SUM($AB$84:$AB$105),0) -> 0.1532643296 | AF86: =+RANK(AB86,$AB$84:$AB$105) -> 3
C87: KENANGA INVESTMENT BANK BHD | D87: =+SUMIFS(InTran!$R:$R,InTran!$G:$G,C87,InTran!$O:$O,$C$82,InTran!$C:$C,$D$82) -> 0 | E87: =+SUMIFS(InTran!$S:$S,InTran!$G:$G,C87,InTran!$O:$O,$C$82,InTran!$C:$C,$D$82) -> 0 | F87: =+SUMIFS(InTran!$M:$M,InTran!$G:$G,C87,InTran!$O:$O,$C$82,InTran!$C:$C,$D$82) -> 0 | G87: =+IFERROR(D87/SUM($D$84:$D$105),0) -> 0 | H87: =+SUMIFS(InTran!$R:$R,InTran!$G:$G,C87,InTran!$O:$O,$C$82,InTran!$C:$C,$H$82) -> 38153877.18 | I87: =+SUMIFS(InTran!$S:$S,InTran!$G:$G,C87,InTran!$O:$O,$C$82,InTran!$C:$C,$H$82) -> 62552.25 | J87: =+SUMIFS(InTran!$M:$M,InTran!$G:$G,C87,InTran!$O:$O,$C$82,InTran!$C:$C,$H$82) -> 2468431.07 | K87: =+IFERROR(H87/SUM($H$84:$H$105),0) -> 0.1606028828 | L87: =+SUMIFS(InTran!$R:$R,InTran!$G:$G,C87,InTran!$O:$O,$C$82,InTran!$C:$C,$L$82) -> 344543.65 | M87: =+SUMIFS(InTran!$S:$S,InTran!$G:$G,C87,InTran!$O:$O,$C$82,InTran!$C:$C,$L$82) -> 772.68 | N87: =+SUMIFS(InTran!$M:$M,InTran!$G:$G,C87,InTran!$O:$O,$C$82,InTran!$C:$C,$L$82) -> 0 | O87: =+IFERROR(L87/SUM($L$84:$L$105),0) -> 0.02450696601 | P87: =+SUMIFS(InTran!$R:$R,InTran!$G:$G,C87,InTran!$O:$O,$C$82,InTran!$C:$C,$P$82) -> 0 | Q87: =+SUMIFS(InTran!$S:$S,InTran!$G:$G,C87,InTran!$O:$O,$C$82,InTran!$C:$C,$P$82) -> 0 | R87: =+SUMIFS(InTran!$M:$M,InTran!$G:$G,C87,InTran!$O:$O,$C$82,InTran!$C:$C,$P$82) -> 0 | S87: =+IFERROR(P87/SUM($P$84:$P$105),0) -> 0 | T87: =+SUMIFS(InTran!$R:$R,InTran!$G:$G,C87,InTran!$O:$O,$C$82,InTran!$C:$C,$T$82) -> 119042.95 | U87: =+SUMIFS(InTran!$S:$S,InTran!$G:$G,C87,InTran!$O:$O,$C$82,InTran!$C:$C,$T$82) -> 267.53 | V87: =+SUMIFS(InTran!$M:$M,InTran!$G:$G,C87,InTran!$O:$O,$C$82,InTran!$C:$C,$T$82) -> 9097.41 | W87: =+IFERROR(T87/SUM($T$84:$T$105),0) -> 0.2324594605 | X87: =+SUMIFS(InTran!$R:$R,InTran!$G:$G,C87,InTran!$O:$O,$C$82,InTran!$C:$C,$X$82) -> 0 | Y87: =+SUMIFS(InTran!$S:$S,InTran!$G:$G,C87,InTran!$O:$O,$C$82,InTran!$C:$C,$X$82) -> 0 | Z87: =+SUMIFS(InTran!$M:$M,InTran!$G:$G,C87,InTran!$O:$O,$C$82,InTran!$C:$C,$X$82) -> 0 | AA87: =+IFERROR(X87/SUM($X$84:$X$105),0) -> 0 | AB87: =+SUMIFS(InTran!$R:$R,InTran!$G:$G,C87,InTran!$O:$O,$C$82) -> 38617463.78 | AC87: =+SUMIFS(InTran!$S:$S,InTran!$G:$G,C87,InTran!$O:$O,$C$82) -> 63592.46 | AD87: =+SUMIFS(InTran!$M:$M,InTran!$G:$G,C87,InTran!$O:$O,$C$82) -> 2477528.48 | AE87: =+IFERROR(AB87/SUM($AB$84:$AB$105),0) -> 0.1464058633 | AF87: =+RANK(AB87,$AB$84:$AB$105) -> 4
C88: CIMB INVESTMENT BANK BHD | D88: =+SUMIFS(InTran!$R:$R,InTran!$G:$G,C88,InTran!$O:$O,$C$82,InTran!$C:$C,$D$82) -> 0 | E88: =+SUMIFS(InTran!$S:$S,InTran!$G:$G,C88,InTran!$O:$O,$C$82,InTran!$C:$C,$D$82) -> 0 | F88: =+SUMIFS(InTran!$M:$M,InTran!$G:$G,C88,InTran!$O:$O,$C$82,InTran!$C:$C,$D$82) -> 0 | G88: =+IFERROR(D88/SUM($D$84:$D$105),0) -> 0 | H88: =+SUMIFS(InTran!$R:$R,InTran!$G:$G,C88,InTran!$O:$O,$C$82,InTran!$C:$C,$H$82) -> 32286572.88 | I88: =+SUMIFS(InTran!$S:$S,InTran!$G:$G,C88,InTran!$O:$O,$C$82,InTran!$C:$C,$H$82) -> 56639.67 | J88: =+SUMIFS(InTran!$M:$M,InTran!$G:$G,C88,InTran!$O:$O,$C$82,InTran!$C:$C,$H$82) -> 1166203.69 | K88: =+IFERROR(H88/SUM($H$84:$H$105),0) -> 0.135905367 | L88: =+SUMIFS(InTran!$R:$R,InTran!$G:$G,C88,InTran!$O:$O,$C$82,InTran!$C:$C,$L$82) -> 0 | M88: =+SUMIFS(InTran!$S:$S,InTran!$G:$G,C88,InTran!$O:$O,$C$82,InTran!$C:$C,$L$82) -> 0 | N88: =+SUMIFS(InTran!$M:$M,InTran!$G:$G,C88,InTran!$O:$O,$C$82,InTran!$C:$C,$L$82) -> 0 | O88: =+IFERROR(L88/SUM($L$84:$L$105),0) -> 0 | P88: =+SUMIFS(InTran!$R:$R,InTran!$G:$G,C88,InTran!$O:$O,$C$82,InTran!$C:$C,$P$82) -> 0 | Q88: =+SUMIFS(InTran!$S:$S,InTran!$G:$G,C88,InTran!$O:$O,$C$82,InTran!$C:$C,$P$82) -> 0 | R88: =+SUMIFS(InTran!$M:$M,InTran!$G:$G,C88,InTran!$O:$O,$C$82,InTran!$C:$C,$P$82) -> 0 | S88: =+IFERROR(P88/SUM($P$84:$P$105),0) -> 0 | T88: =+SUMIFS(InTran!$R:$R,InTran!$G:$G,C88,InTran!$O:$O,$C$82,InTran!$C:$C,$T$82) -> 0 | U88: =+SUMIFS(InTran!$S:$S,InTran!$G:$G,C88,InTran!$O:$O,$C$82,InTran!$C:$C,$T$82) -> 0 | V88: =+SUMIFS(InTran!$M:$M,InTran!$G:$G,C88,InTran!$O:$O,$C$82,InTran!$C:$C,$T$82) -> 0 | W88: =+IFERROR(T88/SUM($T$84:$T$105),0) -> 0 | X88: =+SUMIFS(InTran!$R:$R,InTran!$G:$G,C88,InTran!$O:$O,$C$82,InTran!$C:$C,$X$82) -> 0 | Y88: =+SUMIFS(InTran!$S:$S,InTran!$G:$G,C88,InTran!$O:$O,$C$82,InTran!$C:$C,$X$82) -> 0 | Z88: =+SUMIFS(InTran!$M:$M,InTran!$G:$G,C88,InTran!$O:$O,$C$82,InTran!$C:$C,$X$82) -> 0 | AA88: =+IFERROR(X88/SUM($X$84:$X$105),0) -> 0 | AB88: =+SUMIFS(InTran!$R:$R,InTran!$G:$G,C88,InTran!$O:$O,$C$82) -> 32286572.88 | AC88: =+SUMIFS(InTran!$S:$S,InTran!$G:$G,C88,InTran!$O:$O,$C$82) -> 56639.67 | AD88: =+SUMIFS(InTran!$M:$M,InTran!$G:$G,C88,InTran!$O:$O,$C$82) -> 1166203.69 | AE88: =+IFERROR(AB88/SUM($AB$84:$AB$105),0) -> 0.1224042988 | AF88: =+RANK(AB88,$AB$84:$AB$105) -> 5
C89: RHB INVESTMENT BANK BERHAD | D89: =+SUMIFS(InTran!$R:$R,InTran!$G:$G,C89,InTran!$O:$O,$C$82,InTran!$C:$C,$D$82) -> 0 | E89: =+SUMIFS(InTran!$S:$S,InTran!$G:$G,C89,InTran!$O:$O,$C$82,InTran!$C:$C,$D$82) -> 0 | F89: =+SUMIFS(InTran!$M:$M,InTran!$G:$G,C89,InTran!$O:$O,$C$82,InTran!$C:$C,$D$82) -> 0 | G89: =+IFERROR(D89/SUM($D$84:$D$105),0) -> 0 | H89: =+SUMIFS(InTran!$R:$R,InTran!$G:$G,C89,InTran!$O:$O,$C$82,InTran!$C:$C,$H$82) -> 21526203.77 | I89: =+SUMIFS(InTran!$S:$S,InTran!$G:$G,C89,InTran!$O:$O,$C$82,InTran!$C:$C,$H$82) -> 43431.88 | J89: =+SUMIFS(InTran!$M:$M,InTran!$G:$G,C89,InTran!$O:$O,$C$82,InTran!$C:$C,$H$82) -> 604155.83 | K89: =+IFERROR(H89/SUM($H$84:$H$105),0) -> 0.09061124677 | L89: =+SUMIFS(InTran!$R:$R,InTran!$G:$G,C89,InTran!$O:$O,$C$82,InTran!$C:$C,$L$82) -> 0 | M89: =+SUMIFS(InTran!$S:$S,InTran!$G:$G,C89,InTran!$O:$O,$C$82,InTran!$C:$C,$L$82) -> 0 | N89: =+SUMIFS(InTran!$M:$M,InTran!$G:$G,C89,InTran!$O:$O,$C$82,InTran!$C:$C,$L$82) -> 0 | O89: =+IFERROR(L89/SUM($L$84:$L$105),0) -> 0 | P89: =+SUMIFS(InTran!$R:$R,InTran!$G:$G,C89,InTran!$O:$O,$C$82,InTran!$C:$C,$P$82) -> 0 | Q89: =+SUMIFS(InTran!$S:$S,InTran!$G:$G,C89,InTran!$O:$O,$C$82,InTran!$C:$C,$P$82) -> 0 | R89: =+SUMIFS(InTran!$M:$M,InTran!$G:$G,C89,InTran!$O:$O,$C$82,InTran!$C:$C,$P$82) -> 0 | S89: =+IFERROR(P89/SUM($P$84:$P$105),0) -> 0 | T89: =+SUMIFS(InTran!$R:$R,InTran!$G:$G,C89,InTran!$O:$O,$C$82,InTran!$C:$C,$T$82) -> 393059.03 | U89: =+SUMIFS(InTran!$S:$S,InTran!$G:$G,C89,InTran!$O:$O,$C$82,InTran!$C:$C,$T$82) -> 881.55 | V89: =+SUMIFS(InTran!$M:$M,InTran!$G:$G,C89,InTran!$O:$O,$C$82,InTran!$C:$C,$T$82) -> 0 | W89: =+IFERROR(T89/SUM($T$84:$T$105),0) -> 0.7675405395 | X89: =+SUMIFS(InTran!$R:$R,InTran!$G:$G,C89,InTran!$O:$O,$C$82,InTran!$C:$C,$X$82) -> 0 | Y89: =+SUMIFS(InTran!$S:$S,InTran!$G:$G,C89,InTran!$O:$O,$C$82,InTran!$C:$C,$X$82) -> 0 | Z89: =+SUMIFS(InTran!$M:$M,InTran!$G:$G,C89,InTran!$O:$O,$C$82,InTran!$C:$C,$X$82) -> 0 | AA89: =+IFERROR(X89/SUM($X$84:$X$105),0) -> 0 | AB89: =+SUMIFS(InTran!$R:$R,InTran!$G:$G,C89,InTran!$O:$O,$C$82) -> 21919262.8 | AC89: =+SUMIFS(InTran!$S:$S,InTran!$G:$G,C89,InTran!$O:$O,$C$82) -> 44313.43 | AD89: =+SUMIFS(InTran!$M:$M,InTran!$G:$G,C89,InTran!$O:$O,$C$82) -> 604155.83 | AE89: =+IFERROR(AB89/SUM($AB$84:$AB$105),0) -> 0.08309993147 | AF89: =+RANK(AB89,$AB$84:$AB$105) -> 6
C90: AFFIN INVESTMENT BANK BERHAD | D90: =+SUMIFS(InTran!$R:$R,InTran!$G:$G,C90,InTran!$O:$O,$C$82,InTran!$C:$C,$D$82) -> 0 | E90: =+SUMIFS(InTran!$S:$S,InTran!$G:$G,C90,InTran!$O:$O,$C$82,InTran!$C:$C,$D$82) -> 0 | F90: =+SUMIFS(InTran!$M:$M,InTran!$G:$G,C90,InTran!$O:$O,$C$82,InTran!$C:$C,$D$82) -> 0 | G90: =+IFERROR(D90/SUM($D$84:$D$105),0) -> 0 | H90: =+SUMIFS(InTran!$R:$R,InTran!$G:$G,C90,InTran!$O:$O,$C$82,InTran!$C:$C,$H$82) -> 16701483.48 | I90: =+SUMIFS(InTran!$S:$S,InTran!$G:$G,C90,InTran!$O:$O,$C$82,InTran!$C:$C,$H$82) -> 28366.43 | J90: =+SUMIFS(InTran!$M:$M,InTran!$G:$G,C90,InTran!$O:$O,$C$82,InTran!$C:$C,$H$82) -> 741739.59 | K90: =+IFERROR(H90/SUM($H$84:$H$105),0) -> 0.07030232814 | L90: =+SUMIFS(InTran!$R:$R,InTran!$G:$G,C90,InTran!$O:$O,$C$82,InTran!$C:$C,$L$82) -> 0 | M90: =+SUMIFS(InTran!$S:$S,InTran!$G:$G,C90,InTran!$O:$O,$C$82,InTran!$C:$C,$L$82) -> 0 | N90: =+SUMIFS(InTran!$M:$M,InTran!$G:$G,C90,InTran!$O:$O,$C$82,InTran!$C:$C,$L$82) -> 0 | O90: =+IFERROR(L90/SUM($L$84:$L$105),0) -> 0 | P90: =+SUMIFS(InTran!$R:$R,InTran!$G:$G,C90,InTran!$O:$O,$C$82,InTran!$C:$C,$P$82) -> 0 | Q90: =+SUMIFS(InTran!$S:$S,InTran!$G:$G,C90,InTran!$O:$O,$C$82,InTran!$C:$C,$P$82) -> 0 | R90: =+SUMIFS(InTran!$M:$M,InTran!$G:$G,C90,InTran!$O:$O,$C$82,InTran!$C:$C,$P$82) -> 0 | S90: =+IFERROR(P90/SUM($P$84:$P$105),0) -> 0 | T90: =+SUMIFS(InTran!$R:$R,InTran!$G:$G,C90,InTran!$O:$O,$C$82,InTran!$C:$C,$T$82) -> 0 | U90: =+SUMIFS(InTran!$S:$S,InTran!$G:$G,C90,InTran!$O:$O,$C$82,InTran!$C:$C,$T$82) -> 0 | V90: =+SUMIFS(InTran!$M:$M,InTran!$G:$G,C90,InTran!$O:$O,$C$82,InTran!$C:$C,$T$82) -> 0 | W90: =+IFERROR(T90/SUM($T$84:$T$105),0) -> 0 | X90: =+SUMIFS(InTran!$R:$R,InTran!$G:$G,C90,InTran!$O:$O,$C$82,InTran!$C:$C,$X$82) -> 0 | Y90: =+SUMIFS(InTran!$S:$S,InTran!$G:$G,C90,InTran!$O:$O,$C$82,InTran!$C:$C,$X$82) -> 0 | Z90: =+SUMIFS(InTran!$M:$M,InTran!$G:$G,C90,InTran!$O:$O,$C$82,InTran!$C:$C,$X$82) -> 0 | AA90: =+IFERROR(X90/SUM($X$84:$X$105),0) -> 0 | AB90: =+SUMIFS(InTran!$R:$R,InTran!$G:$G,C90,InTran!$O:$O,$C$82) -> 16701483.48 | AC90: =+SUMIFS(InTran!$S:$S,InTran!$G:$G,C90,InTran!$O:$O,$C$82) -> 28366.43 | AD90: =+SUMIFS(InTran!$M:$M,InTran!$G:$G,C90,InTran!$O:$O,$C$82) -> 741739.59 | AE90: =+IFERROR(AB90/SUM($AB$84:$AB$105),0) -> 0.06331837641 | AF90: =+RANK(AB90,$AB$84:$AB$105) -> 7
C91: CREDIT SUISSE SECURITIES (M) SDN BHD | D91: =+SUMIFS(InTran!$R:$R,InTran!$G:$G,C91,InTran!$O:$O,$C$82,InTran!$C:$C,$D$82) -> 0 | E91: =+SUMIFS(InTran!$S:$S,InTran!$G:$G,C91,InTran!$O:$O,$C$82,InTran!$C:$C,$D$82) -> 0 | F91: =+SUMIFS(InTran!$M:$M,InTran!$G:$G,C91,InTran!$O:$O,$C$82,InTran!$C:$C,$D$82) -> 0 | G91: =+IFERROR(D91/SUM($D$84:$D$105),0) -> 0 | H91: =+SUMIFS(InTran!$R:$R,InTran!$G:$G,C91,InTran!$O:$O,$C$82,InTran!$C:$C,$H$82) -> 1627010.5 | I91: =+SUMIFS(InTran!$S:$S,InTran!$G:$G,C91,InTran!$O:$O,$C$82,InTran!$C:$C,$H$82) -> 3302.5 | J91: =+SUMIFS(InTran!$M:$M,InTran!$G:$G,C91,InTran!$O:$O,$C$82,InTran!$C:$C,$H$82) -> 241949.97 | K91: =+IFERROR(H91/SUM($H$84:$H$105),0) -> 0.006848650672 | L91: =+SUMIFS(InTran!$R:$R,InTran!$G:$G,C91,InTran!$O:$O,$C$82,InTran!$C:$C,$L$82) -> 13714465.12 | M91: =+SUMIFS(InTran!$S:$S,InTran!$G:$G,C91,InTran!$O:$O,$C$82,InTran!$C:$C,$L$82) -> 14906.66 | N91: =+SUMIFS(InTran!$M:$M,InTran!$G:$G,C91,InTran!$O:$O,$C$82,InTran!$C:$C,$L$82) -> -581672.03 | O91: =+IFERROR(L91/SUM($L$84:$L$105),0) -> 0.975493034 | P91: =+SUMIFS(InTran!$R:$R,InTran!$G:$G,C91,InTran!$O:$O,$C$82,InTran!$C:$C,$P$82) -> 0 | Q91: =+SUMIFS(InTran!$S:$S,InTran!$G:$G,C91,InTran!$O:$O,$C$82,InTran!$C:$C,$P$82) -> 0 | R91: =+SUMIFS(InTran!$M:$M,InTran!$G:$G,C91,InTran!$O:$O,$C$82,InTran!$C:$C,$P$82) -> 0 | S91: =+IFERROR(P91/SUM($P$84:$P$105),0) -> 0 | T91: =+SUMIFS(InTran!$R:$R,InTran!$G:$G,C91,InTran!$O:$O,$C$82,InTran!$C:$C,$T$82) -> 0 | U91: =+SUMIFS(InTran!$S:$S,InTran!$G:$G,C91,InTran!$O:$O,$C$82,InTran!$C:$C,$T$82) -> 0 | V91: =+SUMIFS(InTran!$M:$M,InTran!$G:$G,C91,InTran!$O:$O,$C$82,InTran!$C:$C,$T$82) -> 0 | W91: =+IFERROR(T91/SUM($T$84:$T$105),0) -> 0 | X91: =+SUMIFS(InTran!$R:$R,InTran!$G:$G,C91,InTran!$O:$O,$C$82,InTran!$C:$C,$X$82) -> 0 | Y91: =+SUMIFS(InTran!$S:$S,InTran!$G:$G,C91,InTran!$O:$O,$C$82,InTran!$C:$C,$X$82) -> 0 | Z91: =+SUMIFS(InTran!$M:$M,InTran!$G:$G,C91,InTran!$O:$O,$C$82,InTran!$C:$C,$X$82) -> 0 | AA91: =+IFERROR(X91/SUM($X$84:$X$105),0) -> 0 | AB91: =+SUMIFS(InTran!$R:$R,InTran!$G:$G,C91,InTran!$O:$O,$C$82) -> 15341475.62 | AC91: =+SUMIFS(InTran!$S:$S,InTran!$G:$G,C91,InTran!$O:$O,$C$82) -> 18209.16 | AD91: =+SUMIFS(InTran!$M:$M,InTran!$G:$G,C91,InTran!$O:$O,$C$82) -> -339722.06 | AE91: =+IFERROR(AB91/SUM($AB$84:$AB$105),0) -> 0.05816233804 | AF91: =+RANK(AB91,$AB$84:$AB$105) -> 8
C92: CLSA LIMITED | D92: =+SUMIFS(InTran!$R:$R,InTran!$G:$G,C92,InTran!$O:$O,$C$82,InTran!$C:$C,$D$82) -> 7688180.54 | E92: =+SUMIFS(InTran!$S:$S,InTran!$G:$G,C92,InTran!$O:$O,$C$82,InTran!$C:$C,$D$82) -> 7697.6 | F92: =+SUMIFS(InTran!$M:$M,InTran!$G:$G,C92,InTran!$O:$O,$C$82,InTran!$C:$C,$D$82) -> 842288.11 | G92: =+IFERROR(D92/SUM($D$84:$D$105),0) -> 0.8020506455 | H92: =+SUMIFS(InTran!$R:$R,InTran!$G:$G,C92,InTran!$O:$O,$C$82,InTran!$C:$C,$H$82) -> 206966.55 | I92: =+SUMIFS(InTran!$S:$S,InTran!$G:$G,C92,InTran!$O:$O,$C$82,InTran!$C:$C,$H$82) -> 467.39 | J92: =+SUMIFS(InTran!$M:$M,InTran!$G:$G,C92,InTran!$O:$O,$C$82,InTran!$C:$C,$H$82) -> 7712.88 | K92: =+IFERROR(H92/SUM($H$84:$H$105),0) -> 0.0008711938871 | L92: =+SUMIFS(InTran!$R:$R,InTran!$G:$G,C92,InTran!$O:$O,$C$82,InTran!$C:$C,$L$82) -> 0 | M92: =+SUMIFS(InTran!$S:$S,InTran!$G:$G,C92,InTran!$O:$O,$C$82,InTran!$C:$C,$L$82) -> 0 | N92: =+SUMIFS(InTran!$M:$M,InTran!$G:$G,C92,InTran!$O:$O,$C$82,InTran!$C:$C,$L$82) -> 0 | O92: =+IFERROR(L92/SUM($L$84:$L$105),0) -> 0 | P92: =+SUMIFS(InTran!$R:$R,InTran!$G:$G,C92,InTran!$O:$O,$C$82,InTran!$C:$C,$P$82) -> 0 | Q92: =+SUMIFS(InTran!$S:$S,InTran!$G:$G,C92,InTran!$O:$O,$C$82,InTran!$C:$C,$P$82) -> 0 | R92: =+SUMIFS(InTran!$M:$M,InTran!$G:$G,C92,InTran!$O:$O,$C$82,InTran!$C:$C,$P$82) -> 0 | S92: =+IFERROR(P92/SUM($P$84:$P$105),0) -> 0 | T92: =+SUMIFS(InTran!$R:$R,InTran!$G:$G,C92,InTran!$O:$O,$C$82,InTran!$C:$C,$T$82) -> 0 | U92: =+SUMIFS(InTran!$S:$S,InTran!$G:$G,C92,InTran!$O:$O,$C$82,InTran!$C:$C,$T$82) -> 0 | V92: =+SUMIFS(InTran!$M:$M,InTran!$G:$G,C92,InTran!$O:$O,$C$82,InTran!$C:$C,$T$82) -> 0 | W92: =+IFERROR(T92/SUM($T$84:$T$105),0) -> 0 | X92: =+SUMIFS(InTran!$R:$R,InTran!$G:$G,C92,InTran!$O:$O,$C$82,InTran!$C:$C,$X$82) -> 100101.08 | Y92: =+SUMIFS(InTran!$S:$S,InTran!$G:$G,C92,InTran!$O:$O,$C$82,InTran!$C:$C,$X$82) -> 224.4 | Z92: =+SUMIFS(InTran!$M:$M,InTran!$G:$G,C92,InTran!$O:$O,$C$82,InTran!$C:$C,$X$82) -> 0 | AA92: =+IFERROR(X92/SUM($X$84:$X$105),0) -> 1 | AB92: =+SUMIFS(InTran!$R:$R,InTran!$G:$G,C92,InTran!$O:$O,$C$82) -> 7995248.17 | AC92: =+SUMIFS(InTran!$S:$S,InTran!$G:$G,C92,InTran!$O:$O,$C$82) -> 8389.39 | AD92: =+SUMIFS(InTran!$M:$M,InTran!$G:$G,C92,InTran!$O:$O,$C$82) -> 850000.99 | AE92: =+IFERROR(AB92/SUM($AB$84:$AB$105),0) -> 0.03031144711 | AF92: =+RANK(AB92,$AB$84:$AB$105) -> 9
C93: MAYBANK INVESTMENT BANK BHD | D93: =+SUMIFS(InTran!$R:$R,InTran!$G:$G,C93,InTran!$O:$O,$C$82,InTran!$C:$C,$D$82) -> 0 | E93: =+SUMIFS(InTran!$S:$S,InTran!$G:$G,C93,InTran!$O:$O,$C$82,InTran!$C:$C,$D$82) -> 0 | F93: =+SUMIFS(InTran!$M:$M,InTran!$G:$G,C93,InTran!$O:$O,$C$82,InTran!$C:$C,$D$82) -> 0 | G93: =+IFERROR(D93/SUM($D$84:$D$105),0) -> 0 | H93: =+SUMIFS(InTran!$R:$R,InTran!$G:$G,C93,InTran!$O:$O,$C$82,InTran!$C:$C,$H$82) -> 1411607.94 | I93: =+SUMIFS(InTran!$S:$S,InTran!$G:$G,C93,InTran!$O:$O,$C$82,InTran!$C:$C,$H$82) -> 3165.68 | J93: =+SUMIFS(InTran!$M:$M,InTran!$G:$G,C93,InTran!$O:$O,$C$82,InTran!$C:$C,$H$82) -> 0 | K93: =+IFERROR(H93/SUM($H$84:$H$105),0) -> 0.005941946697 | L93: =+SUMIFS(InTran!$R:$R,InTran!$G:$G,C93,InTran!$O:$O,$C$82,InTran!$C:$C,$L$82) -> 0 | M93: =+SUMIFS(InTran!$S:$S,InTran!$G:$G,C93,InTran!$O:$O,$C$82,InTran!$C:$C,$L$82) -> 0 | N93: =+SUMIFS(InTran!$M:$M,InTran!$G:$G,C93,InTran!$O:$O,$C$82,InTran!$C:$C,$L$82) -> 0 | O93: =+IFERROR(L93/SUM($L$84:$L$105),0) -> 0 | P93: =+SUMIFS(InTran!$R:$R,InTran!$G:$G,C93,InTran!$O:$O,$C$82,InTran!$C:$C,$P$82) -> 0 | Q93: =+SUMIFS(InTran!$S:$S,InTran!$G:$G,C93,InTran!$O:$O,$C$82,InTran!$C:$C,$P$82) -> 0 | R93: =+SUMIFS(InTran!$M:$M,InTran!$G:$G,C93,InTran!$O:$O,$C$82,InTran!$C:$C,$P$82) -> 0 | S93: =+IFERROR(P93/SUM($P$84:$P$105),0) -> 0 | T93: =+SUMIFS(InTran!$R:$R,InTran!$G:$G,C93,InTran!$O:$O,$C$82,InTran!$C:$C,$T$82) -> 0 | U93: =+SUMIFS(InTran!$S:$S,InTran!$G:$G,C93,InTran!$O:$O,$C$82,InTran!$C:$C,$T$82) -> 0 | V93: =+SUMIFS(InTran!$M:$M,InTran!$G:$G,C93,InTran!$O:$O,$C$82,InTran!$C:$C,$T$82) -> 0 | W93: =+IFERROR(T93/SUM($T$84:$T$105),0) -> 0 | X93: =+SUMIFS(InTran!$R:$R,InTran!$G:$G,C93,InTran!$O:$O,$C$82,InTran!$C:$C,$X$82) -> 0 | Y93: =+SUMIFS(InTran!$S:$S,InTran!$G:$G,C93,InTran!$O:$O,$C$82,InTran!$C:$C,$X$82) -> 0 | Z93: =+SUMIFS(InTran!$M:$M,InTran!$G:$G,C93,InTran!$O:$O,$C$82,InTran!$C:$C,$X$82) -> 0 | AA93: =+IFERROR(X93/SUM($X$84:$X$105),0) -> 0 | AB93: =+SUMIFS(InTran!$R:$R,InTran!$G:$G,C93,InTran!$O:$O,$C$82) -> 1411607.94 | AC93: =+SUMIFS(InTran!$S:$S,InTran!$G:$G,C93,InTran!$O:$O,$C$82) -> 3165.68 | AD93: =+SUMIFS(InTran!$M:$M,InTran!$G:$G,C93,InTran!$O:$O,$C$82) -> 0 | AE93: =+IFERROR(AB93/SUM($AB$84:$AB$105),0) -> 0.005351663701 | AF93: =+RANK(AB93,$AB$84:$AB$105) -> 10
C94: ALLIANCE INVESTMENT BANK BERHAD | D94: =+SUMIFS(InTran!$R:$R,InTran!$G:$G,C94,InTran!$O:$O,$C$82,InTran!$C:$C,$D$82) -> 0 | E94: =+SUMIFS(InTran!$S:$S,InTran!$G:$G,C94,InTran!$O:$O,$C$82,InTran!$C:$C,$D$82) -> 0 | F94: =+SUMIFS(InTran!$M:$M,InTran!$G:$G,C94,InTran!$O:$O,$C$82,InTran!$C:$C,$D$82) -> 0 | G94: =+IFERROR(D94/SUM($D$84:$D$105),0) -> 0 | H94: =+SUMIFS(InTran!$R:$R,InTran!$G:$G,C94,InTran!$O:$O,$C$82,InTran!$C:$C,$H$82) -> 0 | I94: =+SUMIFS(InTran!$S:$S,InTran!$G:$G,C94,InTran!$O:$O,$C$82,InTran!$C:$C,$H$82) -> 0 | J94: =+SUMIFS(InTran!$M:$M,InTran!$G:$G,C94,InTran!$O:$O,$C$82,InTran!$C:$C,$H$82) -> 0 | K94: =+IFERROR(H94/SUM($H$84:$H$105),0) -> 0 | L94: =+SUMIFS(InTran!$R:$R,InTran!$G:$G,C94,InTran!$O:$O,$C$82,InTran!$C:$C,$L$82) -> 0 | M94: =+SUMIFS(InTran!$S:$S,InTran!$G:$G,C94,InTran!$O:$O,$C$82,InTran!$C:$C,$L$82) -> 0 | N94: =+SUMIFS(InTran!$M:$M,InTran!$G:$G,C94,InTran!$O:$O,$C$82,InTran!$C:$C,$L$82) -> 0 | O94: =+IFERROR(L94/SUM($L$84:$L$105),0) -> 0 | P94: =+SUMIFS(InTran!$R:$R,InTran!$G:$G,C94,InTran!$O:$O,$C$82,InTran!$C:$C,$P$82) -> 0 | Q94: =+SUMIFS(InTran!$S:$S,InTran!$G:$G,C94,InTran!$O:$O,$C$82,InTran!$C:$C,$P$82) -> 0 | R94: =+SUMIFS(InTran!$M:$M,InTran!$G:$G,C94,InTran!$O:$O,$C$82,InTran!$C:$C,$P$82) -> 0 | S94: =+IFERROR(P94/SUM($P$84:$P$105),0) -> 0 | T94: =+SUMIFS(InTran!$R:$R,InTran!$G:$G,C94,InTran!$O:$O,$C$82,InTran!$C:$C,$T$82) -> 0 | U94: =+SUMIFS(InTran!$S:$S,InTran!$G:$G,C94,InTran!$O:$O,$C$82,InTran!$C:$C,$T$82) -> 0 | V94: =+SUMIFS(InTran!$M:$M,InTran!$G:$G,C94,InTran!$O:$O,$C$82,InTran!$C:$C,$T$82) -> 0 | W94: =+IFERROR(T94/SUM($T$84:$T$105),0) -> 0 | X94: =+SUMIFS(InTran!$R:$R,InTran!$G:$G,C94,InTran!$O:$O,$C$82,InTran!$C:$C,$X$82) -> 0 | Y94: =+SUMIFS(InTran!$S:$S,InTran!$G:$G,C94,InTran!$O:$O,$C$82,InTran!$C:$C,$X$82) -> 0 | Z94: =+SUMIFS(InTran!$M:$M,InTran!$G:$G,C94,InTran!$O:$O,$C$82,InTran!$C:$C,$X$82) -> 0 | AA94: =+IFERROR(X94/SUM($X$84:$X$105),0) -> 0 | AB94: =+SUMIFS(InTran!$R:$R,InTran!$G:$G,C94,InTran!$O:$O,$C$82) -> 0 | AC94: =+SUMIFS(InTran!$S:$S,InTran!$G:$G,C94,InTran!$O:$O,$C$82) -> 0 | AD94: =+SUMIFS(InTran!$M:$M,InTran!$G:$G,C94,InTran!$O:$O,$C$82) -> 0 | AE94: =+IFERROR(AB94/SUM($AB$84:$AB$105),0) -> 0 | AF94: =+RANK(AB94,$AB$84:$AB$105) -> 11
C95: AMINVESTMENT BANK BHD | D95: =+SUMIFS(InTran!$R:$R,InTran!$G:$G,C95,InTran!$O:$O,$C$82,InTran!$C:$C,$D$82) -> 0 | E95: =+SUMIFS(InTran!$S:$S,InTran!$G:$G,C95,InTran!$O:$O,$C$82,InTran!$C:$C,$D$82) -> 0 | F95: =+SUMIFS(InTran!$M:$M,InTran!$G:$G,C95,InTran!$O:$O,$C$82,InTran!$C:$C,$D$82) -> 0 | G95: =+IFERROR(D95/SUM($D$84:$D$105),0) -> 0 | H95: =+SUMIFS(InTran!$R:$R,InTran!$G:$G,C95,InTran!$O:$O,$C$82,InTran!$C:$C,$H$82) -> 0 | I95: =+SUMIFS(InTran!$S:$S,InTran!$G:$G,C95,InTran!$O:$O,$C$82,InTran!$C:$C,$H$82) -> 0 | J95: =+SUMIFS(InTran!$M:$M,InTran!$G:$G,C95,InTran!$O:$O,$C$82,InTran!$C:$C,$H$82) -> 0 | K95: =+IFERROR(H95/SUM($H$84:$H$105),0) -> 0 | L95: =+SUMIFS(InTran!$R:$R,InTran!$G:$G,C95,InTran!$O:$O,$C$82,InTran!$C:$C,$L$82) -> 0 | M95: =+SUMIFS(InTran!$S:$S,InTran!$G:$G,C95,InTran!$O:$O,$C$82,InTran!$C:$C,$L$82) -> 0 | N95: =+SUMIFS(InTran!$M:$M,InTran!$G:$G,C95,InTran!$O:$O,$C$82,InTran!$C:$C,$L$82) -> 0 | O95: =+IFERROR(L95/SUM($L$84:$L$105),0) -> 0 | P95: =+SUMIFS(InTran!$R:$R,InTran!$G:$G,C95,InTran!$O:$O,$C$82,InTran!$C:$C,$P$82) -> 0 | Q95: =+SUMIFS(InTran!$S:$S,InTran!$G:$G,C95,InTran!$O:$O,$C$82,InTran!$C:$C,$P$82) -> 0 | R95: =+SUMIFS(InTran!$M:$M,InTran!$G:$G,C95,InTran!$O:$O,$C$82,InTran!$C:$C,$P$82) -> 0 | S95: =+IFERROR(P95/SUM($P$84:$P$105),0) -> 0 | T95: =+SUMIFS(InTran!$R:$R,InTran!$G:$G,C95,InTran!$O:$O,$C$82,InTran!$C:$C,$T$82) -> 0 | U95: =+SUMIFS(InTran!$S:$S,InTran!$G:$G,C95,InTran!$O:$O,$C$82,InTran!$C:$C,$T$82) -> 0 | V95: =+SUMIFS(InTran!$M:$M,InTran!$G:$G,C95,InTran!$O:$O,$C$82,InTran!$C:$C,$T$82) -> 0 | W95: =+IFERROR(T95/SUM($T$84:$T$105),0) -> 0 | X95: =+SUMIFS(InTran!$R:$R,InTran!$G:$G,C95,InTran!$O:$O,$C$82,InTran!$C:$C,$X$82) -> 0 | Y95: =+SUMIFS(InTran!$S:$S,InTran!$G:$G,C95,InTran!$O:$O,$C$82,InTran!$C:$C,$X$82) -> 0 | Z95: =+SUMIFS(InTran!$M:$M,InTran!$G:$G,C95,InTran!$O:$O,$C$82,InTran!$C:$C,$X$82) -> 0 | AA95: =+IFERROR(X95/SUM($X$84:$X$105),0) -> 0 | AB95: =+SUMIFS(InTran!$R:$R,InTran!$G:$G,C95,InTran!$O:$O,$C$82) -> 0 | AC95: =+SUMIFS(InTran!$S:$S,InTran!$G:$G,C95,InTran!$O:$O,$C$82) -> 0 | AD95: =+SUMIFS(InTran!$M:$M,InTran!$G:$G,C95,InTran!$O:$O,$C$82) -> 0 | AE95: =+IFERROR(AB95/SUM($AB$84:$AB$105),0) -> 0 | AF95: =+RANK(AB95,$AB$84:$AB$105) -> 11
C96: BIMB SECURITIES SDN BHD | D96: =+SUMIFS(InTran!$R:$R,InTran!$G:$G,C96,InTran!$O:$O,$C$82,InTran!$C:$C,$D$82) -> 0 | E96: =+SUMIFS(InTran!$S:$S,InTran!$G:$G,C96,InTran!$O:$O,$C$82,InTran!$C:$C,$D$82) -> 0 | F96: =+SUMIFS(InTran!$M:$M,InTran!$G:$G,C96,InTran!$O:$O,$C$82,InTran!$C:$C,$D$82) -> 0 | G96: =+IFERROR(D96/SUM($D$84:$D$105),0) -> 0 | H96: =+SUMIFS(InTran!$R:$R,InTran!$G:$G,C96,InTran!$O:$O,$C$82,InTran!$C:$C,$H$82) -> 0 | I96: =+SUMIFS(InTran!$S:$S,InTran!$G:$G,C96,InTran!$O:$O,$C$82,InTran!$C:$C,$H$82) -> 0 | J96: =+SUMIFS(InTran!$M:$M,InTran!$G:$G,C96,InTran!$O:$O,$C$82,InTran!$C:$C,$H$82) -> 0 | K96: =+IFERROR(H96/SUM($H$84:$H$105),0) -> 0 | L96: =+SUMIFS(InTran!$R:$R,InTran!$G:$G,C96,InTran!$O:$O,$C$82,InTran!$C:$C,$L$82) -> 0 | M96: =+SUMIFS(InTran!$S:$S,InTran!$G:$G,C96,InTran!$O:$O,$C$82,InTran!$C:$C,$L$82) -> 0 | N96: =+SUMIFS(InTran!$M:$M,InTran!$G:$G,C96,InTran!$O:$O,$C$82,InTran!$C:$C,$L$82) -> 0 | O96: =+IFERROR(L96/SUM($L$84:$L$105),0) -> 0 | P96: =+SUMIFS(InTran!$R:$R,InTran!$G:$G,C96,InTran!$O:$O,$C$82,InTran!$C:$C,$P$82) -> 0 | Q96: =+SUMIFS(InTran!$S:$S,InTran!$G:$G,C96,InTran!$O:$O,$C$82,InTran!$C:$C,$P$82) -> 0 | R96: =+SUMIFS(InTran!$M:$M,InTran!$G:$G,C96,InTran!$O:$O,$C$82,InTran!$C:$C,$P$82) -> 0 | S96: =+IFERROR(P96/SUM($P$84:$P$105),0) -> 0 | T96: =+SUMIFS(InTran!$R:$R,InTran!$G:$G,C96,InTran!$O:$O,$C$82,InTran!$C:$C,$T$82) -> 0 | U96: =+SUMIFS(InTran!$S:$S,InTran!$G:$G,C96,InTran!$O:$O,$C$82,InTran!$C:$C,$T$82) -> 0 | V96: =+SUMIFS(InTran!$M:$M,InTran!$G:$G,C96,InTran!$O:$O,$C$82,InTran!$C:$C,$T$82) -> 0 | W96: =+IFERROR(T96/SUM($T$84:$T$105),0) -> 0 | X96: =+SUMIFS(InTran!$R:$R,InTran!$G:$G,C96,InTran!$O:$O,$C$82,InTran!$C:$C,$X$82) -> 0 | Y96: =+SUMIFS(InTran!$S:$S,InTran!$G:$G,C96,InTran!$O:$O,$C$82,InTran!$C:$C,$X$82) -> 0 | Z96: =+SUMIFS(InTran!$M:$M,InTran!$G:$G,C96,InTran!$O:$O,$C$82,InTran!$C:$C,$X$82) -> 0 | AA96: =+IFERROR(X96/SUM($X$84:$X$105),0) -> 0 | AB96: =+SUMIFS(InTran!$R:$R,InTran!$G:$G,C96,InTran!$O:$O,$C$82) -> 0 | AC96: =+SUMIFS(InTran!$S:$S,InTran!$G:$G,C96,InTran!$O:$O,$C$82) -> 0 | AD96: =+SUMIFS(InTran!$M:$M,InTran!$G:$G,C96,InTran!$O:$O,$C$82) -> 0 | AE96: =+IFERROR(AB96/SUM($AB$84:$AB$105),0) -> 0 | AF96: =+RANK(AB96,$AB$84:$AB$105) -> 11
C97: CIMB INVESTMENT BANK BHD (FOREIGN) | D97: =+SUMIFS(InTran!$R:$R,InTran!$G:$G,C97,InTran!$O:$O,$C$82,InTran!$C:$C,$D$82) -> 0 | E97: =+SUMIFS(InTran!$S:$S,InTran!$G:$G,C97,InTran!$O:$O,$C$82,InTran!$C:$C,$D$82) -> 0 | F97: =+SUMIFS(InTran!$M:$M,InTran!$G:$G,C97,InTran!$O:$O,$C$82,InTran!$C:$C,$D$82) -> 0 | G97: =+IFERROR(D97/SUM($D$84:$D$105),0) -> 0 | H97: =+SUMIFS(InTran!$R:$R,InTran!$G:$G,C97,InTran!$O:$O,$C$82,InTran!$C:$C,$H$82) -> 0 | I97: =+SUMIFS(InTran!$S:$S,InTran!$G:$G,C97,InTran!$O:$O,$C$82,InTran!$C:$C,$H$82) -> 0 | J97: =+SUMIFS(InTran!$M:$M,InTran!$G:$G,C97,InTran!$O:$O,$C$82,InTran!$C:$C,$H$82) -> 0 | K97: =+IFERROR(H97/SUM($H$84:$H$105),0) -> 0 | L97: =+SUMIFS(InTran!$R:$R,InTran!$G:$G,C97,InTran!$O:$O,$C$82,InTran!$C:$C,$L$82) -> 0 | M97: =+SUMIFS(InTran!$S:$S,InTran!$G:$G,C97,InTran!$O:$O,$C$82,InTran!$C:$C,$L$82) -> 0 | N97: =+SUMIFS(InTran!$M:$M,InTran!$G:$G,C97,InTran!$O:$O,$C$82,InTran!$C:$C,$L$82) -> 0 | O97: =+IFERROR(L97/SUM($L$84:$L$105),0) -> 0 | P97: =+SUMIFS(InTran!$R:$R,InTran!$G:$G,C97,InTran!$O:$O,$C$82,InTran!$C:$C,$P$82) -> 0 | Q97: =+SUMIFS(InTran!$S:$S,InTran!$G:$G,C97,InTran!$O:$O,$C$82,InTran!$C:$C,$P$82) -> 0 | R97: =+SUMIFS(InTran!$M:$M,InTran!$G:$G,C97,InTran!$O:$O,$C$82,InTran!$C:$C,$P$82) -> 0 | S97: =+IFERROR(P97/SUM($P$84:$P$105),0) -> 0 | T97: =+SUMIFS(InTran!$R:$R,InTran!$G:$G,C97,InTran!$O:$O,$C$82,InTran!$C:$C,$T$82) -> 0 | U97: =+SUMIFS(InTran!$S:$S,InTran!$G:$G,C97,InTran!$O:$O,$C$82,InTran!$C:$C,$T$82) -> 0 | V97: =+SUMIFS(InTran!$M:$M,InTran!$G:$G,C97,InTran!$O:$O,$C$82,InTran!$C:$C,$T$82) -> 0 | W97: =+IFERROR(T97/SUM($T$84:$T$105),0) -> 0 | X97: =+SUMIFS(InTran!$R:$R,InTran!$G:$G,C97,InTran!$O:$O,$C$82,InTran!$C:$C,$X$82) -> 0 | Y97: =+SUMIFS(InTran!$S:$S,InTran!$G:$G,C97,InTran!$O:$O,$C$82,InTran!$C:$C,$X$82) -> 0 | Z97: =+SUMIFS(InTran!$M:$M,InTran!$G:$G,C97,InTran!$O:$O,$C$82,InTran!$C:$C,$X$82) -> 0 | AA97: =+IFERROR(X97/SUM($X$84:$X$105),0) -> 0 | AB97: =+SUMIFS(InTran!$R:$R,InTran!$G:$G,C97,InTran!$O:$O,$C$82) -> 0 | AC97: =+SUMIFS(InTran!$S:$S,InTran!$G:$G,C97,InTran!$O:$O,$C$82) -> 0 | AD97: =+SUMIFS(InTran!$M:$M,InTran!$G:$G,C97,InTran!$O:$O,$C$82) -> 0 | AE97: =+IFERROR(AB97/SUM($AB$84:$AB$105),0) -> 0 | AF97: =+RANK(AB97,$AB$84:$AB$105) -> 11
C98: CLSA LIMITED FOREIGN | D98: =+SUMIFS(InTran!$R:$R,InTran!$G:$G,C98,InTran!$O:$O,$C$82,InTran!$C:$C,$D$82) -> 0 | E98: =+SUMIFS(InTran!$S:$S,InTran!$G:$G,C98,InTran!$O:$O,$C$82,InTran!$C:$C,$D$82) -> 0 | F98: =+SUMIFS(InTran!$M:$M,InTran!$G:$G,C98,InTran!$O:$O,$C$82,InTran!$C:$C,$D$82) -> 0 | G98: =+IFERROR(D98/SUM($D$84:$D$105),0) -> 0 | H98: =+SUMIFS(InTran!$R:$R,InTran!$G:$G,C98,InTran!$O:$O,$C$82,InTran!$C:$C,$H$82) -> 0 | I98: =+SUMIFS(InTran!$S:$S,InTran!$G:$G,C98,InTran!$O:$O,$C$82,InTran!$C:$C,$H$82) -> 0 | J98: =+SUMIFS(InTran!$M:$M,InTran!$G:$G,C98,InTran!$O:$O,$C$82,InTran!$C:$C,$H$82) -> 0 | K98: =+IFERROR(H98/SUM($H$84:$H$105),0) -> 0 | L98: =+SUMIFS(InTran!$R:$R,InTran!$G:$G,C98,InTran!$O:$O,$C$82,InTran!$C:$C,$L$82) -> 0 | M98: =+SUMIFS(InTran!$S:$S,InTran!$G:$G,C98,InTran!$O:$O,$C$82,InTran!$C:$C,$L$82) -> 0 | N98: =+SUMIFS(InTran!$M:$M,InTran!$G:$G,C98,InTran!$O:$O,$C$82,InTran!$C:$C,$L$82) -> 0 | O98: =+IFERROR(L98/SUM($L$84:$L$105),0) -> 0 | P98: =+SUMIFS(InTran!$R:$R,InTran!$G:$G,C98,InTran!$O:$O,$C$82,InTran!$C:$C,$P$82) -> 0 | Q98: =+SUMIFS(InTran!$S:$S,InTran!$G:$G,C98,InTran!$O:$O,$C$82,InTran!$C:$C,$P$82) -> 0 | R98: =+SUMIFS(InTran!$M:$M,InTran!$G:$G,C98,InTran!$O:$O,$C$82,InTran!$C:$C,$P$82) -> 0 | S98: =+IFERROR(P98/SUM($P$84:$P$105),0) -> 0 | T98: =+SUMIFS(InTran!$R:$R,InTran!$G:$G,C98,InTran!$O:$O,$C$82,InTran!$C:$C,$T$82) -> 0 | U98: =+SUMIFS(InTran!$S:$S,InTran!$G:$G,C98,InTran!$O:$O,$C$82,InTran!$C:$C,$T$82) -> 0 | V98: =+SUMIFS(InTran!$M:$M,InTran!$G:$G,C98,InTran!$O:$O,$C$82,InTran!$C:$C,$T$82) -> 0 | W98: =+IFERROR(T98/SUM($T$84:$T$105),0) -> 0 | X98: =+SUMIFS(InTran!$R:$R,InTran!$G:$G,C98,InTran!$O:$O,$C$82,InTran!$C:$C,$X$82) -> 0 | Y98: =+SUMIFS(InTran!$S:$S,InTran!$G:$G,C98,InTran!$O:$O,$C$82,InTran!$C:$C,$X$82) -> 0 | Z98: =+SUMIFS(InTran!$M:$M,InTran!$G:$G,C98,InTran!$O:$O,$C$82,InTran!$C:$C,$X$82) -> 0 | AA98: =+IFERROR(X98/SUM($X$84:$X$105),0) -> 0 | AB98: =+SUMIFS(InTran!$R:$R,InTran!$G:$G,C98,InTran!$O:$O,$C$82) -> 0 | AC98: =+SUMIFS(InTran!$S:$S,InTran!$G:$G,C98,InTran!$O:$O,$C$82) -> 0 | AD98: =+SUMIFS(InTran!$M:$M,InTran!$G:$G,C98,InTran!$O:$O,$C$82) -> 0 | AE98: =+IFERROR(AB98/SUM($AB$84:$AB$105),0) -> 0 | AF98: =+RANK(AB98,$AB$84:$AB$105) -> 11
C99: HONG LEONG INVESTMENT BANK BHD | D99: =+SUMIFS(InTran!$R:$R,InTran!$G:$G,C99,InTran!$O:$O,$C$82,InTran!$C:$C,$D$82) -> 0 | E99: =+SUMIFS(InTran!$S:$S,InTran!$G:$G,C99,InTran!$O:$O,$C$82,InTran!$C:$C,$D$82) -> 0 | F99: =+SUMIFS(InTran!$M:$M,InTran!$G:$G,C99,InTran!$O:$O,$C$82,InTran!$C:$C,$D$82) -> 0 | G99: =+IFERROR(D99/SUM($D$84:$D$105),0) -> 0 | H99: =+SUMIFS(InTran!$R:$R,InTran!$G:$G,C99,InTran!$O:$O,$C$82,InTran!$C:$C,$H$82) -> 0 | I99: =+SUMIFS(InTran!$S:$S,InTran!$G:$G,C99,InTran!$O:$O,$C$82,InTran!$C:$C,$H$82) -> 0 | J99: =+SUMIFS(InTran!$M:$M,InTran!$G:$G,C99,InTran!$O:$O,$C$82,InTran!$C:$C,$H$82) -> 0 | K99: =+IFERROR(H99/SUM($H$84:$H$105),0) -> 0 | L99: =+SUMIFS(InTran!$R:$R,InTran!$G:$G,C99,InTran!$O:$O,$C$82,InTran!$C:$C,$L$82) -> 0 | M99: =+SUMIFS(InTran!$S:$S,InTran!$G:$G,C99,InTran!$O:$O,$C$82,InTran!$C:$C,$L$82) -> 0 | N99: =+SUMIFS(InTran!$M:$M,InTran!$G:$G,C99,InTran!$O:$O,$C$82,InTran!$C:$C,$L$82) -> 0 | O99: =+IFERROR(L99/SUM($L$84:$L$105),0) -> 0 | P99: =+SUMIFS(InTran!$R:$R,InTran!$G:$G,C99,InTran!$O:$O,$C$82,InTran!$C:$C,$P$82) -> 0 | Q99: =+SUMIFS(InTran!$S:$S,InTran!$G:$G,C99,InTran!$O:$O,$C$82,InTran!$C:$C,$P$82) -> 0 | R99: =+SUMIFS(InTran!$M:$M,InTran!$G:$G,C99,InTran!$O:$O,$C$82,InTran!$C:$C,$P$82) -> 0 | S99: =+IFERROR(P99/SUM($P$84:$P$105),0) -> 0 | T99: =+SUMIFS(InTran!$R:$R,InTran!$G:$G,C99,InTran!$O:$O,$C$82,InTran!$C:$C,$T$82) -> 0 | U99: =+SUMIFS(InTran!$S:$S,InTran!$G:$G,C99,InTran!$O:$O,$C$82,InTran!$C:$C,$T$82) -> 0 | V99: =+SUMIFS(InTran!$M:$M,InTran!$G:$G,C99,InTran!$O:$O,$C$82,InTran!$C:$C,$T$82) -> 0 | W99: =+IFERROR(T99/SUM($T$84:$T$105),0) -> 0 | X99: =+SUMIFS(InTran!$R:$R,InTran!$G:$G,C99,InTran!$O:$O,$C$82,InTran!$C:$C,$X$82) -> 0 | Y99: =+SUMIFS(InTran!$S:$S,InTran!$G:$G,C99,InTran!$O:$O,$C$82,InTran!$C:$C,$X$82) -> 0 | Z99: =+SUMIFS(InTran!$M:$M,InTran!$G:$G,C99,InTran!$O:$O,$C$82,InTran!$C:$C,$X$82) -> 0 | AA99: =+IFERROR(X99/SUM($X$84:$X$105),0) -> 0 | AB99: =+SUMIFS(InTran!$R:$R,InTran!$G:$G,C99,InTran!$O:$O,$C$82) -> 0 | AC99: =+SUMIFS(InTran!$S:$S,InTran!$G:$G,C99,InTran!$O:$O,$C$82) -> 0 | AD99: =+SUMIFS(InTran!$M:$M,InTran!$G:$G,C99,InTran!$O:$O,$C$82) -> 0 | AE99: =+IFERROR(AB99/SUM($AB$84:$AB$105),0) -> 0 | AF99: =+RANK(AB99,$AB$84:$AB$105) -> 11
C100: MACQUARIE CAPITAL SECURITIES (MALAYSIA) SDN BHD (FOREIGN) | D100: =+SUMIFS(InTran!$R:$R,InTran!$G:$G,C100,InTran!$O:$O,$C$82,InTran!$C:$C,$D$82) -> 0 | E100: =+SUMIFS(InTran!$S:$S,InTran!$G:$G,C100,InTran!$O:$O,$C$82,InTran!$C:$C,$D$82) -> 0 | F100: =+SUMIFS(InTran!$M:$M,InTran!$G:$G,C100,InTran!$O:$O,$C$82,InTran!$C:$C,$D$82) -> 0 | G100: =+IFERROR(D100/SUM($D$84:$D$105),0) -> 0 | H100: =+SUMIFS(InTran!$R:$R,InTran!$G:$G,C100,InTran!$O:$O,$C$82,InTran!$C:$C,$H$82) -> 0 | I100: =+SUMIFS(InTran!$S:$S,InTran!$G:$G,C100,InTran!$O:$O,$C$82,InTran!$C:$C,$H$82) -> 0 | J100: =+SUMIFS(InTran!$M:$M,InTran!$G:$G,C100,InTran!$O:$O,$C$82,InTran!$C:$C,$H$82) -> 0 | K100: =+IFERROR(H100/SUM($H$84:$H$105),0) -> 0 | L100: =+SUMIFS(InTran!$R:$R,InTran!$G:$G,C100,InTran!$O:$O,$C$82,InTran!$C:$C,$L$82) -> 0 | M100: =+SUMIFS(InTran!$S:$S,InTran!$G:$G,C100,InTran!$O:$O,$C$82,InTran!$C:$C,$L$82) -> 0 | N100: =+SUMIFS(InTran!$M:$M,InTran!$G:$G,C100,InTran!$O:$O,$C$82,InTran!$C:$C,$L$82) -> 0 | O100: =+IFERROR(L100/SUM($L$84:$L$105),0) -> 0 | P100: =+SUMIFS(InTran!$R:$R,InTran!$G:$G,C100,InTran!$O:$O,$C$82,InTran!$C:$C,$P$82) -> 0 | Q100: =+SUMIFS(InTran!$S:$S,InTran!$G:$G,C100,InTran!$O:$O,$C$82,InTran!$C:$C,$P$82) -> 0 | R100: =+SUMIFS(InTran!$M:$M,InTran!$G:$G,C100,InTran!$O:$O,$C$82,InTran!$C:$C,$P$82) -> 0 | S100: =+IFERROR(P100/SUM($P$84:$P$105),0) -> 0 | T100: =+SUMIFS(InTran!$R:$R,InTran!$G:$G,C100,InTran!$O:$O,$C$82,InTran!$C:$C,$T$82) -> 0 | U100: =+SUMIFS(InTran!$S:$S,InTran!$G:$G,C100,InTran!$O:$O,$C$82,InTran!$C:$C,$T$82) -> 0 | V100: =+SUMIFS(InTran!$M:$M,InTran!$G:$G,C100,InTran!$O:$O,$C$82,InTran!$C:$C,$T$82) -> 0 | W100: =+IFERROR(T100/SUM($T$84:$T$105),0) -> 0 | X100: =+SUMIFS(InTran!$R:$R,InTran!$G:$G,C100,InTran!$O:$O,$C$82,InTran!$C:$C,$X$82) -> 0 | Y100: =+SUMIFS(InTran!$S:$S,InTran!$G:$G,C100,InTran!$O:$O,$C$82,InTran!$C:$C,$X$82) -> 0 | Z100: =+SUMIFS(InTran!$M:$M,InTran!$G:$G,C100,InTran!$O:$O,$C$82,InTran!$C:$C,$X$82) -> 0 | AA100: =+IFERROR(X100/SUM($X$84:$X$105),0) -> 0 | AB100: =+SUMIFS(InTran!$R:$R,InTran!$G:$G,C100,InTran!$O:$O,$C$82) -> 0 | AC100: =+SUMIFS(InTran!$S:$S,InTran!$G:$G,C100,InTran!$O:$O,$C$82) -> 0 | AD100: =+SUMIFS(InTran!$M:$M,InTran!$G:$G,C100,InTran!$O:$O,$C$82) -> 0 | AE100: =+IFERROR(AB100/SUM($AB$84:$AB$105),0) -> 0 | AF100: =+RANK(AB100,$AB$84:$AB$105) -> 11
C101: MAYBANK INVESTMENT BANK BHD (FOREIGN) | D101: =+SUMIFS(InTran!$R:$R,InTran!$G:$G,C101,InTran!$O:$O,$C$82,InTran!$C:$C,$D$82) -> 0 | E101: =+SUMIFS(InTran!$S:$S,InTran!$G:$G,C101,InTran!$O:$O,$C$82,InTran!$C:$C,$D$82) -> 0 | F101: =+SUMIFS(InTran!$M:$M,InTran!$G:$G,C101,InTran!$O:$O,$C$82,InTran!$C:$C,$D$82) -> 0 | G101: =+IFERROR(D101/SUM($D$84:$D$105),0) -> 0 | H101: =+SUMIFS(InTran!$R:$R,InTran!$G:$G,C101,InTran!$O:$O,$C$82,InTran!$C:$C,$H$82) -> 0 | I101: =+SUMIFS(InTran!$S:$S,InTran!$G:$G,C101,InTran!$O:$O,$C$82,InTran!$C:$C,$H$82) -> 0 | J101: =+SUMIFS(InTran!$M:$M,InTran!$G:$G,C101,InTran!$O:$O,$C$82,InTran!$C:$C,$H$82) -> 0 | K101: =+IFERROR(H101/SUM($H$84:$H$105),0) -> 0 | L101: =+SUMIFS(InTran!$R:$R,InTran!$G:$G,C101,InTran!$O:$O,$C$82,InTran!$C:$C,$L$82) -> 0 | M101: =+SUMIFS(InTran!$S:$S,InTran!$G:$G,C101,InTran!$O:$O,$C$82,InTran!$C:$C,$L$82) -> 0 | N101: =+SUMIFS(InTran!$M:$M,InTran!$G:$G,C101,InTran!$O:$O,$C$82,InTran!$C:$C,$L$82) -> 0 | O101: =+IFERROR(L101/SUM($L$84:$L$105),0) -> 0 | P101: =+SUMIFS(InTran!$R:$R,InTran!$G:$G,C101,InTran!$O:$O,$C$82,InTran!$C:$C,$P$82) -> 0 | Q101: =+SUMIFS(InTran!$S:$S,InTran!$G:$G,C101,InTran!$O:$O,$C$82,InTran!$C:$C,$P$82) -> 0 | R101: =+SUMIFS(InTran!$M:$M,InTran!$G:$G,C101,InTran!$O:$O,$C$82,InTran!$C:$C,$P$82) -> 0 | S101: =+IFERROR(P101/SUM($P$84:$P$105),0) -> 0 | T101: =+SUMIFS(InTran!$R:$R,InTran!$G:$G,C101,InTran!$O:$O,$C$82,InTran!$C:$C,$T$82) -> 0 | U101: =+SUMIFS(InTran!$S:$S,InTran!$G:$G,C101,InTran!$O:$O,$C$82,InTran!$C:$C,$T$82) -> 0 | V101: =+SUMIFS(InTran!$M:$M,InTran!$G:$G,C101,InTran!$O:$O,$C$82,InTran!$C:$C,$T$82) -> 0 | W101: =+IFERROR(T101/SUM($T$84:$T$105),0) -> 0 | X101: =+SUMIFS(InTran!$R:$R,InTran!$G:$G,C101,InTran!$O:$O,$C$82,InTran!$C:$C,$X$82) -> 0 | Y101: =+SUMIFS(InTran!$S:$S,InTran!$G:$G,C101,InTran!$O:$O,$C$82,InTran!$C:$C,$X$82) -> 0 | Z101: =+SUMIFS(InTran!$M:$M,InTran!$G:$G,C101,InTran!$O:$O,$C$82,InTran!$C:$C,$X$82) -> 0 | AA101: =+IFERROR(X101/SUM($X$84:$X$105),0) -> 0 | AB101: =+SUMIFS(InTran!$R:$R,InTran!$G:$G,C101,InTran!$O:$O,$C$82) -> 0 | AC101: =+SUMIFS(InTran!$S:$S,InTran!$G:$G,C101,InTran!$O:$O,$C$82) -> 0 | AD101: =+SUMIFS(InTran!$M:$M,InTran!$G:$G,C101,InTran!$O:$O,$C$82) -> 0 | AE101: =+IFERROR(AB101/SUM($AB$84:$AB$105),0) -> 0 | AF101: =+RANK(AB101,$AB$84:$AB$105) -> 11
C102: MIDF AMANAH INVESTMENT BANK BHD | D102: =+SUMIFS(InTran!$R:$R,InTran!$G:$G,C102,InTran!$O:$O,$C$82,InTran!$C:$C,$D$82) -> 0 | E102: =+SUMIFS(InTran!$S:$S,InTran!$G:$G,C102,InTran!$O:$O,$C$82,InTran!$C:$C,$D$82) -> 0 | F102: =+SUMIFS(InTran!$M:$M,InTran!$G:$G,C102,InTran!$O:$O,$C$82,InTran!$C:$C,$D$82) -> 0 | G102: =+IFERROR(D102/SUM($D$84:$D$105),0) -> 0 | H102: =+SUMIFS(InTran!$R:$R,InTran!$G:$G,C102,InTran!$O:$O,$C$82,InTran!$C:$C,$H$82) -> 0 | I102: =+SUMIFS(InTran!$S:$S,InTran!$G:$G,C102,InTran!$O:$O,$C$82,InTran!$C:$C,$H$82) -> 0 | J102: =+SUMIFS(InTran!$M:$M,InTran!$G:$G,C102,InTran!$O:$O,$C$82,InTran!$C:$C,$H$82) -> 0 | K102: =+IFERROR(H102/SUM($H$84:$H$105),0) -> 0 | L102: =+SUMIFS(InTran!$R:$R,InTran!$G:$G,C102,InTran!$O:$O,$C$82,InTran!$C:$C,$L$82) -> 0 | M102: =+SUMIFS(InTran!$S:$S,InTran!$G:$G,C102,InTran!$O:$O,$C$82,InTran!$C:$C,$L$82) -> 0 | N102: =+SUMIFS(InTran!$M:$M,InTran!$G:$G,C102,InTran!$O:$O,$C$82,InTran!$C:$C,$L$82) -> 0 | O102: =+IFERROR(L102/SUM($L$84:$L$105),0) -> 0 | P102: =+SUMIFS(InTran!$R:$R,InTran!$G:$G,C102,InTran!$O:$O,$C$82,InTran!$C:$C,$P$82) -> 0 | Q102: =+SUMIFS(InTran!$S:$S,InTran!$G:$G,C102,InTran!$O:$O,$C$82,InTran!$C:$C,$P$82) -> 0 | R102: =+SUMIFS(InTran!$M:$M,InTran!$G:$G,C102,InTran!$O:$O,$C$82,InTran!$C:$C,$P$82) -> 0 | S102: =+IFERROR(P102/SUM($P$84:$P$105),0) -> 0 | T102: =+SUMIFS(InTran!$R:$R,InTran!$G:$G,C102,InTran!$O:$O,$C$82,InTran!$C:$C,$T$82) -> 0 | U102: =+SUMIFS(InTran!$S:$S,InTran!$G:$G,C102,InTran!$O:$O,$C$82,InTran!$C:$C,$T$82) -> 0 | V102: =+SUMIFS(InTran!$M:$M,InTran!$G:$G,C102,InTran!$O:$O,$C$82,InTran!$C:$C,$T$82) -> 0 | W102: =+IFERROR(T102/SUM($T$84:$T$105),0) -> 0 | X102: =+SUMIFS(InTran!$R:$R,InTran!$G:$G,C102,InTran!$O:$O,$C$82,InTran!$C:$C,$X$82) -> 0 | Y102: =+SUMIFS(InTran!$S:$S,InTran!$G:$G,C102,InTran!$O:$O,$C$82,InTran!$C:$C,$X$82) -> 0 | Z102: =+SUMIFS(InTran!$M:$M,InTran!$G:$G,C102,InTran!$O:$O,$C$82,InTran!$C:$C,$X$82) -> 0 | AA102: =+IFERROR(X102/SUM($X$84:$X$105),0) -> 0 | AB102: =+SUMIFS(InTran!$R:$R,InTran!$G:$G,C102,InTran!$O:$O,$C$82) -> 0 | AC102: =+SUMIFS(InTran!$S:$S,InTran!$G:$G,C102,InTran!$O:$O,$C$82) -> 0 | AD102: =+SUMIFS(InTran!$M:$M,InTran!$G:$G,C102,InTran!$O:$O,$C$82) -> 0 | AE102: =+IFERROR(AB102/SUM($AB$84:$AB$105),0) -> 0 | AF102: =+RANK(AB102,$AB$84:$AB$105) -> 11
C103: NOMURA SECURITIES MALAYSIA SDN BHD | D103: =+SUMIFS(InTran!$R:$R,InTran!$G:$G,C103,InTran!$O:$O,$C$82,InTran!$C:$C,$D$82) -> 0 | E103: =+SUMIFS(InTran!$S:$S,InTran!$G:$G,C103,InTran!$O:$O,$C$82,InTran!$C:$C,$D$82) -> 0 | F103: =+SUMIFS(InTran!$M:$M,InTran!$G:$G,C103,InTran!$O:$O,$C$82,InTran!$C:$C,$D$82) -> 0 | G103: =+IFERROR(D103/SUM($D$84:$D$105),0) -> 0 | H103: =+SUMIFS(InTran!$R:$R,InTran!$G:$G,C103,InTran!$O:$O,$C$82,InTran!$C:$C,$H$82) -> 0 | I103: =+SUMIFS(InTran!$S:$S,InTran!$G:$G,C103,InTran!$O:$O,$C$82,InTran!$C:$C,$H$82) -> 0 | J103: =+SUMIFS(InTran!$M:$M,InTran!$G:$G,C103,InTran!$O:$O,$C$82,InTran!$C:$C,$H$82) -> 0 | K103: =+IFERROR(H103/SUM($H$84:$H$105),0) -> 0 | L103: =+SUMIFS(InTran!$R:$R,InTran!$G:$G,C103,InTran!$O:$O,$C$82,InTran!$C:$C,$L$82) -> 0 | M103: =+SUMIFS(InTran!$S:$S,InTran!$G:$G,C103,InTran!$O:$O,$C$82,InTran!$C:$C,$L$82) -> 0 | N103: =+SUMIFS(InTran!$M:$M,InTran!$G:$G,C103,InTran!$O:$O,$C$82,InTran!$C:$C,$L$82) -> 0 | O103: =+IFERROR(L103/SUM($L$84:$L$105),0) -> 0 | P103: =+SUMIFS(InTran!$R:$R,InTran!$G:$G,C103,InTran!$O:$O,$C$82,InTran!$C:$C,$P$82) -> 0 | Q103: =+SUMIFS(InTran!$S:$S,InTran!$G:$G,C103,InTran!$O:$O,$C$82,InTran!$C:$C,$P$82) -> 0 | R103: =+SUMIFS(InTran!$M:$M,InTran!$G:$G,C103,InTran!$O:$O,$C$82,InTran!$C:$C,$P$82) -> 0 | S103: =+IFERROR(P103/SUM($P$84:$P$105),0) -> 0 | T103: =+SUMIFS(InTran!$R:$R,InTran!$G:$G,C103,InTran!$O:$O,$C$82,InTran!$C:$C,$T$82) -> 0 | U103: =+SUMIFS(InTran!$S:$S,InTran!$G:$G,C103,InTran!$O:$O,$C$82,InTran!$C:$C,$T$82) -> 0 | V103: =+SUMIFS(InTran!$M:$M,InTran!$G:$G,C103,InTran!$O:$O,$C$82,InTran!$C:$C,$T$82) -> 0 | W103: =+IFERROR(T103/SUM($T$84:$T$105),0) -> 0 | X103: =+SUMIFS(InTran!$R:$R,InTran!$G:$G,C103,InTran!$O:$O,$C$82,InTran!$C:$C,$X$82) -> 0 | Y103: =+SUMIFS(InTran!$S:$S,InTran!$G:$G,C103,InTran!$O:$O,$C$82,InTran!$C:$C,$X$82) -> 0 | Z103: =+SUMIFS(InTran!$M:$M,InTran!$G:$G,C103,InTran!$O:$O,$C$82,InTran!$C:$C,$X$82) -> 0 | AA103: =+IFERROR(X103/SUM($X$84:$X$105),0) -> 0 | AB103: =+SUMIFS(InTran!$R:$R,InTran!$G:$G,C103,InTran!$O:$O,$C$82) -> 0 | AC103: =+SUMIFS(InTran!$S:$S,InTran!$G:$G,C103,InTran!$O:$O,$C$82) -> 0 | AD103: =+SUMIFS(InTran!$M:$M,InTran!$G:$G,C103,InTran!$O:$O,$C$82) -> 0 | AE103: =+IFERROR(AB103/SUM($AB$84:$AB$105),0) -> 0 | AF103: =+RANK(AB103,$AB$84:$AB$105) -> 11
C104: NOT APPLICABLE | D104: =+SUMIFS(InTran!$R:$R,InTran!$G:$G,C104,InTran!$O:$O,$C$82,InTran!$C:$C,$D$82) -> 0 | E104: =+SUMIFS(InTran!$S:$S,InTran!$G:$G,C104,InTran!$O:$O,$C$82,InTran!$C:$C,$D$82) -> 0 | F104: =+SUMIFS(InTran!$M:$M,InTran!$G:$G,C104,InTran!$O:$O,$C$82,InTran!$C:$C,$D$82) -> 0 | G104: =+IFERROR(D104/SUM($D$84:$D$105),0) -> 0 | H104: =+SUMIFS(InTran!$R:$R,InTran!$G:$G,C104,InTran!$O:$O,$C$82,InTran!$C:$C,$H$82) -> 0 | I104: =+SUMIFS(InTran!$S:$S,InTran!$G:$G,C104,InTran!$O:$O,$C$82,InTran!$C:$C,$H$82) -> 0 | J104: =+SUMIFS(InTran!$M:$M,InTran!$G:$G,C104,InTran!$O:$O,$C$82,InTran!$C:$C,$H$82) -> 0 | K104: =+IFERROR(H104/SUM($H$84:$H$105),0) -> 0 | L104: =+SUMIFS(InTran!$R:$R,InTran!$G:$G,C104,InTran!$O:$O,$C$82,InTran!$C:$C,$L$82) -> 0 | M104: =+SUMIFS(InTran!$S:$S,InTran!$G:$G,C104,InTran!$O:$O,$C$82,InTran!$C:$C,$L$82) -> 0 | N104: =+SUMIFS(InTran!$M:$M,InTran!$G:$G,C104,InTran!$O:$O,$C$82,InTran!$C:$C,$L$82) -> 0 | O104: =+IFERROR(L104/SUM($L$84:$L$105),0) -> 0 | P104: =+SUMIFS(InTran!$R:$R,InTran!$G:$G,C104,InTran!$O:$O,$C$82,InTran!$C:$C,$P$82) -> 0 | Q104: =+SUMIFS(InTran!$S:$S,InTran!$G:$G,C104,InTran!$O:$O,$C$82,InTran!$C:$C,$P$82) -> 0 | R104: =+SUMIFS(InTran!$M:$M,InTran!$G:$G,C104,InTran!$O:$O,$C$82,InTran!$C:$C,$P$82) -> 0 | S104: =+IFERROR(P104/SUM($P$84:$P$105),0) -> 0 | T104: =+SUMIFS(InTran!$R:$R,InTran!$G:$G,C104,InTran!$O:$O,$C$82,InTran!$C:$C,$T$82) -> 0 | U104: =+SUMIFS(InTran!$S:$S,InTran!$G:$G,C104,InTran!$O:$O,$C$82,InTran!$C:$C,$T$82) -> 0 | V104: =+SUMIFS(InTran!$M:$M,InTran!$G:$G,C104,InTran!$O:$O,$C$82,InTran!$C:$C,$T$82) -> 0 | W104: =+IFERROR(T104/SUM($T$84:$T$105),0) -> 0 | X104: =+SUMIFS(InTran!$R:$R,InTran!$G:$G,C104,InTran!$O:$O,$C$82,InTran!$C:$C,$X$82) -> 0 | Y104: =+SUMIFS(InTran!$S:$S,InTran!$G:$G,C104,InTran!$O:$O,$C$82,InTran!$C:$C,$X$82) -> 0 | Z104: =+SUMIFS(InTran!$M:$M,InTran!$G:$G,C104,InTran!$O:$O,$C$82,InTran!$C:$C,$X$82) -> 0 | AA104: =+IFERROR(X104/SUM($X$84:$X$105),0) -> 0 | AB104: =+SUMIFS(InTran!$R:$R,InTran!$G:$G,C104,InTran!$O:$O,$C$82) -> 0 | AC104: =+SUMIFS(InTran!$S:$S,InTran!$G:$G,C104,InTran!$O:$O,$C$82) -> 0 | AD104: =+SUMIFS(InTran!$M:$M,InTran!$G:$G,C104,InTran!$O:$O,$C$82) -> 0 | AE104: =+IFERROR(AB104/SUM($AB$84:$AB$105),0) -> 0 | AF104: =+RANK(AB104,$AB$84:$AB$105) -> 11
C105: UBS SECURITIES MALAYSIA SDN BHD | D105: =+SUMIFS(InTran!$R:$R,InTran!$G:$G,C105,InTran!$O:$O,$C$82,InTran!$C:$C,$D$82) -> 0 | E105: =+SUMIFS(InTran!$S:$S,InTran!$G:$G,C105,InTran!$O:$O,$C$82,InTran!$C:$C,$D$82) -> 0 | F105: =+SUMIFS(InTran!$M:$M,InTran!$G:$G,C105,InTran!$O:$O,$C$82,InTran!$C:$C,$D$82) -> 0 | G105: =+IFERROR(D105/SUM($D$84:$D$105),0) -> 0 | H105: =+SUMIFS(InTran!$R:$R,InTran!$G:$G,C105,InTran!$O:$O,$C$82,InTran!$C:$C,$H$82) -> 0 | I105: =+SUMIFS(InTran!$S:$S,InTran!$G:$G,C105,InTran!$O:$O,$C$82,InTran!$C:$C,$H$82) -> 0 | J105: =+SUMIFS(InTran!$M:$M,InTran!$G:$G,C105,InTran!$O:$O,$C$82,InTran!$C:$C,$H$82) -> 0 | K105: =+IFERROR(H105/SUM($H$84:$H$105),0) -> 0 | L105: =+SUMIFS(InTran!$R:$R,InTran!$G:$G,C105,InTran!$O:$O,$C$82,InTran!$C:$C,$L$82) -> 0 | M105: =+SUMIFS(InTran!$S:$S,InTran!$G:$G,C105,InTran!$O:$O,$C$82,InTran!$C:$C,$L$82) -> 0 | N105: =+SUMIFS(InTran!$M:$M,InTran!$G:$G,C105,InTran!$O:$O,$C$82,InTran!$C:$C,$L$82) -> 0 | O105: =+IFERROR(L105/SUM($L$84:$L$105),0) -> 0 | P105: =+SUMIFS(InTran!$R:$R,InTran!$G:$G,C105,InTran!$O:$O,$C$82,InTran!$C:$C,$P$82) -> 0 | Q105: =+SUMIFS(InTran!$S:$S,InTran!$G:$G,C105,InTran!$O:$O,$C$82,InTran!$C:$C,$P$82) -> 0 | R105: =+SUMIFS(InTran!$M:$M,InTran!$G:$G,C105,InTran!$O:$O,$C$82,InTran!$C:$C,$P$82) -> 0 | S105: =+IFERROR(P105/SUM($P$84:$P$105),0) -> 0 | T105: =+SUMIFS(InTran!$R:$R,InTran!$G:$G,C105,InTran!$O:$O,$C$82,InTran!$C:$C,$T$82) -> 0 | U105: =+SUMIFS(InTran!$S:$S,InTran!$G:$G,C105,InTran!$O:$O,$C$82,InTran!$C:$C,$T$82) -> 0 | V105: =+SUMIFS(InTran!$M:$M,InTran!$G:$G,C105,InTran!$O:$O,$C$82,InTran!$C:$C,$T$82) -> 0 | W105: =+IFERROR(T105/SUM($T$84:$T$105),0) -> 0 | X105: =+SUMIFS(InTran!$R:$R,InTran!$G:$G,C105,InTran!$O:$O,$C$82,InTran!$C:$C,$X$82) -> 0 | Y105: =+SUMIFS(InTran!$S:$S,InTran!$G:$G,C105,InTran!$O:$O,$C$82,InTran!$C:$C,$X$82) -> 0 | Z105: =+SUMIFS(InTran!$M:$M,InTran!$G:$G,C105,InTran!$O:$O,$C$82,InTran!$C:$C,$X$82) -> 0 | AA105: =+IFERROR(X105/SUM($X$84:$X$105),0) -> 0 | AB105: =+SUMIFS(InTran!$R:$R,InTran!$G:$G,C105,InTran!$O:$O,$C$82) -> 0 | AC105: =+SUMIFS(InTran!$S:$S,InTran!$G:$G,C105,InTran!$O:$O,$C$82) -> 0 | AD105: =+SUMIFS(InTran!$M:$M,InTran!$G:$G,C105,InTran!$O:$O,$C$82) -> 0 | AE105: =+IFERROR(AB105/SUM($AB$84:$AB$105),0) -> 0 | AF105: =+RANK(AB105,$AB$84:$AB$105) -> 11
C106: Total | D106: =SUM(D84:D105) -> 9585654.7 | E106: =SUM(E84:E105) -> 11502.22 | F106: =SUM(F84:F105) -> 1364562.27 | G106: =SUM(G84:G105) -> 1 | H106: =SUM(H84:H105) -> 237566577.4 | I106: =SUM(I84:I105) -> 408675.72 | J106: =SUM(J84:J105) -> 9586269.23 | K106: =SUM(K84:K105) -> 1 | L106: =SUM(L84:L105) -> 14059008.77 | M106: =SUM(M84:M105) -> 15679.34 | N106: =SUM(N84:N105) -> -581672.03 | O106: =SUM(O84:O105) -> 1 | P106: =SUM(P84:P105) -> 1946482.38 | Q106: =SUM(Q84:Q105) -> 3902.88 | R106: =SUM(R84:R105) -> 118495.86 | S106: =SUM(S84:S105) -> 1 | T106: =SUM(T84:T105) -> 512101.98 | U106: =SUM(U84:U105) -> 1149.08 | V106: =SUM(V84:V105) -> 9097.41 | W106: =SUM(W84:W105) -> 1 | X106: =SUM(X84:X105) -> 100101.08 | Y106: =SUM(Y84:Y105) -> 224.4 | Z106: =SUM(Z84:Z105) -> 0 | AA106: =SUM(AA84:AA105) -> 1 | AB106: =SUM(AB84:AB105) -> 263769926.3 | AC106: =SUM(AC84:AC105) -> 441133.64 | AD106: =SUM(AD84:AD105) -> 10496752.74 | AE106: =SUM(AE84:AE105) -> 1
C108: NIK.FAIZ | D108: YH-AUR-VCAM | H108: KWAP | L108: MEQESG | P108: YAMIR-VCAM | T108: VCAM-TABA | X108: ASEAN5ESG | AB108: Total
C109: Brokers | D109: Trade Value (RM) | E109: Brokerage Fees (RM) | F109: Capital Gains (RM) | G109: % | H109: Trade Value (RM) | I109: Brokerage Fees (RM) | J109: Capital Gains (RM) | K109: % | L109: Trade Value (RM) | M109: Brokerage Fees (RM) | N109: Capital Gains (RM) | O109: % | P109: Trade Value (RM) | Q109: Brokerage Fees (RM) | R109: Capital Gains (RM) | S109: % | T109: Trade Value (RM) | U109: Brokerage Fees (RM) | V109: Capital Gains (RM) | W109: % | X109: Trade Value (RM) | Y109: Brokerage Fees (RM) | Z109: Capital Gains (RM) | AA109: % | AB109: Trade Value (RM) | AC109: Brokerage Fees (RM) | AD109: Capital Gains (RM) | AE109: % | AF109: Trade Value Ranking
C110: CIMB INVESTMENT BANK BHD | D110: =+SUMIFS(InTran!$R:$R,InTran!$G:$G,C110,InTran!$O:$O,$C$108,InTran!$C:$C,$D$108) -> 0 | E110: =+SUMIFS(InTran!$S:$S,InTran!$G:$G,C110,InTran!$O:$O,$C$108,InTran!$C:$C,$D$108) -> 0 | F110: =+SUMIFS(InTran!$M:$M,InTran!$G:$G,C110,InTran!$O:$O,$C$108,InTran!$C:$C,$D$108) -> 0 | G110: =+IFERROR(D110/SUM($D$110:$D$131),0) -> 0 | H110: =+SUMIFS(InTran!$R:$R,InTran!$G:$G,C110,InTran!$O:$O,$C$108,InTran!$C:$C,$H$108) -> 34498367.05 | I110: =+SUMIFS(InTran!$S:$S,InTran!$G:$G,C110,InTran!$O:$O,$C$108,InTran!$C:$C,$H$108) -> 51572.06 | J110: =+SUMIFS(InTran!$M:$M,InTran!$G:$G,C110,InTran!$O:$O,$C$108,InTran!$C:$C,$H$108) -> 922348.52 | K110: =+IFERROR(H110/SUM($H$110:$H$131),0) -> 0.1002772159 | L110: =+SUMIFS(InTran!$R:$R,InTran!$G:$G,C110,InTran!$O:$O,$C$108,InTran!$C:$C,$L$108) -> 0 | M110: =+SUMIFS(InTran!$S:$S,InTran!$G:$G,C110,InTran!$O:$O,$C$108,InTran!$C:$C,$L$108) -> 0 | N110: =+SUMIFS(InTran!$M:$M,InTran!$G:$G,C110,InTran!$O:$O,$C$108,InTran!$C:$C,$L$108) -> 0 | O110: =+IFERROR(L110/SUM($L$110:$L$131),0) -> 0 | P110: =+SUMIFS(InTran!$R:$R,InTran!$G:$G,C110,InTran!$O:$O,$C$108,InTran!$C:$C,$P$108) -> 6416560.31 | Q110: =+SUMIFS(InTran!$S:$S,InTran!$G:$G,C110,InTran!$O:$O,$C$108,InTran!$C:$C,$P$108) -> 13601.8 | R110: =+SUMIFS(InTran!$M:$M,InTran!$G:$G,C110,InTran!$O:$O,$C$108,InTran!$C:$C,$P$108) -> 149045.42 | S110: =+IFERROR(P110/SUM($P$110:$P$131),0) -> 0.09173205902 | T110: =+SUMIFS(InTran!$R:$R,InTran!$G:$G,C110,InTran!$O:$O,$C$108,InTran!$C:$C,$T$108) -> 352147.23 | U110: =+SUMIFS(InTran!$S:$S,InTran!$G:$G,C110,InTran!$O:$O,$C$108,InTran!$C:$C,$T$108) -> 794.93 | V110: =+SUMIFS(InTran!$M:$M,InTran!$G:$G,C110,InTran!$O:$O,$C$108,InTran!$C:$C,$T$108) -> 33882.83 | W110: =+IFERROR(T110/SUM($T$110:$T$131),0) -> 0.3625952489 | X110: =+SUMIFS(InTran!$R:$R,InTran!$G:$G,C110,InTran!$O:$O,$C$108,InTran!$C:$C,$X$108) -> 0 | Y110: =+SUMIFS(InTran!$S:$S,InTran!$G:$G,C110,InTran!$O:$O,$C$108,InTran!$C:$C,$X$108) -> 0 | Z110: =+SUMIFS(InTran!$M:$M,InTran!$G:$G,C110,InTran!$O:$O,$C$108,InTran!$C:$C,$X$108) -> 0 | AA110: =+IFERROR(X110/SUM($X$110:$X$131),0) -> 0 | AB110: =+SUMIFS(InTran!$R:$R,InTran!$G:$G,C110,InTran!$O:$O,$C$108) -> 41267074.59 | AC110: =+SUMIFS(InTran!$S:$S,InTran!$G:$G,C110,InTran!$O:$O,$C$108) -> 65968.79 | AD110: =+SUMIFS(InTran!$M:$M,InTran!$G:$G,C110,InTran!$O:$O,$C$108) -> 1105276.77 | AE110: =+IFERROR(AB110/SUM($AB$110:$AB$131),0) -> 0.09874273489 | AF110: =+RANK(AB110,$AB$110:$AB$131) -> 1
C111: MACQUARIE CAPITAL SECURITIES (MALAYSIA) SDN BHD | D111: =+SUMIFS(InTran!$R:$R,InTran!$G:$G,C111,InTran!$O:$O,$C$108,InTran!$C:$C,$D$108) -> 0 | E111: =+SUMIFS(InTran!$S:$S,InTran!$G:$G,C111,InTran!$O:$O,$C$108,InTran!$C:$C,$D$108) -> 0 | F111: =+SUMIFS(InTran!$M:$M,InTran!$G:$G,C111,InTran!$O:$O,$C$108,InTran!$C:$C,$D$108) -> 0 | G111: =+IFERROR(D111/SUM($D$110:$D$131),0) -> 0 | H111: =+SUMIFS(InTran!$R:$R,InTran!$G:$G,C111,InTran!$O:$O,$C$108,InTran!$C:$C,$H$108) -> 31650741.47 | I111: =+SUMIFS(InTran!$S:$S,InTran!$G:$G,C111,InTran!$O:$O,$C$108,InTran!$C:$C,$H$108) -> 57332.58 | J111: =+SUMIFS(InTran!$M:$M,InTran!$G:$G,C111,InTran!$O:$O,$C$108,InTran!$C:$C,$H$108) -> 2314543.4 | K111: =+IFERROR(H111/SUM($H$110:$H$131),0) -> 0.09199995556 | L111: =+SUMIFS(InTran!$R:$R,InTran!$G:$G,C111,InTran!$O:$O,$C$108,InTran!$C:$C,$L$108) -> 0 | M111: =+SUMIFS(InTran!$S:$S,InTran!$G:$G,C111,InTran!$O:$O,$C$108,InTran!$C:$C,$L$108) -> 0 | N111: =+SUMIFS(InTran!$M:$M,InTran!$G:$G,C111,InTran!$O:$O,$C$108,InTran!$C:$C,$L$108) -> 0 | O111: =+IFERROR(L111/SUM($L$110:$L$131),0) -> 0 | P111: =+SUMIFS(InTran!$R:$R,InTran!$G:$G,C111,InTran!$O:$O,$C$108,InTran!$C:$C,$P$108) -> 9445355.4 | Q111: =+SUMIFS(InTran!$S:$S,InTran!$G:$G,C111,InTran!$O:$O,$C$108,InTran!$C:$C,$P$108) -> 20638.33 | R111: =+SUMIFS(InTran!$M:$M,InTran!$G:$G,C111,InTran!$O:$O,$C$108,InTran!$C:$C,$P$108) -> 291917.76 | S111: =+IFERROR(P111/SUM($P$110:$P$131),0) -> 0.1350321445 | T111: =+SUMIFS(InTran!$R:$R,InTran!$G:$G,C111,InTran!$O:$O,$C$108,InTran!$C:$C,$T$108) -> 0 | U111: =+SUMIFS(InTran!$S:$S,InTran!$G:$G,C111,InTran!$O:$O,$C$108,InTran!$C:$C,$T$108) -> 0 | V111: =+SUMIFS(InTran!$M:$M,InTran!$G:$G,C111,InTran!$O:$O,$C$108,InTran!$C:$C,$T$108) -> 0 | W111: =+IFERROR(T111/SUM($T$110:$T$131),0) -> 0 | X111: =+SUMIFS(InTran!$R:$R,InTran!$G:$G,C111,InTran!$O:$O,$C$108,InTran!$C:$C,$X$108) -> 0 | Y111: =+SUMIFS(InTran!$S:$S,InTran!$G:$G,C111,InTran!$O:$O,$C$108,InTran!$C:$C,$X$108) -> 0 | Z111: =+SUMIFS(InTran!$M:$M,InTran!$G:$G,C111,InTran!$O:$O,$C$108,InTran!$C:$C,$X$108) -> 0 | AA111: =+IFERROR(X111/SUM($X$110:$X$131),0) -> 0 | AB111: =+SUMIFS(InTran!$R:$R,InTran!$G:$G,C111,InTran!$O:$O,$C$108) -> 41096096.87 | AC111: =+SUMIFS(InTran!$S:$S,InTran!$G:$G,C111,InTran!$O:$O,$C$108) -> 77970.91 | AD111: =+SUMIFS(InTran!$M:$M,InTran!$G:$G,C111,InTran!$O:$O,$C$108) -> 2606461.16 | AE111: =+IFERROR(AB111/SUM($AB$110:$AB$131),0) -> 0.09833362404 | AF111: =+RANK(AB111,$AB$110:$AB$131) -> 2
C112: AFFIN INVESTMENT BANK BERHAD | D112: =+SUMIFS(InTran!$R:$R,InTran!$G:$G,C112,InTran!$O:$O,$C$108,InTran!$C:$C,$D$108) -> 0 | E112: =+SUMIFS(InTran!$S:$S,InTran!$G:$G,C112,InTran!$O:$O,$C$108,InTran!$C:$C,$D$108) -> 0 | F112: =+SUMIFS(InTran!$M:$M,InTran!$G:$G,C112,InTran!$O:$O,$C$108,InTran!$C:$C,$D$108) -> 0 | G112: =+IFERROR(D112/SUM($D$110:$D$131),0) -> 0 | H112: =+SUMIFS(InTran!$R:$R,InTran!$G:$G,C112,InTran!$O:$O,$C$108,InTran!$C:$C,$H$108) -> 32977545.78 | I112: =+SUMIFS(InTran!$S:$S,InTran!$G:$G,C112,InTran!$O:$O,$C$108,InTran!$C:$C,$H$108) -> 34175.49 | J112: =+SUMIFS(InTran!$M:$M,InTran!$G:$G,C112,InTran!$O:$O,$C$108,InTran!$C:$C,$H$108) -> 64650.86 | K112: =+IFERROR(H112/SUM($H$110:$H$131),0) -> 0.09585660889 | L112: =+SUMIFS(InTran!$R:$R,InTran!$G:$G,C112,InTran!$O:$O,$C$108,InTran!$C:$C,$L$108) -> 0 | M112: =+SUMIFS(InTran!$S:$S,InTran!$G:$G,C112,InTran!$O:$O,$C$108,InTran!$C:$C,$L$108) -> 0 | N112: =+SUMIFS(InTran!$M:$M,InTran!$G:$G,C112,InTran!$O:$O,$C$108,InTran!$C:$C,$L$108) -> 0 | O112: =+IFERROR(L112/SUM($L$110:$L$131),0) -> 0 | P112: =+SUMIFS(InTran!$R:$R,InTran!$G:$G,C112,InTran!$O:$O,$C$108,InTran!$C:$C,$P$108) -> 5325479.74 | Q112: =+SUMIFS(InTran!$S:$S,InTran!$G:$G,C112,InTran!$O:$O,$C$108,InTran!$C:$C,$P$108) -> 11739.52 | R112: =+SUMIFS(InTran!$M:$M,InTran!$G:$G,C112,InTran!$O:$O,$C$108,InTran!$C:$C,$P$108) -> 141297.76 | S112: =+IFERROR(P112/SUM($P$110:$P$131),0) -> 0.07613381597 | T112: =+SUMIFS(InTran!$R:$R,InTran!$G:$G,C112,InTran!$O:$O,$C$108,InTran!$C:$C,$T$108) -> 0 | U112: =+SUMIFS(InTran!$S:$S,InTran!$G:$G,C112,InTran!$O:$O,$C$108,InTran!$C:$C,$T$108) -> 0 | V112: =+SUMIFS(InTran!$M:$M,InTran!$G:$G,C112,InTran!$O:$O,$C$108,InTran!$C:$C,$T$108) -> 0 | W112: =+IFERROR(T112/SUM($T$110:$T$131),0) -> 0 | X112: =+SUMIFS(InTran!$R:$R,InTran!$G:$G,C112,InTran!$O:$O,$C$108,InTran!$C:$C,$X$108) -> 0 | Y112: =+SUMIFS(InTran!$S:$S,InTran!$G:$G,C112,InTran!$O:$O,$C$108,InTran!$C:$C,$X$108) -> 0 | Z112: =+SUMIFS(InTran!$M:$M,InTran!$G:$G,C112,InTran!$O:$O,$C$108,InTran!$C:$C,$X$108) -> 0 | AA112: =+IFERROR(X112/SUM($X$110:$X$131),0) -> 0 | AB112: =+SUMIFS(InTran!$R:$R,InTran!$G:$G,C112,InTran!$O:$O,$C$108) -> 38303025.52 | AC112: =+SUMIFS(InTran!$S:$S,InTran!$G:$G,C112,InTran!$O:$O,$C$108) -> 45915.01 | AD112: =+SUMIFS(InTran!$M:$M,InTran!$G:$G,C112,InTran!$O:$O,$C$108) -> 205948.62 | AE112: =+IFERROR(AB112/SUM($AB$110:$AB$131),0) -> 0.0916504388 | AF112: =+RANK(AB112,$AB$110:$AB$131) -> 3
C113: KAF-SEAGROATT & CAMPBELL SECURITIES SDN BHD | D113: =+SUMIFS(InTran!$R:$R,InTran!$G:$G,C113,InTran!$O:$O,$C$108,InTran!$C:$C,$D$108) -> 0 | E113: =+SUMIFS(InTran!$S:$S,InTran!$G:$G,C113,InTran!$O:$O,$C$108,InTran!$C:$C,$D$108) -> 0 | F113: =+SUMIFS(InTran!$M:$M,InTran!$G:$G,C113,InTran!$O:$O,$C$108,InTran!$C:$C,$D$108) -> 0 | G113: =+IFERROR(D113/SUM($D$110:$D$131),0) -> 0 | H113: =+SUMIFS(InTran!$R:$R,InTran!$G:$G,C113,InTran!$O:$O,$C$108,InTran!$C:$C,$H$108) -> 31737782.96 | I113: =+SUMIFS(InTran!$S:$S,InTran!$G:$G,C113,InTran!$O:$O,$C$108,InTran!$C:$C,$H$108) -> 42552.83 | J113: =+SUMIFS(InTran!$M:$M,InTran!$G:$G,C113,InTran!$O:$O,$C$108,InTran!$C:$C,$H$108) -> 2199255.39 | K113: =+IFERROR(H113/SUM($H$110:$H$131),0) -> 0.09225296111 | L113: =+SUMIFS(InTran!$R:$R,InTran!$G:$G,C113,InTran!$O:$O,$C$108,InTran!$C:$C,$L$108) -> 0 | M113: =+SUMIFS(InTran!$S:$S,InTran!$G:$G,C113,InTran!$O:$O,$C$108,InTran!$C:$C,$L$108) -> 0 | N113: =+SUMIFS(InTran!$M:$M,InTran!$G:$G,C113,InTran!$O:$O,$C$108,InTran!$C:$C,$L$108) -> 0 | O113: =+IFERROR(L113/SUM($L$110:$L$131),0) -> 0 | P113: =+SUMIFS(InTran!$R:$R,InTran!$G:$G,C113,InTran!$O:$O,$C$108,InTran!$C:$C,$P$108) -> 6122541.53 | Q113: =+SUMIFS(InTran!$S:$S,InTran!$G:$G,C113,InTran!$O:$O,$C$108,InTran!$C:$C,$P$108) -> 13796.9 | R113: =+SUMIFS(InTran!$M:$M,InTran!$G:$G,C113,InTran!$O:$O,$C$108,InTran!$C:$C,$P$108) -> 163136.63 | S113: =+IFERROR(P113/SUM($P$110:$P$131),0) -> 0.08752872472 | T113: =+SUMIFS(InTran!$R:$R,InTran!$G:$G,C113,InTran!$O:$O,$C$108,InTran!$C:$C,$T$108) -> 0 | U113: =+SUMIFS(InTran!$S:$S,InTran!$G:$G,C113,InTran!$O:$O,$C$108,InTran!$C:$C,$T$108) -> 0 | V113: =+SUMIFS(InTran!$M:$M,InTran!$G:$G,C113,InTran!$O:$O,$C$108,InTran!$C:$C,$T$108) -> 0 | W113: =+IFERROR(T113/SUM($T$110:$T$131),0) -> 0 | X113: =+SUMIFS(InTran!$R:$R,InTran!$G:$G,C113,InTran!$O:$O,$C$108,InTran!$C:$C,$X$108) -> 0 | Y113: =+SUMIFS(InTran!$S:$S,InTran!$G:$G,C113,InTran!$O:$O,$C$108,InTran!$C:$C,$X$108) -> 0 | Z113: =+SUMIFS(InTran!$M:$M,InTran!$G:$G,C113,InTran!$O:$O,$C$108,InTran!$C:$C,$X$108) -> 0 | AA113: =+IFERROR(X113/SUM($X$110:$X$131),0) -> 0 | AB113: =+SUMIFS(InTran!$R:$R,InTran!$G:$G,C113,InTran!$O:$O,$C$108) -> 37860324.49 | AC113: =+SUMIFS(InTran!$S:$S,InTran!$G:$G,C113,InTran!$O:$O,$C$108) -> 56349.73 | AD113: =+SUMIFS(InTran!$M:$M,InTran!$G:$G,C113,InTran!$O:$O,$C$108) -> 2362392.02 | AE113: =+IFERROR(AB113/SUM($AB$110:$AB$131),0) -> 0.09059115581 | AF113: =+RANK(AB113,$AB$110:$AB$131) -> 4
C114: MIDF AMANAH INVESTMENT BANK BHD | D114: =+SUMIFS(InTran!$R:$R,InTran!$G:$G,C114,InTran!$O:$O,$C$108,InTran!$C:$C,$D$108) -> 0 | E114: =+SUMIFS(InTran!$S:$S,InTran!$G:$G,C114,InTran!$O:$O,$C$108,InTran!$C:$C,$D$108) -> 0 | F114: =+SUMIFS(InTran!$M:$M,InTran!$G:$G,C114,InTran!$O:$O,$C$108,InTran!$C:$C,$D$108) -> 0 | G114: =+IFERROR(D114/SUM($D$110:$D$131),0) -> 0 | H114: =+SUMIFS(InTran!$R:$R,InTran!$G:$G,C114,InTran!$O:$O,$C$108,InTran!$C:$C,$H$108) -> 30812374.57 | I114: =+SUMIFS(InTran!$S:$S,InTran!$G:$G,C114,InTran!$O:$O,$C$108,InTran!$C:$C,$H$108) -> 57426.83 | J114: =+SUMIFS(InTran!$M:$M,InTran!$G:$G,C114,InTran!$O:$O,$C$108,InTran!$C:$C,$H$108) -> 2399705.05 | K114: =+IFERROR(H114/SUM($H$110:$H$131),0) -> 0.08956305475 | L114: =+SUMIFS(InTran!$R:$R,InTran!$G:$G,C114,InTran!$O:$O,$C$108,InTran!$C:$C,$L$108) -> 0 | M114: =+SUMIFS(InTran!$S:$S,InTran!$G:$G,C114,InTran!$O:$O,$C$108,InTran!$C:$C,$L$108) -> 0 | N114: =+SUMIFS(InTran!$M:$M,InTran!$G:$G,C114,InTran!$O:$O,$C$108,InTran!$C:$C,$L$108) -> 0 | O114: =+IFERROR(L114/SUM($L$110:$L$131),0) -> 0 | P114: =+SUMIFS(InTran!$R:$R,InTran!$G:$G,C114,InTran!$O:$O,$C$108,InTran!$C:$C,$P$108) -> 5650216.97 | Q114: =+SUMIFS(InTran!$S:$S,InTran!$G:$G,C114,InTran!$O:$O,$C$108,InTran!$C:$C,$P$108) -> 12734.92 | R114: =+SUMIFS(InTran!$M:$M,InTran!$G:$G,C114,InTran!$O:$O,$C$108,InTran!$C:$C,$P$108) -> 193892.94 | S114: =+IFERROR(P114/SUM($P$110:$P$131),0) -> 0.08077630561 | T114: =+SUMIFS(InTran!$R:$R,InTran!$G:$G,C114,InTran!$O:$O,$C$108,InTran!$C:$C,$T$108) -> 619038.22 | U114: =+SUMIFS(InTran!$S:$S,InTran!$G:$G,C114,InTran!$O:$O,$C$108,InTran!$C:$C,$T$108) -> 1388.63 | V114: =+SUMIFS(InTran!$M:$M,InTran!$G:$G,C114,InTran!$O:$O,$C$108,InTran!$C:$C,$T$108) -> 0 | W114: =+IFERROR(T114/SUM($T$110:$T$131),0) -> 0.6374047511 | X114: =+SUMIFS(InTran!$R:$R,InTran!$G:$G,C114,InTran!$O:$O,$C$108,InTran!$C:$C,$X$108) -> 0 | Y114: =+SUMIFS(InTran!$S:$S,InTran!$G:$G,C114,InTran!$O:$O,$C$108,InTran!$C:$C,$X$108) -> 0 | Z114: =+SUMIFS(InTran!$M:$M,InTran!$G:$G,C114,InTran!$O:$O,$C$108,InTran!$C:$C,$X$108) -> 0 | AA114: =+IFERROR(X114/SUM($X$110:$X$131),0) -> 0 | AB114: =+SUMIFS(InTran!$R:$R,InTran!$G:$G,C114,InTran!$O:$O,$C$108) -> 37081629.76 | AC114: =+SUMIFS(InTran!$S:$S,InTran!$G:$G,C114,InTran!$O:$O,$C$108) -> 71550.38 | AD114: =+SUMIFS(InTran!$M:$M,InTran!$G:$G,C114,InTran!$O:$O,$C$108) -> 2593597.99 | AE114: =+IFERROR(AB114/SUM($AB$110:$AB$131),0) -> 0.08872791621 | AF114: =+RANK(AB114,$AB$110:$AB$131) -> 5
C115: NOMURA SECURITIES MALAYSIA SDN BHD | D115: =+SUMIFS(InTran!$R:$R,InTran!$G:$G,C115,InTran!$O:$O,$C$108,InTran!$C:$C,$D$108) -> 0 | E115: =+SUMIFS(InTran!$S:$S,InTran!$G:$G,C115,InTran!$O:$O,$C$108,InTran!$C:$C,$D$108) -> 0 | F115: =+SUMIFS(InTran!$M:$M,InTran!$G:$G,C115,InTran!$O:$O,$C$108,InTran!$C:$C,$D$108) -> 0 | G115: =+IFERROR(D115/SUM($D$110:$D$131),0) -> 0 | H115: =+SUMIFS(InTran!$R:$R,InTran!$G:$G,C115,InTran!$O:$O,$C$108,InTran!$C:$C,$H$108) -> 26926106.56 | I115: =+SUMIFS(InTran!$S:$S,InTran!$G:$G,C115,InTran!$O:$O,$C$108,InTran!$C:$C,$H$108) -> 48562.7 | J115: =+SUMIFS(InTran!$M:$M,InTran!$G:$G,C115,InTran!$O:$O,$C$108,InTran!$C:$C,$H$108) -> 1759607.9 | K115: =+IFERROR(H115/SUM($H$110:$H$131),0) -> 0.07826674801 | L115: =+SUMIFS(InTran!$R:$R,InTran!$G:$G,C115,InTran!$O:$O,$C$108,InTran!$C:$C,$L$108) -> 0 | M115: =+SUMIFS(InTran!$S:$S,InTran!$G:$G,C115,InTran!$O:$O,$C$108,InTran!$C:$C,$L$108) -> 0 | N115: =+SUMIFS(InTran!$M:$M,InTran!$G:$G,C115,InTran!$O:$O,$C$108,InTran!$C:$C,$L$108) -> 0 | O115: =+IFERROR(L115/SUM($L$110:$L$131),0) -> 0 | P115: =+SUMIFS(InTran!$R:$R,InTran!$G:$G,C115,InTran!$O:$O,$C$108,InTran!$C:$C,$P$108) -> 5762268.4 | Q115: =+SUMIFS(InTran!$S:$S,InTran!$G:$G,C115,InTran!$O:$O,$C$108,InTran!$C:$C,$P$108) -> 12648.96 | R115: =+SUMIFS(InTran!$M:$M,InTran!$G:$G,C115,InTran!$O:$O,$C$108,InTran!$C:$C,$P$108) -> 331943.27 | S115: =+IFERROR(P115/SUM($P$110:$P$131),0) -> 0.0823782088 | T115: =+SUMIFS(InTran!$R:$R,InTran!$G:$G,C115,InTran!$O:$O,$C$108,InTran!$C:$C,$T$108) -> 0 | U115: =+SUMIFS(InTran!$S:$S,InTran!$G:$G,C115,InTran!$O:$O,$C$108,InTran!$C:$C,$T$108) -> 0 | V115: =+SUMIFS(InTran!$M:$M,InTran!$G:$G,C115,InTran!$O:$O,$C$108,InTran!$C:$C,$T$108) -> 0 | W115: =+IFERROR(T115/SUM($T$110:$T$131),0) -> 0 | X115: =+SUMIFS(InTran!$R:$R,InTran!$G:$G,C115,InTran!$O:$O,$C$108,InTran!$C:$C,$X$108) -> 0 | Y115: =+SUMIFS(InTran!$S:$S,InTran!$G:$G,C115,InTran!$O:$O,$C$108,InTran!$C:$C,$X$108) -> 0 | Z115: =+SUMIFS(InTran!$M:$M,InTran!$G:$G,C115,InTran!$O:$O,$C$108,InTran!$C:$C,$X$108) -> 0 | AA115: =+IFERROR(X115/SUM($X$110:$X$131),0) -> 0 | AB115: =+SUMIFS(InTran!$R:$R,InTran!$G:$G,C115,InTran!$O:$O,$C$108) -> 32688374.96 | AC115: =+SUMIFS(InTran!$S:$S,InTran!$G:$G,C115,InTran!$O:$O,$C$108) -> 61211.66 | AD115: =+SUMIFS(InTran!$M:$M,InTran!$G:$G,C115,InTran!$O:$O,$C$108) -> 2091551.17 | AE115: =+IFERROR(AB115/SUM($AB$110:$AB$131),0) -> 0.07821585549 | AF115: =+RANK(AB115,$AB$110:$AB$131) -> 6
C116: UBS SECURITIES MALAYSIA SDN BHD | D116: =+SUMIFS(InTran!$R:$R,InTran!$G:$G,C116,InTran!$O:$O,$C$108,InTran!$C:$C,$D$108) -> 0 | E116: =+SUMIFS(InTran!$S:$S,InTran!$G:$G,C116,InTran!$O:$O,$C$108,InTran!$C:$C,$D$108) -> 0 | F116: =+SUMIFS(InTran!$M:$M,InTran!$G:$G,C116,InTran!$O:$O,$C$108,InTran!$C:$C,$D$108) -> 0 | G116: =+IFERROR(D116/SUM($D$110:$D$131),0) -> 0 | H116: =+SUMIFS(InTran!$R:$R,InTran!$G:$G,C116,InTran!$O:$O,$C$108,InTran!$C:$C,$H$108) -> 29585066.26 | I116: =+SUMIFS(InTran!$S:$S,InTran!$G:$G,C116,InTran!$O:$O,$C$108,InTran!$C:$C,$H$108) -> 59321.48 | J116: =+SUMIFS(InTran!$M:$M,InTran!$G:$G,C116,InTran!$O:$O,$C$108,InTran!$C:$C,$H$108) -> 1036020.5 | K116: =+IFERROR(H116/SUM($H$110:$H$131),0) -> 0.08599560879 | L116: =+SUMIFS(InTran!$R:$R,InTran!$G:$G,C116,InTran!$O:$O,$C$108,InTran!$C:$C,$L$108) -> 0 | M116: =+SUMIFS(InTran!$S:$S,InTran!$G:$G,C116,InTran!$O:$O,$C$108,InTran!$C:$C,$L$108) -> 0 | N116: =+SUMIFS(InTran!$M:$M,InTran!$G:$G,C116,InTran!$O:$O,$C$108,InTran!$C:$C,$L$108) -> 0 | O116: =+IFERROR(L116/SUM($L$110:$L$131),0) -> 0 | P116: =+SUMIFS(InTran!$R:$R,InTran!$G:$G,C116,InTran!$O:$O,$C$108,InTran!$C:$C,$P$108) -> 1398152.28 | Q116: =+SUMIFS(InTran!$S:$S,InTran!$G:$G,C116,InTran!$O:$O,$C$108,InTran!$C:$C,$P$108) -> 3149.1 | R116: =+SUMIFS(InTran!$M:$M,InTran!$G:$G,C116,InTran!$O:$O,$C$108,InTran!$C:$C,$P$108) -> 33627.14 | S116: =+IFERROR(P116/SUM($P$110:$P$131),0) -> 0.0199881839 | T116: =+SUMIFS(InTran!$R:$R,InTran!$G:$G,C116,InTran!$O:$O,$C$108,InTran!$C:$C,$T$108) -> 0 | U116: =+SUMIFS(InTran!$S:$S,InTran!$G:$G,C116,InTran!$O:$O,$C$108,InTran!$C:$C,$T$108) -> 0 | V116: =+SUMIFS(InTran!$M:$M,InTran!$G:$G,C116,InTran!$O:$O,$C$108,InTran!$C:$C,$T$108) -> 0 | W116: =+IFERROR(T116/SUM($T$110:$T$131),0) -> 0 | X116: =+SUMIFS(InTran!$R:$R,InTran!$G:$G,C116,InTran!$O:$O,$C$108,InTran!$C:$C,$X$108) -> 0 | Y116: =+SUMIFS(InTran!$S:$S,InTran!$G:$G,C116,InTran!$O:$O,$C$108,InTran!$C:$C,$X$108) -> 0 | Z116: =+SUMIFS(InTran!$M:$M,InTran!$G:$G,C116,InTran!$O:$O,$C$108,InTran!$C:$C,$X$108) -> 0 | AA116: =+IFERROR(X116/SUM($X$110:$X$131),0) -> 0 | AB116: =+SUMIFS(InTran!$R:$R,InTran!$G:$G,C116,InTran!$O:$O,$C$108) -> 30983218.54 | AC116: =+SUMIFS(InTran!$S:$S,InTran!$G:$G,C116,InTran!$O:$O,$C$108) -> 62470.58 | AD116: =+SUMIFS(InTran!$M:$M,InTran!$G:$G,C116,InTran!$O:$O,$C$108) -> 1069647.64 | AE116: =+IFERROR(AB116/SUM($AB$110:$AB$131),0) -> 0.07413580353 | AF116: =+RANK(AB116,$AB$110:$AB$131) -> 7
C117: AMINVESTMENT BANK BHD | D117: =+SUMIFS(InTran!$R:$R,InTran!$G:$G,C117,InTran!$O:$O,$C$108,InTran!$C:$C,$D$108) -> 0 | E117: =+SUMIFS(InTran!$S:$S,InTran!$G:$G,C117,InTran!$O:$O,$C$108,InTran!$C:$C,$D$108) -> 0 | F117: =+SUMIFS(InTran!$M:$M,InTran!$G:$G,C117,InTran!$O:$O,$C$108,InTran!$C:$C,$D$108) -> 0 | G117: =+IFERROR(D117/SUM($D$110:$D$131),0) -> 0 | H117: =+SUMIFS(InTran!$R:$R,InTran!$G:$G,C117,InTran!$O:$O,$C$108,InTran!$C:$C,$H$108) -> 26006152.56 | I117: =+SUMIFS(InTran!$S:$S,InTran!$G:$G,C117,InTran!$O:$O,$C$108,InTran!$C:$C,$H$108) -> 46470.38 | J117: =+SUMIFS(InTran!$M:$M,InTran!$G:$G,C117,InTran!$O:$O,$C$108,InTran!$C:$C,$H$108) -> 1350107 | K117: =+IFERROR(H117/SUM($H$110:$H$131),0) -> 0.07559269606 | L117: =+SUMIFS(InTran!$R:$R,InTran!$G:$G,C117,InTran!$O:$O,$C$108,InTran!$C:$C,$L$108) -> 0 | M117: =+SUMIFS(InTran!$S:$S,InTran!$G:$G,C117,InTran!$O:$O,$C$108,InTran!$C:$C,$L$108) -> 0 | N117: =+SUMIFS(InTran!$M:$M,InTran!$G:$G,C117,InTran!$O:$O,$C$108,InTran!$C:$C,$L$108) -> 0 | O117: =+IFERROR(L117/SUM($L$110:$L$131),0) -> 0 | P117: =+SUMIFS(InTran!$R:$R,InTran!$G:$G,C117,InTran!$O:$O,$C$108,InTran!$C:$C,$P$108) -> 4188702.38 | Q117: =+SUMIFS(InTran!$S:$S,InTran!$G:$G,C117,InTran!$O:$O,$C$108,InTran!$C:$C,$P$108) -> 8939.53 | R117: =+SUMIFS(InTran!$M:$M,InTran!$G:$G,C117,InTran!$O:$O,$C$108,InTran!$C:$C,$P$108) -> 146479.38 | S117: =+IFERROR(P117/SUM($P$110:$P$131),0) -> 0.05988228512 | T117: =+SUMIFS(InTran!$R:$R,InTran!$G:$G,C117,InTran!$O:$O,$C$108,InTran!$C:$C,$T$108) -> 0 | U117: =+SUMIFS(InTran!$S:$S,InTran!$G:$G,C117,InTran!$O:$O,$C$108,InTran!$C:$C,$T$108) -> 0 | V117: =+SUMIFS(InTran!$M:$M,InTran!$G:$G,C117,InTran!$O:$O,$C$108,InTran!$C:$C,$T$108) -> 0 | W117: =+IFERROR(T117/SUM($T$110:$T$131),0) -> 0 | X117: =+SUMIFS(InTran!$R:$R,InTran!$G:$G,C117,InTran!$O:$O,$C$108,InTran!$C:$C,$X$108) -> 0 | Y117: =+SUMIFS(InTran!$S:$S,InTran!$G:$G,C117,InTran!$O:$O,$C$108,InTran!$C:$C,$X$108) -> 0 | Z117: =+SUMIFS(InTran!$M:$M,InTran!$G:$G,C117,InTran!$O:$O,$C$108,InTran!$C:$C,$X$108) -> 0 | AA117: =+IFERROR(X117/SUM($X$110:$X$131),0) -> 0 | AB117: =+SUMIFS(InTran!$R:$R,InTran!$G:$G,C117,InTran!$O:$O,$C$108) -> 30194854.94 | AC117: =+SUMIFS(InTran!$S:$S,InTran!$G:$G,C117,InTran!$O:$O,$C$108) -> 55409.91 | AD117: =+SUMIFS(InTran!$M:$M,InTran!$G:$G,C117,InTran!$O:$O,$C$108) -> 1496586.38 | AE117: =+IFERROR(AB117/SUM($AB$110:$AB$131),0) -> 0.07224942853 | AF117: =+RANK(AB117,$AB$110:$AB$131) -> 8
C118: HONG LEONG INVESTMENT BANK BHD | D118: =+SUMIFS(InTran!$R:$R,InTran!$G:$G,C118,InTran!$O:$O,$C$108,InTran!$C:$C,$D$108) -> 0 | E118: =+SUMIFS(InTran!$S:$S,InTran!$G:$G,C118,InTran!$O:$O,$C$108,InTran!$C:$C,$D$108) -> 0 | F118: =+SUMIFS(InTran!$M:$M,InTran!$G:$G,C118,InTran!$O:$O,$C$108,InTran!$C:$C,$D$108) -> 0 | G118: =+IFERROR(D118/SUM($D$110:$D$131),0) -> 0 | H118: =+SUMIFS(InTran!$R:$R,InTran!$G:$G,C118,InTran!$O:$O,$C$108,InTran!$C:$C,$H$108) -> 23647235.72 | I118: =+SUMIFS(InTran!$S:$S,InTran!$G:$G,C118,InTran!$O:$O,$C$108,InTran!$C:$C,$H$108) -> 47560.65 | J118: =+SUMIFS(InTran!$M:$M,InTran!$G:$G,C118,InTran!$O:$O,$C$108,InTran!$C:$C,$H$108) -> 1654941.81 | K118: =+IFERROR(H118/SUM($H$110:$H$131),0) -> 0.06873597693 | L118: =+SUMIFS(InTran!$R:$R,InTran!$G:$G,C118,InTran!$O:$O,$C$108,InTran!$C:$C,$L$108) -> 0 | M118: =+SUMIFS(InTran!$S:$S,InTran!$G:$G,C118,InTran!$O:$O,$C$108,InTran!$C:$C,$L$108) -> 0 | N118: =+SUMIFS(InTran!$M:$M,InTran!$G:$G,C118,InTran!$O:$O,$C$108,InTran!$C:$C,$L$108) -> 0 | O118: =+IFERROR(L118/SUM($L$110:$L$131),0) -> 0 | P118: =+SUMIFS(InTran!$R:$R,InTran!$G:$G,C118,InTran!$O:$O,$C$108,InTran!$C:$C,$P$108) -> 4988881.44 | Q118: =+SUMIFS(InTran!$S:$S,InTran!$G:$G,C118,InTran!$O:$O,$C$108,InTran!$C:$C,$P$108) -> 10261.37 | R118: =+SUMIFS(InTran!$M:$M,InTran!$G:$G,C118,InTran!$O:$O,$C$108,InTran!$C:$C,$P$108) -> 12695.9 | S118: =+IFERROR(P118/SUM($P$110:$P$131),0) -> 0.07132175879 | T118: =+SUMIFS(InTran!$R:$R,InTran!$G:$G,C118,InTran!$O:$O,$C$108,InTran!$C:$C,$T$108) -> 0 | U118: =+SUMIFS(InTran!$S:$S,InTran!$G:$G,C118,InTran!$O:$O,$C$108,InTran!$C:$C,$T$108) -> 0 | V118: =+SUMIFS(InTran!$M:$M,InTran!$G:$G,C118,InTran!$O:$O,$C$108,InTran!$C:$C,$T$108) -> 0 | W118: =+IFERROR(T118/SUM($T$110:$T$131),0) -> 0 | X118: =+SUMIFS(InTran!$R:$R,InTran!$G:$G,C118,InTran!$O:$O,$C$108,InTran!$C:$C,$X$108) -> 0 | Y118: =+SUMIFS(InTran!$S:$S,InTran!$G:$G,C118,InTran!$O:$O,$C$108,InTran!$C:$C,$X$108) -> 0 | Z118: =+SUMIFS(InTran!$M:$M,InTran!$G:$G,C118,InTran!$O:$O,$C$108,InTran!$C:$C,$X$108) -> 0 | AA118: =+IFERROR(X118/SUM($X$110:$X$131),0) -> 0 | AB118: =+SUMIFS(InTran!$R:$R,InTran!$G:$G,C118,InTran!$O:$O,$C$108) -> 28636117.16 | AC118: =+SUMIFS(InTran!$S:$S,InTran!$G:$G,C118,InTran!$O:$O,$C$108) -> 57822.02 | AD118: =+SUMIFS(InTran!$M:$M,InTran!$G:$G,C118,InTran!$O:$O,$C$108) -> 1667637.71 | AE118: =+IFERROR(AB118/SUM($AB$110:$AB$131),0) -> 0.06851972312 | AF118: =+RANK(AB118,$AB$110:$AB$131) -> 9
C119: RHB INVESTMENT BANK BERHAD | D119: =+SUMIFS(InTran!$R:$R,InTran!$G:$G,C119,InTran!$O:$O,$C$108,InTran!$C:$C,$D$108) -> 0 | E119: =+SUMIFS(InTran!$S:$S,InTran!$G:$G,C119,InTran!$O:$O,$C$108,InTran!$C:$C,$D$108) -> 0 | F119: =+SUMIFS(InTran!$M:$M,InTran!$G:$G,C119,InTran!$O:$O,$C$108,InTran!$C:$C,$D$108) -> 0 | G119: =+IFERROR(D119/SUM($D$110:$D$131),0) -> 0 | H119: =+SUMIFS(InTran!$R:$R,InTran!$G:$G,C119,InTran!$O:$O,$C$108,InTran!$C:$C,$H$108) -> 14726160.8 | I119: =+SUMIFS(InTran!$S:$S,InTran!$G:$G,C119,InTran!$O:$O,$C$108,InTran!$C:$C,$H$108) -> 21107.09 | J119: =+SUMIFS(InTran!$M:$M,InTran!$G:$G,C119,InTran!$O:$O,$C$108,InTran!$C:$C,$H$108) -> 412249.75 | K119: =+IFERROR(H119/SUM($H$110:$H$131),0) -> 0.04280487838 | L119: =+SUMIFS(InTran!$R:$R,InTran!$G:$G,C119,InTran!$O:$O,$C$108,InTran!$C:$C,$L$108) -> 0 | M119: =+SUMIFS(InTran!$S:$S,InTran!$G:$G,C119,InTran!$O:$O,$C$108,InTran!$C:$C,$L$108) -> 0 | N119: =+SUMIFS(InTran!$M:$M,InTran!$G:$G,C119,InTran!$O:$O,$C$108,InTran!$C:$C,$L$108) -> 0 | O119: =+IFERROR(L119/SUM($L$110:$L$131),0) -> 0 | P119: =+SUMIFS(InTran!$R:$R,InTran!$G:$G,C119,InTran!$O:$O,$C$108,InTran!$C:$C,$P$108) -> 7173726.31 | Q119: =+SUMIFS(InTran!$S:$S,InTran!$G:$G,C119,InTran!$O:$O,$C$108,InTran!$C:$C,$P$108) -> 15521.17 | R119: =+SUMIFS(InTran!$M:$M,InTran!$G:$G,C119,InTran!$O:$O,$C$108,InTran!$C:$C,$P$108) -> 249439.34 | S119: =+IFERROR(P119/SUM($P$110:$P$131),0) -> 0.1025566119 | T119: =+SUMIFS(InTran!$R:$R,InTran!$G:$G,C119,InTran!$O:$O,$C$108,InTran!$C:$C,$T$108) -> 0 | U119: =+SUMIFS(InTran!$S:$S,InTran!$G:$G,C119,InTran!$O:$O,$C$108,InTran!$C:$C,$T$108) -> 0 | V119: =+SUMIFS(InTran!$M:$M,InTran!$G:$G,C119,InTran!$O:$O,$C$108,InTran!$C:$C,$T$108) -> 0 | W119: =+IFERROR(T119/SUM($T$110:$T$131),0) -> 0 | X119: =+SUMIFS(InTran!$R:$R,InTran!$G:$G,C119,InTran!$O:$O,$C$108,InTran!$C:$C,$X$108) -> 0 | Y119: =+SUMIFS(InTran!$S:$S,InTran!$G:$G,C119,InTran!$O:$O,$C$108,InTran!$C:$C,$X$108) -> 0 | Z119: =+SUMIFS(InTran!$M:$M,InTran!$G:$G,C119,InTran!$O:$O,$C$108,InTran!$C:$C,$X$108) -> 0 | AA119: =+IFERROR(X119/SUM($X$110:$X$131),0) -> 0 | AB119: =+SUMIFS(InTran!$R:$R,InTran!$G:$G,C119,InTran!$O:$O,$C$108) -> 21899887.11 | AC119: =+SUMIFS(InTran!$S:$S,InTran!$G:$G,C119,InTran!$O:$O,$C$108) -> 36628.26 | AD119: =+SUMIFS(InTran!$M:$M,InTran!$G:$G,C119,InTran!$O:$O,$C$108) -> 661689.09 | AE119: =+IFERROR(AB119/SUM($AB$110:$AB$131),0) -> 0.05240145488 | AF119: =+RANK(AB119,$AB$110:$AB$131) -> 10
C120: MAYBANK INVESTMENT BANK BHD | D120: =+SUMIFS(InTran!$R:$R,InTran!$G:$G,C120,InTran!$O:$O,$C$108,InTran!$C:$C,$D$108) -> 0 | E120: =+SUMIFS(InTran!$S:$S,InTran!$G:$G,C120,InTran!$O:$O,$C$108,InTran!$C:$C,$D$108) -> 0 | F120: =+SUMIFS(InTran!$M:$M,InTran!$G:$G,C120,InTran!$O:$O,$C$108,InTran!$C:$C,$D$108) -> 0 | G120: =+IFERROR(D120/SUM($D$110:$D$131),0) -> 0 | H120: =+SUMIFS(InTran!$R:$R,InTran!$G:$G,C120,InTran!$O:$O,$C$108,InTran!$C:$C,$H$108) -> 14827319.82 | I120: =+SUMIFS(InTran!$S:$S,InTran!$G:$G,C120,InTran!$O:$O,$C$108,InTran!$C:$C,$H$108) -> 24522.61 | J120: =+SUMIFS(InTran!$M:$M,InTran!$G:$G,C120,InTran!$O:$O,$C$108,InTran!$C:$C,$H$108) -> 440479.51 | K120: =+IFERROR(H120/SUM($H$110:$H$131),0) -> 0.04309891968 | L120: =+SUMIFS(InTran!$R:$R,InTran!$G:$G,C120,InTran!$O:$O,$C$108,InTran!$C:$C,$L$108) -> 0 | M120: =+SUMIFS(InTran!$S:$S,InTran!$G:$G,C120,InTran!$O:$O,$C$108,InTran!$C:$C,$L$108) -> 0 | N120: =+SUMIFS(InTran!$M:$M,InTran!$G:$G,C120,InTran!$O:$O,$C$108,InTran!$C:$C,$L$108) -> 0 | O120: =+IFERROR(L120/SUM($L$110:$L$131),0) -> 0 | P120: =+SUMIFS(InTran!$R:$R,InTran!$G:$G,C120,InTran!$O:$O,$C$108,InTran!$C:$C,$P$108) -> 3131393.23 | Q120: =+SUMIFS(InTran!$S:$S,InTran!$G:$G,C120,InTran!$O:$O,$C$108,InTran!$C:$C,$P$108) -> 6725.4 | R120: =+SUMIFS(InTran!$M:$M,InTran!$G:$G,C120,InTran!$O:$O,$C$108,InTran!$C:$C,$P$108) -> 167833.93 | S120: =+IFERROR(P120/SUM($P$110:$P$131),0) -> 0.04476684309 | T120: =+SUMIFS(InTran!$R:$R,InTran!$G:$G,C120,InTran!$O:$O,$C$108,InTran!$C:$C,$T$108) -> 0 | U120: =+SUMIFS(InTran!$S:$S,InTran!$G:$G,C120,InTran!$O:$O,$C$108,InTran!$C:$C,$T$108) -> 0 | V120: =+SUMIFS(InTran!$M:$M,InTran!$G:$G,C120,InTran!$O:$O,$C$108,InTran!$C:$C,$T$108) -> 0 | W120: =+IFERROR(T120/SUM($T$110:$T$131),0) -> 0 | X120: =+SUMIFS(InTran!$R:$R,InTran!$G:$G,C120,InTran!$O:$O,$C$108,InTran!$C:$C,$X$108) -> 0 | Y120: =+SUMIFS(InTran!$S:$S,InTran!$G:$G,C120,InTran!$O:$O,$C$108,InTran!$C:$C,$X$108) -> 0 | Z120: =+SUMIFS(InTran!$M:$M,InTran!$G:$G,C120,InTran!$O:$O,$C$108,InTran!$C:$C,$X$108) -> 0 | AA120: =+IFERROR(X120/SUM($X$110:$X$131),0) -> 0 | AB120: =+SUMIFS(InTran!$R:$R,InTran!$G:$G,C120,InTran!$O:$O,$C$108) -> 17958713.05 | AC120: =+SUMIFS(InTran!$S:$S,InTran!$G:$G,C120,InTran!$O:$O,$C$108) -> 31248.01 | AD120: =+SUMIFS(InTran!$M:$M,InTran!$G:$G,C120,InTran!$O:$O,$C$108) -> 608313.44 | AE120: =+IFERROR(AB120/SUM($AB$110:$AB$131),0) -> 0.04297112066 | AF120: =+RANK(AB120,$AB$110:$AB$131) -> 11
C121: TA SECURITIES HOLDINGS BHD | D121: =+SUMIFS(InTran!$R:$R,InTran!$G:$G,C121,InTran!$O:$O,$C$108,InTran!$C:$C,$D$108) -> 0 | E121: =+SUMIFS(InTran!$S:$S,InTran!$G:$G,C121,InTran!$O:$O,$C$108,InTran!$C:$C,$D$108) -> 0 | F121: =+SUMIFS(InTran!$M:$M,InTran!$G:$G,C121,InTran!$O:$O,$C$108,InTran!$C:$C,$D$108) -> 0 | G121: =+IFERROR(D121/SUM($D$110:$D$131),0) -> 0 | H121: =+SUMIFS(InTran!$R:$R,InTran!$G:$G,C121,InTran!$O:$O,$C$108,InTran!$C:$C,$H$108) -> 12968612.6 | I121: =+SUMIFS(InTran!$S:$S,InTran!$G:$G,C121,InTran!$O:$O,$C$108,InTran!$C:$C,$H$108) -> 16988.64 | J121: =+SUMIFS(InTran!$M:$M,InTran!$G:$G,C121,InTran!$O:$O,$C$108,InTran!$C:$C,$H$108) -> 556261.6 | K121: =+IFERROR(H121/SUM($H$110:$H$131),0) -> 0.03769617164 | L121: =+SUMIFS(InTran!$R:$R,InTran!$G:$G,C121,InTran!$O:$O,$C$108,InTran!$C:$C,$L$108) -> 0 | M121: =+SUMIFS(InTran!$S:$S,InTran!$G:$G,C121,InTran!$O:$O,$C$108,InTran!$C:$C,$L$108) -> 0 | N121: =+SUMIFS(InTran!$M:$M,InTran!$G:$G,C121,InTran!$O:$O,$C$108,InTran!$C:$C,$L$108) -> 0 | O121: =+IFERROR(L121/SUM($L$110:$L$131),0) -> 0 | P121: =+SUMIFS(InTran!$R:$R,InTran!$G:$G,C121,InTran!$O:$O,$C$108,InTran!$C:$C,$P$108) -> 3318871.58 | Q121: =+SUMIFS(InTran!$S:$S,InTran!$G:$G,C121,InTran!$O:$O,$C$108,InTran!$C:$C,$P$108) -> 7225.18 | R121: =+SUMIFS(InTran!$M:$M,InTran!$G:$G,C121,InTran!$O:$O,$C$108,InTran!$C:$C,$P$108) -> 112745.1 | S121: =+IFERROR(P121/SUM($P$110:$P$131),0) -> 0.04744706026 | T121: =+SUMIFS(InTran!$R:$R,InTran!$G:$G,C121,InTran!$O:$O,$C$108,InTran!$C:$C,$T$108) -> 0 | U121: =+SUMIFS(InTran!$S:$S,InTran!$G:$G,C121,InTran!$O:$O,$C$108,InTran!$C:$C,$T$108) -> 0 | V121: =+SUMIFS(InTran!$M:$M,InTran!$G:$G,C121,InTran!$O:$O,$C$108,InTran!$C:$C,$T$108) -> 0 | W121: =+IFERROR(T121/SUM($T$110:$T$131),0) -> 0 | X121: =+SUMIFS(InTran!$R:$R,InTran!$G:$G,C121,InTran!$O:$O,$C$108,InTran!$C:$C,$X$108) -> 0 | Y121: =+SUMIFS(InTran!$S:$S,InTran!$G:$G,C121,InTran!$O:$O,$C$108,InTran!$C:$C,$X$108) -> 0 | Z121: =+SUMIFS(InTran!$M:$M,InTran!$G:$G,C121,InTran!$O:$O,$C$108,InTran!$C:$C,$X$108) -> 0 | AA121: =+IFERROR(X121/SUM($X$110:$X$131),0) -> 0 | AB121: =+SUMIFS(InTran!$R:$R,InTran!$G:$G,C121,InTran!$O:$O,$C$108) -> 16287484.18 | AC121: =+SUMIFS(InTran!$S:$S,InTran!$G:$G,C121,InTran!$O:$O,$C$108) -> 24213.82 | AD121: =+SUMIFS(InTran!$M:$M,InTran!$G:$G,C121,InTran!$O:$O,$C$108) -> 669006.7 | AE121: =+IFERROR(AB121/SUM($AB$110:$AB$131),0) -> 0.03897224963 | AF121: =+RANK(AB121,$AB$110:$AB$131) -> 12
C122: CLSA LIMITED | D122: =+SUMIFS(InTran!$R:$R,InTran!$G:$G,C122,InTran!$O:$O,$C$108,InTran!$C:$C,$D$108) -> 0 | E122: =+SUMIFS(InTran!$S:$S,InTran!$G:$G,C122,InTran!$O:$O,$C$108,InTran!$C:$C,$D$108) -> 0 | F122: =+SUMIFS(InTran!$M:$M,InTran!$G:$G,C122,InTran!$O:$O,$C$108,InTran!$C:$C,$D$108) -> 0 | G122: =+IFERROR(D122/SUM($D$110:$D$131),0) -> 0 | H122: =+SUMIFS(InTran!$R:$R,InTran!$G:$G,C122,InTran!$O:$O,$C$108,InTran!$C:$C,$H$108) -> 14963356.94 | I122: =+SUMIFS(InTran!$S:$S,InTran!$G:$G,C122,InTran!$O:$O,$C$108,InTran!$C:$C,$H$108) -> 19953.15 | J122: =+SUMIFS(InTran!$M:$M,InTran!$G:$G,C122,InTran!$O:$O,$C$108,InTran!$C:$C,$H$108) -> 0 | K122: =+IFERROR(H122/SUM($H$110:$H$131),0) -> 0.04349434198 | L122: =+SUMIFS(InTran!$R:$R,InTran!$G:$G,C122,InTran!$O:$O,$C$108,InTran!$C:$C,$L$108) -> 0 | M122: =+SUMIFS(InTran!$S:$S,InTran!$G:$G,C122,InTran!$O:$O,$C$108,InTran!$C:$C,$L$108) -> 0 | N122: =+SUMIFS(InTran!$M:$M,InTran!$G:$G,C122,InTran!$O:$O,$C$108,InTran!$C:$C,$L$108) -> 0 | O122: =+IFERROR(L122/SUM($L$110:$L$131),0) -> 0 | P122: =+SUMIFS(InTran!$R:$R,InTran!$G:$G,C122,InTran!$O:$O,$C$108,InTran!$C:$C,$P$108) -> 1083629.76 | Q122: =+SUMIFS(InTran!$S:$S,InTran!$G:$G,C122,InTran!$O:$O,$C$108,InTran!$C:$C,$P$108) -> 2445.08 | R122: =+SUMIFS(InTran!$M:$M,InTran!$G:$G,C122,InTran!$O:$O,$C$108,InTran!$C:$C,$P$108) -> 39279.51 | S122: =+IFERROR(P122/SUM($P$110:$P$131),0) -> 0.01549172521 | T122: =+SUMIFS(InTran!$R:$R,InTran!$G:$G,C122,InTran!$O:$O,$C$108,InTran!$C:$C,$T$108) -> 0 | U122: =+SUMIFS(InTran!$S:$S,InTran!$G:$G,C122,InTran!$O:$O,$C$108,InTran!$C:$C,$T$108) -> 0 | V122: =+SUMIFS(InTran!$M:$M,InTran!$G:$G,C122,InTran!$O:$O,$C$108,InTran!$C:$C,$T$108) -> 0 | W122: =+IFERROR(T122/SUM($T$110:$T$131),0) -> 0 | X122: =+SUMIFS(InTran!$R:$R,InTran!$G:$G,C122,InTran!$O:$O,$C$108,InTran!$C:$C,$X$108) -> 0 | Y122: =+SUMIFS(InTran!$S:$S,InTran!$G:$G,C122,InTran!$O:$O,$C$108,InTran!$C:$C,$X$108) -> 0 | Z122: =+SUMIFS(InTran!$M:$M,InTran!$G:$G,C122,InTran!$O:$O,$C$108,InTran!$C:$C,$X$108) -> 0 | AA122: =+IFERROR(X122/SUM($X$110:$X$131),0) -> 0 | AB122: =+SUMIFS(InTran!$R:$R,InTran!$G:$G,C122,InTran!$O:$O,$C$108) -> 16046986.7 | AC122: =+SUMIFS(InTran!$S:$S,InTran!$G:$G,C122,InTran!$O:$O,$C$108) -> 22398.23 | AD122: =+SUMIFS(InTran!$M:$M,InTran!$G:$G,C122,InTran!$O:$O,$C$108) -> 39279.51 | AE122: =+IFERROR(AB122/SUM($AB$110:$AB$131),0) -> 0.03839679379 | AF122: =+RANK(AB122,$AB$110:$AB$131) -> 13
C123: ALLIANCE INVESTMENT BANK BERHAD | D123: =+SUMIFS(InTran!$R:$R,InTran!$G:$G,C123,InTran!$O:$O,$C$108,InTran!$C:$C,$D$108) -> 0 | E123: =+SUMIFS(InTran!$S:$S,InTran!$G:$G,C123,InTran!$O:$O,$C$108,InTran!$C:$C,$D$108) -> 0 | F123: =+SUMIFS(InTran!$M:$M,InTran!$G:$G,C123,InTran!$O:$O,$C$108,InTran!$C:$C,$D$108) -> 0 | G123: =+IFERROR(D123/SUM($D$110:$D$131),0) -> 0 | H123: =+SUMIFS(InTran!$R:$R,InTran!$G:$G,C123,InTran!$O:$O,$C$108,InTran!$C:$C,$H$108) -> 11213130.5 | I123: =+SUMIFS(InTran!$S:$S,InTran!$G:$G,C123,InTran!$O:$O,$C$108,InTran!$C:$C,$H$108) -> 22602.12 | J123: =+SUMIFS(InTran!$M:$M,InTran!$G:$G,C123,InTran!$O:$O,$C$108,InTran!$C:$C,$H$108) -> 489840.18 | K123: =+IFERROR(H123/SUM($H$110:$H$131),0) -> 0.03259347048 | L123: =+SUMIFS(InTran!$R:$R,InTran!$G:$G,C123,InTran!$O:$O,$C$108,InTran!$C:$C,$L$108) -> 0 | M123: =+SUMIFS(InTran!$S:$S,InTran!$G:$G,C123,InTran!$O:$O,$C$108,InTran!$C:$C,$L$108) -> 0 | N123: =+SUMIFS(InTran!$M:$M,InTran!$G:$G,C123,InTran!$O:$O,$C$108,InTran!$C:$C,$L$108) -> 0 | O123: =+IFERROR(L123/SUM($L$110:$L$131),0) -> 0 | P123: =+SUMIFS(InTran!$R:$R,InTran!$G:$G,C123,InTran!$O:$O,$C$108,InTran!$C:$C,$P$108) -> 282180.42 | Q123: =+SUMIFS(InTran!$S:$S,InTran!$G:$G,C123,InTran!$O:$O,$C$108,InTran!$C:$C,$P$108) -> 637.27 | R123: =+SUMIFS(InTran!$M:$M,InTran!$G:$G,C123,InTran!$O:$O,$C$108,InTran!$C:$C,$P$108) -> 20436.96 | S123: =+IFERROR(P123/SUM($P$110:$P$131),0) -> 0.004034091428 | T123: =+SUMIFS(InTran!$R:$R,InTran!$G:$G,C123,InTran!$O:$O,$C$108,InTran!$C:$C,$T$108) -> 0 | U123: =+SUMIFS(InTran!$S:$S,InTran!$G:$G,C123,InTran!$O:$O,$C$108,InTran!$C:$C,$T$108) -> 0 | V123: =+SUMIFS(InTran!$M:$M,InTran!$G:$G,C123,InTran!$O:$O,$C$108,InTran!$C:$C,$T$108) -> 0 | W123: =+IFERROR(T123/SUM($T$110:$T$131),0) -> 0 | X123: =+SUMIFS(InTran!$R:$R,InTran!$G:$G,C123,InTran!$O:$O,$C$108,InTran!$C:$C,$X$108) -> 0 | Y123: =+SUMIFS(InTran!$S:$S,InTran!$G:$G,C123,InTran!$O:$O,$C$108,InTran!$C:$C,$X$108) -> 0 | Z123: =+SUMIFS(InTran!$M:$M,InTran!$G:$G,C123,InTran!$O:$O,$C$108,InTran!$C:$C,$X$108) -> 0 | AA123: =+IFERROR(X123/SUM($X$110:$X$131),0) -> 0 | AB123: =+SUMIFS(InTran!$R:$R,InTran!$G:$G,C123,InTran!$O:$O,$C$108) -> 11495310.92 | AC123: =+SUMIFS(InTran!$S:$S,InTran!$G:$G,C123,InTran!$O:$O,$C$108) -> 23239.39 | AD123: =+SUMIFS(InTran!$M:$M,InTran!$G:$G,C123,InTran!$O:$O,$C$108) -> 510277.14 | AE123: =+IFERROR(AB123/SUM($AB$110:$AB$131),0) -> 0.02750566765 | AF123: =+RANK(AB123,$AB$110:$AB$131) -> 14
C124: KENANGA INVESTMENT BANK BHD | D124: =+SUMIFS(InTran!$R:$R,InTran!$G:$G,C124,InTran!$O:$O,$C$108,InTran!$C:$C,$D$108) -> 0 | E124: =+SUMIFS(InTran!$S:$S,InTran!$G:$G,C124,InTran!$O:$O,$C$108,InTran!$C:$C,$D$108) -> 0 | F124: =+SUMIFS(InTran!$M:$M,InTran!$G:$G,C124,InTran!$O:$O,$C$108,InTran!$C:$C,$D$108) -> 0 | G124: =+IFERROR(D124/SUM($D$110:$D$131),0) -> 0 | H124: =+SUMIFS(InTran!$R:$R,InTran!$G:$G,C124,InTran!$O:$O,$C$108,InTran!$C:$C,$H$108) -> 6149614.63 | I124: =+SUMIFS(InTran!$S:$S,InTran!$G:$G,C124,InTran!$O:$O,$C$108,InTran!$C:$C,$H$108) -> 12440.78 | J124: =+SUMIFS(InTran!$M:$M,InTran!$G:$G,C124,InTran!$O:$O,$C$108,InTran!$C:$C,$H$108) -> 311931.39 | K124: =+IFERROR(H124/SUM($H$110:$H$131),0) -> 0.01787522966 | L124: =+SUMIFS(InTran!$R:$R,InTran!$G:$G,C124,InTran!$O:$O,$C$108,InTran!$C:$C,$L$108) -> 0 | M124: =+SUMIFS(InTran!$S:$S,InTran!$G:$G,C124,InTran!$O:$O,$C$108,InTran!$C:$C,$L$108) -> 0 | N124: =+SUMIFS(InTran!$M:$M,InTran!$G:$G,C124,InTran!$O:$O,$C$108,InTran!$C:$C,$L$108) -> 0 | O124: =+IFERROR(L124/SUM($L$110:$L$131),0) -> 0 | P124: =+SUMIFS(InTran!$R:$R,InTran!$G:$G,C124,InTran!$O:$O,$C$108,InTran!$C:$C,$P$108) -> 3953720.09 | Q124: =+SUMIFS(InTran!$S:$S,InTran!$G:$G,C124,InTran!$O:$O,$C$108,InTran!$C:$C,$P$108) -> 8901.75 | R124: =+SUMIFS(InTran!$M:$M,InTran!$G:$G,C124,InTran!$O:$O,$C$108,InTran!$C:$C,$P$108) -> 118879.07 | S124: =+IFERROR(P124/SUM($P$110:$P$131),0) -> 0.05652294487 | T124: =+SUMIFS(InTran!$R:$R,InTran!$G:$G,C124,InTran!$O:$O,$C$108,InTran!$C:$C,$T$108) -> 0 | U124: =+SUMIFS(InTran!$S:$S,InTran!$G:$G,C124,InTran!$O:$O,$C$108,InTran!$C:$C,$T$108) -> 0 | V124: =+SUMIFS(InTran!$M:$M,InTran!$G:$G,C124,InTran!$O:$O,$C$108,InTran!$C:$C,$T$108) -> 0 | W124: =+IFERROR(T124/SUM($T$110:$T$131),0) -> 0 | X124: =+SUMIFS(InTran!$R:$R,InTran!$G:$G,C124,InTran!$O:$O,$C$108,InTran!$C:$C,$X$108) -> 0 | Y124: =+SUMIFS(InTran!$S:$S,InTran!$G:$G,C124,InTran!$O:$O,$C$108,InTran!$C:$C,$X$108) -> 0 | Z124: =+SUMIFS(InTran!$M:$M,InTran!$G:$G,C124,InTran!$O:$O,$C$108,InTran!$C:$C,$X$108) -> 0 | AA124: =+IFERROR(X124/SUM($X$110:$X$131),0) -> 0 | AB124: =+SUMIFS(InTran!$R:$R,InTran!$G:$G,C124,InTran!$O:$O,$C$108) -> 10103334.72 | AC124: =+SUMIFS(InTran!$S:$S,InTran!$G:$G,C124,InTran!$O:$O,$C$108) -> 21342.53 | AD124: =+SUMIFS(InTran!$M:$M,InTran!$G:$G,C124,InTran!$O:$O,$C$108) -> 430810.46 | AE124: =+IFERROR(AB124/SUM($AB$110:$AB$131),0) -> 0.02417498482 | AF124: =+RANK(AB124,$AB$110:$AB$131) -> 15
C125: CREDIT SUISSE SECURITIES (M) SDN BHD | D125: =+SUMIFS(InTran!$R:$R,InTran!$G:$G,C125,InTran!$O:$O,$C$108,InTran!$C:$C,$D$108) -> 2618100.99 | E125: =+SUMIFS(InTran!$S:$S,InTran!$G:$G,C125,InTran!$O:$O,$C$108,InTran!$C:$C,$D$108) -> 5249.4 | F125: =+SUMIFS(InTran!$M:$M,InTran!$G:$G,C125,InTran!$O:$O,$C$108,InTran!$C:$C,$D$108) -> 262097.66 | G125: =+IFERROR(D125/SUM($D$110:$D$131),0) -> 1 | H125: =+SUMIFS(InTran!$R:$R,InTran!$G:$G,C125,InTran!$O:$O,$C$108,InTran!$C:$C,$H$108) -> 0 | I125: =+SUMIFS(InTran!$S:$S,InTran!$G:$G,C125,InTran!$O:$O,$C$108,InTran!$C:$C,$H$108) -> 0 | J125: =+SUMIFS(InTran!$M:$M,InTran!$G:$G,C125,InTran!$O:$O,$C$108,InTran!$C:$C,$H$108) -> 0 | K125: =+IFERROR(H125/SUM($H$110:$H$131),0) -> 0 | L125: =+SUMIFS(InTran!$R:$R,InTran!$G:$G,C125,InTran!$O:$O,$C$108,InTran!$C:$C,$L$108) -> 0 | M125: =+SUMIFS(InTran!$S:$S,InTran!$G:$G,C125,InTran!$O:$O,$C$108,InTran!$C:$C,$L$108) -> 0 | N125: =+SUMIFS(InTran!$M:$M,InTran!$G:$G,C125,InTran!$O:$O,$C$108,InTran!$C:$C,$L$108) -> 0 | O125: =+IFERROR(L125/SUM($L$110:$L$131),0) -> 0 | P125: =+SUMIFS(InTran!$R:$R,InTran!$G:$G,C125,InTran!$O:$O,$C$108,InTran!$C:$C,$P$108) -> 836004.58 | Q125: =+SUMIFS(InTran!$S:$S,InTran!$G:$G,C125,InTran!$O:$O,$C$108,InTran!$C:$C,$P$108) -> 1887.41 | R125: =+SUMIFS(InTran!$M:$M,InTran!$G:$G,C125,InTran!$O:$O,$C$108,InTran!$C:$C,$P$108) -> 34964.97 | S125: =+IFERROR(P125/SUM($P$110:$P$131),0) -> 0.01195164041 | T125: =+SUMIFS(InTran!$R:$R,InTran!$G:$G,C125,InTran!$O:$O,$C$108,InTran!$C:$C,$T$108) -> 0 | U125: =+SUMIFS(InTran!$S:$S,InTran!$G:$G,C125,InTran!$O:$O,$C$108,InTran!$C:$C,$T$108) -> 0 | V125: =+SUMIFS(InTran!$M:$M,InTran!$G:$G,C125,InTran!$O:$O,$C$108,InTran!$C:$C,$T$108) -> 0 | W125: =+IFERROR(T125/SUM($T$110:$T$131),0) -> 0 | X125: =+SUMIFS(InTran!$R:$R,InTran!$G:$G,C125,InTran!$O:$O,$C$108,InTran!$C:$C,$X$108) -> 356981.91 | Y125: =+SUMIFS(InTran!$S:$S,InTran!$G:$G,C125,InTran!$O:$O,$C$108,InTran!$C:$C,$X$108) -> 805.84 | Z125: =+SUMIFS(InTran!$M:$M,InTran!$G:$G,C125,InTran!$O:$O,$C$108,InTran!$C:$C,$X$108) -> 303.3 | AA125: =+IFERROR(X125/SUM($X$110:$X$131),0) -> 1 | AB125: =+SUMIFS(InTran!$R:$R,InTran!$G:$G,C125,InTran!$O:$O,$C$108) -> 3811087.48 | AC125: =+SUMIFS(InTran!$S:$S,InTran!$G:$G,C125,InTran!$O:$O,$C$108) -> 7942.65 | AD125: =+SUMIFS(InTran!$M:$M,InTran!$G:$G,C125,InTran!$O:$O,$C$108) -> 297365.93 | AE125: =+IFERROR(AB125/SUM($AB$110:$AB$131),0) -> 0.009119066578 | AF125: =+RANK(AB125,$AB$110:$AB$131) -> 16
C126: BIMB SECURITIES SDN BHD | D126: =+SUMIFS(InTran!$R:$R,InTran!$G:$G,C126,InTran!$O:$O,$C$108,InTran!$C:$C,$D$108) -> 0 | E126: =+SUMIFS(InTran!$S:$S,InTran!$G:$G,C126,InTran!$O:$O,$C$108,InTran!$C:$C,$D$108) -> 0 | F126: =+SUMIFS(InTran!$M:$M,InTran!$G:$G,C126,InTran!$O:$O,$C$108,InTran!$C:$C,$D$108) -> 0 | G126: =+IFERROR(D126/SUM($D$110:$D$131),0) -> 0 | H126: =+SUMIFS(InTran!$R:$R,InTran!$G:$G,C126,InTran!$O:$O,$C$108,InTran!$C:$C,$H$108) -> 1340396.54 | I126: =+SUMIFS(InTran!$S:$S,InTran!$G:$G,C126,InTran!$O:$O,$C$108,InTran!$C:$C,$H$108) -> 2687.75 | J126: =+SUMIFS(InTran!$M:$M,InTran!$G:$G,C126,InTran!$O:$O,$C$108,InTran!$C:$C,$H$108) -> 71048.68 | K126: =+IFERROR(H126/SUM($H$110:$H$131),0) -> 0.003896162187 | L126: =+SUMIFS(InTran!$R:$R,InTran!$G:$G,C126,InTran!$O:$O,$C$108,InTran!$C:$C,$L$108) -> 0 | M126: =+SUMIFS(InTran!$S:$S,InTran!$G:$G,C126,InTran!$O:$O,$C$108,InTran!$C:$C,$L$108) -> 0 | N126: =+SUMIFS(InTran!$M:$M,InTran!$G:$G,C126,InTran!$O:$O,$C$108,InTran!$C:$C,$L$108) -> 0 | O126: =+IFERROR(L126/SUM($L$110:$L$131),0) -> 0 | P126: =+SUMIFS(InTran!$R:$R,InTran!$G:$G,C126,InTran!$O:$O,$C$108,InTran!$C:$C,$P$108) -> 871255.77 | Q126: =+SUMIFS(InTran!$S:$S,InTran!$G:$G,C126,InTran!$O:$O,$C$108,InTran!$C:$C,$P$108) -> 1960.23 | R126: =+SUMIFS(InTran!$M:$M,InTran!$G:$G,C126,InTran!$O:$O,$C$108,InTran!$C:$C,$P$108) -> 25891.04 | S126: =+IFERROR(P126/SUM($P$110:$P$131),0) -> 0.01245559643 | T126: =+SUMIFS(InTran!$R:$R,InTran!$G:$G,C126,InTran!$O:$O,$C$108,InTran!$C:$C,$T$108) -> 0 | U126: =+SUMIFS(InTran!$S:$S,InTran!$G:$G,C126,InTran!$O:$O,$C$108,InTran!$C:$C,$T$108) -> 0 | V126: =+SUMIFS(InTran!$M:$M,InTran!$G:$G,C126,InTran!$O:$O,$C$108,InTran!$C:$C,$T$108) -> 0 | W126: =+IFERROR(T126/SUM($T$110:$T$131),0) -> 0 | X126: =+SUMIFS(InTran!$R:$R,InTran!$G:$G,C126,InTran!$O:$O,$C$108,InTran!$C:$C,$X$108) -> 0 | Y126: =+SUMIFS(InTran!$S:$S,InTran!$G:$G,C126,InTran!$O:$O,$C$108,InTran!$C:$C,$X$108) -> 0 | Z126: =+SUMIFS(InTran!$M:$M,InTran!$G:$G,C126,InTran!$O:$O,$C$108,InTran!$C:$C,$X$108) -> 0 | AA126: =+IFERROR(X126/SUM($X$110:$X$131),0) -> 0 | AB126: =+SUMIFS(InTran!$R:$R,InTran!$G:$G,C126,InTran!$O:$O,$C$108) -> 2211652.31 | AC126: =+SUMIFS(InTran!$S:$S,InTran!$G:$G,C126,InTran!$O:$O,$C$108) -> 4647.98 | AD126: =+SUMIFS(InTran!$M:$M,InTran!$G:$G,C126,InTran!$O:$O,$C$108) -> 96939.72 | AE126: =+IFERROR(AB126/SUM($AB$110:$AB$131),0) -> 0.005291981559 | AF126: =+RANK(AB126,$AB$110:$AB$131) -> 17
C127: CIMB INVESTMENT BANK BHD (FOREIGN) | D127: =+SUMIFS(InTran!$R:$R,InTran!$G:$G,C127,InTran!$O:$O,$C$108,InTran!$C:$C,$D$108) -> 0 | E127: =+SUMIFS(InTran!$S:$S,InTran!$G:$G,C127,InTran!$O:$O,$C$108,InTran!$C:$C,$D$108) -> 0 | F127: =+SUMIFS(InTran!$M:$M,InTran!$G:$G,C127,InTran!$O:$O,$C$108,InTran!$C:$C,$D$108) -> 0 | G127: =+IFERROR(D127/SUM($D$110:$D$131),0) -> 0 | H127: =+SUMIFS(InTran!$R:$R,InTran!$G:$G,C127,InTran!$O:$O,$C$108,InTran!$C:$C,$H$108) -> 0 | I127: =+SUMIFS(InTran!$S:$S,InTran!$G:$G,C127,InTran!$O:$O,$C$108,InTran!$C:$C,$H$108) -> 0 | J127: =+SUMIFS(InTran!$M:$M,InTran!$G:$G,C127,InTran!$O:$O,$C$108,InTran!$C:$C,$H$108) -> 0 | K127: =+IFERROR(H127/SUM($H$110:$H$131),0) -> 0 | L127: =+SUMIFS(InTran!$R:$R,InTran!$G:$G,C127,InTran!$O:$O,$C$108,InTran!$C:$C,$L$108) -> 0 | M127: =+SUMIFS(InTran!$S:$S,InTran!$G:$G,C127,InTran!$O:$O,$C$108,InTran!$C:$C,$L$108) -> 0 | N127: =+SUMIFS(InTran!$M:$M,InTran!$G:$G,C127,InTran!$O:$O,$C$108,InTran!$C:$C,$L$108) -> 0 | O127: =+IFERROR(L127/SUM($L$110:$L$131),0) -> 0 | P127: =+SUMIFS(InTran!$R:$R,InTran!$G:$G,C127,InTran!$O:$O,$C$108,InTran!$C:$C,$P$108) -> 0 | Q127: =+SUMIFS(InTran!$S:$S,InTran!$G:$G,C127,InTran!$O:$O,$C$108,InTran!$C:$C,$P$108) -> 0 | R127: =+SUMIFS(InTran!$M:$M,InTran!$G:$G,C127,InTran!$O:$O,$C$108,InTran!$C:$C,$P$108) -> 0 | S127: =+IFERROR(P127/SUM($P$110:$P$131),0) -> 0 | T127: =+SUMIFS(InTran!$R:$R,InTran!$G:$G,C127,InTran!$O:$O,$C$108,InTran!$C:$C,$T$108) -> 0 | U127: =+SUMIFS(InTran!$S:$S,InTran!$G:$G,C127,InTran!$O:$O,$C$108,InTran!$C:$C,$T$108) -> 0 | V127: =+SUMIFS(InTran!$M:$M,InTran!$G:$G,C127,InTran!$O:$O,$C$108,InTran!$C:$C,$T$108) -> 0 | W127: =+IFERROR(T127/SUM($T$110:$T$131),0) -> 0 | X127: =+SUMIFS(InTran!$R:$R,InTran!$G:$G,C127,InTran!$O:$O,$C$108,InTran!$C:$C,$X$108) -> 0 | Y127: =+SUMIFS(InTran!$S:$S,InTran!$G:$G,C127,InTran!$O:$O,$C$108,InTran!$C:$C,$X$108) -> 0 | Z127: =+SUMIFS(InTran!$M:$M,InTran!$G:$G,C127,InTran!$O:$O,$C$108,InTran!$C:$C,$X$108) -> 0 | AA127: =+IFERROR(X127/SUM($X$110:$X$131),0) -> 0 | AB127: =+SUMIFS(InTran!$R:$R,InTran!$G:$G,C127,InTran!$O:$O,$C$108) -> 0 | AC127: =+SUMIFS(InTran!$S:$S,InTran!$G:$G,C127,InTran!$O:$O,$C$108) -> 0 | AD127: =+SUMIFS(InTran!$M:$M,InTran!$G:$G,C127,InTran!$O:$O,$C$108) -> 0 | AE127: =+IFERROR(AB127/SUM($AB$110:$AB$131),0) -> 0 | AF127: =+RANK(AB127,$AB$110:$AB$131) -> 18
C128: CLSA LIMITED FOREIGN | D128: =+SUMIFS(InTran!$R:$R,InTran!$G:$G,C128,InTran!$O:$O,$C$108,InTran!$C:$C,$D$108) -> 0 | E128: =+SUMIFS(InTran!$S:$S,InTran!$G:$G,C128,InTran!$O:$O,$C$108,InTran!$C:$C,$D$108) -> 0 | F128: =+SUMIFS(InTran!$M:$M,InTran!$G:$G,C128,InTran!$O:$O,$C$108,InTran!$C:$C,$D$108) -> 0 | G128: =+IFERROR(D128/SUM($D$110:$D$131),0) -> 0 | H128: =+SUMIFS(InTran!$R:$R,InTran!$G:$G,C128,InTran!$O:$O,$C$108,InTran!$C:$C,$H$108) -> 0 | I128: =+SUMIFS(InTran!$S:$S,InTran!$G:$G,C128,InTran!$O:$O,$C$108,InTran!$C:$C,$H$108) -> 0 | J128: =+SUMIFS(InTran!$M:$M,InTran!$G:$G,C128,InTran!$O:$O,$C$108,InTran!$C:$C,$H$108) -> 0 | K128: =+IFERROR(H128/SUM($H$110:$H$131),0) -> 0 | L128: =+SUMIFS(InTran!$R:$R,InTran!$G:$G,C128,InTran!$O:$O,$C$108,InTran!$C:$C,$L$108) -> 0 | M128: =+SUMIFS(InTran!$S:$S,InTran!$G:$G,C128,InTran!$O:$O,$C$108,InTran!$C:$C,$L$108) -> 0 | N128: =+SUMIFS(InTran!$M:$M,InTran!$G:$G,C128,InTran!$O:$O,$C$108,InTran!$C:$C,$L$108) -> 0 | O128: =+IFERROR(L128/SUM($L$110:$L$131),0) -> 0 | P128: =+SUMIFS(InTran!$R:$R,InTran!$G:$G,C128,InTran!$O:$O,$C$108,InTran!$C:$C,$P$108) -> 0 | Q128: =+SUMIFS(InTran!$S:$S,InTran!$G:$G,C128,InTran!$O:$O,$C$108,InTran!$C:$C,$P$108) -> 0 | R128: =+SUMIFS(InTran!$M:$M,InTran!$G:$G,C128,InTran!$O:$O,$C$108,InTran!$C:$C,$P$108) -> 0 | S128: =+IFERROR(P128/SUM($P$110:$P$131),0) -> 0 | T128: =+SUMIFS(InTran!$R:$R,InTran!$G:$G,C128,InTran!$O:$O,$C$108,InTran!$C:$C,$T$108) -> 0 | U128: =+SUMIFS(InTran!$S:$S,InTran!$G:$G,C128,InTran!$O:$O,$C$108,InTran!$C:$C,$T$108) -> 0 | V128: =+SUMIFS(InTran!$M:$M,InTran!$G:$G,C128,InTran!$O:$O,$C$108,InTran!$C:$C,$T$108) -> 0 | W128: =+IFERROR(T128/SUM($T$110:$T$131),0) -> 0 | X128: =+SUMIFS(InTran!$R:$R,InTran!$G:$G,C128,InTran!$O:$O,$C$108,InTran!$C:$C,$X$108) -> 0 | Y128: =+SUMIFS(InTran!$S:$S,InTran!$G:$G,C128,InTran!$O:$O,$C$108,InTran!$C:$C,$X$108) -> 0 | Z128: =+SUMIFS(InTran!$M:$M,InTran!$G:$G,C128,InTran!$O:$O,$C$108,InTran!$C:$C,$X$108) -> 0 | AA128: =+IFERROR(X128/SUM($X$110:$X$131),0) -> 0 | AB128: =+SUMIFS(InTran!$R:$R,InTran!$G:$G,C128,InTran!$O:$O,$C$108) -> 0 | AC128: =+SUMIFS(InTran!$S:$S,InTran!$G:$G,C128,InTran!$O:$O,$C$108) -> 0 | AD128: =+SUMIFS(InTran!$M:$M,InTran!$G:$G,C128,InTran!$O:$O,$C$108) -> 0 | AE128: =+IFERROR(AB128/SUM($AB$110:$AB$131),0) -> 0 | AF128: =+RANK(AB128,$AB$110:$AB$131) -> 18
C129: MACQUARIE CAPITAL SECURITIES (MALAYSIA) SDN BHD (FOREIGN) | D129: =+SUMIFS(InTran!$R:$R,InTran!$G:$G,C129,InTran!$O:$O,$C$108,InTran!$C:$C,$D$108) -> 0 | E129: =+SUMIFS(InTran!$S:$S,InTran!$G:$G,C129,InTran!$O:$O,$C$108,InTran!$C:$C,$D$108) -> 0 | F129: =+SUMIFS(InTran!$M:$M,InTran!$G:$G,C129,InTran!$O:$O,$C$108,InTran!$C:$C,$D$108) -> 0 | G129: =+IFERROR(D129/SUM($D$110:$D$131),0) -> 0 | H129: =+SUMIFS(InTran!$R:$R,InTran!$G:$G,C129,InTran!$O:$O,$C$108,InTran!$C:$C,$H$108) -> 0 | I129: =+SUMIFS(InTran!$S:$S,InTran!$G:$G,C129,InTran!$O:$O,$C$108,InTran!$C:$C,$H$108) -> 0 | J129: =+SUMIFS(InTran!$M:$M,InTran!$G:$G,C129,InTran!$O:$O,$C$108,InTran!$C:$C,$H$108) -> 0 | K129: =+IFERROR(H129/SUM($H$110:$H$131),0) -> 0 | L129: =+SUMIFS(InTran!$R:$R,InTran!$G:$G,C129,InTran!$O:$O,$C$108,InTran!$C:$C,$L$108) -> 0 | M129: =+SUMIFS(InTran!$S:$S,InTran!$G:$G,C129,InTran!$O:$O,$C$108,InTran!$C:$C,$L$108) -> 0 | N129: =+SUMIFS(InTran!$M:$M,InTran!$G:$G,C129,InTran!$O:$O,$C$108,InTran!$C:$C,$L$108) -> 0 | O129: =+IFERROR(L129/SUM($L$110:$L$131),0) -> 0 | P129: =+SUMIFS(InTran!$R:$R,InTran!$G:$G,C129,InTran!$O:$O,$C$108,InTran!$C:$C,$P$108) -> 0 | Q129: =+SUMIFS(InTran!$S:$S,InTran!$G:$G,C129,InTran!$O:$O,$C$108,InTran!$C:$C,$P$108) -> 0 | R129: =+SUMIFS(InTran!$M:$M,InTran!$G:$G,C129,InTran!$O:$O,$C$108,InTran!$C:$C,$P$108) -> 0 | S129: =+IFERROR(P129/SUM($P$110:$P$131),0) -> 0 | T129: =+SUMIFS(InTran!$R:$R,InTran!$G:$G,C129,InTran!$O:$O,$C$108,InTran!$C:$C,$T$108) -> 0 | U129: =+SUMIFS(InTran!$S:$S,InTran!$G:$G,C129,InTran!$O:$O,$C$108,InTran!$C:$C,$T$108) -> 0 | V129: =+SUMIFS(InTran!$M:$M,InTran!$G:$G,C129,InTran!$O:$O,$C$108,InTran!$C:$C,$T$108) -> 0 | W129: =+IFERROR(T129/SUM($T$110:$T$131),0) -> 0 | X129: =+SUMIFS(InTran!$R:$R,InTran!$G:$G,C129,InTran!$O:$O,$C$108,InTran!$C:$C,$X$108) -> 0 | Y129: =+SUMIFS(InTran!$S:$S,InTran!$G:$G,C129,InTran!$O:$O,$C$108,InTran!$C:$C,$X$108) -> 0 | Z129: =+SUMIFS(InTran!$M:$M,InTran!$G:$G,C129,InTran!$O:$O,$C$108,InTran!$C:$C,$X$108) -> 0 | AA129: =+IFERROR(X129/SUM($X$110:$X$131),0) -> 0 | AB129: =+SUMIFS(InTran!$R:$R,InTran!$G:$G,C129,InTran!$O:$O,$C$108) -> 0 | AC129: =+SUMIFS(InTran!$S:$S,InTran!$G:$G,C129,InTran!$O:$O,$C$108) -> 0 | AD129: =+SUMIFS(InTran!$M:$M,InTran!$G:$G,C129,InTran!$O:$O,$C$108) -> 0 | AE129: =+IFERROR(AB129/SUM($AB$110:$AB$131),0) -> 0 | AF129: =+RANK(AB129,$AB$110:$AB$131) -> 18
C130: MAYBANK INVESTMENT BANK BHD (FOREIGN) | D130: =+SUMIFS(InTran!$R:$R,InTran!$G:$G,C130,InTran!$O:$O,$C$108,InTran!$C:$C,$D$108) -> 0 | E130: =+SUMIFS(InTran!$S:$S,InTran!$G:$G,C130,InTran!$O:$O,$C$108,InTran!$C:$C,$D$108) -> 0 | F130: =+SUMIFS(InTran!$M:$M,InTran!$G:$G,C130,InTran!$O:$O,$C$108,InTran!$C:$C,$D$108) -> 0 | G130: =+IFERROR(D130/SUM($D$110:$D$131),0) -> 0 | H130: =+SUMIFS(InTran!$R:$R,InTran!$G:$G,C130,InTran!$O:$O,$C$108,InTran!$C:$C,$H$108) -> 0 | I130: =+SUMIFS(InTran!$S:$S,InTran!$G:$G,C130,InTran!$O:$O,$C$108,InTran!$C:$C,$H$108) -> 0 | J130: =+SUMIFS(InTran!$M:$M,InTran!$G:$G,C130,InTran!$O:$O,$C$108,InTran!$C:$C,$H$108) -> 0 | K130: =+IFERROR(H130/SUM($H$110:$H$131),0) -> 0 | L130: =+SUMIFS(InTran!$R:$R,InTran!$G:$G,C130,InTran!$O:$O,$C$108,InTran!$C:$C,$L$108) -> 0 | M130: =+SUMIFS(InTran!$S:$S,InTran!$G:$G,C130,InTran!$O:$O,$C$108,InTran!$C:$C,$L$108) -> 0 | N130: =+SUMIFS(InTran!$M:$M,InTran!$G:$G,C130,InTran!$O:$O,$C$108,InTran!$C:$C,$L$108) -> 0 | O130: =+IFERROR(L130/SUM($L$110:$L$131),0) -> 0 | P130: =+SUMIFS(InTran!$R:$R,InTran!$G:$G,C130,InTran!$O:$O,$C$108,InTran!$C:$C,$P$108) -> 0 | Q130: =+SUMIFS(InTran!$S:$S,InTran!$G:$G,C130,InTran!$O:$O,$C$108,InTran!$C:$C,$P$108) -> 0 | R130: =+SUMIFS(InTran!$M:$M,InTran!$G:$G,C130,InTran!$O:$O,$C$108,InTran!$C:$C,$P$108) -> 0 | S130: =+IFERROR(P130/SUM($P$110:$P$131),0) -> 0 | T130: =+SUMIFS(InTran!$R:$R,InTran!$G:$G,C130,InTran!$O:$O,$C$108,InTran!$C:$C,$T$108) -> 0 | U130: =+SUMIFS(InTran!$S:$S,InTran!$G:$G,C130,InTran!$O:$O,$C$108,InTran!$C:$C,$T$108) -> 0 | V130: =+SUMIFS(InTran!$M:$M,InTran!$G:$G,C130,InTran!$O:$O,$C$108,InTran!$C:$C,$T$108) -> 0 | W130: =+IFERROR(T130/SUM($T$110:$T$131),0) -> 0 | X130: =+SUMIFS(InTran!$R:$R,InTran!$G:$G,C130,InTran!$O:$O,$C$108,InTran!$C:$C,$X$108) -> 0 | Y130: =+SUMIFS(InTran!$S:$S,InTran!$G:$G,C130,InTran!$O:$O,$C$108,InTran!$C:$C,$X$108) -> 0 | Z130: =+SUMIFS(InTran!$M:$M,InTran!$G:$G,C130,InTran!$O:$O,$C$108,InTran!$C:$C,$X$108) -> 0 | AA130: =+IFERROR(X130/SUM($X$110:$X$131),0) -> 0 | AB130: =+SUMIFS(InTran!$R:$R,InTran!$G:$G,C130,InTran!$O:$O,$C$108) -> 0 | AC130: =+SUMIFS(InTran!$S:$S,InTran!$G:$G,C130,InTran!$O:$O,$C$108) -> 0 | AD130: =+SUMIFS(InTran!$M:$M,InTran!$G:$G,C130,InTran!$O:$O,$C$108) -> 0 | AE130: =+IFERROR(AB130/SUM($AB$110:$AB$131),0) -> 0 | AF130: =+RANK(AB130,$AB$110:$AB$131) -> 18
C131: NOT APPLICABLE | D131: =+SUMIFS(InTran!$R:$R,InTran!$G:$G,C131,InTran!$O:$O,$C$108,InTran!$C:$C,$D$108) -> 0 | E131: =+SUMIFS(InTran!$S:$S,InTran!$G:$G,C131,InTran!$O:$O,$C$108,InTran!$C:$C,$D$108) -> 0 | F131: =+SUMIFS(InTran!$M:$M,InTran!$G:$G,C131,InTran!$O:$O,$C$108,InTran!$C:$C,$D$108) -> 0 | G131: =+IFERROR(D131/SUM($D$110:$D$131),0) -> 0 | H131: =+SUMIFS(InTran!$R:$R,InTran!$G:$G,C131,InTran!$O:$O,$C$108,InTran!$C:$C,$H$108) -> 0 | I131: =+SUMIFS(InTran!$S:$S,InTran!$G:$G,C131,InTran!$O:$O,$C$108,InTran!$C:$C,$H$108) -> 0 | J131: =+SUMIFS(InTran!$M:$M,InTran!$G:$G,C131,InTran!$O:$O,$C$108,InTran!$C:$C,$H$108) -> 0 | K131: =+IFERROR(H131/SUM($H$110:$H$131),0) -> 0 | L131: =+SUMIFS(InTran!$R:$R,InTran!$G:$G,C131,InTran!$O:$O,$C$108,InTran!$C:$C,$L$108) -> 0 | M131: =+SUMIFS(InTran!$S:$S,InTran!$G:$G,C131,InTran!$O:$O,$C$108,InTran!$C:$C,$L$108) -> 0 | N131: =+SUMIFS(InTran!$M:$M,InTran!$G:$G,C131,InTran!$O:$O,$C$108,InTran!$C:$C,$L$108) -> 0 | O131: =+IFERROR(L131/SUM($L$110:$L$131),0) -> 0 | P131: =+SUMIFS(InTran!$R:$R,InTran!$G:$G,C131,InTran!$O:$O,$C$108,InTran!$C:$C,$P$108) -> 0 | Q131: =+SUMIFS(InTran!$S:$S,InTran!$G:$G,C131,InTran!$O:$O,$C$108,InTran!$C:$C,$P$108) -> 0 | R131: =+SUMIFS(InTran!$M:$M,InTran!$G:$G,C131,InTran!$O:$O,$C$108,InTran!$C:$C,$P$108) -> 0 | S131: =+IFERROR(P131/SUM($P$110:$P$131),0) -> 0 | T131: =+SUMIFS(InTran!$R:$R,InTran!$G:$G,C131,InTran!$O:$O,$C$108,InTran!$C:$C,$T$108) -> 0 | U131: =+SUMIFS(InTran!$S:$S,InTran!$G:$G,C131,InTran!$O:$O,$C$108,InTran!$C:$C,$T$108) -> 0 | V131: =+SUMIFS(InTran!$M:$M,InTran!$G:$G,C131,InTran!$O:$O,$C$108,InTran!$C:$C,$T$108) -> 0 | W131: =+IFERROR(T131/SUM($T$110:$T$131),0) -> 0 | X131: =+SUMIFS(InTran!$R:$R,InTran!$G:$G,C131,InTran!$O:$O,$C$108,InTran!$C:$C,$X$108) -> 0 | Y131: =+SUMIFS(InTran!$S:$S,InTran!$G:$G,C131,InTran!$O:$O,$C$108,InTran!$C:$C,$X$108) -> 0 | Z131: =+SUMIFS(InTran!$M:$M,InTran!$G:$G,C131,InTran!$O:$O,$C$108,InTran!$C:$C,$X$108) -> 0 | AA131: =+IFERROR(X131/SUM($X$110:$X$131),0) -> 0 | AB131: =+SUMIFS(InTran!$R:$R,InTran!$G:$G,C131,InTran!$O:$O,$C$108) -> 0 | AC131: =+SUMIFS(InTran!$S:$S,InTran!$G:$G,C131,InTran!$O:$O,$C$108) -> 0 | AD131: =+SUMIFS(InTran!$M:$M,InTran!$G:$G,C131,InTran!$O:$O,$C$108) -> 0 | AE131: =+IFERROR(AB131/SUM($AB$110:$AB$131),0) -> 0 | AF131: =+RANK(AB131,$AB$110:$AB$131) -> 18
C132: Total | D132: =SUM(D110:D131) -> 2618100.99 | E132: =SUM(E110:E131) -> 5249.4 | F132: =SUM(F110:F131) -> 262097.66 | G132: =SUM(G110:G131) -> 1 | H132: =SUM(H110:H131) -> 344029964.8 | I132: =SUM(I110:I131) -> 565277.14 | J132: =SUM(J110:J131) -> 15982991.54 | K132: =SUM(K110:K131) -> 1 | L132: =SUM(L110:L131) -> 0 | M132: =SUM(M110:M131) -> 0 | N132: =SUM(N110:N131) -> 0 | O132: =SUM(O110:O131) -> 0 | P132: =SUM(P110:P131) -> 69948940.19 | Q132: =SUM(Q110:Q131) -> 152813.92 | R132: =SUM(R110:R131) -> 2233506.12 | S132: =SUM(S110:S131) -> 1 | T132: =SUM(T110:T131) -> 971185.45 | U132: =SUM(U110:U131) -> 2183.56 | V132: =SUM(V110:V131) -> 33882.83 | W132: =SUM(W110:W131) -> 1 | X132: =SUM(X110:X131) -> 356981.91 | Y132: =SUM(Y110:Y131) -> 805.84 | Z132: =SUM(Z110:Z131) -> 303.3 | AA132: =SUM(AA110:AA131) -> 1 | AB132: =SUM(AB110:AB131) -> 417925173.3 | AC132: =SUM(AC110:AC131) -> 726329.86 | AD132: =SUM(AD110:AD131) -> 18512781.45 | AE132: =SUM(AE110:AE131) -> 1
C134: SHAN | D134: YH-AUR-VCAM | H134: KWAP | L134: MEQESG | P134: YAMIR-VCAM | T134: VCAM-TABA | X134: ASEAN5ESG | AB134: Total
C135: Brokers | D135: Trade Value (RM) | E135: Brokerage Fees (RM) | F135: Capital Gains (RM) | G135: % | H135: Trade Value (RM) | I135: Brokerage Fees (RM) | J135: Capital Gains (RM) | K135: % | L135: Trade Value (RM) | M135: Brokerage Fees (RM) | N135: Capital Gains (RM) | O135: % | P135: Trade Value (RM) | Q135: Brokerage Fees (RM) | R135: Capital Gains (RM) | S135: % | T135: Trade Value (RM) | U135: Brokerage Fees (RM) | V135: Capital Gains (RM) | W135: % | X135: Trade Value (RM) | Y135: Brokerage Fees (RM) | Z135: Capital Gains (RM) | AA135: % | AB135: Trade Value (RM) | AC135: Brokerage Fees (RM) | AD135: Capital Gains (RM) | AE135: % | AF135: Trade Value Ranking
C136: CIMB INVESTMENT BANK BHD | D136: =+SUMIFS(InTran!$R:$R,InTran!$G:$G,C136,InTran!$O:$O,$C$134,InTran!$C:$C,$D$134) -> 22138512 | E136: =+SUMIFS(InTran!$S:$S,InTran!$G:$G,C136,InTran!$O:$O,$C$134,InTran!$C:$C,$D$134) -> 55200 | F136: =+SUMIFS(InTran!$M:$M,InTran!$G:$G,C136,InTran!$O:$O,$C$134,InTran!$C:$C,$D$134) -> 0 | G136: =+IFERROR(D136/SUM($D$136:$D$157),0) -> 0.354954813 | H136: =+SUMIFS(InTran!$R:$R,InTran!$G:$G,C136,InTran!$O:$O,$C$134,InTran!$C:$C,$H$134) -> 0 | I136: =+SUMIFS(InTran!$S:$S,InTran!$G:$G,C136,InTran!$O:$O,$C$134,InTran!$C:$C,$H$134) -> 0 | J136: =+SUMIFS(InTran!$M:$M,InTran!$G:$G,C136,InTran!$O:$O,$C$134,InTran!$C:$C,$H$134) -> 0 | K136: =+IFERROR(H136/SUM($H$136:$H$157),0) -> 0 | L136: =+SUMIFS(InTran!$R:$R,InTran!$G:$G,C136,InTran!$O:$O,$C$134,InTran!$C:$C,$L$134) -> 16808665.24 | M136: =+SUMIFS(InTran!$S:$S,InTran!$G:$G,C136,InTran!$O:$O,$C$134,InTran!$C:$C,$L$134) -> 41910.6 | N136: =+SUMIFS(InTran!$M:$M,InTran!$G:$G,C136,InTran!$O:$O,$C$134,InTran!$C:$C,$L$134) -> 0 | O136: =+IFERROR(L136/SUM($L$136:$L$157),0) -> 1 | P136: =+SUMIFS(InTran!$R:$R,InTran!$G:$G,C136,InTran!$O:$O,$C$134,InTran!$C:$C,$P$134) -> 0 | Q136: =+SUMIFS(InTran!$S:$S,InTran!$G:$G,C136,InTran!$O:$O,$C$134,InTran!$C:$C,$P$134) -> 0 | R136: =+SUMIFS(InTran!$M:$M,InTran!$G:$G,C136,InTran!$O:$O,$C$134,InTran!$C:$C,$P$134) -> 0 | S136: =+IFERROR(P136/SUM($P$136:$P$157),0) -> 0 | T136: =+SUMIFS(InTran!$R:$R,InTran!$G:$G,C136,InTran!$O:$O,$C$134,InTran!$C:$C,$T$134) -> 608809.08 | U136: =+SUMIFS(InTran!$S:$S,InTran!$G:$G,C136,InTran!$O:$O,$C$134,InTran!$C:$C,$T$134) -> 1518 | V136: =+SUMIFS(InTran!$M:$M,InTran!$G:$G,C136,InTran!$O:$O,$C$134,InTran!$C:$C,$T$134) -> 0 | W136: =+IFERROR(T136/SUM($T$136:$T$157),0) -> 1 | X136: =+SUMIFS(InTran!$R:$R,InTran!$G:$G,C136,InTran!$O:$O,$C$134,InTran!$C:$C,$X$134) -> 0 | Y136: =+SUMIFS(InTran!$S:$S,InTran!$G:$G,C136,InTran!$O:$O,$C$134,InTran!$C:$C,$X$134) -> 0 | Z136: =+SUMIFS(InTran!$M:$M,InTran!$G:$G,C136,InTran!$O:$O,$C$134,InTran!$C:$C,$X$134) -> 0 | AA136: =+IFERROR(X136/SUM($X$136:$X$157),0) -> 0 | AB136: =+SUMIFS(InTran!$R:$R,InTran!$G:$G,C136,InTran!$O:$O,$C$134) -> 39555986.32 | AC136: =+SUMIFS(InTran!$S:$S,InTran!$G:$G,C136,InTran!$O:$O,$C$134) -> 98628.6 | AD136: =+SUMIFS(InTran!$M:$M,InTran!$G:$G,C136,InTran!$O:$O,$C$134) -> 0 | AE136: =+IFERROR(AB136/SUM($AB$136:$AB$157),0) -> 0.4751030871 | AF136: =+RANK(AB136,$AB$136:$AB$157) -> 1
C137: RHB INVESTMENT BANK BERHAD | D137: =+SUMIFS(InTran!$R:$R,InTran!$G:$G,C137,InTran!$O:$O,$C$134,InTran!$C:$C,$D$134) -> 24902689.02 | E137: =+SUMIFS(InTran!$S:$S,InTran!$G:$G,C137,InTran!$O:$O,$C$134,InTran!$C:$C,$D$134) -> 24930.38 | F137: =+SUMIFS(InTran!$M:$M,InTran!$G:$G,C137,InTran!$O:$O,$C$134,InTran!$C:$C,$D$134) -> 2149012.14 | G137: =+IFERROR(D137/SUM($D$136:$D$157),0) -> 0.3992738683 | H137: =+SUMIFS(InTran!$R:$R,InTran!$G:$G,C137,InTran!$O:$O,$C$134,InTran!$C:$C,$H$134) -> 1963976.04 | I137: =+SUMIFS(InTran!$S:$S,InTran!$G:$G,C137,InTran!$O:$O,$C$134,InTran!$C:$C,$H$134) -> 3918 | J137: =+SUMIFS(InTran!$M:$M,InTran!$G:$G,C137,InTran!$O:$O,$C$134,InTran!$C:$C,$H$134) -> 0 | K137: =+IFERROR(H137/SUM($H$136:$H$157),0) -> 0.5659428421 | L137: =+SUMIFS(InTran!$R:$R,InTran!$G:$G,C137,InTran!$O:$O,$C$134,InTran!$C:$C,$L$134) -> 0 | M137: =+SUMIFS(InTran!$S:$S,InTran!$G:$G,C137,InTran!$O:$O,$C$134,InTran!$C:$C,$L$134) -> 0 | N137: =+SUMIFS(InTran!$M:$M,InTran!$G:$G,C137,InTran!$O:$O,$C$134,InTran!$C:$C,$L$134) -> 0 | O137: =+IFERROR(L137/SUM($L$136:$L$157),0) -> 0 | P137: =+SUMIFS(InTran!$R:$R,InTran!$G:$G,C137,InTran!$O:$O,$C$134,InTran!$C:$C,$P$134) -> 0 | Q137: =+SUMIFS(InTran!$S:$S,InTran!$G:$G,C137,InTran!$O:$O,$C$134,InTran!$C:$C,$P$134) -> 0 | R137: =+SUMIFS(InTran!$M:$M,InTran!$G:$G,C137,InTran!$O:$O,$C$134,InTran!$C:$C,$P$134) -> 0 | S137: =+IFERROR(P137/SUM($P$136:$P$157),0) -> 0 | T137: =+SUMIFS(InTran!$R:$R,InTran!$G:$G,C137,InTran!$O:$O,$C$134,InTran!$C:$C,$T$134) -> 0 | U137: =+SUMIFS(InTran!$S:$S,InTran!$G:$G,C137,InTran!$O:$O,$C$134,InTran!$C:$C,$T$134) -> 0 | V137: =+SUMIFS(InTran!$M:$M,InTran!$G:$G,C137,InTran!$O:$O,$C$134,InTran!$C:$C,$T$134) -> 0 | W137: =+IFERROR(T137/SUM($T$136:$T$157),0) -> 0 | X137: =+SUMIFS(InTran!$R:$R,InTran!$G:$G,C137,InTran!$O:$O,$C$134,InTran!$C:$C,$X$134) -> 0 | Y137: =+SUMIFS(InTran!$S:$S,InTran!$G:$G,C137,InTran!$O:$O,$C$134,InTran!$C:$C,$X$134) -> 0 | Z137: =+SUMIFS(InTran!$M:$M,InTran!$G:$G,C137,InTran!$O:$O,$C$134,InTran!$C:$C,$X$134) -> 0 | AA137: =+IFERROR(X137/SUM($X$136:$X$157),0) -> 0 | AB137: =+SUMIFS(InTran!$R:$R,InTran!$G:$G,C137,InTran!$O:$O,$C$134) -> 26866665.06 | AC137: =+SUMIFS(InTran!$S:$S,InTran!$G:$G,C137,InTran!$O:$O,$C$134) -> 28848.38 | AD137: =+SUMIFS(InTran!$M:$M,InTran!$G:$G,C137,InTran!$O:$O,$C$134) -> 2149012.14 | AE137: =+IFERROR(AB137/SUM($AB$136:$AB$157),0) -> 0.3226928892 | AF137: =+RANK(AB137,$AB$136:$AB$157) -> 2
C138: MACQUARIE CAPITAL SECURITIES (MALAYSIA) SDN BHD | D138: =+SUMIFS(InTran!$R:$R,InTran!$G:$G,C138,InTran!$O:$O,$C$134,InTran!$C:$C,$D$134) -> 8679765.48 | E138: =+SUMIFS(InTran!$S:$S,InTran!$G:$G,C138,InTran!$O:$O,$C$134,InTran!$C:$C,$D$134) -> 8669.32 | F138: =+SUMIFS(InTran!$M:$M,InTran!$G:$G,C138,InTran!$O:$O,$C$134,InTran!$C:$C,$D$134) -> 0 | G138: =+IFERROR(D138/SUM($D$136:$D$157),0) -> 0.1391658361 | H138: =+SUMIFS(InTran!$R:$R,InTran!$G:$G,C138,InTran!$O:$O,$C$134,InTran!$C:$C,$H$134) -> 0 | I138: =+SUMIFS(InTran!$S:$S,InTran!$G:$G,C138,InTran!$O:$O,$C$134,InTran!$C:$C,$H$134) -> 0 | J138: =+SUMIFS(InTran!$M:$M,InTran!$G:$G,C138,InTran!$O:$O,$C$134,InTran!$C:$C,$H$134) -> 0 | K138: =+IFERROR(H138/SUM($H$136:$H$157),0) -> 0 | L138: =+SUMIFS(InTran!$R:$R,InTran!$G:$G,C138,InTran!$O:$O,$C$134,InTran!$C:$C,$L$134) -> 0 | M138: =+SUMIFS(InTran!$S:$S,InTran!$G:$G,C138,InTran!$O:$O,$C$134,InTran!$C:$C,$L$134) -> 0 | N138: =+SUMIFS(InTran!$M:$M,InTran!$G:$G,C138,InTran!$O:$O,$C$134,InTran!$C:$C,$L$134) -> 0 | O138: =+IFERROR(L138/SUM($L$136:$L$157),0) -> 0 | P138: =+SUMIFS(InTran!$R:$R,InTran!$G:$G,C138,InTran!$O:$O,$C$134,InTran!$C:$C,$P$134) -> 0 | Q138: =+SUMIFS(InTran!$S:$S,InTran!$G:$G,C138,InTran!$O:$O,$C$134,InTran!$C:$C,$P$134) -> 0 | R138: =+SUMIFS(InTran!$M:$M,InTran!$G:$G,C138,InTran!$O:$O,$C$134,InTran!$C:$C,$P$134) -> 0 | S138: =+IFERROR(P138/SUM($P$136:$P$157),0) -> 0 | T138: =+SUMIFS(InTran!$R:$R,InTran!$G:$G,C138,InTran!$O:$O,$C$134,InTran!$C:$C,$T$134) -> 0 | U138: =+SUMIFS(InTran!$S:$S,InTran!$G:$G,C138,InTran!$O:$O,$C$134,InTran!$C:$C,$T$134) -> 0 | V138: =+SUMIFS(InTran!$M:$M,InTran!$G:$G,C138,InTran!$O:$O,$C$134,InTran!$C:$C,$T$134) -> 0 | W138: =+IFERROR(T138/SUM($T$136:$T$157),0) -> 0 | X138: =+SUMIFS(InTran!$R:$R,InTran!$G:$G,C138,InTran!$O:$O,$C$134,InTran!$C:$C,$X$134) -> 0 | Y138: =+SUMIFS(InTran!$S:$S,InTran!$G:$G,C138,InTran!$O:$O,$C$134,InTran!$C:$C,$X$134) -> 0 | Z138: =+SUMIFS(InTran!$M:$M,InTran!$G:$G,C138,InTran!$O:$O,$C$134,InTran!$C:$C,$X$134) -> 0 | AA138: =+IFERROR(X138/SUM($X$136:$X$157),0) -> 0 | AB138: =+SUMIFS(InTran!$R:$R,InTran!$G:$G,C138,InTran!$O:$O,$C$134) -> 8679765.48 | AC138: =+SUMIFS(InTran!$S:$S,InTran!$G:$G,C138,InTran!$O:$O,$C$134) -> 8669.32 | AD138: =+SUMIFS(InTran!$M:$M,InTran!$G:$G,C138,InTran!$O:$O,$C$134) -> 0 | AE138: =+IFERROR(AB138/SUM($AB$136:$AB$157),0) -> 0.1042518152 | AF138: =+RANK(AB138,$AB$136:$AB$157) -> 3
C139: MAYBANK INVESTMENT BANK BHD | D139: =+SUMIFS(InTran!$R:$R,InTran!$G:$G,C139,InTran!$O:$O,$C$134,InTran!$C:$C,$D$134) -> 6648978.04 | E139: =+SUMIFS(InTran!$S:$S,InTran!$G:$G,C139,InTran!$O:$O,$C$134,InTran!$C:$C,$D$134) -> 13265.56 | F139: =+SUMIFS(InTran!$M:$M,InTran!$G:$G,C139,InTran!$O:$O,$C$134,InTran!$C:$C,$D$134) -> 0 | G139: =+IFERROR(D139/SUM($D$136:$D$157),0) -> 0.1066054826 | H139: =+SUMIFS(InTran!$R:$R,InTran!$G:$G,C139,InTran!$O:$O,$C$134,InTran!$C:$C,$H$134) -> 0 | I139: =+SUMIFS(InTran!$S:$S,InTran!$G:$G,C139,InTran!$O:$O,$C$134,InTran!$C:$C,$H$134) -> 0 | J139: =+SUMIFS(InTran!$M:$M,InTran!$G:$G,C139,InTran!$O:$O,$C$134,InTran!$C:$C,$H$134) -> 0 | K139: =+IFERROR(H139/SUM($H$136:$H$157),0) -> 0 | L139: =+SUMIFS(InTran!$R:$R,InTran!$G:$G,C139,InTran!$O:$O,$C$134,InTran!$C:$C,$L$134) -> 0 | M139: =+SUMIFS(InTran!$S:$S,InTran!$G:$G,C139,InTran!$O:$O,$C$134,InTran!$C:$C,$L$134) -> 0 | N139: =+SUMIFS(InTran!$M:$M,InTran!$G:$G,C139,InTran!$O:$O,$C$134,InTran!$C:$C,$L$134) -> 0 | O139: =+IFERROR(L139/SUM($L$136:$L$157),0) -> 0 | P139: =+SUMIFS(InTran!$R:$R,InTran!$G:$G,C139,InTran!$O:$O,$C$134,InTran!$C:$C,$P$134) -> 0 | Q139: =+SUMIFS(InTran!$S:$S,InTran!$G:$G,C139,InTran!$O:$O,$C$134,InTran!$C:$C,$P$134) -> 0 | R139: =+SUMIFS(InTran!$M:$M,InTran!$G:$G,C139,InTran!$O:$O,$C$134,InTran!$C:$C,$P$134) -> 0 | S139: =+IFERROR(P139/SUM($P$136:$P$157),0) -> 0 | T139: =+SUMIFS(InTran!$R:$R,InTran!$G:$G,C139,InTran!$O:$O,$C$134,InTran!$C:$C,$T$134) -> 0 | U139: =+SUMIFS(InTran!$S:$S,InTran!$G:$G,C139,InTran!$O:$O,$C$134,InTran!$C:$C,$T$134) -> 0 | V139: =+SUMIFS(InTran!$M:$M,InTran!$G:$G,C139,InTran!$O:$O,$C$134,InTran!$C:$C,$T$134) -> 0 | W139: =+IFERROR(T139/SUM($T$136:$T$157),0) -> 0 | X139: =+SUMIFS(InTran!$R:$R,InTran!$G:$G,C139,InTran!$O:$O,$C$134,InTran!$C:$C,$X$134) -> 0 | Y139: =+SUMIFS(InTran!$S:$S,InTran!$G:$G,C139,InTran!$O:$O,$C$134,InTran!$C:$C,$X$134) -> 0 | Z139: =+SUMIFS(InTran!$M:$M,InTran!$G:$G,C139,InTran!$O:$O,$C$134,InTran!$C:$C,$X$134) -> 0 | AA139: =+IFERROR(X139/SUM($X$136:$X$157),0) -> 0 | AB139: =+SUMIFS(InTran!$R:$R,InTran!$G:$G,C139,InTran!$O:$O,$C$134) -> 6648978.04 | AC139: =+SUMIFS(InTran!$S:$S,InTran!$G:$G,C139,InTran!$O:$O,$C$134) -> 13265.56 | AD139: =+SUMIFS(InTran!$M:$M,InTran!$G:$G,C139,InTran!$O:$O,$C$134) -> 0 | AE139: =+IFERROR(AB139/SUM($AB$136:$AB$157),0) -> 0.07986022563 | AF139: =+RANK(AB139,$AB$136:$AB$157) -> 4
C140: KENANGA INVESTMENT BANK BHD | D140: =+SUMIFS(InTran!$R:$R,InTran!$G:$G,C140,InTran!$O:$O,$C$134,InTran!$C:$C,$D$134) -> 0 | E140: =+SUMIFS(InTran!$S:$S,InTran!$G:$G,C140,InTran!$O:$O,$C$134,InTran!$C:$C,$D$134) -> 0 | F140: =+SUMIFS(InTran!$M:$M,InTran!$G:$G,C140,InTran!$O:$O,$C$134,InTran!$C:$C,$D$134) -> 0 | G140: =+IFERROR(D140/SUM($D$136:$D$157),0) -> 0 | H140: =+SUMIFS(InTran!$R:$R,InTran!$G:$G,C140,InTran!$O:$O,$C$134,InTran!$C:$C,$H$134) -> 1506296.74 | I140: =+SUMIFS(InTran!$S:$S,InTran!$G:$G,C140,InTran!$O:$O,$C$134,InTran!$C:$C,$H$134) -> 376.3 | J140: =+SUMIFS(InTran!$M:$M,InTran!$G:$G,C140,InTran!$O:$O,$C$134,InTran!$C:$C,$H$134) -> 0 | K140: =+IFERROR(H140/SUM($H$136:$H$157),0) -> 0.4340571579 | L140: =+SUMIFS(InTran!$R:$R,InTran!$G:$G,C140,InTran!$O:$O,$C$134,InTran!$C:$C,$L$134) -> 0 | M140: =+SUMIFS(InTran!$S:$S,InTran!$G:$G,C140,InTran!$O:$O,$C$134,InTran!$C:$C,$L$134) -> 0 | N140: =+SUMIFS(InTran!$M:$M,InTran!$G:$G,C140,InTran!$O:$O,$C$134,InTran!$C:$C,$L$134) -> 0 | O140: =+IFERROR(L140/SUM($L$136:$L$157),0) -> 0 | P140: =+SUMIFS(InTran!$R:$R,InTran!$G:$G,C140,InTran!$O:$O,$C$134,InTran!$C:$C,$P$134) -> 0 | Q140: =+SUMIFS(InTran!$S:$S,InTran!$G:$G,C140,InTran!$O:$O,$C$134,InTran!$C:$C,$P$134) -> 0 | R140: =+SUMIFS(InTran!$M:$M,InTran!$G:$G,C140,InTran!$O:$O,$C$134,InTran!$C:$C,$P$134) -> 0 | S140: =+IFERROR(P140/SUM($P$136:$P$157),0) -> 0 | T140: =+SUMIFS(InTran!$R:$R,InTran!$G:$G,C140,InTran!$O:$O,$C$134,InTran!$C:$C,$T$134) -> 0 | U140: =+SUMIFS(InTran!$S:$S,InTran!$G:$G,C140,InTran!$O:$O,$C$134,InTran!$C:$C,$T$134) -> 0 | V140: =+SUMIFS(InTran!$M:$M,InTran!$G:$G,C140,InTran!$O:$O,$C$134,InTran!$C:$C,$T$134) -> 0 | W140: =+IFERROR(T140/SUM($T$136:$T$157),0) -> 0 | X140: =+SUMIFS(InTran!$R:$R,InTran!$G:$G,C140,InTran!$O:$O,$C$134,InTran!$C:$C,$X$134) -> 0 | Y140: =+SUMIFS(InTran!$S:$S,InTran!$G:$G,C140,InTran!$O:$O,$C$134,InTran!$C:$C,$X$134) -> 0 | Z140: =+SUMIFS(InTran!$M:$M,InTran!$G:$G,C140,InTran!$O:$O,$C$134,InTran!$C:$C,$X$134) -> 0 | AA140: =+IFERROR(X140/SUM($X$136:$X$157),0) -> 0 | AB140: =+SUMIFS(InTran!$R:$R,InTran!$G:$G,C140,InTran!$O:$O,$C$134) -> 1506296.74 | AC140: =+SUMIFS(InTran!$S:$S,InTran!$G:$G,C140,InTran!$O:$O,$C$134) -> 376.3 | AD140: =+SUMIFS(InTran!$M:$M,InTran!$G:$G,C140,InTran!$O:$O,$C$134) -> 0 | AE140: =+IFERROR(AB140/SUM($AB$136:$AB$157),0) -> 0.01809198298 | AF140: =+RANK(AB140,$AB$136:$AB$157) -> 5
C141: AFFIN INVESTMENT BANK BERHAD | D141: =+SUMIFS(InTran!$R:$R,InTran!$G:$G,C141,InTran!$O:$O,$C$134,InTran!$C:$C,$D$134) -> 0 | E141: =+SUMIFS(InTran!$S:$S,InTran!$G:$G,C141,InTran!$O:$O,$C$134,InTran!$C:$C,$D$134) -> 0 | F141: =+SUMIFS(InTran!$M:$M,InTran!$G:$G,C141,InTran!$O:$O,$C$134,InTran!$C:$C,$D$134) -> 0 | G141: =+IFERROR(D141/SUM($D$136:$D$157),0) -> 0 | H141: =+SUMIFS(InTran!$R:$R,InTran!$G:$G,C141,InTran!$O:$O,$C$134,InTran!$C:$C,$H$134) -> 0 | I141: =+SUMIFS(InTran!$S:$S,InTran!$G:$G,C141,InTran!$O:$O,$C$134,InTran!$C:$C,$H$134) -> 0 | J141: =+SUMIFS(InTran!$M:$M,InTran!$G:$G,C141,InTran!$O:$O,$C$134,InTran!$C:$C,$H$134) -> 0 | K141: =+IFERROR(H141/SUM($H$136:$H$157),0) -> 0 | L141: =+SUMIFS(InTran!$R:$R,InTran!$G:$G,C141,InTran!$O:$O,$C$134,InTran!$C:$C,$L$134) -> 0 | M141: =+SUMIFS(InTran!$S:$S,InTran!$G:$G,C141,InTran!$O:$O,$C$134,InTran!$C:$C,$L$134) -> 0 | N141: =+SUMIFS(InTran!$M:$M,InTran!$G:$G,C141,InTran!$O:$O,$C$134,InTran!$C:$C,$L$134) -> 0 | O141: =+IFERROR(L141/SUM($L$136:$L$157),0) -> 0 | P141: =+SUMIFS(InTran!$R:$R,InTran!$G:$G,C141,InTran!$O:$O,$C$134,InTran!$C:$C,$P$134) -> 0 | Q141: =+SUMIFS(InTran!$S:$S,InTran!$G:$G,C141,InTran!$O:$O,$C$134,InTran!$C:$C,$P$134) -> 0 | R141: =+SUMIFS(InTran!$M:$M,InTran!$G:$G,C141,InTran!$O:$O,$C$134,InTran!$C:$C,$P$134) -> 0 | S141: =+IFERROR(P141/SUM($P$136:$P$157),0) -> 0 | T141: =+SUMIFS(InTran!$R:$R,InTran!$G:$G,C141,InTran!$O:$O,$C$134,InTran!$C:$C,$T$134) -> 0 | U141: =+SUMIFS(InTran!$S:$S,InTran!$G:$G,C141,InTran!$O:$O,$C$134,InTran!$C:$C,$T$134) -> 0 | V141: =+SUMIFS(InTran!$M:$M,InTran!$G:$G,C141,InTran!$O:$O,$C$134,InTran!$C:$C,$T$134) -> 0 | W141: =+IFERROR(T141/SUM($T$136:$T$157),0) -> 0 | X141: =+SUMIFS(InTran!$R:$R,InTran!$G:$G,C141,InTran!$O:$O,$C$134,InTran!$C:$C,$X$134) -> 0 | Y141: =+SUMIFS(InTran!$S:$S,InTran!$G:$G,C141,InTran!$O:$O,$C$134,InTran!$C:$C,$X$134) -> 0 | Z141: =+SUMIFS(InTran!$M:$M,InTran!$G:$G,C141,InTran!$O:$O,$C$134,InTran!$C:$C,$X$134) -> 0 | AA141: =+IFERROR(X141/SUM($X$136:$X$157),0) -> 0 | AB141: =+SUMIFS(InTran!$R:$R,InTran!$G:$G,C141,InTran!$O:$O,$C$134) -> 0 | AC141: =+SUMIFS(InTran!$S:$S,InTran!$G:$G,C141,InTran!$O:$O,$C$134) -> 0 | AD141: =+SUMIFS(InTran!$M:$M,InTran!$G:$G,C141,InTran!$O:$O,$C$134) -> 0 | AE141: =+IFERROR(AB141/SUM($AB$136:$AB$157),0) -> 0 | AF141: =+RANK(AB141,$AB$136:$AB$157) -> 6
C142: ALLIANCE INVESTMENT BANK BERHAD | D142: =+SUMIFS(InTran!$R:$R,InTran!$G:$G,C142,InTran!$O:$O,$C$134,InTran!$C:$C,$D$134) -> 0 | E142: =+SUMIFS(InTran!$S:$S,InTran!$G:$G,C142,InTran!$O:$O,$C$134,InTran!$C:$C,$D$134) -> 0 | F142: =+SUMIFS(InTran!$M:$M,InTran!$G:$G,C142,InTran!$O:$O,$C$134,InTran!$C:$C,$D$134) -> 0 | G142: =+IFERROR(D142/SUM($D$136:$D$157),0) -> 0 | H142: =+SUMIFS(InTran!$R:$R,InTran!$G:$G,C142,InTran!$O:$O,$C$134,InTran!$C:$C,$H$134) -> 0 | I142: =+SUMIFS(InTran!$S:$S,InTran!$G:$G,C142,InTran!$O:$O,$C$134,InTran!$C:$C,$H$134) -> 0 | J142: =+SUMIFS(InTran!$M:$M,InTran!$G:$G,C142,InTran!$O:$O,$C$134,InTran!$C:$C,$H$134) -> 0 | K142: =+IFERROR(H142/SUM($H$136:$H$157),0) -> 0 | L142: =+SUMIFS(InTran!$R:$R,InTran!$G:$G,C142,InTran!$O:$O,$C$134,InTran!$C:$C,$L$134) -> 0 | M142: =+SUMIFS(InTran!$S:$S,InTran!$G:$G,C142,InTran!$O:$O,$C$134,InTran!$C:$C,$L$134) -> 0 | N142: =+SUMIFS(InTran!$M:$M,InTran!$G:$G,C142,InTran!$O:$O,$C$134,InTran!$C:$C,$L$134) -> 0 | O142: =+IFERROR(L142/SUM($L$136:$L$157),0) -> 0 | P142: =+SUMIFS(InTran!$R:$R,InTran!$G:$G,C142,InTran!$O:$O,$C$134,InTran!$C:$C,$P$134) -> 0 | Q142: =+SUMIFS(InTran!$S:$S,InTran!$G:$G,C142,InTran!$O:$O,$C$134,InTran!$C:$C,$P$134) -> 0 | R142: =+SUMIFS(InTran!$M:$M,InTran!$G:$G,C142,InTran!$O:$O,$C$134,InTran!$C:$C,$P$134) -> 0 | S142: =+IFERROR(P142/SUM($P$136:$P$157),0) -> 0 | T142: =+SUMIFS(InTran!$R:$R,InTran!$G:$G,C142,InTran!$O:$O,$C$134,InTran!$C:$C,$T$134) -> 0 | U142: =+SUMIFS(InTran!$S:$S,InTran!$G:$G,C142,InTran!$O:$O,$C$134,InTran!$C:$C,$T$134) -> 0 | V142: =+SUMIFS(InTran!$M:$M,InTran!$G:$G,C142,InTran!$O:$O,$C$134,InTran!$C:$C,$T$134) -> 0 | W142: =+IFERROR(T142/SUM($T$136:$T$157),0) -> 0 | X142: =+SUMIFS(InTran!$R:$R,InTran!$G:$G,C142,InTran!$O:$O,$C$134,InTran!$C:$C,$X$134) -> 0 | Y142: =+SUMIFS(InTran!$S:$S,InTran!$G:$G,C142,InTran!$O:$O,$C$134,InTran!$C:$C,$X$134) -> 0 | Z142: =+SUMIFS(InTran!$M:$M,InTran!$G:$G,C142,InTran!$O:$O,$C$134,InTran!$C:$C,$X$134) -> 0 | AA142: =+IFERROR(X142/SUM($X$136:$X$157),0) -> 0 | AB142: =+SUMIFS(InTran!$R:$R,InTran!$G:$G,C142,InTran!$O:$O,$C$134) -> 0 | AC142: =+SUMIFS(InTran!$S:$S,InTran!$G:$G,C142,InTran!$O:$O,$C$134) -> 0 | AD142: =+SUMIFS(InTran!$M:$M,InTran!$G:$G,C142,InTran!$O:$O,$C$134) -> 0 | AE142: =+IFERROR(AB142/SUM($AB$136:$AB$157),0) -> 0 | AF142: =+RANK(AB142,$AB$136:$AB$157) -> 6
C143: AMINVESTMENT BANK BHD | D143: =+SUMIFS(InTran!$R:$R,InTran!$G:$G,C143,InTran!$O:$O,$C$134,InTran!$C:$C,$D$134) -> 0 | E143: =+SUMIFS(InTran!$S:$S,InTran!$G:$G,C143,InTran!$O:$O,$C$134,InTran!$C:$C,$D$134) -> 0 | F143: =+SUMIFS(InTran!$M:$M,InTran!$G:$G,C143,InTran!$O:$O,$C$134,InTran!$C:$C,$D$134) -> 0 | G143: =+IFERROR(D143/SUM($D$136:$D$157),0) -> 0 | H143: =+SUMIFS(InTran!$R:$R,InTran!$G:$G,C143,InTran!$O:$O,$C$134,InTran!$C:$C,$H$134) -> 0 | I143: =+SUMIFS(InTran!$S:$S,InTran!$G:$G,C143,InTran!$O:$O,$C$134,InTran!$C:$C,$H$134) -> 0 | J143: =+SUMIFS(InTran!$M:$M,InTran!$G:$G,C143,InTran!$O:$O,$C$134,InTran!$C:$C,$H$134) -> 0 | K143: =+IFERROR(H143/SUM($H$136:$H$157),0) -> 0 | L143: =+SUMIFS(InTran!$R:$R,InTran!$G:$G,C143,InTran!$O:$O,$C$134,InTran!$C:$C,$L$134) -> 0 | M143: =+SUMIFS(InTran!$S:$S,InTran!$G:$G,C143,InTran!$O:$O,$C$134,InTran!$C:$C,$L$134) -> 0 | N143: =+SUMIFS(InTran!$M:$M,InTran!$G:$G,C143,InTran!$O:$O,$C$134,InTran!$C:$C,$L$134) -> 0 | O143: =+IFERROR(L143/SUM($L$136:$L$157),0) -> 0 | P143: =+SUMIFS(InTran!$R:$R,InTran!$G:$G,C143,InTran!$O:$O,$C$134,InTran!$C:$C,$P$134) -> 0 | Q143: =+SUMIFS(InTran!$S:$S,InTran!$G:$G,C143,InTran!$O:$O,$C$134,InTran!$C:$C,$P$134) -> 0 | R143: =+SUMIFS(InTran!$M:$M,InTran!$G:$G,C143,InTran!$O:$O,$C$134,InTran!$C:$C,$P$134) -> 0 | S143: =+IFERROR(P143/SUM($P$136:$P$157),0) -> 0 | T143: =+SUMIFS(InTran!$R:$R,InTran!$G:$G,C143,InTran!$O:$O,$C$134,InTran!$C:$C,$T$134) -> 0 | U143: =+SUMIFS(InTran!$S:$S,InTran!$G:$G,C143,InTran!$O:$O,$C$134,InTran!$C:$C,$T$134) -> 0 | V143: =+SUMIFS(InTran!$M:$M,InTran!$G:$G,C143,InTran!$O:$O,$C$134,InTran!$C:$C,$T$134) -> 0 | W143: =+IFERROR(T143/SUM($T$136:$T$157),0) -> 0 | X143: =+SUMIFS(InTran!$R:$R,InTran!$G:$G,C143,InTran!$O:$O,$C$134,InTran!$C:$C,$X$134) -> 0 | Y143: =+SUMIFS(InTran!$S:$S,InTran!$G:$G,C143,InTran!$O:$O,$C$134,InTran!$C:$C,$X$134) -> 0 | Z143: =+SUMIFS(InTran!$M:$M,InTran!$G:$G,C143,InTran!$O:$O,$C$134,InTran!$C:$C,$X$134) -> 0 | AA143: =+IFERROR(X143/SUM($X$136:$X$157),0) -> 0 | AB143: =+SUMIFS(InTran!$R:$R,InTran!$G:$G,C143,InTran!$O:$O,$C$134) -> 0 | AC143: =+SUMIFS(InTran!$S:$S,InTran!$G:$G,C143,InTran!$O:$O,$C$134) -> 0 | AD143: =+SUMIFS(InTran!$M:$M,InTran!$G:$G,C143,InTran!$O:$O,$C$134) -> 0 | AE143: =+IFERROR(AB143/SUM($AB$136:$AB$157),0) -> 0 | AF143: =+RANK(AB143,$AB$136:$AB$157) -> 6
C144: BIMB SECURITIES SDN BHD | D144: =+SUMIFS(InTran!$R:$R,InTran!$G:$G,C144,InTran!$O:$O,$C$134,InTran!$C:$C,$D$134) -> 0 | E144: =+SUMIFS(InTran!$S:$S,InTran!$G:$G,C144,InTran!$O:$O,$C$134,InTran!$C:$C,$D$134) -> 0 | F144: =+SUMIFS(InTran!$M:$M,InTran!$G:$G,C144,InTran!$O:$O,$C$134,InTran!$C:$C,$D$134) -> 0 | G144: =+IFERROR(D144/SUM($D$136:$D$157),0) -> 0 | H144: =+SUMIFS(InTran!$R:$R,InTran!$G:$G,C144,InTran!$O:$O,$C$134,InTran!$C:$C,$H$134) -> 0 | I144: =+SUMIFS(InTran!$S:$S,InTran!$G:$G,C144,InTran!$O:$O,$C$134,InTran!$C:$C,$H$134) -> 0 | J144: =+SUMIFS(InTran!$M:$M,InTran!$G:$G,C144,InTran!$O:$O,$C$134,InTran!$C:$C,$H$134) -> 0 | K144: =+IFERROR(H144/SUM($H$136:$H$157),0) -> 0 | L144: =+SUMIFS(InTran!$R:$R,InTran!$G:$G,C144,InTran!$O:$O,$C$134,InTran!$C:$C,$L$134) -> 0 | M144: =+SUMIFS(InTran!$S:$S,InTran!$G:$G,C144,InTran!$O:$O,$C$134,InTran!$C:$C,$L$134) -> 0 | N144: =+SUMIFS(InTran!$M:$M,InTran!$G:$G,C144,InTran!$O:$O,$C$134,InTran!$C:$C,$L$134) -> 0 | O144: =+IFERROR(L144/SUM($L$136:$L$157),0) -> 0 | P144: =+SUMIFS(InTran!$R:$R,InTran!$G:$G,C144,InTran!$O:$O,$C$134,InTran!$C:$C,$P$134) -> 0 | Q144: =+SUMIFS(InTran!$S:$S,InTran!$G:$G,C144,InTran!$O:$O,$C$134,InTran!$C:$C,$P$134) -> 0 | R144: =+SUMIFS(InTran!$M:$M,InTran!$G:$G,C144,InTran!$O:$O,$C$134,InTran!$C:$C,$P$134) -> 0 | S144: =+IFERROR(P144/SUM($P$136:$P$157),0) -> 0 | T144: =+SUMIFS(InTran!$R:$R,InTran!$G:$G,C144,InTran!$O:$O,$C$134,InTran!$C:$C,$T$134) -> 0 | U144: =+SUMIFS(InTran!$S:$S,InTran!$G:$G,C144,InTran!$O:$O,$C$134,InTran!$C:$C,$T$134) -> 0 | V144: =+SUMIFS(InTran!$M:$M,InTran!$G:$G,C144,InTran!$O:$O,$C$134,InTran!$C:$C,$T$134) -> 0 | W144: =+IFERROR(T144/SUM($T$136:$T$157),0) -> 0 | X144: =+SUMIFS(InTran!$R:$R,InTran!$G:$G,C144,InTran!$O:$O,$C$134,InTran!$C:$C,$X$134) -> 0 | Y144: =+SUMIFS(InTran!$S:$S,InTran!$G:$G,C144,InTran!$O:$O,$C$134,InTran!$C:$C,$X$134) -> 0 | Z144: =+SUMIFS(InTran!$M:$M,InTran!$G:$G,C144,InTran!$O:$O,$C$134,InTran!$C:$C,$X$134) -> 0 | AA144: =+IFERROR(X144/SUM($X$136:$X$157),0) -> 0 | AB144: =+SUMIFS(InTran!$R:$R,InTran!$G:$G,C144,InTran!$O:$O,$C$134) -> 0 | AC144: =+SUMIFS(InTran!$S:$S,InTran!$G:$G,C144,InTran!$O:$O,$C$134) -> 0 | AD144: =+SUMIFS(InTran!$M:$M,InTran!$G:$G,C144,InTran!$O:$O,$C$134) -> 0 | AE144: =+IFERROR(AB144/SUM($AB$136:$AB$157),0) -> 0 | AF144: =+RANK(AB144,$AB$136:$AB$157) -> 6
C145: CIMB INVESTMENT BANK BHD (FOREIGN) | D145: =+SUMIFS(InTran!$R:$R,InTran!$G:$G,C145,InTran!$O:$O,$C$134,InTran!$C:$C,$D$134) -> 0 | E145: =+SUMIFS(InTran!$S:$S,InTran!$G:$G,C145,InTran!$O:$O,$C$134,InTran!$C:$C,$D$134) -> 0 | F145: =+SUMIFS(InTran!$M:$M,InTran!$G:$G,C145,InTran!$O:$O,$C$134,InTran!$C:$C,$D$134) -> 0 | G145: =+IFERROR(D145/SUM($D$136:$D$157),0) -> 0 | H145: =+SUMIFS(InTran!$R:$R,InTran!$G:$G,C145,InTran!$O:$O,$C$134,InTran!$C:$C,$H$134) -> 0 | I145: =+SUMIFS(InTran!$S:$S,InTran!$G:$G,C145,InTran!$O:$O,$C$134,InTran!$C:$C,$H$134) -> 0 | J145: =+SUMIFS(InTran!$M:$M,InTran!$G:$G,C145,InTran!$O:$O,$C$134,InTran!$C:$C,$H$134) -> 0 | K145: =+IFERROR(H145/SUM($H$136:$H$157),0) -> 0 | L145: =+SUMIFS(InTran!$R:$R,InTran!$G:$G,C145,InTran!$O:$O,$C$134,InTran!$C:$C,$L$134) -> 0 | M145: =+SUMIFS(InTran!$S:$S,InTran!$G:$G,C145,InTran!$O:$O,$C$134,InTran!$C:$C,$L$134) -> 0 | N145: =+SUMIFS(InTran!$M:$M,InTran!$G:$G,C145,InTran!$O:$O,$C$134,InTran!$C:$C,$L$134) -> 0 | O145: =+IFERROR(L145/SUM($L$136:$L$157),0) -> 0 | P145: =+SUMIFS(InTran!$R:$R,InTran!$G:$G,C145,InTran!$O:$O,$C$134,InTran!$C:$C,$P$134) -> 0 | Q145: =+SUMIFS(InTran!$S:$S,InTran!$G:$G,C145,InTran!$O:$O,$C$134,InTran!$C:$C,$P$134) -> 0 | R145: =+SUMIFS(InTran!$M:$M,InTran!$G:$G,C145,InTran!$O:$O,$C$134,InTran!$C:$C,$P$134) -> 0 | S145: =+IFERROR(P145/SUM($P$136:$P$157),0) -> 0 | T145: =+SUMIFS(InTran!$R:$R,InTran!$G:$G,C145,InTran!$O:$O,$C$134,InTran!$C:$C,$T$134) -> 0 | U145: =+SUMIFS(InTran!$S:$S,InTran!$G:$G,C145,InTran!$O:$O,$C$134,InTran!$C:$C,$T$134) -> 0 | V145: =+SUMIFS(InTran!$M:$M,InTran!$G:$G,C145,InTran!$O:$O,$C$134,InTran!$C:$C,$T$134) -> 0 | W145: =+IFERROR(T145/SUM($T$136:$T$157),0) -> 0 | X145: =+SUMIFS(InTran!$R:$R,InTran!$G:$G,C145,InTran!$O:$O,$C$134,InTran!$C:$C,$X$134) -> 0 | Y145: =+SUMIFS(InTran!$S:$S,InTran!$G:$G,C145,InTran!$O:$O,$C$134,InTran!$C:$C,$X$134) -> 0 | Z145: =+SUMIFS(InTran!$M:$M,InTran!$G:$G,C145,InTran!$O:$O,$C$134,InTran!$C:$C,$X$134) -> 0 | AA145: =+IFERROR(X145/SUM($X$136:$X$157),0) -> 0 | AB145: =+SUMIFS(InTran!$R:$R,InTran!$G:$G,C145,InTran!$O:$O,$C$134) -> 0 | AC145: =+SUMIFS(InTran!$S:$S,InTran!$G:$G,C145,InTran!$O:$O,$C$134) -> 0 | AD145: =+SUMIFS(InTran!$M:$M,InTran!$G:$G,C145,InTran!$O:$O,$C$134) -> 0 | AE145: =+IFERROR(AB145/SUM($AB$136:$AB$157),0) -> 0 | AF145: =+RANK(AB145,$AB$136:$AB$157) -> 6
C146: CLSA LIMITED | D146: =+SUMIFS(InTran!$R:$R,InTran!$G:$G,C146,InTran!$O:$O,$C$134,InTran!$C:$C,$D$134) -> 0 | E146: =+SUMIFS(InTran!$S:$S,InTran!$G:$G,C146,InTran!$O:$O,$C$134,InTran!$C:$C,$D$134) -> 0 | F146: =+SUMIFS(InTran!$M:$M,InTran!$G:$G,C146,InTran!$O:$O,$C$134,InTran!$C:$C,$D$134) -> 0 | G146: =+IFERROR(D146/SUM($D$136:$D$157),0) -> 0 | H146: =+SUMIFS(InTran!$R:$R,InTran!$G:$G,C146,InTran!$O:$O,$C$134,InTran!$C:$C,$H$134) -> 0 | I146: =+SUMIFS(InTran!$S:$S,InTran!$G:$G,C146,InTran!$O:$O,$C$134,InTran!$C:$C,$H$134) -> 0 | J146: =+SUMIFS(InTran!$M:$M,InTran!$G:$G,C146,InTran!$O:$O,$C$134,InTran!$C:$C,$H$134) -> 0 | K146: =+IFERROR(H146/SUM($H$136:$H$157),0) -> 0 | L146: =+SUMIFS(InTran!$R:$R,InTran!$G:$G,C146,InTran!$O:$O,$C$134,InTran!$C:$C,$L$134) -> 0 | M146: =+SUMIFS(InTran!$S:$S,InTran!$G:$G,C146,InTran!$O:$O,$C$134,InTran!$C:$C,$L$134) -> 0 | N146: =+SUMIFS(InTran!$M:$M,InTran!$G:$G,C146,InTran!$O:$O,$C$134,InTran!$C:$C,$L$134) -> 0 | O146: =+IFERROR(L146/SUM($L$136:$L$157),0) -> 0 | P146: =+SUMIFS(InTran!$R:$R,InTran!$G:$G,C146,InTran!$O:$O,$C$134,InTran!$C:$C,$P$134) -> 0 | Q146: =+SUMIFS(InTran!$S:$S,InTran!$G:$G,C146,InTran!$O:$O,$C$134,InTran!$C:$C,$P$134) -> 0 | R146: =+SUMIFS(InTran!$M:$M,InTran!$G:$G,C146,InTran!$O:$O,$C$134,InTran!$C:$C,$P$134) -> 0 | S146: =+IFERROR(P146/SUM($P$136:$P$157),0) -> 0 | T146: =+SUMIFS(InTran!$R:$R,InTran!$G:$G,C146,InTran!$O:$O,$C$134,InTran!$C:$C,$T$134) -> 0 | U146: =+SUMIFS(InTran!$S:$S,InTran!$G:$G,C146,InTran!$O:$O,$C$134,InTran!$C:$C,$T$134) -> 0 | V146: =+SUMIFS(InTran!$M:$M,InTran!$G:$G,C146,InTran!$O:$O,$C$134,InTran!$C:$C,$T$134) -> 0 | W146: =+IFERROR(T146/SUM($T$136:$T$157),0) -> 0 | X146: =+SUMIFS(InTran!$R:$R,InTran!$G:$G,C146,InTran!$O:$O,$C$134,InTran!$C:$C,$X$134) -> 0 | Y146: =+SUMIFS(InTran!$S:$S,InTran!$G:$G,C146,InTran!$O:$O,$C$134,InTran!$C:$C,$X$134) -> 0 | Z146: =+SUMIFS(InTran!$M:$M,InTran!$G:$G,C146,InTran!$O:$O,$C$134,InTran!$C:$C,$X$134) -> 0 | AA146: =+IFERROR(X146/SUM($X$136:$X$157),0) -> 0 | AB146: =+SUMIFS(InTran!$R:$R,InTran!$G:$G,C146,InTran!$O:$O,$C$134) -> 0 | AC146: =+SUMIFS(InTran!$S:$S,InTran!$G:$G,C146,InTran!$O:$O,$C$134) -> 0 | AD146: =+SUMIFS(InTran!$M:$M,InTran!$G:$G,C146,InTran!$O:$O,$C$134) -> 0 | AE146: =+IFERROR(AB146/SUM($AB$136:$AB$157),0) -> 0 | AF146: =+RANK(AB146,$AB$136:$AB$157) -> 6
C147: CLSA LIMITED FOREIGN | D147: =+SUMIFS(InTran!$R:$R,InTran!$G:$G,C147,InTran!$O:$O,$C$134,InTran!$C:$C,$D$134) -> 0 | E147: =+SUMIFS(InTran!$S:$S,InTran!$G:$G,C147,InTran!$O:$O,$C$134,InTran!$C:$C,$D$134) -> 0 | F147: =+SUMIFS(InTran!$M:$M,InTran!$G:$G,C147,InTran!$O:$O,$C$134,InTran!$C:$C,$D$134) -> 0 | G147: =+IFERROR(D147/SUM($D$136:$D$157),0) -> 0 | H147: =+SUMIFS(InTran!$R:$R,InTran!$G:$G,C147,InTran!$O:$O,$C$134,InTran!$C:$C,$H$134) -> 0 | I147: =+SUMIFS(InTran!$S:$S,InTran!$G:$G,C147,InTran!$O:$O,$C$134,InTran!$C:$C,$H$134) -> 0 | J147: =+SUMIFS(InTran!$M:$M,InTran!$G:$G,C147,InTran!$O:$O,$C$134,InTran!$C:$C,$H$134) -> 0 | K147: =+IFERROR(H147/SUM($H$136:$H$157),0) -> 0 | L147: =+SUMIFS(InTran!$R:$R,InTran!$G:$G,C147,InTran!$O:$O,$C$134,InTran!$C:$C,$L$134) -> 0 | M147: =+SUMIFS(InTran!$S:$S,InTran!$G:$G,C147,InTran!$O:$O,$C$134,InTran!$C:$C,$L$134) -> 0 | N147: =+SUMIFS(InTran!$M:$M,InTran!$G:$G,C147,InTran!$O:$O,$C$134,InTran!$C:$C,$L$134) -> 0 | O147: =+IFERROR(L147/SUM($L$136:$L$157),0) -> 0 | P147: =+SUMIFS(InTran!$R:$R,InTran!$G:$G,C147,InTran!$O:$O,$C$134,InTran!$C:$C,$P$134) -> 0 | Q147: =+SUMIFS(InTran!$S:$S,InTran!$G:$G,C147,InTran!$O:$O,$C$134,InTran!$C:$C,$P$134) -> 0 | R147: =+SUMIFS(InTran!$M:$M,InTran!$G:$G,C147,InTran!$O:$O,$C$134,InTran!$C:$C,$P$134) -> 0 | S147: =+IFERROR(P147/SUM($P$136:$P$157),0) -> 0 | T147: =+SUMIFS(InTran!$R:$R,InTran!$G:$G,C147,InTran!$O:$O,$C$134,InTran!$C:$C,$T$134) -> 0 | U147: =+SUMIFS(InTran!$S:$S,InTran!$G:$G,C147,InTran!$O:$O,$C$134,InTran!$C:$C,$T$134) -> 0 | V147: =+SUMIFS(InTran!$M:$M,InTran!$G:$G,C147,InTran!$O:$O,$C$134,InTran!$C:$C,$T$134) -> 0 | W147: =+IFERROR(T147/SUM($T$136:$T$157),0) -> 0 | X147: =+SUMIFS(InTran!$R:$R,InTran!$G:$G,C147,InTran!$O:$O,$C$134,InTran!$C:$C,$X$134) -> 0 | Y147: =+SUMIFS(InTran!$S:$S,InTran!$G:$G,C147,InTran!$O:$O,$C$134,InTran!$C:$C,$X$134) -> 0 | Z147: =+SUMIFS(InTran!$M:$M,InTran!$G:$G,C147,InTran!$O:$O,$C$134,InTran!$C:$C,$X$134) -> 0 | AA147: =+IFERROR(X147/SUM($X$136:$X$157),0) -> 0 | AB147: =+SUMIFS(InTran!$R:$R,InTran!$G:$G,C147,InTran!$O:$O,$C$134) -> 0 | AC147: =+SUMIFS(InTran!$S:$S,InTran!$G:$G,C147,InTran!$O:$O,$C$134) -> 0 | AD147: =+SUMIFS(InTran!$M:$M,InTran!$G:$G,C147,InTran!$O:$O,$C$134) -> 0 | AE147: =+IFERROR(AB147/SUM($AB$136:$AB$157),0) -> 0 | AF147: =+RANK(AB147,$AB$136:$AB$157) -> 6
C148: CREDIT SUISSE SECURITIES (M) SDN BHD | D148: =+SUMIFS(InTran!$R:$R,InTran!$G:$G,C148,InTran!$O:$O,$C$134,InTran!$C:$C,$D$134) -> 0 | E148: =+SUMIFS(InTran!$S:$S,InTran!$G:$G,C148,InTran!$O:$O,$C$134,InTran!$C:$C,$D$134) -> 0 | F148: =+SUMIFS(InTran!$M:$M,InTran!$G:$G,C148,InTran!$O:$O,$C$134,InTran!$C:$C,$D$134) -> 0 | G148: =+IFERROR(D148/SUM($D$136:$D$157),0) -> 0 | H148: =+SUMIFS(InTran!$R:$R,InTran!$G:$G,C148,InTran!$O:$O,$C$134,InTran!$C:$C,$H$134) -> 0 | I148: =+SUMIFS(InTran!$S:$S,InTran!$G:$G,C148,InTran!$O:$O,$C$134,InTran!$C:$C,$H$134) -> 0 | J148: =+SUMIFS(InTran!$M:$M,InTran!$G:$G,C148,InTran!$O:$O,$C$134,InTran!$C:$C,$H$134) -> 0 | K148: =+IFERROR(H148/SUM($H$136:$H$157),0) -> 0 | L148: =+SUMIFS(InTran!$R:$R,InTran!$G:$G,C148,InTran!$O:$O,$C$134,InTran!$C:$C,$L$134) -> 0 | M148: =+SUMIFS(InTran!$S:$S,InTran!$G:$G,C148,InTran!$O:$O,$C$134,InTran!$C:$C,$L$134) -> 0 | N148: =+SUMIFS(InTran!$M:$M,InTran!$G:$G,C148,InTran!$O:$O,$C$134,InTran!$C:$C,$L$134) -> 0 | O148: =+IFERROR(L148/SUM($L$136:$L$157),0) -> 0 | P148: =+SUMIFS(InTran!$R:$R,InTran!$G:$G,C148,InTran!$O:$O,$C$134,InTran!$C:$C,$P$134) -> 0 | Q148: =+SUMIFS(InTran!$S:$S,InTran!$G:$G,C148,InTran!$O:$O,$C$134,InTran!$C:$C,$P$134) -> 0 | R148: =+SUMIFS(InTran!$M:$M,InTran!$G:$G,C148,InTran!$O:$O,$C$134,InTran!$C:$C,$P$134) -> 0 | S148: =+IFERROR(P148/SUM($P$136:$P$157),0) -> 0 | T148: =+SUMIFS(InTran!$R:$R,InTran!$G:$G,C148,InTran!$O:$O,$C$134,InTran!$C:$C,$T$134) -> 0 | U148: =+SUMIFS(InTran!$S:$S,InTran!$G:$G,C148,InTran!$O:$O,$C$134,InTran!$C:$C,$T$134) -> 0 | V148: =+SUMIFS(InTran!$M:$M,InTran!$G:$G,C148,InTran!$O:$O,$C$134,InTran!$C:$C,$T$134) -> 0 | W148: =+IFERROR(T148/SUM($T$136:$T$157),0) -> 0 | X148: =+SUMIFS(InTran!$R:$R,InTran!$G:$G,C148,InTran!$O:$O,$C$134,InTran!$C:$C,$X$134) -> 0 | Y148: =+SUMIFS(InTran!$S:$S,InTran!$G:$G,C148,InTran!$O:$O,$C$134,InTran!$C:$C,$X$134) -> 0 | Z148: =+SUMIFS(InTran!$M:$M,InTran!$G:$G,C148,InTran!$O:$O,$C$134,InTran!$C:$C,$X$134) -> 0 | AA148: =+IFERROR(X148/SUM($X$136:$X$157),0) -> 0 | AB148: =+SUMIFS(InTran!$R:$R,InTran!$G:$G,C148,InTran!$O:$O,$C$134) -> 0 | AC148: =+SUMIFS(InTran!$S:$S,InTran!$G:$G,C148,InTran!$O:$O,$C$134) -> 0 | AD148: =+SUMIFS(InTran!$M:$M,InTran!$G:$G,C148,InTran!$O:$O,$C$134) -> 0 | AE148: =+IFERROR(AB148/SUM($AB$136:$AB$157),0) -> 0 | AF148: =+RANK(AB148,$AB$136:$AB$157) -> 6
C149: HONG LEONG INVESTMENT BANK BHD | D149: =+SUMIFS(InTran!$R:$R,InTran!$G:$G,C149,InTran!$O:$O,$C$134,InTran!$C:$C,$D$134) -> 0 | E149: =+SUMIFS(InTran!$S:$S,InTran!$G:$G,C149,InTran!$O:$O,$C$134,InTran!$C:$C,$D$134) -> 0 | F149: =+SUMIFS(InTran!$M:$M,InTran!$G:$G,C149,InTran!$O:$O,$C$134,InTran!$C:$C,$D$134) -> 0 | G149: =+IFERROR(D149/SUM($D$136:$D$157),0) -> 0 | H149: =+SUMIFS(InTran!$R:$R,InTran!$G:$G,C149,InTran!$O:$O,$C$134,InTran!$C:$C,$H$134) -> 0 | I149: =+SUMIFS(InTran!$S:$S,InTran!$G:$G,C149,InTran!$O:$O,$C$134,InTran!$C:$C,$H$134) -> 0 | J149: =+SUMIFS(InTran!$M:$M,InTran!$G:$G,C149,InTran!$O:$O,$C$134,InTran!$C:$C,$H$134) -> 0 | K149: =+IFERROR(H149/SUM($H$136:$H$157),0) -> 0 | L149: =+SUMIFS(InTran!$R:$R,InTran!$G:$G,C149,InTran!$O:$O,$C$134,InTran!$C:$C,$L$134) -> 0 | M149: =+SUMIFS(InTran!$S:$S,InTran!$G:$G,C149,InTran!$O:$O,$C$134,InTran!$C:$C,$L$134) -> 0 | N149: =+SUMIFS(InTran!$M:$M,InTran!$G:$G,C149,InTran!$O:$O,$C$134,InTran!$C:$C,$L$134) -> 0 | O149: =+IFERROR(L149/SUM($L$136:$L$157),0) -> 0 | P149: =+SUMIFS(InTran!$R:$R,InTran!$G:$G,C149,InTran!$O:$O,$C$134,InTran!$C:$C,$P$134) -> 0 | Q149: =+SUMIFS(InTran!$S:$S,InTran!$G:$G,C149,InTran!$O:$O,$C$134,InTran!$C:$C,$P$134) -> 0 | R149: =+SUMIFS(InTran!$M:$M,InTran!$G:$G,C149,InTran!$O:$O,$C$134,InTran!$C:$C,$P$134) -> 0 | S149: =+IFERROR(P149/SUM($P$136:$P$157),0) -> 0 | T149: =+SUMIFS(InTran!$R:$R,InTran!$G:$G,C149,InTran!$O:$O,$C$134,InTran!$C:$C,$T$134) -> 0 | U149: =+SUMIFS(InTran!$S:$S,InTran!$G:$G,C149,InTran!$O:$O,$C$134,InTran!$C:$C,$T$134) -> 0 | V149: =+SUMIFS(InTran!$M:$M,InTran!$G:$G,C149,InTran!$O:$O,$C$134,InTran!$C:$C,$T$134) -> 0 | W149: =+IFERROR(T149/SUM($T$136:$T$157),0) -> 0 | X149: =+SUMIFS(InTran!$R:$R,InTran!$G:$G,C149,InTran!$O:$O,$C$134,InTran!$C:$C,$X$134) -> 0 | Y149: =+SUMIFS(InTran!$S:$S,InTran!$G:$G,C149,InTran!$O:$O,$C$134,InTran!$C:$C,$X$134) -> 0 | Z149: =+SUMIFS(InTran!$M:$M,InTran!$G:$G,C149,InTran!$O:$O,$C$134,InTran!$C:$C,$X$134) -> 0 | AA149: =+IFERROR(X149/SUM($X$136:$X$157),0) -> 0 | AB149: =+SUMIFS(InTran!$R:$R,InTran!$G:$G,C149,InTran!$O:$O,$C$134) -> 0 | AC149: =+SUMIFS(InTran!$S:$S,InTran!$G:$G,C149,InTran!$O:$O,$C$134) -> 0 | AD149: =+SUMIFS(InTran!$M:$M,InTran!$G:$G,C149,InTran!$O:$O,$C$134) -> 0 | AE149: =+IFERROR(AB149/SUM($AB$136:$AB$157),0) -> 0 | AF149: =+RANK(AB149,$AB$136:$AB$157) -> 6
